Workbook

Sheet Dashboard
B2: Building Description | F2: Results
B3: Building Type | C3: SFD with Basement | G3: CZ 4 | H3: CZ5 | I3: CZ6
B4: # of Storeys | C4: 3 | F4: Primary Heating | G4: =C15 -> Mini Split HP | H4: =C36 -> Mini Split HP | I4: =C57 -> Mini Split HP
B5: # of Dwellings | C5: 1 | F5: Supplemental Heat | G5: =D15 -> Condensing Furnace | H5: =D36 -> Condensing Furnace | I5: =D57 -> Condensing Furnace
B6: Modelled Floor Area (m²) | C6: 300.8 | F6: Swithover Temp (°C) | G6: =C18 -> 0 | H6: =C39 -> 0 | I6: =C60 -> 0
B7: Natural Gas (kgCO2e/kWh) | C7: 0.18 | F7: Average Efficiency | G7: =C24 -> 2.994425092 | H7: =C45 -> 1.548211783 | I7: =C66 -> 1.344727874
B8: Electricity (kgCO2e/kWh) | C8: 0.011
B11: Climate Zone 4: Vancouver
B13: Average Efficiency | F13: Energy End-Use Breakdown
C14: Primary | D14: Supplementary | F14: End-Use | G14: Elec (kWh) | H14: NG (kWh) | I14: Total (kWh)
B15: Type | C15: Mini Split HP | D15: Condensing Furnace | F15: Heating | G15: =IF(D15='Equip. Data'!$J$5,(C22+Dashboard!D22),C22) -> 5624.96366 | H15: =IF(D15='Equip. Data'!J5,0,D22) -> 1785.2 | I15: =SUM(G15:H15) -> 7410.16366
B16: Model | C16: AM036 | F16: Cooling | G16: 499.93 | H16: 0 | I16: =SUM(G16:H16) -> 499.93
B17: Run Hours (hours) | C17: =COUNTIFS('CZ 4 COV'!$G$4:$G$8763,C15) -> 8518 | D17: =COUNTIFS('CZ 4 COV'!$N$4:$N$8763,D15) -> 242 | F17: Interior Equipment | G17: 8514.24 | H17: 0 | I17: 8514.24
B18: Switchover Temperature (°C) | C18: 0 | F18: Fans | G18: 435.02 | H18: 0 | I18: 435.02
B19: Peak Heat Loss as per TECA (MBH) | C19: 44.732 | F19: Water Systems | G19: 0 | H19: 3553.48 | I19: 3553.48
B20: Peak Heating Demand as per Model (MBH) | C20: 48.2 | F20: Total | G20: =SUM(G15:G19) -> 15074.15366 | H20: =SUM(H15:H19) -> 5338.68 | I20: =SUM(I15:I19) -> 20412.83366
B21: Annual Energy demand (kWh/yr) | C21: =SUM('CZ 4 COV'!$K$4:$K$8763) -> 20493.24 | D21: =SUM('CZ 4 COV'!$O$4:$O$8763) -> 1695.94
B22: Annual Energy Consumption (kWh/yr) | C22: =SUM('CZ 4 COV'!$M$4:$M$8763) -> 5624.96366 | D22: =SUM('CZ 4 COV'!$Q$4:$Q$8763) -> 1785.2 | F22: Perfomance Metrics
B23: Average Annual Efficiency | C23: =IFERROR(C21/C22,"No Heating Data") -> 3.643266204 | D23: =IFERROR(D21/D22,"No Heating") -> 0.95 | F23: Mechanical Energy Use Intensity (Max.) | H23: =SUM(I15:I16,I18:I19)/$C$6 -> 39.55649488 | I23: kWh/m².yr
B24: Average Heating Efficiency | C24: =(C21+D21)/(C22+D22) -> 2.994425092 | F24: Adjusted TEDI (Max.) | H24: =SUM(C21:D21)/C6 -> 73.76722074 | I24: kWh/m².yr
F25: Air Tightness in ACH @ 50Pa (Max.) | H25: 6.8 | I25: Ach @ 50 Pa
F26: Total GHG | H26: =C7*H20+G20*C8 -> 1126.77809 | I26: kgCO2e/yr
F27: Total GHGI | H27: =H26/C6 -> 3.7459378 | I27: kgCO2e/yr.m²
B32: Climate Zone 5: Kelowna
B34: Average Efficiency | F34: Energy End-Use Breakdown
C35: Primary | D35: Supplementary | F35: End-Use | G35: Elec (kWh) | H35: NG (kWh) | I35: Total (kWh)
B36: Type | C36: Mini Split HP | D36: Condensing Furnace | F36: Heating | G36: =IF(D36='Equip. Data'!$J$5,(C43+Dashboard!D43),C43) -> 4429.001599 | H36: =IF(D36='Equip. Data'!$J$5,0,D43) -> 13947.34737 | I36: =SUM(G36:H36) -> 18376.34897
B37: Model | C37: AM036 | F37: Cooling | G37: 1267.07 | H37: 0 | I37: =SUM(G37:H37) -> 1267.07
B38: Run Hours (hours) | C38: =COUNTIFS('CZ 5 Kelowna'!$G$4:$G$8763,C36) -> 6986 | D38: =COUNTIFS('CZ 5 Kelowna'!$N$4:$N$8763,D36) -> 1774 | F38: Interior Equipment | G38: 8514.24 | H38: 0 | I38: 8514.24
B39: Switchover Temperature (°C) | C39: 0 | F39: Fans | G39: 330.29 | H39: 0 | I39: 330.29
B40: Peak Heat Loss as per TECA (MBH) | C40: 60.279 | F40: Water Systems | G40: 0 | H40: 3553.48 | I40: 3553.48
B41: Peak Heating Demand as per Model (MBH) | C41: 61.441 | F41: Total | G41: =SUM(G36:G40) -> 14540.6016 | H41: =SUM(H36:H40) -> 17500.82737 | I41: =SUM(I36:I40) -> 32041.42897
B42: Annual Energy demand (kWh/yr) | C42: =SUM('CZ 5 Kelowna'!$K$4:$K$8763) -> 15200.5 | D42: =SUM('CZ 5 Kelowna'!$O$4:$O$8763) -> 13249.98
B43: Annual Energy Consumption (kWh/yr) | C43: =SUM('CZ 5 Kelowna'!$M$4:$M$8763) -> 4429.001599 | D43: =SUM('CZ 5 Kelowna'!$Q$4:$Q$8763) -> 13947.34737 | F43: Perfomance Metrics
B44: Average Annual Efficiency | C44: =IFERROR(C42/C43,"No Heating Data") -> 3.432037596 | D44: =IFERROR(D42/D43,"No Heating") -> 0.95 | F44: Mechanical Energy Use Intensity (Max.) | H44: =SUM(I36:I37,I39:I40)/C6 -> 78.21538886 | I44: kWh/m².yr
B45: Average Heating Efficiency | C45: =(C42+D42)/(C43+D43) -> 1.548211783 | F45: Adjusted TEDI (Max.) | H45: =SUM(C42:D42)/C6 -> 94.58271277 | I45: kWh/m².yr
F46: Air Tightness in ACH @ 50Pa (Max.) | H46: 6.8 | I46: Ach @ 50 Pa
F47: Total GHG | H47: =C7*H41+G41*C8 -> 3310.095544 | I47: kgCO2e/yr
F48: Total GHGI | H48: =H47/C6 -> 11.00430699 | I48: kgCO2e/yr.m²
B53: Climate Zone 6: Prince George
B55: Average Efficiency | F55: Energy End-Use Breakdown
C56: Primary | D56: Supplementary | F56: End-Use | G56: Elec (kWh) | H56: NG (kWh) | I56: Total (kWh)
B57: Type | C57: Mini Split HP | D57: Condensing Furnace | F57: Heating | G57: =IF(D57='Equip. Data'!$J$5,(C64+Dashboard!D64),C64) -> 4531.11978 | H57: =IF(D57='Equip. Data'!$J$5,0,D64) -> 24130.76842 | I57: =SUM(G57:H57) -> 28661.8882
B58: Model | C58: AM036 | F58: Cooling | G58: 341.66 | H58: 0 | I58: =SUM(G58:H58) -> 341.66
B59: Run Hours (hours) | C59: =COUNTIFS('CZ 6 PG'!$G$4:$G$8763,C57) -> 6033 | D59: =COUNTIFS('CZ 6 PG'!$N$4:$N$8763,D57) -> 2727 | F59: Interior Equipment | G59: 8514.24 | H59: 0 | I59: 8514.24
B60: Switchover Temperature (°C) | C60: 0 | F60: Fans | G60: 310.53 | H60: 0 | I60: 310.53
B61: Peak Heat Loss as per TECA (MBH) | C61: 91.68 | F61: Water Systems | G61: 0 | H61: 3553.48 | I61: 3553.48
B62: Peak Heating Demand as per Model (MBH) | C62: 76.06 | F62: Total | G62: =SUM(G57:G61) -> 13697.54978 | H62: =SUM(H57:H61) -> 27684.24842 | I62: =SUM(I57:I61) -> 41381.7982
B63: Annual Energy demand (kWh/yr) | C63: =SUM('CZ 6 PG'!$K$4:$K$8763) -> 15618.21 | D63: =SUM('CZ 6 PG'!$O$4:$O$8763) -> 22924.23
B64: Annual Energy Consumption (kWh/yr) | C64: =SUM('CZ 6 PG'!$M$4:$M$8763) -> 4531.11978 | D64: =SUM('CZ 6 PG'!$Q$4:$Q$8763) -> 24130.76842 | F64: Perfomance Metrics
B65: Average Annual Efficiency | C65: =IFERROR(C63/C64,"No Heating Data") -> 3.446876436 | D65: =IFERROR(D63/D64,"No Heating") -> 0.95 | F65: Mechanical Energy Use Intensity (Max.) | H65: =SUM(I57:I58,I60:I61)/C6 -> 109.2671483 | I65: kWh/m².yr
B66: Average Heating Efficiency | C66: =(C63+D63)/(C64+D64) -> 1.344727874 | F66: Adjusted TEDI (Max.) | H66: =SUM(C63:D63)/C6 -> 128.1331117 | I66: kWh/m².yr
F67: Air Tightness in ACH @ 50Pa (Max.) | H67: 6.8 | I67: Ach @ 50 Pa
F68: Total GHG | H68: =C7*H62+G62*C8 -> 5133.837763 | I68: kgCO2e/yr
F69: Total GHGI | H69: =H68/C6 -> 17.0672798 | I69: kgCO2e/yr.m²

Sheet CZ 4 COV
G2: Primary Heating | N2: Supplementary Heating
C3: Timestamp | D3: OAT (c) | E3: Heating kW/h | F3: Heating MBH | G3: Equipment Type | H3: Rated capacity | I3: Equip. Capacity | J3: Min Demand (MBH) | K3: Min Demand (KW) | L3: Efficiency | M3: kWH/h | N3: Equipment type | O3: Furnace Demand (KW) | P3: Eqp. Efficiency | Q3: KWH/hr | R3: Average Efficiency
B4: Heating (Electricity) | C4: 2002-01-01T01:00:00 | D4: -1.8 | E4: 6.86 | F4: =E4*3.412 -> 23.40632 | G4: =IF(D4>=Dashboard!$C$18,Dashboard!$C$15,"") ->  | H4: =IF(G4=Dashboard!$C$15,Dashboard!$C$16,"") ->  | I4: =IFERROR(_xlfn.LET( _xlpm.type,G4, _xlpm.size,H4, _xlpm.temp,D4, _xlpm.temps,_xlfn._xlws.FILTER('Equip. Data'!$D$4:$D$63,('Equip. Data'!$B$4:$B$63=_xlpm.type)*('Equip. Data'!$E$4:$E$63=_xlpm.size)),_xlpm.caps,_xlfn._xlws.FILTER('Equip. Data'!$F$4:$F$63,('Equip. Data'!$B$4:$B$63=_xlpm.type)*('Equip. Data'!$E$4:$E$63=_xlpm.size)), INDEX(_xlpm.caps, _xlfn.XMATCH(MIN(ABS(_xlpm.temps-_xlpm.temp)), ABS(_xlpm.temps-_xlpm.temp)))),0) -> 0 | J4: =IF(MIN(F4,I4)=I4,0,MIN(F4,I4)) -> 0 | K4: =J4/3.412 -> 0 | L4: =IFERROR(_xlfn.LET( _xlpm.type,G4, _xlpm.size,H4, _xlpm.temp,D4, _xlpm.temps,_xlfn._xlws.FILTER('Equip. Data'!$D$4:$D$63,('Equip. Data'!$B$4:$B$63=_xlpm.type)*('Equip. Data'!$E$4:$E$63=_xlpm.size)),_xlpm.cops,_xlfn._xlws.FILTER('Equip. Data'!$H$4:$H$63,('Equip. Data'!$B$4:$B$63=_xlpm.type)*('Equip. Data'!$E$4:$E$63=_xlpm.size)), INDEX(_xlpm.cops, _xlfn.XMATCH(MIN(ABS(_xlpm.temps-_xlpm.temp)), ABS(_xlpm.temps-_xlpm.temp)))),0) -> 0 | M4: =IFERROR(K4/L4,0) -> 0 | N4: =IF(D4<Dashboard!$C$18,Dashboard!$D$15,"") -> Condensing Furnace | O4: =IF(K4=0,E4,0) -> 6.86 | P4: =IFERROR(VLOOKUP(N4,'Equip. Data'!$J$3:$K$7,2,FALSE),"") -> 0.95 | Q4: =IFERROR(O4/P4,0) -> 7.221052632 | R4: =IFERROR((K4+O4)/(M4+Q4),0) -> 0.95
B5: Heating (Electricity) | C5: 2002-01-01T02:00:00 | D5: -3 | E5: 7.45 | F5: =E5*3.412 -> 25.4194 | G5: =IF(D5>=Dashboard!$C$18,Dashboard!$C$15,"") ->  | H5: =IF(G5=Dashboard!$C$15,Dashboard!$C$16,"") ->  | I5: =IFERROR(_xlfn.LET( _xlpm.type,G5, _xlpm.size,H5, _xlpm.temp,D5, _xlpm.temps,_xlfn._xlws.FILTER('Equip. Data'!$D$4:$D$63,('Equip. Data'!$B$4:$B$63=_xlpm.type)*('Equip. Data'!$E$4:$E$63=_xlpm.size)),_xlpm.caps,_xlfn._xlws.FILTER('Equip. Data'!$F$4:$F$63,('Equip. Data'!$B$4:$B$63=_xlpm.type)*('Equip. Data'!$E$4:$E$63=_xlpm.size)), INDEX(_xlpm.caps, _xlfn.XMATCH(MIN(ABS(_xlpm.temps-_xlpm.temp)), ABS(_xlpm.temps-_xlpm.temp)))),0) -> 0 | J5: =IF(MIN(F5,I5)=I5,0,MIN(F5,I5)) -> 0 | K5: =J5/3.412 -> 0 | L5: =IFERROR(_xlfn.LET( _xlpm.type,G5, _xlpm.size,H5, _xlpm.temp,D5, _xlpm.temps,_xlfn._xlws.FILTER('Equip. Data'!$D$4:$D$63,('Equip. Data'!$B$4:$B$63=_xlpm.type)*('Equip. Data'!$E$4:$E$63=_xlpm.size)),_xlpm.cops,_xlfn._xlws.FILTER('Equip. Data'!$H$4:$H$63,('Equip. Data'!$B$4:$B$63=_xlpm.type)*('Equip. Data'!$E$4:$E$63=_xlpm.size)), INDEX(_xlpm.cops, _xlfn.XMATCH(MIN(ABS(_xlpm.temps-_xlpm.temp)), ABS(_xlpm.temps-_xlpm.temp)))),0) -> 0 | M5: =IFERROR(K5/L5,0) -> 0 | N5: =IF(D5<Dashboard!$C$18,Dashboard!$D$15,"") -> Condensing Furnace | O5: =IF(K5=0,E5,0) -> 7.45 | P5: =IFERROR(VLOOKUP(N5,'Equip. Data'!$J$3:$K$7,2,FALSE),"") -> 0.95 | Q5: =IFERROR(O5/P5,0) -> 7.842105263 | R5: =IFERROR((K5+O5)/(M5+Q5),0) -> 0.95
B6: Heating (Electricity) | C6: 2002-01-01T03:00:00 | D6: -4 | E6: 7.86 | F6: 26.81832 | G6: =IF(D6>=Dashboard!$C$18,Dashboard!$C$15,"") ->  | H6: =IF(G6=Dashboard!$C$15,Dashboard!$C$16,"") ->  | I6: =IFERROR(_xlfn.LET( _xlpm.type,G6, _xlpm.size,H6, _xlpm.temp,D6, _xlpm.temps,_xlfn._xlws.FILTER('Equip. Data'!$D$4:$D$63,('Equip. Data'!$B$4:$B$63=_xlpm.type)*('Equip. Data'!$E$4:$E$63=_xlpm.size)),_xlpm.caps,_xlfn._xlws.FILTER('Equip. Data'!$F$4:$F$63,('Equip. Data'!$B$4:$B$63=_xlpm.type)*('Equip. Data'!$E$4:$E$63=_xlpm.size)), INDEX(_xlpm.caps, _xlfn.XMATCH(MIN(ABS(_xlpm.temps-_xlpm.temp)), ABS(_xlpm.temps-_xlpm.temp)))),0) -> 0 | J6: 0 | K6: 0 | L6: =IFERROR(_xlfn.LET( _xlpm.type,G6, _xlpm.size,H6, _xlpm.temp,D6, _xlpm.temps,_xlfn._xlws.FILTER('Equip. Data'!$D$4:$D$63,('Equip. Data'!$B$4:$B$63=_xlpm.type)*('Equip. Data'!$E$4:$E$63=_xlpm.size)),_xlpm.cops,_xlfn._xlws.FILTER('Equip. Data'!$H$4:$H$63,('Equip. Data'!$B$4:$B$63=_xlpm.type)*('Equip. Data'!$E$4:$E$63=_xlpm.size)), INDEX(_xlpm.cops, _xlfn.XMATCH(MIN(ABS(_xlpm.temps-_xlpm.temp)), ABS(_xlpm.temps-_xlpm.temp)))),0) -> 0 | M6: 0 | N6: =IF(D6<Dashboard!$C$18,Dashboard!$D$15,"") -> Condensing Furnace | O6: 7.86 | P6: =IFERROR(VLOOKUP(N6,'Equip. Data'!$J$3:$K$7,2,FALSE),"") -> 0.95 | Q6: 8.273684211 | R6: 0.95
B7: Heating (Electricity) | C7: 2002-01-01T04:00:00 | D7: -4.7 | E7: 8.24 | F7: 28.11488 | G7: =IF(D7>=Dashboard!$C$18,Dashboard!$C$15,"") ->  | H7: =IF(G7=Dashboard!$C$15,Dashboard!$C$16,"") ->  | I7: =IFERROR(_xlfn.LET( _xlpm.type,G7, _xlpm.size,H7, _xlpm.temp,D7, _xlpm.temps,_xlfn._xlws.FILTER('Equip. Data'!$D$4:$D$63,('Equip. Data'!$B$4:$B$63=_xlpm.type)*('Equip. Data'!$E$4:$E$63=_xlpm.size)),_xlpm.caps,_xlfn._xlws.FILTER('Equip. Data'!$F$4:$F$63,('Equip. Data'!$B$4:$B$63=_xlpm.type)*('Equip. Data'!$E$4:$E$63=_xlpm.size)), INDEX(_xlpm.caps, _xlfn.XMATCH(MIN(ABS(_xlpm.temps-_xlpm.temp)), ABS(_xlpm.temps-_xlpm.temp)))),0) -> 0 | J7: 0 | K7: 0 | L7: =IFERROR(_xlfn.LET( _xlpm.type,G7, _xlpm.size,H7, _xlpm.temp,D7, _xlpm.temps,_xlfn._xlws.FILTER('Equip. Data'!$D$4:$D$63,('Equip. Data'!$B$4:$B$63=_xlpm.type)*('Equip. Data'!$E$4:$E$63=_xlpm.size)),_xlpm.cops,_xlfn._xlws.FILTER('Equip. Data'!$H$4:$H$63,('Equip. Data'!$B$4:$B$63=_xlpm.type)*('Equip. Data'!$E$4:$E$63=_xlpm.size)), INDEX(_xlpm.cops, _xlfn.XMATCH(MIN(ABS(_xlpm.temps-_xlpm.temp)), ABS(_xlpm.temps-_xlpm.temp)))),0) -> 0 | M7: 0 | N7: =IF(D7<Dashboard!$C$18,Dashboard!$D$15,"") -> Condensing Furnace | O7: 8.24 | P7: =IFERROR(VLOOKUP(N7,'Equip. Data'!$J$3:$K$7,2,FALSE),"") -> 0.95 | Q7: 8.673684211 | R7: 0.95
B8: Heating (Electricity) | C8: 2002-01-01T05:00:00 | D8: -5.2 | E8: 8.53 | F8: 29.10436 | G8: =IF(D8>=Dashboard!$C$18,Dashboard!$C$15,"") ->  | H8: =IF(G8=Dashboard!$C$15,Dashboard!$C$16,"") ->  | I8: =IFERROR(_xlfn.LET( _xlpm.type,G8, _xlpm.size,H8, _xlpm.temp,D8, _xlpm.temps,_xlfn._xlws.FILTER('Equip. Data'!$D$4:$D$63,('Equip. Data'!$B$4:$B$63=_xlpm.type)*('Equip. Data'!$E$4:$E$63=_xlpm.size)),_xlpm.caps,_xlfn._xlws.FILTER('Equip. Data'!$F$4:$F$63,('Equip. Data'!$B$4:$B$63=_xlpm.type)*('Equip. Data'!$E$4:$E$63=_xlpm.size)), INDEX(_xlpm.caps, _xlfn.XMATCH(MIN(ABS(_xlpm.temps-_xlpm.temp)), ABS(_xlpm.temps-_xlpm.temp)))),0) -> 0 | J8: 0 | K8: 0 | L8: =IFERROR(_xlfn.LET( _xlpm.type,G8, _xlpm.size,H8, _xlpm.temp,D8, _xlpm.temps,_xlfn._xlws.FILTER('Equip. Data'!$D$4:$D$63,('Equip. Data'!$B$4:$B$63=_xlpm.type)*('Equip. Data'!$E$4:$E$63=_xlpm.size)),_xlpm.cops,_xlfn._xlws.FILTER('Equip. Data'!$H$4:$H$63,('Equip. Data'!$B$4:$B$63=_xlpm.type)*('Equip. Data'!$E$4:$E$63=_xlpm.size)), INDEX(_xlpm.cops, _xlfn.XMATCH(MIN(ABS(_xlpm.temps-_xlpm.temp)), ABS(_xlpm.temps-_xlpm.temp)))),0) -> 0 | M8: 0 | N8: =IF(D8<Dashboard!$C$18,Dashboard!$D$15,"") -> Condensing Furnace | O8: 8.53 | P8: =IFERROR(VLOOKUP(N8,'Equip. Data'!$J$3:$K$7,2,FALSE),"") -> 0.95 | Q8: 8.978947368 | R8: 0.95
B9: Heating (Electricity) | C9: 2002-01-01T06:00:00 | D9: -5.6 | E9: 8.77 | F9: 29.92324 | G9: =IF(D9>=Dashboard!$C$18,Dashboard!$C$15,"") ->  | H9: =IF(G9=Dashboard!$C$15,Dashboard!$C$16,"") ->  | I9: =IFERROR(_xlfn.LET( _xlpm.type,G9, _xlpm.size,H9, _xlpm.temp,D9, _xlpm.temps,_xlfn._xlws.FILTER('Equip. Data'!$D$4:$D$63,('Equip. Data'!$B$4:$B$63=_xlpm.type)*('Equip. Data'!$E$4:$E$63=_xlpm.size)),_xlpm.caps,_xlfn._xlws.FILTER('Equip. Data'!$F$4:$F$63,('Equip. Data'!$B$4:$B$63=_xlpm.type)*('Equip. Data'!$E$4:$E$63=_xlpm.size)), INDEX(_xlpm.caps, _xlfn.XMATCH(MIN(ABS(_xlpm.temps-_xlpm.temp)), ABS(_xlpm.temps-_xlpm.temp)))),0) -> 0 | J9: 0 | K9: 0 | L9: =IFERROR(_xlfn.LET( _xlpm.type,G9, _xlpm.size,H9, _xlpm.temp,D9, _xlpm.temps,_xlfn._xlws.FILTER('Equip. Data'!$D$4:$D$63,('Equip. Data'!$B$4:$B$63=_xlpm.type)*('Equip. Data'!$E$4:$E$63=_xlpm.size)),_xlpm.cops,_xlfn._xlws.FILTER('Equip. Data'!$H$4:$H$63,('Equip. Data'!$B$4:$B$63=_xlpm.type)*('Equip. Data'!$E$4:$E$63=_xlpm.size)), INDEX(_xlpm.cops, _xlfn.XMATCH(MIN(ABS(_xlpm.temps-_xlpm.temp)), ABS(_xlpm.temps-_xlpm.temp)))),0) -> 0 | M9: 0 | N9: =IF(D9<Dashboard!$C$18,Dashboard!$D$15,"") -> Condensing Furnace | O9: 8.77 | P9: =IFERROR(VLOOKUP(N9,'Equip. Data'!$J$3:$K$7,2,FALSE),"") -> 0.95 | Q9: 9.231578947 | R9: 0.95
B10: Heating (Electricity) | C10: 2002-01-01T07:00:00 | D10: -5.4 | E10: 8.9 | F10: 30.3668 | G10: =IF(D10>=Dashboard!$C$18,Dashboard!$C$15,"") ->  | H10: =IF(G10=Dashboard!$C$15,Dashboard!$C$16,"") ->  | I10: =IFERROR(_xlfn.LET( _xlpm.type,G10, _xlpm.size,H10, _xlpm.temp,D10, _xlpm.temps,_xlfn._xlws.FILTER('Equip. Data'!$D$4:$D$63,('Equip. Data'!$B$4:$B$63=_xlpm.type)*('Equip. Data'!$E$4:$E$63=_xlpm.size)),_xlpm.caps,_xlfn._xlws.FILTER('Equip. Data'!$F$4:$F$63,('Equip. Data'!$B$4:$B$63=_xlpm.type)*('Equip. Data'!$E$4:$E$63=_xlpm.size)), INDEX(_xlpm.caps, _xlfn.XMATCH(MIN(ABS(_xlpm.temps-_xlpm.temp)), ABS(_xlpm.temps-_xlpm.temp)))),0) -> 0 | J10: 0 | K10: 0 | L10: =IFERROR(_xlfn.LET( _xlpm.type,G10, _xlpm.size,H10, _xlpm.temp,D10, _xlpm.temps,_xlfn._xlws.FILTER('Equip. Data'!$D$4:$D$63,('Equip. Data'!$B$4:$B$63=_xlpm.type)*('Equip. Data'!$E$4:$E$63=_xlpm.size)),_xlpm.cops,_xlfn._xlws.FILTER('Equip. Data'!$H$4:$H$63,('Equip. Data'!$B$4:$B$63=_xlpm.type)*('Equip. Data'!$E$4:$E$63=_xlpm.size)), INDEX(_xlpm.cops, _xlfn.XMATCH(MIN(ABS(_xlpm.temps-_xlpm.temp)), ABS(_xlpm.temps-_xlpm.temp)))),0) -> 0 | M10: 0 | N10: =IF(D10<Dashboard!$C$18,Dashboard!$D$15,"") -> Condensing Furnace | O10: 8.9 | P10: =IFERROR(VLOOKUP(N10,'Equip. Data'!$J$3:$K$7,2,FALSE),"") -> 0.95 | Q10: 9.368421053 | R10: 0.95
B11: Heating (Electricity) | C11: 2002-01-01T08:00:00 | D11: -5.4 | E11: 8.96 | F11: 30.57152 | G11: =IF(D11>=Dashboard!$C$18,Dashboard!$C$15,"") ->  | H11: =IF(G11=Dashboard!$C$15,Dashboard!$C$16,"") ->  | I11: =IFERROR(_xlfn.LET( _xlpm.type,G11, _xlpm.size,H11, _xlpm.temp,D11, _xlpm.temps,_xlfn._xlws.FILTER('Equip. Data'!$D$4:$D$63,('Equip. Data'!$B$4:$B$63=_xlpm.type)*('Equip. Data'!$E$4:$E$63=_xlpm.size)),_xlpm.caps,_xlfn._xlws.FILTER('Equip. Data'!$F$4:$F$63,('Equip. Data'!$B$4:$B$63=_xlpm.type)*('Equip. Data'!$E$4:$E$63=_xlpm.size)), INDEX(_xlpm.caps, _xlfn.XMATCH(MIN(ABS(_xlpm.temps-_xlpm.temp)), ABS(_xlpm.temps-_xlpm.temp)))),0) -> 0 | J11: 0 | K11: 0 | L11: =IFERROR(_xlfn.LET( _xlpm.type,G11, _xlpm.size,H11, _xlpm.temp,D11, _xlpm.temps,_xlfn._xlws.FILTER('Equip. Data'!$D$4:$D$63,('Equip. Data'!$B$4:$B$63=_xlpm.type)*('Equip. Data'!$E$4:$E$63=_xlpm.size)),_xlpm.cops,_xlfn._xlws.FILTER('Equip. Data'!$H$4:$H$63,('Equip. Data'!$B$4:$B$63=_xlpm.type)*('Equip. Data'!$E$4:$E$63=_xlpm.size)), INDEX(_xlpm.cops, _xlfn.XMATCH(MIN(ABS(_xlpm.temps-_xlpm.temp)), ABS(_xlpm.temps-_xlpm.temp)))),0) -> 0 | M11: 0 | N11: =IF(D11<Dashboard!$C$18,Dashboard!$D$15,"") -> Condensing Furnace | O11: 8.96 | P11: =IFERROR(VLOOKUP(N11,'Equip. Data'!$J$3:$K$7,2,FALSE),"") -> 0.95 | Q11: 9.431578947 | R11: 0.95
B12: Heating (Electricity) | C12: 2002-01-01T09:00:00 | D12: -4 | E12: 8.52 | F12: 29.07024 | G12: =IF(D12>=Dashboard!$C$18,Dashboard!$C$15,"") ->  | H12: =IF(G12=Dashboard!$C$15,Dashboard!$C$16,"") ->  | I12: =IFERROR(_xlfn.LET( _xlpm.type,G12, _xlpm.size,H12, _xlpm.temp,D12, _xlpm.temps,_xlfn._xlws.FILTER('Equip. Data'!$D$4:$D$63,('Equip. Data'!$B$4:$B$63=_xlpm.type)*('Equip. Data'!$E$4:$E$63=_xlpm.size)),_xlpm.caps,_xlfn._xlws.FILTER('Equip. Data'!$F$4:$F$63,('Equip. Data'!$B$4:$B$63=_xlpm.type)*('Equip. Data'!$E$4:$E$63=_xlpm.size)), INDEX(_xlpm.caps, _xlfn.XMATCH(MIN(ABS(_xlpm.temps-_xlpm.temp)), ABS(_xlpm.temps-_xlpm.temp)))),0) -> 0 | J12: 0 | K12: 0 | L12: =IFERROR(_xlfn.LET( _xlpm.type,G12, _xlpm.size,H12, _xlpm.temp,D12, _xlpm.temps,_xlfn._xlws.FILTER('Equip. Data'!$D$4:$D$63,('Equip. Data'!$B$4:$B$63=_xlpm.type)*('Equip. Data'!$E$4:$E$63=_xlpm.size)),_xlpm.cops,_xlfn._xlws.FILTER('Equip. Data'!$H$4:$H$63,('Equip. Data'!$B$4:$B$63=_xlpm.type)*('Equip. Data'!$E$4:$E$63=_xlpm.size)), INDEX(_xlpm.cops, _xlfn.XMATCH(MIN(ABS(_xlpm.temps-_xlpm.temp)), ABS(_xlpm.temps-_xlpm.temp)))),0) -> 0 | M12: 0 | N12: =IF(D12<Dashboard!$C$18,Dashboard!$D$15,"") -> Condensing Furnace | O12: 8.52 | P12: =IFERROR(VLOOKUP(N12,'Equip. Data'!$J$3:$K$7,2,FALSE),"") -> 0.95 | Q12: 8.968421053 | R12: 0.95
B13: Heating (Electricity) | C13: 2002-01-01T10:00:00 | D13: -1.4 | E13: 6.88 | F13: 23.47456 | G13: =IF(D13>=Dashboard!$C$18,Dashboard!$C$15,"") ->  | H13: =IF(G13=Dashboard!$C$15,Dashboard!$C$16,"") ->  | I13: =IFERROR(_xlfn.LET( _xlpm.type,G13, _xlpm.size,H13, _xlpm.temp,D13, _xlpm.temps,_xlfn._xlws.FILTER('Equip. Data'!$D$4:$D$63,('Equip. Data'!$B$4:$B$63=_xlpm.type)*('Equip. Data'!$E$4:$E$63=_xlpm.size)),_xlpm.caps,_xlfn._xlws.FILTER('Equip. Data'!$F$4:$F$63,('Equip. Data'!$B$4:$B$63=_xlpm.type)*('Equip. Data'!$E$4:$E$63=_xlpm.size)), INDEX(_xlpm.caps, _xlfn.XMATCH(MIN(ABS(_xlpm.temps-_xlpm.temp)), ABS(_xlpm.temps-_xlpm.temp)))),0) -> 0 | J13: 0 | K13: 0 | L13: =IFERROR(_xlfn.LET( _xlpm.type,G13, _xlpm.size,H13, _xlpm.temp,D13, _xlpm.temps,_xlfn._xlws.FILTER('Equip. Data'!$D$4:$D$63,('Equip. Data'!$B$4:$B$63=_xlpm.type)*('Equip. Data'!$E$4:$E$63=_xlpm.size)),_xlpm.cops,_xlfn._xlws.FILTER('Equip. Data'!$H$4:$H$63,('Equip. Data'!$B$4:$B$63=_xlpm.type)*('Equip. Data'!$E$4:$E$63=_xlpm.size)), INDEX(_xlpm.cops, _xlfn.XMATCH(MIN(ABS(_xlpm.temps-_xlpm.temp)), ABS(_xlpm.temps-_xlpm.temp)))),0) -> 0 | M13: 0 | N13: =IF(D13<Dashboard!$C$18,Dashboard!$D$15,"") -> Condensing Furnace | O13: 6.88 | P13: =IFERROR(VLOOKUP(N13,'Equip. Data'!$J$3:$K$7,2,FALSE),"") -> 0.95 | Q13: 7.242105263 | R13: 0.95
B14: Heating (Electricity) | C14: 2002-01-01T11:00:00 | D14: 1 | E14: 5.14 | F14: 17.53768 | G14: =IF(D14>=Dashboard!$C$18,Dashboard!$C$15,"") -> Mini Split HP | H14: =IF(G14=Dashboard!$C$15,Dashboard!$C$16,"") -> AM036 | I14: =IFERROR(_xlfn.LET( _xlpm.type,G14, _xlpm.size,H14, _xlpm.temp,D14, _xlpm.temps,_xlfn._xlws.FILTER('Equip. Data'!$D$4:$D$63,('Equip. Data'!$B$4:$B$63=_xlpm.type)*('Equip. Data'!$E$4:$E$63=_xlpm.size)),_xlpm.caps,_xlfn._xlws.FILTER('Equip. Data'!$F$4:$F$63,('Equip. Data'!$B$4:$B$63=_xlpm.type)*('Equip. Data'!$E$4:$E$63=_xlpm.size)), INDEX(_xlpm.caps, _xlfn.XMATCH(MIN(ABS(_xlpm.temps-_xlpm.temp)), ABS(_xlpm.temps-_xlpm.temp)))),0) -> 40.2 | J14: 17.53768 | K14: 5.14 | L14: =IFERROR(_xlfn.LET( _xlpm.type,G14, _xlpm.size,H14, _xlpm.temp,D14, _xlpm.temps,_xlfn._xlws.FILTER('Equip. Data'!$D$4:$D$63,('Equip. Data'!$B$4:$B$63=_xlpm.type)*('Equip. Data'!$E$4:$E$63=_xlpm.size)),_xlpm.cops,_xlfn._xlws.FILTER('Equip. Data'!$H$4:$H$63,('Equip. Data'!$B$4:$B$63=_xlpm.type)*('Equip. Data'!$E$4:$E$63=_xlpm.size)), INDEX(_xlpm.cops, _xlfn.XMATCH(MIN(ABS(_xlpm.temps-_xlpm.temp)), ABS(_xlpm.temps-_xlpm.temp)))),0) -> 3.005598488 | M14: 1.71014193 | N14: =IF(D14<Dashboard!$C$18,Dashboard!$D$15,"") ->  | O14: 0 | P14: =IFERROR(VLOOKUP(N14,'Equip. Data'!$J$3:$K$7,2,FALSE),"") ->  | Q14: 0 | R14: 3.005598488
B15: Heating (Electricity) | C15: 2002-01-01T12:00:00 | D15: 2 | E15: 3.83 | F15: 13.06796 | G15: =IF(D15>=Dashboard!$C$18,Dashboard!$C$15,"") -> Mini Split HP | H15: =IF(G15=Dashboard!$C$15,Dashboard!$C$16,"") -> AM036 | I15: =IFERROR(_xlfn.LET( _xlpm.type,G15, _xlpm.size,H15, _xlpm.temp,D15, _xlpm.temps,_xlfn._xlws.FILTER('Equip. Data'!$D$4:$D$63,('Equip. Data'!$B$4:$B$63=_xlpm.type)*('Equip. Data'!$E$4:$E$63=_xlpm.size)),_xlpm.caps,_xlfn._xlws.FILTER('Equip. Data'!$F$4:$F$63,('Equip. Data'!$B$4:$B$63=_xlpm.type)*('Equip. Data'!$E$4:$E$63=_xlpm.size)), INDEX(_xlpm.caps, _xlfn.XMATCH(MIN(ABS(_xlpm.temps-_xlpm.temp)), ABS(_xlpm.temps-_xlpm.temp)))),0) -> 40.2 | J15: 13.06796 | K15: 3.83 | L15: =IFERROR(_xlfn.LET( _xlpm.type,G15, _xlpm.size,H15, _xlpm.temp,D15, _xlpm.temps,_xlfn._xlws.FILTER('Equip. Data'!$D$4:$D$63,('Equip. Data'!$B$4:$B$63=_xlpm.type)*('Equip. Data'!$E$4:$E$63=_xlpm.size)),_xlpm.cops,_xlfn._xlws.FILTER('Equip. Data'!$H$4:$H$63,('Equip. Data'!$B$4:$B$63=_xlpm.type)*('Equip. Data'!$E$4:$E$63=_xlpm.size)), INDEX(_xlpm.cops, _xlfn.XMATCH(MIN(ABS(_xlpm.temps-_xlpm.temp)), ABS(_xlpm.temps-_xlpm.temp)))),0) -> 3.337661777 | M15: 1.14750992 | N15: =IF(D15<Dashboard!$C$18,Dashboard!$D$15,"") ->  | O15: 0 | P15: =IFERROR(VLOOKUP(N15,'Equip. Data'!$J$3:$K$7,2,FALSE),"") ->  | Q15: 0 | R15: 3.337661777
B16: Heating (Electricity) | C16: 2002-01-01T13:00:00 | D16: 2.7 | E16: 3.1 | F16: 10.5772 | G16: =IF(D16>=Dashboard!$C$18,Dashboard!$C$15,"") -> Mini Split HP | H16: =IF(G16=Dashboard!$C$15,Dashboard!$C$16,"") -> AM036 | I16: =IFERROR(_xlfn.LET( _xlpm.type,G16, _xlpm.size,H16, _xlpm.temp,D16, _xlpm.temps,_xlfn._xlws.FILTER('Equip. Data'!$D$4:$D$63,('Equip. Data'!$B$4:$B$63=_xlpm.type)*('Equip. Data'!$E$4:$E$63=_xlpm.size)),_xlpm.caps,_xlfn._xlws.FILTER('Equip. Data'!$F$4:$F$63,('Equip. Data'!$B$4:$B$63=_xlpm.type)*('Equip. Data'!$E$4:$E$63=_xlpm.size)), INDEX(_xlpm.caps, _xlfn.XMATCH(MIN(ABS(_xlpm.temps-_xlpm.temp)), ABS(_xlpm.temps-_xlpm.temp)))),0) -> 40.2 | J16: 10.5772 | K16: 3.1 | L16: =IFERROR(_xlfn.LET( _xlpm.type,G16, _xlpm.size,H16, _xlpm.temp,D16, _xlpm.temps,_xlfn._xlws.FILTER('Equip. Data'!$D$4:$D$63,('Equip. Data'!$B$4:$B$63=_xlpm.type)*('Equip. Data'!$E$4:$E$63=_xlpm.size)),_xlpm.cops,_xlfn._xlws.FILTER('Equip. Data'!$H$4:$H$63,('Equip. Data'!$B$4:$B$63=_xlpm.type)*('Equip. Data'!$E$4:$E$63=_xlpm.size)), INDEX(_xlpm.cops, _xlfn.XMATCH(MIN(ABS(_xlpm.temps-_xlpm.temp)), ABS(_xlpm.temps-_xlpm.temp)))),0) -> 3.337661777 | M16: 0.9287939303 | N16: =IF(D16<Dashboard!$C$18,Dashboard!$D$15,"") ->  | O16: 0 | P16: =IFERROR(VLOOKUP(N16,'Equip. Data'!$J$3:$K$7,2,FALSE),"") ->  | Q16: 0 | R16: 3.337661777
B17: Heating (Electricity) | C17: 2002-01-01T14:00:00 | D17: 2.4 | E17: 2.8 | F17: 9.5536 | G17: =IF(D17>=Dashboard!$C$18,Dashboard!$C$15,"") -> Mini Split HP | H17: =IF(G17=Dashboard!$C$15,Dashboard!$C$16,"") -> AM036 | I17: =IFERROR(_xlfn.LET( _xlpm.type,G17, _xlpm.size,H17, _xlpm.temp,D17, _xlpm.temps,_xlfn._xlws.FILTER('Equip. Data'!$D$4:$D$63,('Equip. Data'!$B$4:$B$63=_xlpm.type)*('Equip. Data'!$E$4:$E$63=_xlpm.size)),_xlpm.caps,_xlfn._xlws.FILTER('Equip. Data'!$F$4:$F$63,('Equip. Data'!$B$4:$B$63=_xlpm.type)*('Equip. Data'!$E$4:$E$63=_xlpm.size)), INDEX(_xlpm.caps, _xlfn.XMATCH(MIN(ABS(_xlpm.temps-_xlpm.temp)), ABS(_xlpm.temps-_xlpm.temp)))),0) -> 40.2 | J17: 9.5536 | K17: 2.8 | L17: =IFERROR(_xlfn.LET( _xlpm.type,G17, _xlpm.size,H17, _xlpm.temp,D17, _xlpm.temps,_xlfn._xlws.FILTER('Equip. Data'!$D$4:$D$63,('Equip. Data'!$B$4:$B$63=_xlpm.type)*('Equip. Data'!$E$4:$E$63=_xlpm.size)),_xlpm.cops,_xlfn._xlws.FILTER('Equip. Data'!$H$4:$H$63,('Equip. Data'!$B$4:$B$63=_xlpm.type)*('Equip. Data'!$E$4:$E$63=_xlpm.size)), INDEX(_xlpm.cops, _xlfn.XMATCH(MIN(ABS(_xlpm.temps-_xlpm.temp)), ABS(_xlpm.temps-_xlpm.temp)))),0) -> 3.337661777 | M17: 0.8389106468 | N17: =IF(D17<Dashboard!$C$18,Dashboard!$D$15,"") ->  | O17: 0 | P17: =IFERROR(VLOOKUP(N17,'Equip. Data'!$J$3:$K$7,2,FALSE),"") ->  | Q17: 0 | R17: 3.337661777
B18: Heating (Electricity) | C18: 2002-01-01T15:00:00 | D18: 3.1 | E18: 2.64 | F18: 9.00768 | G18: =IF(D18>=Dashboard!$C$18,Dashboard!$C$15,"") -> Mini Split HP | H18: =IF(G18=Dashboard!$C$15,Dashboard!$C$16,"") -> AM036 | I18: =IFERROR(_xlfn.LET( _xlpm.type,G18, _xlpm.size,H18, _xlpm.temp,D18, _xlpm.temps,_xlfn._xlws.FILTER('Equip. Data'!$D$4:$D$63,('Equip. Data'!$B$4:$B$63=_xlpm.type)*('Equip. Data'!$E$4:$E$63=_xlpm.size)),_xlpm.caps,_xlfn._xlws.FILTER('Equip. Data'!$F$4:$F$63,('Equip. Data'!$B$4:$B$63=_xlpm.type)*('Equip. Data'!$E$4:$E$63=_xlpm.size)), INDEX(_xlpm.caps, _xlfn.XMATCH(MIN(ABS(_xlpm.temps-_xlpm.temp)), ABS(_xlpm.temps-_xlpm.temp)))),0) -> 40.2 | J18: 9.00768 | K18: 2.64 | L18: =IFERROR(_xlfn.LET( _xlpm.type,G18, _xlpm.size,H18, _xlpm.temp,D18, _xlpm.temps,_xlfn._xlws.FILTER('Equip. Data'!$D$4:$D$63,('Equip. Data'!$B$4:$B$63=_xlpm.type)*('Equip. Data'!$E$4:$E$63=_xlpm.size)),_xlpm.cops,_xlfn._xlws.FILTER('Equip. Data'!$H$4:$H$63,('Equip. Data'!$B$4:$B$63=_xlpm.type)*('Equip. Data'!$E$4:$E$63=_xlpm.size)), INDEX(_xlpm.cops, _xlfn.XMATCH(MIN(ABS(_xlpm.temps-_xlpm.temp)), ABS(_xlpm.temps-_xlpm.temp)))),0) -> 3.337661777 | M18: 0.7909728955 | N18: =IF(D18<Dashboard!$C$18,Dashboard!$D$15,"") ->  | O18: 0 | P18: =IFERROR(VLOOKUP(N18,'Equip. Data'!$J$3:$K$7,2,FALSE),"") ->  | Q18: 0 | R18: 3.337661777
B19: Heating (Electricity) | C19: 2002-01-01T16:00:00 | D19: 1.6 | E19: 2.98 | F19: 10.16776 | G19: =IF(D19>=Dashboard!$C$18,Dashboard!$C$15,"") -> Mini Split HP | H19: =IF(G19=Dashboard!$C$15,Dashboard!$C$16,"") -> AM036 | I19: =IFERROR(_xlfn.LET( _xlpm.type,G19, _xlpm.size,H19, _xlpm.temp,D19, _xlpm.temps,_xlfn._xlws.FILTER('Equip. Data'!$D$4:$D$63,('Equip. Data'!$B$4:$B$63=_xlpm.type)*('Equip. Data'!$E$4:$E$63=_xlpm.size)),_xlpm.caps,_xlfn._xlws.FILTER('Equip. Data'!$F$4:$F$63,('Equip. Data'!$B$4:$B$63=_xlpm.type)*('Equip. Data'!$E$4:$E$63=_xlpm.size)), INDEX(_xlpm.caps, _xlfn.XMATCH(MIN(ABS(_xlpm.temps-_xlpm.temp)), ABS(_xlpm.temps-_xlpm.temp)))),0) -> 40.2 | J19: 10.16776 | K19: 2.98 | L19: =IFERROR(_xlfn.LET( _xlpm.type,G19, _xlpm.size,H19, _xlpm.temp,D19, _xlpm.temps,_xlfn._xlws.FILTER('Equip. Data'!$D$4:$D$63,('Equip. Data'!$B$4:$B$63=_xlpm.type)*('Equip. Data'!$E$4:$E$63=_xlpm.size)),_xlpm.cops,_xlfn._xlws.FILTER('Equip. Data'!$H$4:$H$63,('Equip. Data'!$B$4:$B$63=_xlpm.type)*('Equip. Data'!$E$4:$E$63=_xlpm.size)), INDEX(_xlpm.cops, _xlfn.XMATCH(MIN(ABS(_xlpm.temps-_xlpm.temp)), ABS(_xlpm.temps-_xlpm.temp)))),0) -> 3.337661777 | M19: 0.8928406169 | N19: =IF(D19<Dashboard!$C$18,Dashboard!$D$15,"") ->  | O19: 0 | P19: =IFERROR(VLOOKUP(N19,'Equip. Data'!$J$3:$K$7,2,FALSE),"") ->  | Q19: 0 | R19: 3.337661777
B20: Heating (Electricity) | C20: 2002-01-01T17:00:00 | D20: 0.1 | E20: 3.71 | F20: 12.65852 | G20: =IF(D20>=Dashboard!$C$18,Dashboard!$C$15,"") -> Mini Split HP | H20: =IF(G20=Dashboard!$C$15,Dashboard!$C$16,"") -> AM036 | I20: =IFERROR(_xlfn.LET( _xlpm.type,G20, _xlpm.size,H20, _xlpm.temp,D20, _xlpm.temps,_xlfn._xlws.FILTER('Equip. Data'!$D$4:$D$63,('Equip. Data'!$B$4:$B$63=_xlpm.type)*('Equip. Data'!$E$4:$E$63=_xlpm.size)),_xlpm.caps,_xlfn._xlws.FILTER('Equip. Data'!$F$4:$F$63,('Equip. Data'!$B$4:$B$63=_xlpm.type)*('Equip. Data'!$E$4:$E$63=_xlpm.size)), INDEX(_xlpm.caps, _xlfn.XMATCH(MIN(ABS(_xlpm.temps-_xlpm.temp)), ABS(_xlpm.temps-_xlpm.temp)))),0) -> 40.2 | J20: 12.65852 | K20: 3.71 | L20: =IFERROR(_xlfn.LET( _xlpm.type,G20, _xlpm.size,H20, _xlpm.temp,D20, _xlpm.temps,_xlfn._xlws.FILTER('Equip. Data'!$D$4:$D$63,('Equip. Data'!$B$4:$B$63=_xlpm.type)*('Equip. Data'!$E$4:$E$63=_xlpm.size)),_xlpm.cops,_xlfn._xlws.FILTER('Equip. Data'!$H$4:$H$63,('Equip. Data'!$B$4:$B$63=_xlpm.type)*('Equip. Data'!$E$4:$E$63=_xlpm.size)), INDEX(_xlpm.cops, _xlfn.XMATCH(MIN(ABS(_xlpm.temps-_xlpm.temp)), ABS(_xlpm.temps-_xlpm.temp)))),0) -> 3.005598488 | M20: 1.234363144 | N20: =IF(D20<Dashboard!$C$18,Dashboard!$D$15,"") ->  | O20: 0 | P20: =IFERROR(VLOOKUP(N20,'Equip. Data'!$J$3:$K$7,2,FALSE),"") ->  | Q20: 0 | R20: 3.005598488
B21: Heating (Electricity) | C21: 2002-01-01T18:00:00 | D21: -0.3 | E21: 4.07 | F21: 13.88684 | G21: =IF(D21>=Dashboard!$C$18,Dashboard!$C$15,"") ->  | H21: =IF(G21=Dashboard!$C$15,Dashboard!$C$16,"") ->  | I21: =IFERROR(_xlfn.LET( _xlpm.type,G21, _xlpm.size,H21, _xlpm.temp,D21, _xlpm.temps,_xlfn._xlws.FILTER('Equip. Data'!$D$4:$D$63,('Equip. Data'!$B$4:$B$63=_xlpm.type)*('Equip. Data'!$E$4:$E$63=_xlpm.size)),_xlpm.caps,_xlfn._xlws.FILTER('Equip. Data'!$F$4:$F$63,('Equip. Data'!$B$4:$B$63=_xlpm.type)*('Equip. Data'!$E$4:$E$63=_xlpm.size)), INDEX(_xlpm.caps, _xlfn.XMATCH(MIN(ABS(_xlpm.temps-_xlpm.temp)), ABS(_xlpm.temps-_xlpm.temp)))),0) -> 0 | J21: 0 | K21: 0 | L21: =IFERROR(_xlfn.LET( _xlpm.type,G21, _xlpm.size,H21, _xlpm.temp,D21, _xlpm.temps,_xlfn._xlws.FILTER('Equip. Data'!$D$4:$D$63,('Equip. Data'!$B$4:$B$63=_xlpm.type)*('Equip. Data'!$E$4:$E$63=_xlpm.size)),_xlpm.cops,_xlfn._xlws.FILTER('Equip. Data'!$H$4:$H$63,('Equip. Data'!$B$4:$B$63=_xlpm.type)*('Equip. Data'!$E$4:$E$63=_xlpm.size)), INDEX(_xlpm.cops, _xlfn.XMATCH(MIN(ABS(_xlpm.temps-_xlpm.temp)), ABS(_xlpm.temps-_xlpm.temp)))),0) -> 0 | M21: 0 | N21: =IF(D21<Dashboard!$C$18,Dashboard!$D$15,"") -> Condensing Furnace | O21: 4.07 | P21: =IFERROR(VLOOKUP(N21,'Equip. Data'!$J$3:$K$7,2,FALSE),"") -> 0.95 | Q21: 4.284210526 | R21: 0.95
B22: Heating (Electricity) | C22: 2002-01-01T19:00:00 | D22: -0.1 | E22: 4.16 | F22: 14.19392 | G22: =IF(D22>=Dashboard!$C$18,Dashboard!$C$15,"") ->  | H22: =IF(G22=Dashboard!$C$15,Dashboard!$C$16,"") ->  | I22: =IFERROR(_xlfn.LET( _xlpm.type,G22, _xlpm.size,H22, _xlpm.temp,D22, _xlpm.temps,_xlfn._xlws.FILTER('Equip. Data'!$D$4:$D$63,('Equip. Data'!$B$4:$B$63=_xlpm.type)*('Equip. Data'!$E$4:$E$63=_xlpm.size)),_xlpm.caps,_xlfn._xlws.FILTER('Equip. Data'!$F$4:$F$63,('Equip. Data'!$B$4:$B$63=_xlpm.type)*('Equip. Data'!$E$4:$E$63=_xlpm.size)), INDEX(_xlpm.caps, _xlfn.XMATCH(MIN(ABS(_xlpm.temps-_xlpm.temp)), ABS(_xlpm.temps-_xlpm.temp)))),0) -> 0 | J22: 0 | K22: 0 | L22: =IFERROR(_xlfn.LET( _xlpm.type,G22, _xlpm.size,H22, _xlpm.temp,D22, _xlpm.temps,_xlfn._xlws.FILTER('Equip. Data'!$D$4:$D$63,('Equip. Data'!$B$4:$B$63=_xlpm.type)*('Equip. Data'!$E$4:$E$63=_xlpm.size)),_xlpm.cops,_xlfn._xlws.FILTER('Equip. Data'!$H$4:$H$63,('Equip. Data'!$B$4:$B$63=_xlpm.type)*('Equip. Data'!$E$4:$E$63=_xlpm.size)), INDEX(_xlpm.cops, _xlfn.XMATCH(MIN(ABS(_xlpm.temps-_xlpm.temp)), ABS(_xlpm.temps-_xlpm.temp)))),0) -> 0 | M22: 0 | N22: =IF(D22<Dashboard!$C$18,Dashboard!$D$15,"") -> Condensing Furnace | O22: 4.16 | P22: =IFERROR(VLOOKUP(N22,'Equip. Data'!$J$3:$K$7,2,FALSE),"") -> 0.95 | Q22: 4.378947368 | R22: 0.95
B23: Heating (Electricity) | C23: 2002-01-01T20:00:00 | D23: -0.7 | E23: 4.41 | F23: 15.04692 | G23: =IF(D23>=Dashboard!$C$18,Dashboard!$C$15,"") ->  | H23: =IF(G23=Dashboard!$C$15,Dashboard!$C$16,"") ->  | I23: =IFERROR(_xlfn.LET( _xlpm.type,G23, _xlpm.size,H23, _xlpm.temp,D23, _xlpm.temps,_xlfn._xlws.FILTER('Equip. Data'!$D$4:$D$63,('Equip. Data'!$B$4:$B$63=_xlpm.type)*('Equip. Data'!$E$4:$E$63=_xlpm.size)),_xlpm.caps,_xlfn._xlws.FILTER('Equip. Data'!$F$4:$F$63,('Equip. Data'!$B$4:$B$63=_xlpm.type)*('Equip. Data'!$E$4:$E$63=_xlpm.size)), INDEX(_xlpm.caps, _xlfn.XMATCH(MIN(ABS(_xlpm.temps-_xlpm.temp)), ABS(_xlpm.temps-_xlpm.temp)))),0) -> 0 | J23: 0 | K23: 0 | L23: =IFERROR(_xlfn.LET( _xlpm.type,G23, _xlpm.size,H23, _xlpm.temp,D23, _xlpm.temps,_xlfn._xlws.FILTER('Equip. Data'!$D$4:$D$63,('Equip. Data'!$B$4:$B$63=_xlpm.type)*('Equip. Data'!$E$4:$E$63=_xlpm.size)),_xlpm.cops,_xlfn._xlws.FILTER('Equip. Data'!$H$4:$H$63,('Equip. Data'!$B$4:$B$63=_xlpm.type)*('Equip. Data'!$E$4:$E$63=_xlpm.size)), INDEX(_xlpm.cops, _xlfn.XMATCH(MIN(ABS(_xlpm.temps-_xlpm.temp)), ABS(_xlpm.temps-_xlpm.temp)))),0) -> 0 | M23: 0 | N23: =IF(D23<Dashboard!$C$18,Dashboard!$D$15,"") -> Condensing Furnace | O23: 4.41 | P23: =IFERROR(VLOOKUP(N23,'Equip. Data'!$J$3:$K$7,2,FALSE),"") -> 0.95 | Q23: 4.642105263 | R23: 0.95
B24: Heating (Electricity) | C24: 2002-01-01T21:00:00 | D24: -0.5 | E24: 4.74 | F24: 16.17288 | G24: =IF(D24>=Dashboard!$C$18,Dashboard!$C$15,"") ->  | H24: =IF(G24=Dashboard!$C$15,Dashboard!$C$16,"") ->  | I24: =IFERROR(_xlfn.LET( _xlpm.type,G24, _xlpm.size,H24, _xlpm.temp,D24, _xlpm.temps,_xlfn._xlws.FILTER('Equip. Data'!$D$4:$D$63,('Equip. Data'!$B$4:$B$63=_xlpm.type)*('Equip. Data'!$E$4:$E$63=_xlpm.size)),_xlpm.caps,_xlfn._xlws.FILTER('Equip. Data'!$F$4:$F$63,('Equip. Data'!$B$4:$B$63=_xlpm.type)*('Equip. Data'!$E$4:$E$63=_xlpm.size)), INDEX(_xlpm.caps, _xlfn.XMATCH(MIN(ABS(_xlpm.temps-_xlpm.temp)), ABS(_xlpm.temps-_xlpm.temp)))),0) -> 0 | J24: 0 | K24: 0 | L24: =IFERROR(_xlfn.LET( _xlpm.type,G24, _xlpm.size,H24, _xlpm.temp,D24, _xlpm.temps,_xlfn._xlws.FILTER('Equip. Data'!$D$4:$D$63,('Equip. Data'!$B$4:$B$63=_xlpm.type)*('Equip. Data'!$E$4:$E$63=_xlpm.size)),_xlpm.cops,_xlfn._xlws.FILTER('Equip. Data'!$H$4:$H$63,('Equip. Data'!$B$4:$B$63=_xlpm.type)*('Equip. Data'!$E$4:$E$63=_xlpm.size)), INDEX(_xlpm.cops, _xlfn.XMATCH(MIN(ABS(_xlpm.temps-_xlpm.temp)), ABS(_xlpm.temps-_xlpm.temp)))),0) -> 0 | M24: 0 | N24: =IF(D24<Dashboard!$C$18,Dashboard!$D$15,"") -> Condensing Furnace | O24: 4.74 | P24: =IFERROR(VLOOKUP(N24,'Equip. Data'!$J$3:$K$7,2,FALSE),"") -> 0.95 | Q24: 4.989473684 | R24: 0.95
B25: Heating (Electricity) | C25: 2002-01-01T22:00:00 | D25: -1.9 | E25: 5.31 | F25: 18.11772 | G25: =IF(D25>=Dashboard!$C$18,Dashboard!$C$15,"") ->  | H25: =IF(G25=Dashboard!$C$15,Dashboard!$C$16,"") ->  | I25: =IFERROR(_xlfn.LET( _xlpm.type,G25, _xlpm.size,H25, _xlpm.temp,D25, _xlpm.temps,_xlfn._xlws.FILTER('Equip. Data'!$D$4:$D$63,('Equip. Data'!$B$4:$B$63=_xlpm.type)*('Equip. Data'!$E$4:$E$63=_xlpm.size)),_xlpm.caps,_xlfn._xlws.FILTER('Equip. Data'!$F$4:$F$63,('Equip. Data'!$B$4:$B$63=_xlpm.type)*('Equip. Data'!$E$4:$E$63=_xlpm.size)), INDEX(_xlpm.caps, _xlfn.XMATCH(MIN(ABS(_xlpm.temps-_xlpm.temp)), ABS(_xlpm.temps-_xlpm.temp)))),0) -> 0 | J25: 0 | K25: 0 | L25: =IFERROR(_xlfn.LET( _xlpm.type,G25, _xlpm.size,H25, _xlpm.temp,D25, _xlpm.temps,_xlfn._xlws.FILTER('Equip. Data'!$D$4:$D$63,('Equip. Data'!$B$4:$B$63=_xlpm.type)*('Equip. Data'!$E$4:$E$63=_xlpm.size)),_xlpm.cops,_xlfn._xlws.FILTER('Equip. Data'!$H$4:$H$63,('Equip. Data'!$B$4:$B$63=_xlpm.type)*('Equip. Data'!$E$4:$E$63=_xlpm.size)), INDEX(_xlpm.cops, _xlfn.XMATCH(MIN(ABS(_xlpm.temps-_xlpm.temp)), ABS(_xlpm.temps-_xlpm.temp)))),0) -> 0 | M25: 0 | N25: =IF(D25<Dashboard!$C$18,Dashboard!$D$15,"") -> Condensing Furnace | O25: 5.31 | P25: =IFERROR(VLOOKUP(N25,'Equip. Data'!$J$3:$K$7,2,FALSE),"") -> 0.95 | Q25: 5.589473684 | R25: 0.95
B26: Heating (Electricity) | C26: 2002-01-01T23:00:00 | D26: -1.7 | E26: 5.91 | F26: 20.16492 | G26: =IF(D26>=Dashboard!$C$18,Dashboard!$C$15,"") ->  | H26: =IF(G26=Dashboard!$C$15,Dashboard!$C$16,"") ->  | I26: =IFERROR(_xlfn.LET( _xlpm.type,G26, _xlpm.size,H26, _xlpm.temp,D26, _xlpm.temps,_xlfn._xlws.FILTER('Equip. Data'!$D$4:$D$63,('Equip. Data'!$B$4:$B$63=_xlpm.type)*('Equip. Data'!$E$4:$E$63=_xlpm.size)),_xlpm.caps,_xlfn._xlws.FILTER('Equip. Data'!$F$4:$F$63,('Equip. Data'!$B$4:$B$63=_xlpm.type)*('Equip. Data'!$E$4:$E$63=_xlpm.size)), INDEX(_xlpm.caps, _xlfn.XMATCH(MIN(ABS(_xlpm.temps-_xlpm.temp)), ABS(_xlpm.temps-_xlpm.temp)))),0) -> 0 | J26: 0 | K26: 0 | L26: =IFERROR(_xlfn.LET( _xlpm.type,G26, _xlpm.size,H26, _xlpm.temp,D26, _xlpm.temps,_xlfn._xlws.FILTER('Equip. Data'!$D$4:$D$63,('Equip. Data'!$B$4:$B$63=_xlpm.type)*('Equip. Data'!$E$4:$E$63=_xlpm.size)),_xlpm.cops,_xlfn._xlws.FILTER('Equip. Data'!$H$4:$H$63,('Equip. Data'!$B$4:$B$63=_xlpm.type)*('Equip. Data'!$E$4:$E$63=_xlpm.size)), INDEX(_xlpm.cops, _xlfn.XMATCH(MIN(ABS(_xlpm.temps-_xlpm.temp)), ABS(_xlpm.temps-_xlpm.temp)))),0) -> 0 | M26: 0 | N26: =IF(D26<Dashboard!$C$18,Dashboard!$D$15,"") -> Condensing Furnace | O26: 5.91 | P26: =IFERROR(VLOOKUP(N26,'Equip. Data'!$J$3:$K$7,2,FALSE),"") -> 0.95 | Q26: 6.221052632 | R26: 0.95
B27: Heating (Electricity) | C27: 2002-02-01 | D27: -2.3 | E27: 6.49 | F27: 22.14388 | G27: =IF(D27>=Dashboard!$C$18,Dashboard!$C$15,"") ->  | H27: =IF(G27=Dashboard!$C$15,Dashboard!$C$16,"") ->  | I27: =IFERROR(_xlfn.LET( _xlpm.type,G27, _xlpm.size,H27, _xlpm.temp,D27, _xlpm.temps,_xlfn._xlws.FILTER('Equip. Data'!$D$4:$D$63,('Equip. Data'!$B$4:$B$63=_xlpm.type)*('Equip. Data'!$E$4:$E$63=_xlpm.size)),_xlpm.caps,_xlfn._xlws.FILTER('Equip. Data'!$F$4:$F$63,('Equip. Data'!$B$4:$B$63=_xlpm.type)*('Equip. Data'!$E$4:$E$63=_xlpm.size)), INDEX(_xlpm.caps, _xlfn.XMATCH(MIN(ABS(_xlpm.temps-_xlpm.temp)), ABS(_xlpm.temps-_xlpm.temp)))),0) -> 0 | J27: 0 | K27: 0 | L27: =IFERROR(_xlfn.LET( _xlpm.type,G27, _xlpm.size,H27, _xlpm.temp,D27, _xlpm.temps,_xlfn._xlws.FILTER('Equip. Data'!$D$4:$D$63,('Equip. Data'!$B$4:$B$63=_xlpm.type)*('Equip. Data'!$E$4:$E$63=_xlpm.size)),_xlpm.cops,_xlfn._xlws.FILTER('Equip. Data'!$H$4:$H$63,('Equip. Data'!$B$4:$B$63=_xlpm.type)*('Equip. Data'!$E$4:$E$63=_xlpm.size)), INDEX(_xlpm.cops, _xlfn.XMATCH(MIN(ABS(_xlpm.temps-_xlpm.temp)), ABS(_xlpm.temps-_xlpm.temp)))),0) -> 0 | M27: 0 | N27: =IF(D27<Dashboard!$C$18,Dashboard!$D$15,"") -> Condensing Furnace | O27: 6.49 | P27: =IFERROR(VLOOKUP(N27,'Equip. Data'!$J$3:$K$7,2,FALSE),"") -> 0.95 | Q27: 6.831578947 | R27: 0.95
B28: Heating (Electricity) | C28: 2002-02-01T01:00:00 | D28: -3.6 | E28: 7.13 | F28: 24.32756 | G28: =IF(D28>=Dashboard!$C$18,Dashboard!$C$15,"") ->  | H28: =IF(G28=Dashboard!$C$15,Dashboard!$C$16,"") ->  | I28: =IFERROR(_xlfn.LET( _xlpm.type,G28, _xlpm.size,H28, _xlpm.temp,D28, _xlpm.temps,_xlfn._xlws.FILTER('Equip. Data'!$D$4:$D$63,('Equip. Data'!$B$4:$B$63=_xlpm.type)*('Equip. Data'!$E$4:$E$63=_xlpm.size)),_xlpm.caps,_xlfn._xlws.FILTER('Equip. Data'!$F$4:$F$63,('Equip. Data'!$B$4:$B$63=_xlpm.type)*('Equip. Data'!$E$4:$E$63=_xlpm.size)), INDEX(_xlpm.caps, _xlfn.XMATCH(MIN(ABS(_xlpm.temps-_xlpm.temp)), ABS(_xlpm.temps-_xlpm.temp)))),0) -> 0 | J28: 0 | K28: 0 | L28: =IFERROR(_xlfn.LET( _xlpm.type,G28, _xlpm.size,H28, _xlpm.temp,D28, _xlpm.temps,_xlfn._xlws.FILTER('Equip. Data'!$D$4:$D$63,('Equip. Data'!$B$4:$B$63=_xlpm.type)*('Equip. Data'!$E$4:$E$63=_xlpm.size)),_xlpm.cops,_xlfn._xlws.FILTER('Equip. Data'!$H$4:$H$63,('Equip. Data'!$B$4:$B$63=_xlpm.type)*('Equip. Data'!$E$4:$E$63=_xlpm.size)), INDEX(_xlpm.cops, _xlfn.XMATCH(MIN(ABS(_xlpm.temps-_xlpm.temp)), ABS(_xlpm.temps-_xlpm.temp)))),0) -> 0 | M28: 0 | N28: =IF(D28<Dashboard!$C$18,Dashboard!$D$15,"") -> Condensing Furnace | O28: 7.13 | P28: =IFERROR(VLOOKUP(N28,'Equip. Data'!$J$3:$K$7,2,FALSE),"") -> 0.95 | Q28: 7.505263158 | R28: 0.95
B29: Heating (Electricity) | C29: 2002-02-01T02:00:00 | D29: -3.8 | E29: 7.73 | F29: 26.37476 | G29: =IF(D29>=Dashboard!$C$18,Dashboard!$C$15,"") ->  | H29: =IF(G29=Dashboard!$C$15,Dashboard!$C$16,"") ->  | I29: =IFERROR(_xlfn.LET( _xlpm.type,G29, _xlpm.size,H29, _xlpm.temp,D29, _xlpm.temps,_xlfn._xlws.FILTER('Equip. Data'!$D$4:$D$63,('Equip. Data'!$B$4:$B$63=_xlpm.type)*('Equip. Data'!$E$4:$E$63=_xlpm.size)),_xlpm.caps,_xlfn._xlws.FILTER('Equip. Data'!$F$4:$F$63,('Equip. Data'!$B$4:$B$63=_xlpm.type)*('Equip. Data'!$E$4:$E$63=_xlpm.size)), INDEX(_xlpm.caps, _xlfn.XMATCH(MIN(ABS(_xlpm.temps-_xlpm.temp)), ABS(_xlpm.temps-_xlpm.temp)))),0) -> 0 | J29: 0 | K29: 0 | L29: =IFERROR(_xlfn.LET( _xlpm.type,G29, _xlpm.size,H29, _xlpm.temp,D29, _xlpm.temps,_xlfn._xlws.FILTER('Equip. Data'!$D$4:$D$63,('Equip. Data'!$B$4:$B$63=_xlpm.type)*('Equip. Data'!$E$4:$E$63=_xlpm.size)),_xlpm.cops,_xlfn._xlws.FILTER('Equip. Data'!$H$4:$H$63,('Equip. Data'!$B$4:$B$63=_xlpm.type)*('Equip. Data'!$E$4:$E$63=_xlpm.size)), INDEX(_xlpm.cops, _xlfn.XMATCH(MIN(ABS(_xlpm.temps-_xlpm.temp)), ABS(_xlpm.temps-_xlpm.temp)))),0) -> 0 | M29: 0 | N29: =IF(D29<Dashboard!$C$18,Dashboard!$D$15,"") -> Condensing Furnace | O29: 7.73 | P29: =IFERROR(VLOOKUP(N29,'Equip. Data'!$J$3:$K$7,2,FALSE),"") -> 0.95 | Q29: 8.136842105 | R29: 0.95
B30: Heating (Electricity) | C30: 2002-02-01T03:00:00 | D30: -3.5 | E30: 7.93 | F30: 27.05716 | G30: =IF(D30>=Dashboard!$C$18,Dashboard!$C$15,"") ->  | H30: =IF(G30=Dashboard!$C$15,Dashboard!$C$16,"") ->  | I30: =IFERROR(_xlfn.LET( _xlpm.type,G30, _xlpm.size,H30, _xlpm.temp,D30, _xlpm.temps,_xlfn._xlws.FILTER('Equip. Data'!$D$4:$D$63,('Equip. Data'!$B$4:$B$63=_xlpm.type)*('Equip. Data'!$E$4:$E$63=_xlpm.size)),_xlpm.caps,_xlfn._xlws.FILTER('Equip. Data'!$F$4:$F$63,('Equip. Data'!$B$4:$B$63=_xlpm.type)*('Equip. Data'!$E$4:$E$63=_xlpm.size)), INDEX(_xlpm.caps, _xlfn.XMATCH(MIN(ABS(_xlpm.temps-_xlpm.temp)), ABS(_xlpm.temps-_xlpm.temp)))),0) -> 0 | J30: 0 | K30: 0 | L30: =IFERROR(_xlfn.LET( _xlpm.type,G30, _xlpm.size,H30, _xlpm.temp,D30, _xlpm.temps,_xlfn._xlws.FILTER('Equip. Data'!$D$4:$D$63,('Equip. Data'!$B$4:$B$63=_xlpm.type)*('Equip. Data'!$E$4:$E$63=_xlpm.size)),_xlpm.cops,_xlfn._xlws.FILTER('Equip. Data'!$H$4:$H$63,('Equip. Data'!$B$4:$B$63=_xlpm.type)*('Equip. Data'!$E$4:$E$63=_xlpm.size)), INDEX(_xlpm.cops, _xlfn.XMATCH(MIN(ABS(_xlpm.temps-_xlpm.temp)), ABS(_xlpm.temps-_xlpm.temp)))),0) -> 0 | M30: 0 | N30: =IF(D30<Dashboard!$C$18,Dashboard!$D$15,"") -> Condensing Furnace | O30: 7.93 | P30: =IFERROR(VLOOKUP(N30,'Equip. Data'!$J$3:$K$7,2,FALSE),"") -> 0.95 | Q30: 8.347368421 | R30: 0.95
B31: Heating (Electricity) | C31: 2002-02-01T04:00:00 | D31: -3.6 | E31: 8.12 | F31: 27.70544 | G31: =IF(D31>=Dashboard!$C$18,Dashboard!$C$15,"") ->  | H31: =IF(G31=Dashboard!$C$15,Dashboard!$C$16,"") ->  | I31: =IFERROR(_xlfn.LET( _xlpm.type,G31, _xlpm.size,H31, _xlpm.temp,D31, _xlpm.temps,_xlfn._xlws.FILTER('Equip. Data'!$D$4:$D$63,('Equip. Data'!$B$4:$B$63=_xlpm.type)*('Equip. Data'!$E$4:$E$63=_xlpm.size)),_xlpm.caps,_xlfn._xlws.FILTER('Equip. Data'!$F$4:$F$63,('Equip. Data'!$B$4:$B$63=_xlpm.type)*('Equip. Data'!$E$4:$E$63=_xlpm.size)), INDEX(_xlpm.caps, _xlfn.XMATCH(MIN(ABS(_xlpm.temps-_xlpm.temp)), ABS(_xlpm.temps-_xlpm.temp)))),0) -> 0 | J31: 0 | K31: 0 | L31: =IFERROR(_xlfn.LET( _xlpm.type,G31, _xlpm.size,H31, _xlpm.temp,D31, _xlpm.temps,_xlfn._xlws.FILTER('Equip. Data'!$D$4:$D$63,('Equip. Data'!$B$4:$B$63=_xlpm.type)*('Equip. Data'!$E$4:$E$63=_xlpm.size)),_xlpm.cops,_xlfn._xlws.FILTER('Equip. Data'!$H$4:$H$63,('Equip. Data'!$B$4:$B$63=_xlpm.type)*('Equip. Data'!$E$4:$E$63=_xlpm.size)), INDEX(_xlpm.cops, _xlfn.XMATCH(MIN(ABS(_xlpm.temps-_xlpm.temp)), ABS(_xlpm.temps-_xlpm.temp)))),0) -> 0 | M31: 0 | N31: =IF(D31<Dashboard!$C$18,Dashboard!$D$15,"") -> Condensing Furnace | O31: 8.12 | P31: =IFERROR(VLOOKUP(N31,'Equip. Data'!$J$3:$K$7,2,FALSE),"") -> 0.95 | Q31: 8.547368421 | R31: 0.95
B32: Heating (Electricity) | C32: 2002-02-01T05:00:00 | D32: -3.7 | E32: 8.29 | F32: 28.28548 | G32: =IF(D32>=Dashboard!$C$18,Dashboard!$C$15,"") ->  | H32: =IF(G32=Dashboard!$C$15,Dashboard!$C$16,"") ->  | I32: =IFERROR(_xlfn.LET( _xlpm.type,G32, _xlpm.size,H32, _xlpm.temp,D32, _xlpm.temps,_xlfn._xlws.FILTER('Equip. Data'!$D$4:$D$63,('Equip. Data'!$B$4:$B$63=_xlpm.type)*('Equip. Data'!$E$4:$E$63=_xlpm.size)),_xlpm.caps,_xlfn._xlws.FILTER('Equip. Data'!$F$4:$F$63,('Equip. Data'!$B$4:$B$63=_xlpm.type)*('Equip. Data'!$E$4:$E$63=_xlpm.size)), INDEX(_xlpm.caps, _xlfn.XMATCH(MIN(ABS(_xlpm.temps-_xlpm.temp)), ABS(_xlpm.temps-_xlpm.temp)))),0) -> 0 | J32: 0 | K32: 0 | L32: =IFERROR(_xlfn.LET( _xlpm.type,G32, _xlpm.size,H32, _xlpm.temp,D32, _xlpm.temps,_xlfn._xlws.FILTER('Equip. Data'!$D$4:$D$63,('Equip. Data'!$B$4:$B$63=_xlpm.type)*('Equip. Data'!$E$4:$E$63=_xlpm.size)),_xlpm.cops,_xlfn._xlws.FILTER('Equip. Data'!$H$4:$H$63,('Equip. Data'!$B$4:$B$63=_xlpm.type)*('Equip. Data'!$E$4:$E$63=_xlpm.size)), INDEX(_xlpm.cops, _xlfn.XMATCH(MIN(ABS(_xlpm.temps-_xlpm.temp)), ABS(_xlpm.temps-_xlpm.temp)))),0) -> 0 | M32: 0 | N32: =IF(D32<Dashboard!$C$18,Dashboard!$D$15,"") -> Condensing Furnace | O32: 8.29 | P32: =IFERROR(VLOOKUP(N32,'Equip. Data'!$J$3:$K$7,2,FALSE),"") -> 0.95 | Q32: 8.726315789 | R32: 0.95
B33: Heating (Electricity) | C33: 2002-02-01T06:00:00 | D33: -3.5 | E33: 8.38 | F33: 28.59256 | G33: =IF(D33>=Dashboard!$C$18,Dashboard!$C$15,"") ->  | H33: =IF(G33=Dashboard!$C$15,Dashboard!$C$16,"") ->  | I33: =IFERROR(_xlfn.LET( _xlpm.type,G33, _xlpm.size,H33, _xlpm.temp,D33, _xlpm.temps,_xlfn._xlws.FILTER('Equip. Data'!$D$4:$D$63,('Equip. Data'!$B$4:$B$63=_xlpm.type)*('Equip. Data'!$E$4:$E$63=_xlpm.size)),_xlpm.caps,_xlfn._xlws.FILTER('Equip. Data'!$F$4:$F$63,('Equip. Data'!$B$4:$B$63=_xlpm.type)*('Equip. Data'!$E$4:$E$63=_xlpm.size)), INDEX(_xlpm.caps, _xlfn.XMATCH(MIN(ABS(_xlpm.temps-_xlpm.temp)), ABS(_xlpm.temps-_xlpm.temp)))),0) -> 0 | J33: 0 | K33: 0 | L33: =IFERROR(_xlfn.LET( _xlpm.type,G33, _xlpm.size,H33, _xlpm.temp,D33, _xlpm.temps,_xlfn._xlws.FILTER('Equip. Data'!$D$4:$D$63,('Equip. Data'!$B$4:$B$63=_xlpm.type)*('Equip. Data'!$E$4:$E$63=_xlpm.size)),_xlpm.cops,_xlfn._xlws.FILTER('Equip. Data'!$H$4:$H$63,('Equip. Data'!$B$4:$B$63=_xlpm.type)*('Equip. Data'!$E$4:$E$63=_xlpm.size)), INDEX(_xlpm.cops, _xlfn.XMATCH(MIN(ABS(_xlpm.temps-_xlpm.temp)), ABS(_xlpm.temps-_xlpm.temp)))),0) -> 0 | M33: 0 | N33: =IF(D33<Dashboard!$C$18,Dashboard!$D$15,"") -> Condensing Furnace | O33: 8.38 | P33: =IFERROR(VLOOKUP(N33,'Equip. Data'!$J$3:$K$7,2,FALSE),"") -> 0.95 | Q33: 8.821052632 | R33: 0.95
B34: Heating (Electricity) | C34: 2002-02-01T07:00:00 | D34: -4.1 | E34: 8.48 | F34: 28.93376 | G34: =IF(D34>=Dashboard!$C$18,Dashboard!$C$15,"") ->  | H34: =IF(G34=Dashboard!$C$15,Dashboard!$C$16,"") ->  | I34: =IFERROR(_xlfn.LET( _xlpm.type,G34, _xlpm.size,H34, _xlpm.temp,D34, _xlpm.temps,_xlfn._xlws.FILTER('Equip. Data'!$D$4:$D$63,('Equip. Data'!$B$4:$B$63=_xlpm.type)*('Equip. Data'!$E$4:$E$63=_xlpm.size)),_xlpm.caps,_xlfn._xlws.FILTER('Equip. Data'!$F$4:$F$63,('Equip. Data'!$B$4:$B$63=_xlpm.type)*('Equip. Data'!$E$4:$E$63=_xlpm.size)), INDEX(_xlpm.caps, _xlfn.XMATCH(MIN(ABS(_xlpm.temps-_xlpm.temp)), ABS(_xlpm.temps-_xlpm.temp)))),0) -> 0 | J34: 0 | K34: 0 | L34: =IFERROR(_xlfn.LET( _xlpm.type,G34, _xlpm.size,H34, _xlpm.temp,D34, _xlpm.temps,_xlfn._xlws.FILTER('Equip. Data'!$D$4:$D$63,('Equip. Data'!$B$4:$B$63=_xlpm.type)*('Equip. Data'!$E$4:$E$63=_xlpm.size)),_xlpm.cops,_xlfn._xlws.FILTER('Equip. Data'!$H$4:$H$63,('Equip. Data'!$B$4:$B$63=_xlpm.type)*('Equip. Data'!$E$4:$E$63=_xlpm.size)), INDEX(_xlpm.cops, _xlfn.XMATCH(MIN(ABS(_xlpm.temps-_xlpm.temp)), ABS(_xlpm.temps-_xlpm.temp)))),0) -> 0 | M34: 0 | N34: =IF(D34<Dashboard!$C$18,Dashboard!$D$15,"") -> Condensing Furnace | O34: 8.48 | P34: =IFERROR(VLOOKUP(N34,'Equip. Data'!$J$3:$K$7,2,FALSE),"") -> 0.95 | Q34: 8.926315789 | R34: 0.95
B35: Heating (Electricity) | C35: 2002-02-01T08:00:00 | D35: -4.7 | E35: 8.65 | F35: 29.5138 | G35: =IF(D35>=Dashboard!$C$18,Dashboard!$C$15,"") ->  | H35: =IF(G35=Dashboard!$C$15,Dashboard!$C$16,"") ->  | I35: =IFERROR(_xlfn.LET( _xlpm.type,G35, _xlpm.size,H35, _xlpm.temp,D35, _xlpm.temps,_xlfn._xlws.FILTER('Equip. Data'!$D$4:$D$63,('Equip. Data'!$B$4:$B$63=_xlpm.type)*('Equip. Data'!$E$4:$E$63=_xlpm.size)),_xlpm.caps,_xlfn._xlws.FILTER('Equip. Data'!$F$4:$F$63,('Equip. Data'!$B$4:$B$63=_xlpm.type)*('Equip. Data'!$E$4:$E$63=_xlpm.size)), INDEX(_xlpm.caps, _xlfn.XMATCH(MIN(ABS(_xlpm.temps-_xlpm.temp)), ABS(_xlpm.temps-_xlpm.temp)))),0) -> 0 | J35: 0 | K35: 0 | L35: =IFERROR(_xlfn.LET( _xlpm.type,G35, _xlpm.size,H35, _xlpm.temp,D35, _xlpm.temps,_xlfn._xlws.FILTER('Equip. Data'!$D$4:$D$63,('Equip. Data'!$B$4:$B$63=_xlpm.type)*('Equip. Data'!$E$4:$E$63=_xlpm.size)),_xlpm.cops,_xlfn._xlws.FILTER('Equip. Data'!$H$4:$H$63,('Equip. Data'!$B$4:$B$63=_xlpm.type)*('Equip. Data'!$E$4:$E$63=_xlpm.size)), INDEX(_xlpm.cops, _xlfn.XMATCH(MIN(ABS(_xlpm.temps-_xlpm.temp)), ABS(_xlpm.temps-_xlpm.temp)))),0) -> 0 | M35: 0 | N35: =IF(D35<Dashboard!$C$18,Dashboard!$D$15,"") -> Condensing Furnace | O35: 8.65 | P35: =IFERROR(VLOOKUP(N35,'Equip. Data'!$J$3:$K$7,2,FALSE),"") -> 0.95 | Q35: 9.105263158 | R35: 0.95
B36: Heating (Electricity) | C36: 2002-02-01T09:00:00 | D36: -3.2 | E36: 8.27 | F36: 28.21724 | G36: =IF(D36>=Dashboard!$C$18,Dashboard!$C$15,"") ->  | H36: =IF(G36=Dashboard!$C$15,Dashboard!$C$16,"") ->  | I36: =IFERROR(_xlfn.LET( _xlpm.type,G36, _xlpm.size,H36, _xlpm.temp,D36, _xlpm.temps,_xlfn._xlws.FILTER('Equip. Data'!$D$4:$D$63,('Equip. Data'!$B$4:$B$63=_xlpm.type)*('Equip. Data'!$E$4:$E$63=_xlpm.size)),_xlpm.caps,_xlfn._xlws.FILTER('Equip. Data'!$F$4:$F$63,('Equip. Data'!$B$4:$B$63=_xlpm.type)*('Equip. Data'!$E$4:$E$63=_xlpm.size)), INDEX(_xlpm.caps, _xlfn.XMATCH(MIN(ABS(_xlpm.temps-_xlpm.temp)), ABS(_xlpm.temps-_xlpm.temp)))),0) -> 0 | J36: 0 | K36: 0 | L36: =IFERROR(_xlfn.LET( _xlpm.type,G36, _xlpm.size,H36, _xlpm.temp,D36, _xlpm.temps,_xlfn._xlws.FILTER('Equip. Data'!$D$4:$D$63,('Equip. Data'!$B$4:$B$63=_xlpm.type)*('Equip. Data'!$E$4:$E$63=_xlpm.size)),_xlpm.cops,_xlfn._xlws.FILTER('Equip. Data'!$H$4:$H$63,('Equip. Data'!$B$4:$B$63=_xlpm.type)*('Equip. Data'!$E$4:$E$63=_xlpm.size)), INDEX(_xlpm.cops, _xlfn.XMATCH(MIN(ABS(_xlpm.temps-_xlpm.temp)), ABS(_xlpm.temps-_xlpm.temp)))),0) -> 0 | M36: 0 | N36: =IF(D36<Dashboard!$C$18,Dashboard!$D$15,"") -> Condensing Furnace | O36: 8.27 | P36: =IFERROR(VLOOKUP(N36,'Equip. Data'!$J$3:$K$7,2,FALSE),"") -> 0.95 | Q36: 8.705263158 | R36: 0.95
B37: Heating (Electricity) | C37: 2002-02-01T10:00:00 | D37: -0.2 | E37: 6.99 | F37: 23.84988 | G37: =IF(D37>=Dashboard!$C$18,Dashboard!$C$15,"") ->  | H37: =IF(G37=Dashboard!$C$15,Dashboard!$C$16,"") ->  | I37: =IFERROR(_xlfn.LET( _xlpm.type,G37, _xlpm.size,H37, _xlpm.temp,D37, _xlpm.temps,_xlfn._xlws.FILTER('Equip. Data'!$D$4:$D$63,('Equip. Data'!$B$4:$B$63=_xlpm.type)*('Equip. Data'!$E$4:$E$63=_xlpm.size)),_xlpm.caps,_xlfn._xlws.FILTER('Equip. Data'!$F$4:$F$63,('Equip. Data'!$B$4:$B$63=_xlpm.type)*('Equip. Data'!$E$4:$E$63=_xlpm.size)), INDEX(_xlpm.caps, _xlfn.XMATCH(MIN(ABS(_xlpm.temps-_xlpm.temp)), ABS(_xlpm.temps-_xlpm.temp)))),0) -> 0 | J37: 0 | K37: 0 | L37: =IFERROR(_xlfn.LET( _xlpm.type,G37, _xlpm.size,H37, _xlpm.temp,D37, _xlpm.temps,_xlfn._xlws.FILTER('Equip. Data'!$D$4:$D$63,('Equip. Data'!$B$4:$B$63=_xlpm.type)*('Equip. Data'!$E$4:$E$63=_xlpm.size)),_xlpm.cops,_xlfn._xlws.FILTER('Equip. Data'!$H$4:$H$63,('Equip. Data'!$B$4:$B$63=_xlpm.type)*('Equip. Data'!$E$4:$E$63=_xlpm.size)), INDEX(_xlpm.cops, _xlfn.XMATCH(MIN(ABS(_xlpm.temps-_xlpm.temp)), ABS(_xlpm.temps-_xlpm.temp)))),0) -> 0 | M37: 0 | N37: =IF(D37<Dashboard!$C$18,Dashboard!$D$15,"") -> Condensing Furnace | O37: 6.99 | P37: =IFERROR(VLOOKUP(N37,'Equip. Data'!$J$3:$K$7,2,FALSE),"") -> 0.95 | Q37: 7.357894737 | R37: 0.95
B38: Heating (Electricity) | C38: 2002-02-01T11:00:00 | D38: 1.9 | E38: 5.52 | F38: 18.83424 | G38: =IF(D38>=Dashboard!$C$18,Dashboard!$C$15,"") -> Mini Split HP | H38: =IF(G38=Dashboard!$C$15,Dashboard!$C$16,"") -> AM036 | I38: =IFERROR(_xlfn.LET( _xlpm.type,G38, _xlpm.size,H38, _xlpm.temp,D38, _xlpm.temps,_xlfn._xlws.FILTER('Equip. Data'!$D$4:$D$63,('Equip. Data'!$B$4:$B$63=_xlpm.type)*('Equip. Data'!$E$4:$E$63=_xlpm.size)),_xlpm.caps,_xlfn._xlws.FILTER('Equip. Data'!$F$4:$F$63,('Equip. Data'!$B$4:$B$63=_xlpm.type)*('Equip. Data'!$E$4:$E$63=_xlpm.size)), INDEX(_xlpm.caps, _xlfn.XMATCH(MIN(ABS(_xlpm.temps-_xlpm.temp)), ABS(_xlpm.temps-_xlpm.temp)))),0) -> 40.2 | J38: 18.83424 | K38: 5.52 | L38: =IFERROR(_xlfn.LET( _xlpm.type,G38, _xlpm.size,H38, _xlpm.temp,D38, _xlpm.temps,_xlfn._xlws.FILTER('Equip. Data'!$D$4:$D$63,('Equip. Data'!$B$4:$B$63=_xlpm.type)*('Equip. Data'!$E$4:$E$63=_xlpm.size)),_xlpm.cops,_xlfn._xlws.FILTER('Equip. Data'!$H$4:$H$63,('Equip. Data'!$B$4:$B$63=_xlpm.type)*('Equip. Data'!$E$4:$E$63=_xlpm.size)), INDEX(_xlpm.cops, _xlfn.XMATCH(MIN(ABS(_xlpm.temps-_xlpm.temp)), ABS(_xlpm.temps-_xlpm.temp)))),0) -> 3.337661777 | M38: 1.653852418 | N38: =IF(D38<Dashboard!$C$18,Dashboard!$D$15,"") ->  | O38: 0 | P38: =IFERROR(VLOOKUP(N38,'Equip. Data'!$J$3:$K$7,2,FALSE),"") ->  | Q38: 0 | R38: 3.337661777
B39: Heating (Electricity) | C39: 2002-02-01T12:00:00 | D39: 2.1 | E39: 4.25 | F39: 14.501 | G39: =IF(D39>=Dashboard!$C$18,Dashboard!$C$15,"") -> Mini Split HP | H39: =IF(G39=Dashboard!$C$15,Dashboard!$C$16,"") -> AM036 | I39: =IFERROR(_xlfn.LET( _xlpm.type,G39, _xlpm.size,H39, _xlpm.temp,D39, _xlpm.temps,_xlfn._xlws.FILTER('Equip. Data'!$D$4:$D$63,('Equip. Data'!$B$4:$B$63=_xlpm.type)*('Equip. Data'!$E$4:$E$63=_xlpm.size)),_xlpm.caps,_xlfn._xlws.FILTER('Equip. Data'!$F$4:$F$63,('Equip. Data'!$B$4:$B$63=_xlpm.type)*('Equip. Data'!$E$4:$E$63=_xlpm.size)), INDEX(_xlpm.caps, _xlfn.XMATCH(MIN(ABS(_xlpm.temps-_xlpm.temp)), ABS(_xlpm.temps-_xlpm.temp)))),0) -> 40.2 | J39: 14.501 | K39: 4.25 | L39: =IFERROR(_xlfn.LET( _xlpm.type,G39, _xlpm.size,H39, _xlpm.temp,D39, _xlpm.temps,_xlfn._xlws.FILTER('Equip. Data'!$D$4:$D$63,('Equip. Data'!$B$4:$B$63=_xlpm.type)*('Equip. Data'!$E$4:$E$63=_xlpm.size)),_xlpm.cops,_xlfn._xlws.FILTER('Equip. Data'!$H$4:$H$63,('Equip. Data'!$B$4:$B$63=_xlpm.type)*('Equip. Data'!$E$4:$E$63=_xlpm.size)), INDEX(_xlpm.cops, _xlfn.XMATCH(MIN(ABS(_xlpm.temps-_xlpm.temp)), ABS(_xlpm.temps-_xlpm.temp)))),0) -> 3.337661777 | M39: 1.273346517 | N39: =IF(D39<Dashboard!$C$18,Dashboard!$D$15,"") ->  | O39: 0 | P39: =IFERROR(VLOOKUP(N39,'Equip. Data'!$J$3:$K$7,2,FALSE),"") ->  | Q39: 0 | R39: 3.337661777
B40: Heating (Electricity) | C40: 2002-02-01T13:00:00 | D40: 3 | E40: 3.54 | F40: 12.07848 | G40: =IF(D40>=Dashboard!$C$18,Dashboard!$C$15,"") -> Mini Split HP | H40: =IF(G40=Dashboard!$C$15,Dashboard!$C$16,"") -> AM036 | I40: =IFERROR(_xlfn.LET( _xlpm.type,G40, _xlpm.size,H40, _xlpm.temp,D40, _xlpm.temps,_xlfn._xlws.FILTER('Equip. Data'!$D$4:$D$63,('Equip. Data'!$B$4:$B$63=_xlpm.type)*('Equip. Data'!$E$4:$E$63=_xlpm.size)),_xlpm.caps,_xlfn._xlws.FILTER('Equip. Data'!$F$4:$F$63,('Equip. Data'!$B$4:$B$63=_xlpm.type)*('Equip. Data'!$E$4:$E$63=_xlpm.size)), INDEX(_xlpm.caps, _xlfn.XMATCH(MIN(ABS(_xlpm.temps-_xlpm.temp)), ABS(_xlpm.temps-_xlpm.temp)))),0) -> 40.2 | J40: 12.07848 | K40: 3.54 | L40: =IFERROR(_xlfn.LET( _xlpm.type,G40, _xlpm.size,H40, _xlpm.temp,D40, _xlpm.temps,_xlfn._xlws.FILTER('Equip. Data'!$D$4:$D$63,('Equip. Data'!$B$4:$B$63=_xlpm.type)*('Equip. Data'!$E$4:$E$63=_xlpm.size)),_xlpm.cops,_xlfn._xlws.FILTER('Equip. Data'!$H$4:$H$63,('Equip. Data'!$B$4:$B$63=_xlpm.type)*('Equip. Data'!$E$4:$E$63=_xlpm.size)), INDEX(_xlpm.cops, _xlfn.XMATCH(MIN(ABS(_xlpm.temps-_xlpm.temp)), ABS(_xlpm.temps-_xlpm.temp)))),0) -> 3.337661777 | M40: 1.060622746 | N40: =IF(D40<Dashboard!$C$18,Dashboard!$D$15,"") ->  | O40: 0 | P40: =IFERROR(VLOOKUP(N40,'Equip. Data'!$J$3:$K$7,2,FALSE),"") ->  | Q40: 0 | R40: 3.337661777
B41: Heating (Electricity) | C41: 2002-02-01T14:00:00 | D41: 3.3 | E41: 3.08 | F41: 10.50896 | G41: =IF(D41>=Dashboard!$C$18,Dashboard!$C$15,"") -> Mini Split HP | H41: =IF(G41=Dashboard!$C$15,Dashboard!$C$16,"") -> AM036 | I41: =IFERROR(_xlfn.LET( _xlpm.type,G41, _xlpm.size,H41, _xlpm.temp,D41, _xlpm.temps,_xlfn._xlws.FILTER('Equip. Data'!$D$4:$D$63,('Equip. Data'!$B$4:$B$63=_xlpm.type)*('Equip. Data'!$E$4:$E$63=_xlpm.size)),_xlpm.caps,_xlfn._xlws.FILTER('Equip. Data'!$F$4:$F$63,('Equip. Data'!$B$4:$B$63=_xlpm.type)*('Equip. Data'!$E$4:$E$63=_xlpm.size)), INDEX(_xlpm.caps, _xlfn.XMATCH(MIN(ABS(_xlpm.temps-_xlpm.temp)), ABS(_xlpm.temps-_xlpm.temp)))),0) -> 40.2 | J41: 10.50896 | K41: 3.08 | L41: =IFERROR(_xlfn.LET( _xlpm.type,G41, _xlpm.size,H41, _xlpm.temp,D41, _xlpm.temps,_xlfn._xlws.FILTER('Equip. Data'!$D$4:$D$63,('Equip. Data'!$B$4:$B$63=_xlpm.type)*('Equip. Data'!$E$4:$E$63=_xlpm.size)),_xlpm.cops,_xlfn._xlws.FILTER('Equip. Data'!$H$4:$H$63,('Equip. Data'!$B$4:$B$63=_xlpm.type)*('Equip. Data'!$E$4:$E$63=_xlpm.size)), INDEX(_xlpm.cops, _xlfn.XMATCH(MIN(ABS(_xlpm.temps-_xlpm.temp)), ABS(_xlpm.temps-_xlpm.temp)))),0) -> 3.337661777 | M41: 0.9228017114 | N41: =IF(D41<Dashboard!$C$18,Dashboard!$D$15,"") ->  | O41: 0 | P41: =IFERROR(VLOOKUP(N41,'Equip. Data'!$J$3:$K$7,2,FALSE),"") ->  | Q41: 0 | R41: 3.337661777
B42: Heating (Electricity) | C42: 2002-02-01T15:00:00 | D42: 3.2 | E42: 2.87 | F42: 9.79244 | G42: =IF(D42>=Dashboard!$C$18,Dashboard!$C$15,"") -> Mini Split HP | H42: =IF(G42=Dashboard!$C$15,Dashboard!$C$16,"") -> AM036 | I42: =IFERROR(_xlfn.LET( _xlpm.type,G42, _xlpm.size,H42, _xlpm.temp,D42, _xlpm.temps,_xlfn._xlws.FILTER('Equip. Data'!$D$4:$D$63,('Equip. Data'!$B$4:$B$63=_xlpm.type)*('Equip. Data'!$E$4:$E$63=_xlpm.size)),_xlpm.caps,_xlfn._xlws.FILTER('Equip. Data'!$F$4:$F$63,('Equip. Data'!$B$4:$B$63=_xlpm.type)*('Equip. Data'!$E$4:$E$63=_xlpm.size)), INDEX(_xlpm.caps, _xlfn.XMATCH(MIN(ABS(_xlpm.temps-_xlpm.temp)), ABS(_xlpm.temps-_xlpm.temp)))),0) -> 40.2 | J42: 9.79244 | K42: 2.87 | L42: =IFERROR(_xlfn.LET( _xlpm.type,G42, _xlpm.size,H42, _xlpm.temp,D42, _xlpm.temps,_xlfn._xlws.FILTER('Equip. Data'!$D$4:$D$63,('Equip. Data'!$B$4:$B$63=_xlpm.type)*('Equip. Data'!$E$4:$E$63=_xlpm.size)),_xlpm.cops,_xlfn._xlws.FILTER('Equip. Data'!$H$4:$H$63,('Equip. Data'!$B$4:$B$63=_xlpm.type)*('Equip. Data'!$E$4:$E$63=_xlpm.size)), INDEX(_xlpm.cops, _xlfn.XMATCH(MIN(ABS(_xlpm.temps-_xlpm.temp)), ABS(_xlpm.temps-_xlpm.temp)))),0) -> 3.337661777 | M42: 0.8598834129 | N42: =IF(D42<Dashboard!$C$18,Dashboard!$D$15,"") ->  | O42: 0 | P42: =IFERROR(VLOOKUP(N42,'Equip. Data'!$J$3:$K$7,2,FALSE),"") ->  | Q42: 0 | R42: 3.337661777
B43: Heating (Electricity) | C43: 2002-02-01T16:00:00 | D43: 1.9 | E43: 3.21 | F43: 10.95252 | G43: =IF(D43>=Dashboard!$C$18,Dashboard!$C$15,"") -> Mini Split HP | H43: =IF(G43=Dashboard!$C$15,Dashboard!$C$16,"") -> AM036 | I43: =IFERROR(_xlfn.LET( _xlpm.type,G43, _xlpm.size,H43, _xlpm.temp,D43, _xlpm.temps,_xlfn._xlws.FILTER('Equip. Data'!$D$4:$D$63,('Equip. Data'!$B$4:$B$63=_xlpm.type)*('Equip. Data'!$E$4:$E$63=_xlpm.size)),_xlpm.caps,_xlfn._xlws.FILTER('Equip. Data'!$F$4:$F$63,('Equip. Data'!$B$4:$B$63=_xlpm.type)*('Equip. Data'!$E$4:$E$63=_xlpm.size)), INDEX(_xlpm.caps, _xlfn.XMATCH(MIN(ABS(_xlpm.temps-_xlpm.temp)), ABS(_xlpm.temps-_xlpm.temp)))),0) -> 40.2 | J43: 10.95252 | K43: 3.21 | L43: =IFERROR(_xlfn.LET( _xlpm.type,G43, _xlpm.size,H43, _xlpm.temp,D43, _xlpm.temps,_xlfn._xlws.FILTER('Equip. Data'!$D$4:$D$63,('Equip. Data'!$B$4:$B$63=_xlpm.type)*('Equip. Data'!$E$4:$E$63=_xlpm.size)),_xlpm.cops,_xlfn._xlws.FILTER('Equip. Data'!$H$4:$H$63,('Equip. Data'!$B$4:$B$63=_xlpm.type)*('Equip. Data'!$E$4:$E$63=_xlpm.size)), INDEX(_xlpm.cops, _xlfn.XMATCH(MIN(ABS(_xlpm.temps-_xlpm.temp)), ABS(_xlpm.temps-_xlpm.temp)))),0) -> 3.337661777 | M43: 0.9617511343 | N43: =IF(D43<Dashboard!$C$18,Dashboard!$D$15,"") ->  | O43: 0 | P43: =IFERROR(VLOOKUP(N43,'Equip. Data'!$J$3:$K$7,2,FALSE),"") ->  | Q43: 0 | R43: 3.337661777
B44: Heating (Electricity) | C44: 2002-02-01T17:00:00 | D44: 0.6 | E44: 3.95 | F44: 13.4774 | G44: =IF(D44>=Dashboard!$C$18,Dashboard!$C$15,"") -> Mini Split HP | H44: =IF(G44=Dashboard!$C$15,Dashboard!$C$16,"") -> AM036 | I44: =IFERROR(_xlfn.LET( _xlpm.type,G44, _xlpm.size,H44, _xlpm.temp,D44, _xlpm.temps,_xlfn._xlws.FILTER('Equip. Data'!$D$4:$D$63,('Equip. Data'!$B$4:$B$63=_xlpm.type)*('Equip. Data'!$E$4:$E$63=_xlpm.size)),_xlpm.caps,_xlfn._xlws.FILTER('Equip. Data'!$F$4:$F$63,('Equip. Data'!$B$4:$B$63=_xlpm.type)*('Equip. Data'!$E$4:$E$63=_xlpm.size)), INDEX(_xlpm.caps, _xlfn.XMATCH(MIN(ABS(_xlpm.temps-_xlpm.temp)), ABS(_xlpm.temps-_xlpm.temp)))),0) -> 40.2 | J44: 13.4774 | K44: 3.95 | L44: =IFERROR(_xlfn.LET( _xlpm.type,G44, _xlpm.size,H44, _xlpm.temp,D44, _xlpm.temps,_xlfn._xlws.FILTER('Equip. Data'!$D$4:$D$63,('Equip. Data'!$B$4:$B$63=_xlpm.type)*('Equip. Data'!$E$4:$E$63=_xlpm.size)),_xlpm.cops,_xlfn._xlws.FILTER('Equip. Data'!$H$4:$H$63,('Equip. Data'!$B$4:$B$63=_xlpm.type)*('Equip. Data'!$E$4:$E$63=_xlpm.size)), INDEX(_xlpm.cops, _xlfn.XMATCH(MIN(ABS(_xlpm.temps-_xlpm.temp)), ABS(_xlpm.temps-_xlpm.temp)))),0) -> 3.005598488 | M44: 1.314214129 | N44: =IF(D44<Dashboard!$C$18,Dashboard!$D$15,"") ->  | O44: 0 | P44: =IFERROR(VLOOKUP(N44,'Equip. Data'!$J$3:$K$7,2,FALSE),"") ->  | Q44: 0 | R44: 3.005598488
B45: Heating (Electricity) | C45: 2002-02-01T18:00:00 | D45: 1.4 | E45: 4.12 | F45: 14.05744 | G45: =IF(D45>=Dashboard!$C$18,Dashboard!$C$15,"") -> Mini Split HP | H45: =IF(G45=Dashboard!$C$15,Dashboard!$C$16,"") -> AM036 | I45: =IFERROR(_xlfn.LET( _xlpm.type,G45, _xlpm.size,H45, _xlpm.temp,D45, _xlpm.temps,_xlfn._xlws.FILTER('Equip. Data'!$D$4:$D$63,('Equip. Data'!$B$4:$B$63=_xlpm.type)*('Equip. Data'!$E$4:$E$63=_xlpm.size)),_xlpm.caps,_xlfn._xlws.FILTER('Equip. Data'!$F$4:$F$63,('Equip. Data'!$B$4:$B$63=_xlpm.type)*('Equip. Data'!$E$4:$E$63=_xlpm.size)), INDEX(_xlpm.caps, _xlfn.XMATCH(MIN(ABS(_xlpm.temps-_xlpm.temp)), ABS(_xlpm.temps-_xlpm.temp)))),0) -> 40.2 | J45: 14.05744 | K45: 4.12 | L45: =IFERROR(_xlfn.LET( _xlpm.type,G45, _xlpm.size,H45, _xlpm.temp,D45, _xlpm.temps,_xlfn._xlws.FILTER('Equip. Data'!$D$4:$D$63,('Equip. Data'!$B$4:$B$63=_xlpm.type)*('Equip. Data'!$E$4:$E$63=_xlpm.size)),_xlpm.cops,_xlfn._xlws.FILTER('Equip. Data'!$H$4:$H$63,('Equip. Data'!$B$4:$B$63=_xlpm.type)*('Equip. Data'!$E$4:$E$63=_xlpm.size)), INDEX(_xlpm.cops, _xlfn.XMATCH(MIN(ABS(_xlpm.temps-_xlpm.temp)), ABS(_xlpm.temps-_xlpm.temp)))),0) -> 3.337661777 | M45: 1.234397095 | N45: =IF(D45<Dashboard!$C$18,Dashboard!$D$15,"") ->  | O45: 0 | P45: =IFERROR(VLOOKUP(N45,'Equip. Data'!$J$3:$K$7,2,FALSE),"") ->  | Q45: 0 | R45: 3.337661777
B46: Heating (Electricity) | C46: 2002-02-01T19:00:00 | D46: -0.1 | E46: 4.38 | F46: 14.94456 | G46: =IF(D46>=Dashboard!$C$18,Dashboard!$C$15,"") ->  | H46: =IF(G46=Dashboard!$C$15,Dashboard!$C$16,"") ->  | I46: =IFERROR(_xlfn.LET( _xlpm.type,G46, _xlpm.size,H46, _xlpm.temp,D46, _xlpm.temps,_xlfn._xlws.FILTER('Equip. Data'!$D$4:$D$63,('Equip. Data'!$B$4:$B$63=_xlpm.type)*('Equip. Data'!$E$4:$E$63=_xlpm.size)),_xlpm.caps,_xlfn._xlws.FILTER('Equip. Data'!$F$4:$F$63,('Equip. Data'!$B$4:$B$63=_xlpm.type)*('Equip. Data'!$E$4:$E$63=_xlpm.size)), INDEX(_xlpm.caps, _xlfn.XMATCH(MIN(ABS(_xlpm.temps-_xlpm.temp)), ABS(_xlpm.temps-_xlpm.temp)))),0) -> 0 | J46: 0 | K46: 0 | L46: =IFERROR(_xlfn.LET( _xlpm.type,G46, _xlpm.size,H46, _xlpm.temp,D46, _xlpm.temps,_xlfn._xlws.FILTER('Equip. Data'!$D$4:$D$63,('Equip. Data'!$B$4:$B$63=_xlpm.type)*('Equip. Data'!$E$4:$E$63=_xlpm.size)),_xlpm.cops,_xlfn._xlws.FILTER('Equip. Data'!$H$4:$H$63,('Equip. Data'!$B$4:$B$63=_xlpm.type)*('Equip. Data'!$E$4:$E$63=_xlpm.size)), INDEX(_xlpm.cops, _xlfn.XMATCH(MIN(ABS(_xlpm.temps-_xlpm.temp)), ABS(_xlpm.temps-_xlpm.temp)))),0) -> 0 | M46: 0 | N46: =IF(D46<Dashboard!$C$18,Dashboard!$D$15,"") -> Condensing Furnace | O46: 4.38 | P46: =IFERROR(VLOOKUP(N46,'Equip. Data'!$J$3:$K$7,2,FALSE),"") -> 0.95 | Q46: 4.610526316 | R46: 0.95
B47: Heating (Electricity) | C47: 2002-02-01T20:00:00 | D47: -0.7 | E47: 4.67 | F47: 15.93404 | G47: =IF(D47>=Dashboard!$C$18,Dashboard!$C$15,"") ->  | H47: =IF(G47=Dashboard!$C$15,Dashboard!$C$16,"") ->  | I47: =IFERROR(_xlfn.LET( _xlpm.type,G47, _xlpm.size,H47, _xlpm.temp,D47, _xlpm.temps,_xlfn._xlws.FILTER('Equip. Data'!$D$4:$D$63,('Equip. Data'!$B$4:$B$63=_xlpm.type)*('Equip. Data'!$E$4:$E$63=_xlpm.size)),_xlpm.caps,_xlfn._xlws.FILTER('Equip. Data'!$F$4:$F$63,('Equip. Data'!$B$4:$B$63=_xlpm.type)*('Equip. Data'!$E$4:$E$63=_xlpm.size)), INDEX(_xlpm.caps, _xlfn.XMATCH(MIN(ABS(_xlpm.temps-_xlpm.temp)), ABS(_xlpm.temps-_xlpm.temp)))),0) -> 0 | J47: 0 | K47: 0 | L47: =IFERROR(_xlfn.LET( _xlpm.type,G47, _xlpm.size,H47, _xlpm.temp,D47, _xlpm.temps,_xlfn._xlws.FILTER('Equip. Data'!$D$4:$D$63,('Equip. Data'!$B$4:$B$63=_xlpm.type)*('Equip. Data'!$E$4:$E$63=_xlpm.size)),_xlpm.cops,_xlfn._xlws.FILTER('Equip. Data'!$H$4:$H$63,('Equip. Data'!$B$4:$B$63=_xlpm.type)*('Equip. Data'!$E$4:$E$63=_xlpm.size)), INDEX(_xlpm.cops, _xlfn.XMATCH(MIN(ABS(_xlpm.temps-_xlpm.temp)), ABS(_xlpm.temps-_xlpm.temp)))),0) -> 0 | M47: 0 | N47: =IF(D47<Dashboard!$C$18,Dashboard!$D$15,"") -> Condensing Furnace | O47: 4.67 | P47: =IFERROR(VLOOKUP(N47,'Equip. Data'!$J$3:$K$7,2,FALSE),"") -> 0.95 | Q47: 4.915789474 | R47: 0.95
B48: Heating (Electricity) | C48: 2002-02-01T21:00:00 | D48: -2.2 | E48: 5.22 | F48: 17.81064 | G48: =IF(D48>=Dashboard!$C$18,Dashboard!$C$15,"") ->  | H48: =IF(G48=Dashboard!$C$15,Dashboard!$C$16,"") ->  | I48: =IFERROR(_xlfn.LET( _xlpm.type,G48, _xlpm.size,H48, _xlpm.temp,D48, _xlpm.temps,_xlfn._xlws.FILTER('Equip. Data'!$D$4:$D$63,('Equip. Data'!$B$4:$B$63=_xlpm.type)*('Equip. Data'!$E$4:$E$63=_xlpm.size)),_xlpm.caps,_xlfn._xlws.FILTER('Equip. Data'!$F$4:$F$63,('Equip. Data'!$B$4:$B$63=_xlpm.type)*('Equip. Data'!$E$4:$E$63=_xlpm.size)), INDEX(_xlpm.caps, _xlfn.XMATCH(MIN(ABS(_xlpm.temps-_xlpm.temp)), ABS(_xlpm.temps-_xlpm.temp)))),0) -> 0 | J48: 0 | K48: 0 | L48: =IFERROR(_xlfn.LET( _xlpm.type,G48, _xlpm.size,H48, _xlpm.temp,D48, _xlpm.temps,_xlfn._xlws.FILTER('Equip. Data'!$D$4:$D$63,('Equip. Data'!$B$4:$B$63=_xlpm.type)*('Equip. Data'!$E$4:$E$63=_xlpm.size)),_xlpm.cops,_xlfn._xlws.FILTER('Equip. Data'!$H$4:$H$63,('Equip. Data'!$B$4:$B$63=_xlpm.type)*('Equip. Data'!$E$4:$E$63=_xlpm.size)), INDEX(_xlpm.cops, _xlfn.XMATCH(MIN(ABS(_xlpm.temps-_xlpm.temp)), ABS(_xlpm.temps-_xlpm.temp)))),0) -> 0 | M48: 0 | N48: =IF(D48<Dashboard!$C$18,Dashboard!$D$15,"") -> Condensing Furnace | O48: 5.22 | P48: =IFERROR(VLOOKUP(N48,'Equip. Data'!$J$3:$K$7,2,FALSE),"") -> 0.95 | Q48: 5.494736842 | R48: 0.95
B49: Heating (Electricity) | C49: 2002-02-01T22:00:00 | D49: -2.2 | E49: 5.68 | F49: 19.38016 | G49: =IF(D49>=Dashboard!$C$18,Dashboard!$C$15,"") ->  | H49: =IF(G49=Dashboard!$C$15,Dashboard!$C$16,"") ->  | I49: =IFERROR(_xlfn.LET( _xlpm.type,G49, _xlpm.size,H49, _xlpm.temp,D49, _xlpm.temps,_xlfn._xlws.FILTER('Equip. Data'!$D$4:$D$63,('Equip. Data'!$B$4:$B$63=_xlpm.type)*('Equip. Data'!$E$4:$E$63=_xlpm.size)),_xlpm.caps,_xlfn._xlws.FILTER('Equip. Data'!$F$4:$F$63,('Equip. Data'!$B$4:$B$63=_xlpm.type)*('Equip. Data'!$E$4:$E$63=_xlpm.size)), INDEX(_xlpm.caps, _xlfn.XMATCH(MIN(ABS(_xlpm.temps-_xlpm.temp)), ABS(_xlpm.temps-_xlpm.temp)))),0) -> 0 | J49: 0 | K49: 0 | L49: =IFERROR(_xlfn.LET( _xlpm.type,G49, _xlpm.size,H49, _xlpm.temp,D49, _xlpm.temps,_xlfn._xlws.FILTER('Equip. Data'!$D$4:$D$63,('Equip. Data'!$B$4:$B$63=_xlpm.type)*('Equip. Data'!$E$4:$E$63=_xlpm.size)),_xlpm.cops,_xlfn._xlws.FILTER('Equip. Data'!$H$4:$H$63,('Equip. Data'!$B$4:$B$63=_xlpm.type)*('Equip. Data'!$E$4:$E$63=_xlpm.size)), INDEX(_xlpm.cops, _xlfn.XMATCH(MIN(ABS(_xlpm.temps-_xlpm.temp)), ABS(_xlpm.temps-_xlpm.temp)))),0) -> 0 | M49: 0 | N49: =IF(D49<Dashboard!$C$18,Dashboard!$D$15,"") -> Condensing Furnace | O49: 5.68 | P49: =IFERROR(VLOOKUP(N49,'Equip. Data'!$J$3:$K$7,2,FALSE),"") -> 0.95 | Q49: 5.978947368 | R49: 0.95
B50: Heating (Electricity) | C50: 2002-02-01T23:00:00 | D50: -2.2 | E50: 6.23 | F50: 21.25676 | G50: =IF(D50>=Dashboard!$C$18,Dashboard!$C$15,"") ->  | H50: =IF(G50=Dashboard!$C$15,Dashboard!$C$16,"") ->  | I50: =IFERROR(_xlfn.LET( _xlpm.type,G50, _xlpm.size,H50, _xlpm.temp,D50, _xlpm.temps,_xlfn._xlws.FILTER('Equip. Data'!$D$4:$D$63,('Equip. Data'!$B$4:$B$63=_xlpm.type)*('Equip. Data'!$E$4:$E$63=_xlpm.size)),_xlpm.caps,_xlfn._xlws.FILTER('Equip. Data'!$F$4:$F$63,('Equip. Data'!$B$4:$B$63=_xlpm.type)*('Equip. Data'!$E$4:$E$63=_xlpm.size)), INDEX(_xlpm.caps, _xlfn.XMATCH(MIN(ABS(_xlpm.temps-_xlpm.temp)), ABS(_xlpm.temps-_xlpm.temp)))),0) -> 0 | J50: 0 | K50: 0 | L50: =IFERROR(_xlfn.LET( _xlpm.type,G50, _xlpm.size,H50, _xlpm.temp,D50, _xlpm.temps,_xlfn._xlws.FILTER('Equip. Data'!$D$4:$D$63,('Equip. Data'!$B$4:$B$63=_xlpm.type)*('Equip. Data'!$E$4:$E$63=_xlpm.size)),_xlpm.cops,_xlfn._xlws.FILTER('Equip. Data'!$H$4:$H$63,('Equip. Data'!$B$4:$B$63=_xlpm.type)*('Equip. Data'!$E$4:$E$63=_xlpm.size)), INDEX(_xlpm.cops, _xlfn.XMATCH(MIN(ABS(_xlpm.temps-_xlpm.temp)), ABS(_xlpm.temps-_xlpm.temp)))),0) -> 0 | M50: 0 | N50: =IF(D50<Dashboard!$C$18,Dashboard!$D$15,"") -> Condensing Furnace | O50: 6.23 | P50: =IFERROR(VLOOKUP(N50,'Equip. Data'!$J$3:$K$7,2,FALSE),"") -> 0.95 | Q50: 6.557894737 | R50: 0.95
B51: Heating (Electricity) | C51: 2002-03-01 | D51: -2 | E51: 6.69 | F51: 22.82628 | G51: =IF(D51>=Dashboard!$C$18,Dashboard!$C$15,"") ->  | H51: =IF(G51=Dashboard!$C$15,Dashboard!$C$16,"") ->  | I51: =IFERROR(_xlfn.LET( _xlpm.type,G51, _xlpm.size,H51, _xlpm.temp,D51, _xlpm.temps,_xlfn._xlws.FILTER('Equip. Data'!$D$4:$D$63,('Equip. Data'!$B$4:$B$63=_xlpm.type)*('Equip. Data'!$E$4:$E$63=_xlpm.size)),_xlpm.caps,_xlfn._xlws.FILTER('Equip. Data'!$F$4:$F$63,('Equip. Data'!$B$4:$B$63=_xlpm.type)*('Equip. Data'!$E$4:$E$63=_xlpm.size)), INDEX(_xlpm.caps, _xlfn.XMATCH(MIN(ABS(_xlpm.temps-_xlpm.temp)), ABS(_xlpm.temps-_xlpm.temp)))),0) -> 0 | J51: 0 | K51: 0 | L51: =IFERROR(_xlfn.LET( _xlpm.type,G51, _xlpm.size,H51, _xlpm.temp,D51, _xlpm.temps,_xlfn._xlws.FILTER('Equip. Data'!$D$4:$D$63,('Equip. Data'!$B$4:$B$63=_xlpm.type)*('Equip. Data'!$E$4:$E$63=_xlpm.size)),_xlpm.cops,_xlfn._xlws.FILTER('Equip. Data'!$H$4:$H$63,('Equip. Data'!$B$4:$B$63=_xlpm.type)*('Equip. Data'!$E$4:$E$63=_xlpm.size)), INDEX(_xlpm.cops, _xlfn.XMATCH(MIN(ABS(_xlpm.temps-_xlpm.temp)), ABS(_xlpm.temps-_xlpm.temp)))),0) -> 0 | M51: 0 | N51: =IF(D51<Dashboard!$C$18,Dashboard!$D$15,"") -> Condensing Furnace | O51: 6.69 | P51: =IFERROR(VLOOKUP(N51,'Equip. Data'!$J$3:$K$7,2,FALSE),"") -> 0.95 | Q51: 7.042105263 | R51: 0.95
B52: Heating (Electricity) | C52: 2002-03-01T01:00:00 | D52: -3.5 | E52: 7.29 | F52: 24.87348 | G52: =IF(D52>=Dashboard!$C$18,Dashboard!$C$15,"") ->  | H52: =IF(G52=Dashboard!$C$15,Dashboard!$C$16,"") ->  | I52: =IFERROR(_xlfn.LET( _xlpm.type,G52, _xlpm.size,H52, _xlpm.temp,D52, _xlpm.temps,_xlfn._xlws.FILTER('Equip. Data'!$D$4:$D$63,('Equip. Data'!$B$4:$B$63=_xlpm.type)*('Equip. Data'!$E$4:$E$63=_xlpm.size)),_xlpm.caps,_xlfn._xlws.FILTER('Equip. Data'!$F$4:$F$63,('Equip. Data'!$B$4:$B$63=_xlpm.type)*('Equip. Data'!$E$4:$E$63=_xlpm.size)), INDEX(_xlpm.caps, _xlfn.XMATCH(MIN(ABS(_xlpm.temps-_xlpm.temp)), ABS(_xlpm.temps-_xlpm.temp)))),0) -> 0 | J52: 0 | K52: 0 | L52: =IFERROR(_xlfn.LET( _xlpm.type,G52, _xlpm.size,H52, _xlpm.temp,D52, _xlpm.temps,_xlfn._xlws.FILTER('Equip. Data'!$D$4:$D$63,('Equip. Data'!$B$4:$B$63=_xlpm.type)*('Equip. Data'!$E$4:$E$63=_xlpm.size)),_xlpm.cops,_xlfn._xlws.FILTER('Equip. Data'!$H$4:$H$63,('Equip. Data'!$B$4:$B$63=_xlpm.type)*('Equip. Data'!$E$4:$E$63=_xlpm.size)), INDEX(_xlpm.cops, _xlfn.XMATCH(MIN(ABS(_xlpm.temps-_xlpm.temp)), ABS(_xlpm.temps-_xlpm.temp)))),0) -> 0 | M52: 0 | N52: =IF(D52<Dashboard!$C$18,Dashboard!$D$15,"") -> Condensing Furnace | O52: 7.29 | P52: =IFERROR(VLOOKUP(N52,'Equip. Data'!$J$3:$K$7,2,FALSE),"") -> 0.95 | Q52: 7.673684211 | R52: 0.95
B53: Heating (Electricity) | C53: 2002-03-01T02:00:00 | D53: -2.7 | E53: 7.69 | F53: 26.23828 | G53: =IF(D53>=Dashboard!$C$18,Dashboard!$C$15,"") ->  | H53: =IF(G53=Dashboard!$C$15,Dashboard!$C$16,"") ->  | I53: =IFERROR(_xlfn.LET( _xlpm.type,G53, _xlpm.size,H53, _xlpm.temp,D53, _xlpm.temps,_xlfn._xlws.FILTER('Equip. Data'!$D$4:$D$63,('Equip. Data'!$B$4:$B$63=_xlpm.type)*('Equip. Data'!$E$4:$E$63=_xlpm.size)),_xlpm.caps,_xlfn._xlws.FILTER('Equip. Data'!$F$4:$F$63,('Equip. Data'!$B$4:$B$63=_xlpm.type)*('Equip. Data'!$E$4:$E$63=_xlpm.size)), INDEX(_xlpm.caps, _xlfn.XMATCH(MIN(ABS(_xlpm.temps-_xlpm.temp)), ABS(_xlpm.temps-_xlpm.temp)))),0) -> 0 | J53: 0 | K53: 0 | L53: =IFERROR(_xlfn.LET( _xlpm.type,G53, _xlpm.size,H53, _xlpm.temp,D53, _xlpm.temps,_xlfn._xlws.FILTER('Equip. Data'!$D$4:$D$63,('Equip. Data'!$B$4:$B$63=_xlpm.type)*('Equip. Data'!$E$4:$E$63=_xlpm.size)),_xlpm.cops,_xlfn._xlws.FILTER('Equip. Data'!$H$4:$H$63,('Equip. Data'!$B$4:$B$63=_xlpm.type)*('Equip. Data'!$E$4:$E$63=_xlpm.size)), INDEX(_xlpm.cops, _xlfn.XMATCH(MIN(ABS(_xlpm.temps-_xlpm.temp)), ABS(_xlpm.temps-_xlpm.temp)))),0) -> 0 | M53: 0 | N53: =IF(D53<Dashboard!$C$18,Dashboard!$D$15,"") -> Condensing Furnace | O53: 7.69 | P53: =IFERROR(VLOOKUP(N53,'Equip. Data'!$J$3:$K$7,2,FALSE),"") -> 0.95 | Q53: 8.094736842 | R53: 0.95
B54: Heating (Electricity) | C54: 2002-03-01T03:00:00 | D54: -4.4 | E54: 8.14 | F54: 27.77368 | G54: =IF(D54>=Dashboard!$C$18,Dashboard!$C$15,"") ->  | H54: =IF(G54=Dashboard!$C$15,Dashboard!$C$16,"") ->  | I54: =IFERROR(_xlfn.LET( _xlpm.type,G54, _xlpm.size,H54, _xlpm.temp,D54, _xlpm.temps,_xlfn._xlws.FILTER('Equip. Data'!$D$4:$D$63,('Equip. Data'!$B$4:$B$63=_xlpm.type)*('Equip. Data'!$E$4:$E$63=_xlpm.size)),_xlpm.caps,_xlfn._xlws.FILTER('Equip. Data'!$F$4:$F$63,('Equip. Data'!$B$4:$B$63=_xlpm.type)*('Equip. Data'!$E$4:$E$63=_xlpm.size)), INDEX(_xlpm.caps, _xlfn.XMATCH(MIN(ABS(_xlpm.temps-_xlpm.temp)), ABS(_xlpm.temps-_xlpm.temp)))),0) -> 0 | J54: 0 | K54: 0 | L54: =IFERROR(_xlfn.LET( _xlpm.type,G54, _xlpm.size,H54, _xlpm.temp,D54, _xlpm.temps,_xlfn._xlws.FILTER('Equip. Data'!$D$4:$D$63,('Equip. Data'!$B$4:$B$63=_xlpm.type)*('Equip. Data'!$E$4:$E$63=_xlpm.size)),_xlpm.cops,_xlfn._xlws.FILTER('Equip. Data'!$H$4:$H$63,('Equip. Data'!$B$4:$B$63=_xlpm.type)*('Equip. Data'!$E$4:$E$63=_xlpm.size)), INDEX(_xlpm.cops, _xlfn.XMATCH(MIN(ABS(_xlpm.temps-_xlpm.temp)), ABS(_xlpm.temps-_xlpm.temp)))),0) -> 0 | M54: 0 | N54: =IF(D54<Dashboard!$C$18,Dashboard!$D$15,"") -> Condensing Furnace | O54: 8.14 | P54: =IFERROR(VLOOKUP(N54,'Equip. Data'!$J$3:$K$7,2,FALSE),"") -> 0.95 | Q54: 8.568421053 | R54: 0.95
B55: Heating (Electricity) | C55: 2002-03-01T04:00:00 | D55: -4.2 | E55: 8.42 | F55: 28.72904 | G55: =IF(D55>=Dashboard!$C$18,Dashboard!$C$15,"") ->  | H55: =IF(G55=Dashboard!$C$15,Dashboard!$C$16,"") ->  | I55: =IFERROR(_xlfn.LET( _xlpm.type,G55, _xlpm.size,H55, _xlpm.temp,D55, _xlpm.temps,_xlfn._xlws.FILTER('Equip. Data'!$D$4:$D$63,('Equip. Data'!$B$4:$B$63=_xlpm.type)*('Equip. Data'!$E$4:$E$63=_xlpm.size)),_xlpm.caps,_xlfn._xlws.FILTER('Equip. Data'!$F$4:$F$63,('Equip. Data'!$B$4:$B$63=_xlpm.type)*('Equip. Data'!$E$4:$E$63=_xlpm.size)), INDEX(_xlpm.caps, _xlfn.XMATCH(MIN(ABS(_xlpm.temps-_xlpm.temp)), ABS(_xlpm.temps-_xlpm.temp)))),0) -> 0 | J55: 0 | K55: 0 | L55: =IFERROR(_xlfn.LET( _xlpm.type,G55, _xlpm.size,H55, _xlpm.temp,D55, _xlpm.temps,_xlfn._xlws.FILTER('Equip. Data'!$D$4:$D$63,('Equip. Data'!$B$4:$B$63=_xlpm.type)*('Equip. Data'!$E$4:$E$63=_xlpm.size)),_xlpm.cops,_xlfn._xlws.FILTER('Equip. Data'!$H$4:$H$63,('Equip. Data'!$B$4:$B$63=_xlpm.type)*('Equip. Data'!$E$4:$E$63=_xlpm.size)), INDEX(_xlpm.cops, _xlfn.XMATCH(MIN(ABS(_xlpm.temps-_xlpm.temp)), ABS(_xlpm.temps-_xlpm.temp)))),0) -> 0 | M55: 0 | N55: =IF(D55<Dashboard!$C$18,Dashboard!$D$15,"") -> Condensing Furnace | O55: 8.42 | P55: =IFERROR(VLOOKUP(N55,'Equip. Data'!$J$3:$K$7,2,FALSE),"") -> 0.95 | Q55: 8.863157895 | R55: 0.95
B56: Heating (Electricity) | C56: 2002-03-01T05:00:00 | D56: -3.7 | E56: 8.46 | F56: 28.86552 | G56: =IF(D56>=Dashboard!$C$18,Dashboard!$C$15,"") ->  | H56: =IF(G56=Dashboard!$C$15,Dashboard!$C$16,"") ->  | I56: =IFERROR(_xlfn.LET( _xlpm.type,G56, _xlpm.size,H56, _xlpm.temp,D56, _xlpm.temps,_xlfn._xlws.FILTER('Equip. Data'!$D$4:$D$63,('Equip. Data'!$B$4:$B$63=_xlpm.type)*('Equip. Data'!$E$4:$E$63=_xlpm.size)),_xlpm.caps,_xlfn._xlws.FILTER('Equip. Data'!$F$4:$F$63,('Equip. Data'!$B$4:$B$63=_xlpm.type)*('Equip. Data'!$E$4:$E$63=_xlpm.size)), INDEX(_xlpm.caps, _xlfn.XMATCH(MIN(ABS(_xlpm.temps-_xlpm.temp)), ABS(_xlpm.temps-_xlpm.temp)))),0) -> 0 | J56: 0 | K56: 0 | L56: =IFERROR(_xlfn.LET( _xlpm.type,G56, _xlpm.size,H56, _xlpm.temp,D56, _xlpm.temps,_xlfn._xlws.FILTER('Equip. Data'!$D$4:$D$63,('Equip. Data'!$B$4:$B$63=_xlpm.type)*('Equip. Data'!$E$4:$E$63=_xlpm.size)),_xlpm.cops,_xlfn._xlws.FILTER('Equip. Data'!$H$4:$H$63,('Equip. Data'!$B$4:$B$63=_xlpm.type)*('Equip. Data'!$E$4:$E$63=_xlpm.size)), INDEX(_xlpm.cops, _xlfn.XMATCH(MIN(ABS(_xlpm.temps-_xlpm.temp)), ABS(_xlpm.temps-_xlpm.temp)))),0) -> 0 | M56: 0 | N56: =IF(D56<Dashboard!$C$18,Dashboard!$D$15,"") -> Condensing Furnace | O56: 8.46 | P56: =IFERROR(VLOOKUP(N56,'Equip. Data'!$J$3:$K$7,2,FALSE),"") -> 0.95 | Q56: 8.905263158 | R56: 0.95
B57: Heating (Electricity) | C57: 2002-03-01T06:00:00 | D57: -3.6 | E57: 8.51 | F57: 29.03612 | G57: =IF(D57>=Dashboard!$C$18,Dashboard!$C$15,"") ->  | H57: =IF(G57=Dashboard!$C$15,Dashboard!$C$16,"") ->  | I57: =IFERROR(_xlfn.LET( _xlpm.type,G57, _xlpm.size,H57, _xlpm.temp,D57, _xlpm.temps,_xlfn._xlws.FILTER('Equip. Data'!$D$4:$D$63,('Equip. Data'!$B$4:$B$63=_xlpm.type)*('Equip. Data'!$E$4:$E$63=_xlpm.size)),_xlpm.caps,_xlfn._xlws.FILTER('Equip. Data'!$F$4:$F$63,('Equip. Data'!$B$4:$B$63=_xlpm.type)*('Equip. Data'!$E$4:$E$63=_xlpm.size)), INDEX(_xlpm.caps, _xlfn.XMATCH(MIN(ABS(_xlpm.temps-_xlpm.temp)), ABS(_xlpm.temps-_xlpm.temp)))),0) -> 0 | J57: 0 | K57: 0 | L57: =IFERROR(_xlfn.LET( _xlpm.type,G57, _xlpm.size,H57, _xlpm.temp,D57, _xlpm.temps,_xlfn._xlws.FILTER('Equip. Data'!$D$4:$D$63,('Equip. Data'!$B$4:$B$63=_xlpm.type)*('Equip. Data'!$E$4:$E$63=_xlpm.size)),_xlpm.cops,_xlfn._xlws.FILTER('Equip. Data'!$H$4:$H$63,('Equip. Data'!$B$4:$B$63=_xlpm.type)*('Equip. Data'!$E$4:$E$63=_xlpm.size)), INDEX(_xlpm.cops, _xlfn.XMATCH(MIN(ABS(_xlpm.temps-_xlpm.temp)), ABS(_xlpm.temps-_xlpm.temp)))),0) -> 0 | M57: 0 | N57: =IF(D57<Dashboard!$C$18,Dashboard!$D$15,"") -> Condensing Furnace | O57: 8.51 | P57: =IFERROR(VLOOKUP(N57,'Equip. Data'!$J$3:$K$7,2,FALSE),"") -> 0.95 | Q57: 8.957894737 | R57: 0.95
B58: Heating (Electricity) | C58: 2002-03-01T07:00:00 | D58: -4.3 | E58: 8.65 | F58: 29.5138 | G58: =IF(D58>=Dashboard!$C$18,Dashboard!$C$15,"") ->  | H58: =IF(G58=Dashboard!$C$15,Dashboard!$C$16,"") ->  | I58: =IFERROR(_xlfn.LET( _xlpm.type,G58, _xlpm.size,H58, _xlpm.temp,D58, _xlpm.temps,_xlfn._xlws.FILTER('Equip. Data'!$D$4:$D$63,('Equip. Data'!$B$4:$B$63=_xlpm.type)*('Equip. Data'!$E$4:$E$63=_xlpm.size)),_xlpm.caps,_xlfn._xlws.FILTER('Equip. Data'!$F$4:$F$63,('Equip. Data'!$B$4:$B$63=_xlpm.type)*('Equip. Data'!$E$4:$E$63=_xlpm.size)), INDEX(_xlpm.caps, _xlfn.XMATCH(MIN(ABS(_xlpm.temps-_xlpm.temp)), ABS(_xlpm.temps-_xlpm.temp)))),0) -> 0 | J58: 0 | K58: 0 | L58: =IFERROR(_xlfn.LET( _xlpm.type,G58, _xlpm.size,H58, _xlpm.temp,D58, _xlpm.temps,_xlfn._xlws.FILTER('Equip. Data'!$D$4:$D$63,('Equip. Data'!$B$4:$B$63=_xlpm.type)*('Equip. Data'!$E$4:$E$63=_xlpm.size)),_xlpm.cops,_xlfn._xlws.FILTER('Equip. Data'!$H$4:$H$63,('Equip. Data'!$B$4:$B$63=_xlpm.type)*('Equip. Data'!$E$4:$E$63=_xlpm.size)), INDEX(_xlpm.cops, _xlfn.XMATCH(MIN(ABS(_xlpm.temps-_xlpm.temp)), ABS(_xlpm.temps-_xlpm.temp)))),0) -> 0 | M58: 0 | N58: =IF(D58<Dashboard!$C$18,Dashboard!$D$15,"") -> Condensing Furnace | O58: 8.65 | P58: =IFERROR(VLOOKUP(N58,'Equip. Data'!$J$3:$K$7,2,FALSE),"") -> 0.95 | Q58: 9.105263158 | R58: 0.95
B59: Heating (Electricity) | C59: 2002-03-01T08:00:00 | D59: -3.5 | E59: 8.61 | F59: 29.37732 | G59: =IF(D59>=Dashboard!$C$18,Dashboard!$C$15,"") ->  | H59: =IF(G59=Dashboard!$C$15,Dashboard!$C$16,"") ->  | I59: =IFERROR(_xlfn.LET( _xlpm.type,G59, _xlpm.size,H59, _xlpm.temp,D59, _xlpm.temps,_xlfn._xlws.FILTER('Equip. Data'!$D$4:$D$63,('Equip. Data'!$B$4:$B$63=_xlpm.type)*('Equip. Data'!$E$4:$E$63=_xlpm.size)),_xlpm.caps,_xlfn._xlws.FILTER('Equip. Data'!$F$4:$F$63,('Equip. Data'!$B$4:$B$63=_xlpm.type)*('Equip. Data'!$E$4:$E$63=_xlpm.size)), INDEX(_xlpm.caps, _xlfn.XMATCH(MIN(ABS(_xlpm.temps-_xlpm.temp)), ABS(_xlpm.temps-_xlpm.temp)))),0) -> 0 | J59: 0 | K59: 0 | L59: =IFERROR(_xlfn.LET( _xlpm.type,G59, _xlpm.size,H59, _xlpm.temp,D59, _xlpm.temps,_xlfn._xlws.FILTER('Equip. Data'!$D$4:$D$63,('Equip. Data'!$B$4:$B$63=_xlpm.type)*('Equip. Data'!$E$4:$E$63=_xlpm.size)),_xlpm.cops,_xlfn._xlws.FILTER('Equip. Data'!$H$4:$H$63,('Equip. Data'!$B$4:$B$63=_xlpm.type)*('Equip. Data'!$E$4:$E$63=_xlpm.size)), INDEX(_xlpm.cops, _xlfn.XMATCH(MIN(ABS(_xlpm.temps-_xlpm.temp)), ABS(_xlpm.temps-_xlpm.temp)))),0) -> 0 | M59: 0 | N59: =IF(D59<Dashboard!$C$18,Dashboard!$D$15,"") -> Condensing Furnace | O59: 8.61 | P59: =IFERROR(VLOOKUP(N59,'Equip. Data'!$J$3:$K$7,2,FALSE),"") -> 0.95 | Q59: 9.063157895 | R59: 0.95
B60: Heating (Electricity) | C60: 2002-03-01T09:00:00 | D60: -2.8 | E60: 8.19 | F60: 27.94428 | G60: =IF(D60>=Dashboard!$C$18,Dashboard!$C$15,"") ->  | H60: =IF(G60=Dashboard!$C$15,Dashboard!$C$16,"") ->  | I60: =IFERROR(_xlfn.LET( _xlpm.type,G60, _xlpm.size,H60, _xlpm.temp,D60, _xlpm.temps,_xlfn._xlws.FILTER('Equip. Data'!$D$4:$D$63,('Equip. Data'!$B$4:$B$63=_xlpm.type)*('Equip. Data'!$E$4:$E$63=_xlpm.size)),_xlpm.caps,_xlfn._xlws.FILTER('Equip. Data'!$F$4:$F$63,('Equip. Data'!$B$4:$B$63=_xlpm.type)*('Equip. Data'!$E$4:$E$63=_xlpm.size)), INDEX(_xlpm.caps, _xlfn.XMATCH(MIN(ABS(_xlpm.temps-_xlpm.temp)), ABS(_xlpm.temps-_xlpm.temp)))),0) -> 0 | J60: 0 | K60: 0 | L60: =IFERROR(_xlfn.LET( _xlpm.type,G60, _xlpm.size,H60, _xlpm.temp,D60, _xlpm.temps,_xlfn._xlws.FILTER('Equip. Data'!$D$4:$D$63,('Equip. Data'!$B$4:$B$63=_xlpm.type)*('Equip. Data'!$E$4:$E$63=_xlpm.size)),_xlpm.cops,_xlfn._xlws.FILTER('Equip. Data'!$H$4:$H$63,('Equip. Data'!$B$4:$B$63=_xlpm.type)*('Equip. Data'!$E$4:$E$63=_xlpm.size)), INDEX(_xlpm.cops, _xlfn.XMATCH(MIN(ABS(_xlpm.temps-_xlpm.temp)), ABS(_xlpm.temps-_xlpm.temp)))),0) -> 0 | M60: 0 | N60: =IF(D60<Dashboard!$C$18,Dashboard!$D$15,"") -> Condensing Furnace | O60: 8.19 | P60: =IFERROR(VLOOKUP(N60,'Equip. Data'!$J$3:$K$7,2,FALSE),"") -> 0.95 | Q60: 8.621052632 | R60: 0.95
B61: Heating (Electricity) | C61: 2002-03-01T10:00:00 | D61: -0.2 | E61: 6.61 | F61: 22.55332 | G61: =IF(D61>=Dashboard!$C$18,Dashboard!$C$15,"") ->  | H61: =IF(G61=Dashboard!$C$15,Dashboard!$C$16,"") ->  | I61: =IFERROR(_xlfn.LET( _xlpm.type,G61, _xlpm.size,H61, _xlpm.temp,D61, _xlpm.temps,_xlfn._xlws.FILTER('Equip. Data'!$D$4:$D$63,('Equip. Data'!$B$4:$B$63=_xlpm.type)*('Equip. Data'!$E$4:$E$63=_xlpm.size)),_xlpm.caps,_xlfn._xlws.FILTER('Equip. Data'!$F$4:$F$63,('Equip. Data'!$B$4:$B$63=_xlpm.type)*('Equip. Data'!$E$4:$E$63=_xlpm.size)), INDEX(_xlpm.caps, _xlfn.XMATCH(MIN(ABS(_xlpm.temps-_xlpm.temp)), ABS(_xlpm.temps-_xlpm.temp)))),0) -> 0 | J61: 0 | K61: 0 | L61: =IFERROR(_xlfn.LET( _xlpm.type,G61, _xlpm.size,H61, _xlpm.temp,D61, _xlpm.temps,_xlfn._xlws.FILTER('Equip. Data'!$D$4:$D$63,('Equip. Data'!$B$4:$B$63=_xlpm.type)*('Equip. Data'!$E$4:$E$63=_xlpm.size)),_xlpm.cops,_xlfn._xlws.FILTER('Equip. Data'!$H$4:$H$63,('Equip. Data'!$B$4:$B$63=_xlpm.type)*('Equip. Data'!$E$4:$E$63=_xlpm.size)), INDEX(_xlpm.cops, _xlfn.XMATCH(MIN(ABS(_xlpm.temps-_xlpm.temp)), ABS(_xlpm.temps-_xlpm.temp)))),0) -> 0 | M61: 0 | N61: =IF(D61<Dashboard!$C$18,Dashboard!$D$15,"") -> Condensing Furnace | O61: 6.61 | P61: =IFERROR(VLOOKUP(N61,'Equip. Data'!$J$3:$K$7,2,FALSE),"") -> 0.95 | Q61: 6.957894737 | R61: 0.95
B62: Heating (Electricity) | C62: 2002-03-01T11:00:00 | D62: 2.6 | E62: 4.94 | F62: 16.85528 | G62: =IF(D62>=Dashboard!$C$18,Dashboard!$C$15,"") -> Mini Split HP | H62: =IF(G62=Dashboard!$C$15,Dashboard!$C$16,"") -> AM036 | I62: =IFERROR(_xlfn.LET( _xlpm.type,G62, _xlpm.size,H62, _xlpm.temp,D62, _xlpm.temps,_xlfn._xlws.FILTER('Equip. Data'!$D$4:$D$63,('Equip. Data'!$B$4:$B$63=_xlpm.type)*('Equip. Data'!$E$4:$E$63=_xlpm.size)),_xlpm.caps,_xlfn._xlws.FILTER('Equip. Data'!$F$4:$F$63,('Equip. Data'!$B$4:$B$63=_xlpm.type)*('Equip. Data'!$E$4:$E$63=_xlpm.size)), INDEX(_xlpm.caps, _xlfn.XMATCH(MIN(ABS(_xlpm.temps-_xlpm.temp)), ABS(_xlpm.temps-_xlpm.temp)))),0) -> 40.2 | J62: 16.85528 | K62: 4.94 | L62: =IFERROR(_xlfn.LET( _xlpm.type,G62, _xlpm.size,H62, _xlpm.temp,D62, _xlpm.temps,_xlfn._xlws.FILTER('Equip. Data'!$D$4:$D$63,('Equip. Data'!$B$4:$B$63=_xlpm.type)*('Equip. Data'!$E$4:$E$63=_xlpm.size)),_xlpm.cops,_xlfn._xlws.FILTER('Equip. Data'!$H$4:$H$63,('Equip. Data'!$B$4:$B$63=_xlpm.type)*('Equip. Data'!$E$4:$E$63=_xlpm.size)), INDEX(_xlpm.cops, _xlfn.XMATCH(MIN(ABS(_xlpm.temps-_xlpm.temp)), ABS(_xlpm.temps-_xlpm.temp)))),0) -> 3.337661777 | M62: 1.48007807 | N62: =IF(D62<Dashboard!$C$18,Dashboard!$D$15,"") ->  | O62: 0 | P62: =IFERROR(VLOOKUP(N62,'Equip. Data'!$J$3:$K$7,2,FALSE),"") ->  | Q62: 0 | R62: 3.337661777
B63: Heating (Electricity) | C63: 2002-03-01T12:00:00 | D63: 3.9 | E63: 3.8 | F63: 12.9656 | G63: =IF(D63>=Dashboard!$C$18,Dashboard!$C$15,"") -> Mini Split HP | H63: =IF(G63=Dashboard!$C$15,Dashboard!$C$16,"") -> AM036 | I63: =IFERROR(_xlfn.LET( _xlpm.type,G63, _xlpm.size,H63, _xlpm.temp,D63, _xlpm.temps,_xlfn._xlws.FILTER('Equip. Data'!$D$4:$D$63,('Equip. Data'!$B$4:$B$63=_xlpm.type)*('Equip. Data'!$E$4:$E$63=_xlpm.size)),_xlpm.caps,_xlfn._xlws.FILTER('Equip. Data'!$F$4:$F$63,('Equip. Data'!$B$4:$B$63=_xlpm.type)*('Equip. Data'!$E$4:$E$63=_xlpm.size)), INDEX(_xlpm.caps, _xlfn.XMATCH(MIN(ABS(_xlpm.temps-_xlpm.temp)), ABS(_xlpm.temps-_xlpm.temp)))),0) -> 40.2 | J63: 12.9656 | K63: 3.8 | L63: =IFERROR(_xlfn.LET( _xlpm.type,G63, _xlpm.size,H63, _xlpm.temp,D63, _xlpm.temps,_xlfn._xlws.FILTER('Equip. Data'!$D$4:$D$63,('Equip. Data'!$B$4:$B$63=_xlpm.type)*('Equip. Data'!$E$4:$E$63=_xlpm.size)),_xlpm.cops,_xlfn._xlws.FILTER('Equip. Data'!$H$4:$H$63,('Equip. Data'!$B$4:$B$63=_xlpm.type)*('Equip. Data'!$E$4:$E$63=_xlpm.size)), INDEX(_xlpm.cops, _xlfn.XMATCH(MIN(ABS(_xlpm.temps-_xlpm.temp)), ABS(_xlpm.temps-_xlpm.temp)))),0) -> 3.337661777 | M63: 1.138521592 | N63: =IF(D63<Dashboard!$C$18,Dashboard!$D$15,"") ->  | O63: 0 | P63: =IFERROR(VLOOKUP(N63,'Equip. Data'!$J$3:$K$7,2,FALSE),"") ->  | Q63: 0 | R63: 3.337661777
B64: Heating (Electricity) | C64: 2002-03-01T13:00:00 | D64: 3.4 | E64: 3.14 | F64: 10.71368 | G64: =IF(D64>=Dashboard!$C$18,Dashboard!$C$15,"") -> Mini Split HP | H64: =IF(G64=Dashboard!$C$15,Dashboard!$C$16,"") -> AM036 | I64: =IFERROR(_xlfn.LET( _xlpm.type,G64, _xlpm.size,H64, _xlpm.temp,D64, _xlpm.temps,_xlfn._xlws.FILTER('Equip. Data'!$D$4:$D$63,('Equip. Data'!$B$4:$B$63=_xlpm.type)*('Equip. Data'!$E$4:$E$63=_xlpm.size)),_xlpm.caps,_xlfn._xlws.FILTER('Equip. Data'!$F$4:$F$63,('Equip. Data'!$B$4:$B$63=_xlpm.type)*('Equip. Data'!$E$4:$E$63=_xlpm.size)), INDEX(_xlpm.caps, _xlfn.XMATCH(MIN(ABS(_xlpm.temps-_xlpm.temp)), ABS(_xlpm.temps-_xlpm.temp)))),0) -> 40.2 | J64: 10.71368 | K64: 3.14 | L64: =IFERROR(_xlfn.LET( _xlpm.type,G64, _xlpm.size,H64, _xlpm.temp,D64, _xlpm.temps,_xlfn._xlws.FILTER('Equip. Data'!$D$4:$D$63,('Equip. Data'!$B$4:$B$63=_xlpm.type)*('Equip. Data'!$E$4:$E$63=_xlpm.size)),_xlpm.cops,_xlfn._xlws.FILTER('Equip. Data'!$H$4:$H$63,('Equip. Data'!$B$4:$B$63=_xlpm.type)*('Equip. Data'!$E$4:$E$63=_xlpm.size)), INDEX(_xlpm.cops, _xlfn.XMATCH(MIN(ABS(_xlpm.temps-_xlpm.temp)), ABS(_xlpm.temps-_xlpm.temp)))),0) -> 3.337661777 | M64: 0.9407783682 | N64: =IF(D64<Dashboard!$C$18,Dashboard!$D$15,"") ->  | O64: 0 | P64: =IFERROR(VLOOKUP(N64,'Equip. Data'!$J$3:$K$7,2,FALSE),"") ->  | Q64: 0 | R64: 3.337661777
B65: Heating (Electricity) | C65: 2002-03-01T14:00:00 | D65: 3.3 | E65: 2.84 | F65: 9.69008 | G65: =IF(D65>=Dashboard!$C$18,Dashboard!$C$15,"") -> Mini Split HP | H65: =IF(G65=Dashboard!$C$15,Dashboard!$C$16,"") -> AM036 | I65: =IFERROR(_xlfn.LET( _xlpm.type,G65, _xlpm.size,H65, _xlpm.temp,D65, _xlpm.temps,_xlfn._xlws.FILTER('Equip. Data'!$D$4:$D$63,('Equip. Data'!$B$4:$B$63=_xlpm.type)*('Equip. Data'!$E$4:$E$63=_xlpm.size)),_xlpm.caps,_xlfn._xlws.FILTER('Equip. Data'!$F$4:$F$63,('Equip. Data'!$B$4:$B$63=_xlpm.type)*('Equip. Data'!$E$4:$E$63=_xlpm.size)), INDEX(_xlpm.caps, _xlfn.XMATCH(MIN(ABS(_xlpm.temps-_xlpm.temp)), ABS(_xlpm.temps-_xlpm.temp)))),0) -> 40.2 | J65: 9.69008 | K65: 2.84 | L65: =IFERROR(_xlfn.LET( _xlpm.type,G65, _xlpm.size,H65, _xlpm.temp,D65, _xlpm.temps,_xlfn._xlws.FILTER('Equip. Data'!$D$4:$D$63,('Equip. Data'!$B$4:$B$63=_xlpm.type)*('Equip. Data'!$E$4:$E$63=_xlpm.size)),_xlpm.cops,_xlfn._xlws.FILTER('Equip. Data'!$H$4:$H$63,('Equip. Data'!$B$4:$B$63=_xlpm.type)*('Equip. Data'!$E$4:$E$63=_xlpm.size)), INDEX(_xlpm.cops, _xlfn.XMATCH(MIN(ABS(_xlpm.temps-_xlpm.temp)), ABS(_xlpm.temps-_xlpm.temp)))),0) -> 3.337661777 | M65: 0.8508950846 | N65: =IF(D65<Dashboard!$C$18,Dashboard!$D$15,"") ->  | O65: 0 | P65: =IFERROR(VLOOKUP(N65,'Equip. Data'!$J$3:$K$7,2,FALSE),"") ->  | Q65: 0 | R65: 3.337661777
B66: Heating (Electricity) | C66: 2002-03-01T15:00:00 | D66: 3.5 | E66: 2.65 | F66: 9.0418 | G66: =IF(D66>=Dashboard!$C$18,Dashboard!$C$15,"") -> Mini Split HP | H66: =IF(G66=Dashboard!$C$15,Dashboard!$C$16,"") -> AM036 | I66: =IFERROR(_xlfn.LET( _xlpm.type,G66, _xlpm.size,H66, _xlpm.temp,D66, _xlpm.temps,_xlfn._xlws.FILTER('Equip. Data'!$D$4:$D$63,('Equip. Data'!$B$4:$B$63=_xlpm.type)*('Equip. Data'!$E$4:$E$63=_xlpm.size)),_xlpm.caps,_xlfn._xlws.FILTER('Equip. Data'!$F$4:$F$63,('Equip. Data'!$B$4:$B$63=_xlpm.type)*('Equip. Data'!$E$4:$E$63=_xlpm.size)), INDEX(_xlpm.caps, _xlfn.XMATCH(MIN(ABS(_xlpm.temps-_xlpm.temp)), ABS(_xlpm.temps-_xlpm.temp)))),0) -> 40.2 | J66: 9.0418 | K66: 2.65 | L66: =IFERROR(_xlfn.LET( _xlpm.type,G66, _xlpm.size,H66, _xlpm.temp,D66, _xlpm.temps,_xlfn._xlws.FILTER('Equip. Data'!$D$4:$D$63,('Equip. Data'!$B$4:$B$63=_xlpm.type)*('Equip. Data'!$E$4:$E$63=_xlpm.size)),_xlpm.cops,_xlfn._xlws.FILTER('Equip. Data'!$H$4:$H$63,('Equip. Data'!$B$4:$B$63=_xlpm.type)*('Equip. Data'!$E$4:$E$63=_xlpm.size)), INDEX(_xlpm.cops, _xlfn.XMATCH(MIN(ABS(_xlpm.temps-_xlpm.temp)), ABS(_xlpm.temps-_xlpm.temp)))),0) -> 3.337661777 | M66: 0.793969005 | N66: =IF(D66<Dashboard!$C$18,Dashboard!$D$15,"") ->  | O66: 0 | P66: =IFERROR(VLOOKUP(N66,'Equip. Data'!$J$3:$K$7,2,FALSE),"") ->  | Q66: 0 | R66: 3.337661777
B67: Heating (Electricity) | C67: 2002-03-01T16:00:00 | D67: 2.2 | E67: 2.93 | F67: 9.99716 | G67: =IF(D67>=Dashboard!$C$18,Dashboard!$C$15,"") -> Mini Split HP | H67: =IF(G67=Dashboard!$C$15,Dashboard!$C$16,"") -> AM036 | I67: =IFERROR(_xlfn.LET( _xlpm.type,G67, _xlpm.size,H67, _xlpm.temp,D67, _xlpm.temps,_xlfn._xlws.FILTER('Equip. Data'!$D$4:$D$63,('Equip. Data'!$B$4:$B$63=_xlpm.type)*('Equip. Data'!$E$4:$E$63=_xlpm.size)),_xlpm.caps,_xlfn._xlws.FILTER('Equip. Data'!$F$4:$F$63,('Equip. Data'!$B$4:$B$63=_xlpm.type)*('Equip. Data'!$E$4:$E$63=_xlpm.size)), INDEX(_xlpm.caps, _xlfn.XMATCH(MIN(ABS(_xlpm.temps-_xlpm.temp)), ABS(_xlpm.temps-_xlpm.temp)))),0) -> 40.2 | J67: 9.99716 | K67: 2.93 | L67: =IFERROR(_xlfn.LET( _xlpm.type,G67, _xlpm.size,H67, _xlpm.temp,D67, _xlpm.temps,_xlfn._xlws.FILTER('Equip. Data'!$D$4:$D$63,('Equip. Data'!$B$4:$B$63=_xlpm.type)*('Equip. Data'!$E$4:$E$63=_xlpm.size)),_xlpm.cops,_xlfn._xlws.FILTER('Equip. Data'!$H$4:$H$63,('Equip. Data'!$B$4:$B$63=_xlpm.type)*('Equip. Data'!$E$4:$E$63=_xlpm.size)), INDEX(_xlpm.cops, _xlfn.XMATCH(MIN(ABS(_xlpm.temps-_xlpm.temp)), ABS(_xlpm.temps-_xlpm.temp)))),0) -> 3.337661777 | M67: 0.8778600697 | N67: =IF(D67<Dashboard!$C$18,Dashboard!$D$15,"") ->  | O67: 0 | P67: =IFERROR(VLOOKUP(N67,'Equip. Data'!$J$3:$K$7,2,FALSE),"") ->  | Q67: 0 | R67: 3.337661777
B68: Heating (Electricity) | C68: 2002-03-01T17:00:00 | D68: 1.4 | E68: 3.59 | F68: 12.24908 | G68: =IF(D68>=Dashboard!$C$18,Dashboard!$C$15,"") -> Mini Split HP | H68: =IF(G68=Dashboard!$C$15,Dashboard!$C$16,"") -> AM036 | I68: =IFERROR(_xlfn.LET( _xlpm.type,G68, _xlpm.size,H68, _xlpm.temp,D68, _xlpm.temps,_xlfn._xlws.FILTER('Equip. Data'!$D$4:$D$63,('Equip. Data'!$B$4:$B$63=_xlpm.type)*('Equip. Data'!$E$4:$E$63=_xlpm.size)),_xlpm.caps,_xlfn._xlws.FILTER('Equip. Data'!$F$4:$F$63,('Equip. Data'!$B$4:$B$63=_xlpm.type)*('Equip. Data'!$E$4:$E$63=_xlpm.size)), INDEX(_xlpm.caps, _xlfn.XMATCH(MIN(ABS(_xlpm.temps-_xlpm.temp)), ABS(_xlpm.temps-_xlpm.temp)))),0) -> 40.2 | J68: 12.24908 | K68: 3.59 | L68: =IFERROR(_xlfn.LET( _xlpm.type,G68, _xlpm.size,H68, _xlpm.temp,D68, _xlpm.temps,_xlfn._xlws.FILTER('Equip. Data'!$D$4:$D$63,('Equip. Data'!$B$4:$B$63=_xlpm.type)*('Equip. Data'!$E$4:$E$63=_xlpm.size)),_xlpm.cops,_xlfn._xlws.FILTER('Equip. Data'!$H$4:$H$63,('Equip. Data'!$B$4:$B$63=_xlpm.type)*('Equip. Data'!$E$4:$E$63=_xlpm.size)), INDEX(_xlpm.cops, _xlfn.XMATCH(MIN(ABS(_xlpm.temps-_xlpm.temp)), ABS(_xlpm.temps-_xlpm.temp)))),0) -> 3.337661777 | M68: 1.075603294 | N68: =IF(D68<Dashboard!$C$18,Dashboard!$D$15,"") ->  | O68: 0 | P68: =IFERROR(VLOOKUP(N68,'Equip. Data'!$J$3:$K$7,2,FALSE),"") ->  | Q68: 0 | R68: 3.337661777
B69: Heating (Electricity) | C69: 2002-03-01T18:00:00 | D69: 1 | E69: 3.9 | F69: =E69*3.412 -> 13.3068 | G69: =IF(D69>=Dashboard!$C$18,Dashboard!$C$15,"") -> Mini Split HP | H69: =IF(G69=Dashboard!$C$15,Dashboard!$C$16,"") -> AM036 | I69: =IFERROR(_xlfn.LET( _xlpm.type,G69, _xlpm.size,H69, _xlpm.temp,D69, _xlpm.temps,_xlfn._xlws.FILTER('Equip. Data'!$D$4:$D$63,('Equip. Data'!$B$4:$B$63=_xlpm.type)*('Equip. Data'!$E$4:$E$63=_xlpm.size)),_xlpm.caps,_xlfn._xlws.FILTER('Equip. Data'!$F$4:$F$63,('Equip. Data'!$B$4:$B$63=_xlpm.type)*('Equip. Data'!$E$4:$E$63=_xlpm.size)), INDEX(_xlpm.caps, _xlfn.XMATCH(MIN(ABS(_xlpm.temps-_xlpm.temp)), ABS(_xlpm.temps-_xlpm.temp)))),0) -> 40.2 | J69: =IF(MIN(F69,I69)=I69,0,MIN(F69,I69)) -> 13.3068 | K69: =J69/3.412 -> 3.9 | L69: =IFERROR(_xlfn.LET( _xlpm.type,G69, _xlpm.size,H69, _xlpm.temp,D69, _xlpm.temps,_xlfn._xlws.FILTER('Equip. Data'!$D$4:$D$63,('Equip. Data'!$B$4:$B$63=_xlpm.type)*('Equip. Data'!$E$4:$E$63=_xlpm.size)),_xlpm.cops,_xlfn._xlws.FILTER('Equip. Data'!$H$4:$H$63,('Equip. Data'!$B$4:$B$63=_xlpm.type)*('Equip. Data'!$E$4:$E$63=_xlpm.size)), INDEX(_xlpm.cops, _xlfn.XMATCH(MIN(ABS(_xlpm.temps-_xlpm.temp)), ABS(_xlpm.temps-_xlpm.temp)))),0) -> 3.005598488 | M69: =IFERROR(K69/L69,0) -> 1.297578507 | N69: =IF(D69<Dashboard!$C$18,Dashboard!$D$15,"") ->  | O69: =IF(K69=0,E69,0) -> 0 | P69: =IFERROR(VLOOKUP(N69,'Equip. Data'!$J$3:$K$7,2,FALSE),"") ->  | Q69: =IFERROR(O69/P69,0) -> 0 | R69: =IFERROR((K69+O69)/(M69+Q69),0) -> 3.005598488
B70: Heating (Electricity) | C70: 2002-03-01T19:00:00 | D70: 0.5 | E70: 4.08 | F70: 13.92096 | G70: =IF(D70>=Dashboard!$C$18,Dashboard!$C$15,"") -> Mini Split HP | H70: =IF(G70=Dashboard!$C$15,Dashboard!$C$16,"") -> AM036 | I70: =IFERROR(_xlfn.LET( _xlpm.type,G70, _xlpm.size,H70, _xlpm.temp,D70, _xlpm.temps,_xlfn._xlws.FILTER('Equip. Data'!$D$4:$D$63,('Equip. Data'!$B$4:$B$63=_xlpm.type)*('Equip. Data'!$E$4:$E$63=_xlpm.size)),_xlpm.caps,_xlfn._xlws.FILTER('Equip. Data'!$F$4:$F$63,('Equip. Data'!$B$4:$B$63=_xlpm.type)*('Equip. Data'!$E$4:$E$63=_xlpm.size)), INDEX(_xlpm.caps, _xlfn.XMATCH(MIN(ABS(_xlpm.temps-_xlpm.temp)), ABS(_xlpm.temps-_xlpm.temp)))),0) -> 40.2 | J70: 13.92096 | K70: 4.08 | L70: =IFERROR(_xlfn.LET( _xlpm.type,G70, _xlpm.size,H70, _xlpm.temp,D70, _xlpm.temps,_xlfn._xlws.FILTER('Equip. Data'!$D$4:$D$63,('Equip. Data'!$B$4:$B$63=_xlpm.type)*('Equip. Data'!$E$4:$E$63=_xlpm.size)),_xlpm.cops,_xlfn._xlws.FILTER('Equip. Data'!$H$4:$H$63,('Equip. Data'!$B$4:$B$63=_xlpm.type)*('Equip. Data'!$E$4:$E$63=_xlpm.size)), INDEX(_xlpm.cops, _xlfn.XMATCH(MIN(ABS(_xlpm.temps-_xlpm.temp)), ABS(_xlpm.temps-_xlpm.temp)))),0) -> 3.005598488 | M70: 1.357466746 | N70: =IF(D70<Dashboard!$C$18,Dashboard!$D$15,"") ->  | O70: 0 | P70: =IFERROR(VLOOKUP(N70,'Equip. Data'!$J$3:$K$7,2,FALSE),"") ->  | Q70: 0 | R70: 3.005598488
B71: Heating (Electricity) | C71: 2002-03-01T20:00:00 | D71: 0.4 | E71: 4.26 | F71: 14.53512 | G71: =IF(D71>=Dashboard!$C$18,Dashboard!$C$15,"") -> Mini Split HP | H71: =IF(G71=Dashboard!$C$15,Dashboard!$C$16,"") -> AM036 | I71: =IFERROR(_xlfn.LET( _xlpm.type,G71, _xlpm.size,H71, _xlpm.temp,D71, _xlpm.temps,_xlfn._xlws.FILTER('Equip. Data'!$D$4:$D$63,('Equip. Data'!$B$4:$B$63=_xlpm.type)*('Equip. Data'!$E$4:$E$63=_xlpm.size)),_xlpm.caps,_xlfn._xlws.FILTER('Equip. Data'!$F$4:$F$63,('Equip. Data'!$B$4:$B$63=_xlpm.type)*('Equip. Data'!$E$4:$E$63=_xlpm.size)), INDEX(_xlpm.caps, _xlfn.XMATCH(MIN(ABS(_xlpm.temps-_xlpm.temp)), ABS(_xlpm.temps-_xlpm.temp)))),0) -> 40.2 | J71: 14.53512 | K71: 4.26 | L71: =IFERROR(_xlfn.LET( _xlpm.type,G71, _xlpm.size,H71, _xlpm.temp,D71, _xlpm.temps,_xlfn._xlws.FILTER('Equip. Data'!$D$4:$D$63,('Equip. Data'!$B$4:$B$63=_xlpm.type)*('Equip. Data'!$E$4:$E$63=_xlpm.size)),_xlpm.cops,_xlfn._xlws.FILTER('Equip. Data'!$H$4:$H$63,('Equip. Data'!$B$4:$B$63=_xlpm.type)*('Equip. Data'!$E$4:$E$63=_xlpm.size)), INDEX(_xlpm.cops, _xlfn.XMATCH(MIN(ABS(_xlpm.temps-_xlpm.temp)), ABS(_xlpm.temps-_xlpm.temp)))),0) -> 3.005598488 | M71: 1.417354985 | N71: =IF(D71<Dashboard!$C$18,Dashboard!$D$15,"") ->  | O71: 0 | P71: =IFERROR(VLOOKUP(N71,'Equip. Data'!$J$3:$K$7,2,FALSE),"") ->  | Q71: 0 | R71: 3.005598488
B72: Heating (Electricity) | C72: 2002-03-01T21:00:00 | D72: 0.1 | E72: 4.66 | F72: 15.89992 | G72: =IF(D72>=Dashboard!$C$18,Dashboard!$C$15,"") -> Mini Split HP | H72: =IF(G72=Dashboard!$C$15,Dashboard!$C$16,"") -> AM036 | I72: =IFERROR(_xlfn.LET( _xlpm.type,G72, _xlpm.size,H72, _xlpm.temp,D72, _xlpm.temps,_xlfn._xlws.FILTER('Equip. Data'!$D$4:$D$63,('Equip. Data'!$B$4:$B$63=_xlpm.type)*('Equip. Data'!$E$4:$E$63=_xlpm.size)),_xlpm.caps,_xlfn._xlws.FILTER('Equip. Data'!$F$4:$F$63,('Equip. Data'!$B$4:$B$63=_xlpm.type)*('Equip. Data'!$E$4:$E$63=_xlpm.size)), INDEX(_xlpm.caps, _xlfn.XMATCH(MIN(ABS(_xlpm.temps-_xlpm.temp)), ABS(_xlpm.temps-_xlpm.temp)))),0) -> 40.2 | J72: 15.89992 | K72: 4.66 | L72: =IFERROR(_xlfn.LET( _xlpm.type,G72, _xlpm.size,H72, _xlpm.temp,D72, _xlpm.temps,_xlfn._xlws.FILTER('Equip. Data'!$D$4:$D$63,('Equip. Data'!$B$4:$B$63=_xlpm.type)*('Equip. Data'!$E$4:$E$63=_xlpm.size)),_xlpm.cops,_xlfn._xlws.FILTER('Equip. Data'!$H$4:$H$63,('Equip. Data'!$B$4:$B$63=_xlpm.type)*('Equip. Data'!$E$4:$E$63=_xlpm.size)), INDEX(_xlpm.cops, _xlfn.XMATCH(MIN(ABS(_xlpm.temps-_xlpm.temp)), ABS(_xlpm.temps-_xlpm.temp)))),0) -> 3.005598488 | M72: 1.55043996 | N72: =IF(D72<Dashboard!$C$18,Dashboard!$D$15,"") ->  | O72: 0 | P72: =IFERROR(VLOOKUP(N72,'Equip. Data'!$J$3:$K$7,2,FALSE),"") ->  | Q72: 0 | R72: 3.005598488
B73: Heating (Electricity) | C73: 2002-03-01T22:00:00 | D73: -0.2 | E73: 5.1 | F73: 17.4012 | G73: =IF(D73>=Dashboard!$C$18,Dashboard!$C$15,"") ->  | H73: =IF(G73=Dashboard!$C$15,Dashboard!$C$16,"") ->  | I73: =IFERROR(_xlfn.LET( _xlpm.type,G73, _xlpm.size,H73, _xlpm.temp,D73, _xlpm.temps,_xlfn._xlws.FILTER('Equip. Data'!$D$4:$D$63,('Equip. Data'!$B$4:$B$63=_xlpm.type)*('Equip. Data'!$E$4:$E$63=_xlpm.size)),_xlpm.caps,_xlfn._xlws.FILTER('Equip. Data'!$F$4:$F$63,('Equip. Data'!$B$4:$B$63=_xlpm.type)*('Equip. Data'!$E$4:$E$63=_xlpm.size)), INDEX(_xlpm.caps, _xlfn.XMATCH(MIN(ABS(_xlpm.temps-_xlpm.temp)), ABS(_xlpm.temps-_xlpm.temp)))),0) -> 0 | J73: 0 | K73: 0 | L73: =IFERROR(_xlfn.LET( _xlpm.type,G73, _xlpm.size,H73, _xlpm.temp,D73, _xlpm.temps,_xlfn._xlws.FILTER('Equip. Data'!$D$4:$D$63,('Equip. Data'!$B$4:$B$63=_xlpm.type)*('Equip. Data'!$E$4:$E$63=_xlpm.size)),_xlpm.cops,_xlfn._xlws.FILTER('Equip. Data'!$H$4:$H$63,('Equip. Data'!$B$4:$B$63=_xlpm.type)*('Equip. Data'!$E$4:$E$63=_xlpm.size)), INDEX(_xlpm.cops, _xlfn.XMATCH(MIN(ABS(_xlpm.temps-_xlpm.temp)), ABS(_xlpm.temps-_xlpm.temp)))),0) -> 0 | M73: 0 | N73: =IF(D73<Dashboard!$C$18,Dashboard!$D$15,"") -> Condensing Furnace | O73: 5.1 | P73: =IFERROR(VLOOKUP(N73,'Equip. Data'!$J$3:$K$7,2,FALSE),"") -> 0.95 | Q73: 5.368421053 | R73: 0.95
B74: Heating (Electricity) | C74: 2002-03-01T23:00:00 | D74: -0.1 | E74: 5.63 | F74: 19.20956 | G74: =IF(D74>=Dashboard!$C$18,Dashboard!$C$15,"") ->  | H74: =IF(G74=Dashboard!$C$15,Dashboard!$C$16,"") ->  | I74: =IFERROR(_xlfn.LET( _xlpm.type,G74, _xlpm.size,H74, _xlpm.temp,D74, _xlpm.temps,_xlfn._xlws.FILTER('Equip. Data'!$D$4:$D$63,('Equip. Data'!$B$4:$B$63=_xlpm.type)*('Equip. Data'!$E$4:$E$63=_xlpm.size)),_xlpm.caps,_xlfn._xlws.FILTER('Equip. Data'!$F$4:$F$63,('Equip. Data'!$B$4:$B$63=_xlpm.type)*('Equip. Data'!$E$4:$E$63=_xlpm.size)), INDEX(_xlpm.caps, _xlfn.XMATCH(MIN(ABS(_xlpm.temps-_xlpm.temp)), ABS(_xlpm.temps-_xlpm.temp)))),0) -> 0 | J74: 0 | K74: 0 | L74: =IFERROR(_xlfn.LET( _xlpm.type,G74, _xlpm.size,H74, _xlpm.temp,D74, _xlpm.temps,_xlfn._xlws.FILTER('Equip. Data'!$D$4:$D$63,('Equip. Data'!$B$4:$B$63=_xlpm.type)*('Equip. Data'!$E$4:$E$63=_xlpm.size)),_xlpm.cops,_xlfn._xlws.FILTER('Equip. Data'!$H$4:$H$63,('Equip. Data'!$B$4:$B$63=_xlpm.type)*('Equip. Data'!$E$4:$E$63=_xlpm.size)), INDEX(_xlpm.cops, _xlfn.XMATCH(MIN(ABS(_xlpm.temps-_xlpm.temp)), ABS(_xlpm.temps-_xlpm.temp)))),0) -> 0 | M74: 0 | N74: =IF(D74<Dashboard!$C$18,Dashboard!$D$15,"") -> Condensing Furnace | O74: 5.63 | P74: =IFERROR(VLOOKUP(N74,'Equip. Data'!$J$3:$K$7,2,FALSE),"") -> 0.95 | Q74: 5.926315789 | R74: 0.95
B75: Heating (Electricity) | C75: 2002-04-01 | D75: 0.4 | E75: 6.01 | F75: 20.50612 | G75: =IF(D75>=Dashboard!$C$18,Dashboard!$C$15,"") -> Mini Split HP | H75: =IF(G75=Dashboard!$C$15,Dashboard!$C$16,"") -> AM036 | I75: =IFERROR(_xlfn.LET( _xlpm.type,G75, _xlpm.size,H75, _xlpm.temp,D75, _xlpm.temps,_xlfn._xlws.FILTER('Equip. Data'!$D$4:$D$63,('Equip. Data'!$B$4:$B$63=_xlpm.type)*('Equip. Data'!$E$4:$E$63=_xlpm.size)),_xlpm.caps,_xlfn._xlws.FILTER('Equip. Data'!$F$4:$F$63,('Equip. Data'!$B$4:$B$63=_xlpm.type)*('Equip. Data'!$E$4:$E$63=_xlpm.size)), INDEX(_xlpm.caps, _xlfn.XMATCH(MIN(ABS(_xlpm.temps-_xlpm.temp)), ABS(_xlpm.temps-_xlpm.temp)))),0) -> 40.2 | J75: 20.50612 | K75: 6.01 | L75: =IFERROR(_xlfn.LET( _xlpm.type,G75, _xlpm.size,H75, _xlpm.temp,D75, _xlpm.temps,_xlfn._xlws.FILTER('Equip. Data'!$D$4:$D$63,('Equip. Data'!$B$4:$B$63=_xlpm.type)*('Equip. Data'!$E$4:$E$63=_xlpm.size)),_xlpm.cops,_xlfn._xlws.FILTER('Equip. Data'!$H$4:$H$63,('Equip. Data'!$B$4:$B$63=_xlpm.type)*('Equip. Data'!$E$4:$E$63=_xlpm.size)), INDEX(_xlpm.cops, _xlfn.XMATCH(MIN(ABS(_xlpm.temps-_xlpm.temp)), ABS(_xlpm.temps-_xlpm.temp)))),0) -> 3.005598488 | M75: 1.999601751 | N75: =IF(D75<Dashboard!$C$18,Dashboard!$D$15,"") ->  | O75: 0 | P75: =IFERROR(VLOOKUP(N75,'Equip. Data'!$J$3:$K$7,2,FALSE),"") ->  | Q75: 0 | R75: 3.005598488
B76: Heating (Electricity) | C76: 2002-04-01T01:00:00 | D76: 0.5 | E76: 6.31 | F76: 21.52972 | G76: =IF(D76>=Dashboard!$C$18,Dashboard!$C$15,"") -> Mini Split HP | H76: =IF(G76=Dashboard!$C$15,Dashboard!$C$16,"") -> AM036 | I76: =IFERROR(_xlfn.LET( _xlpm.type,G76, _xlpm.size,H76, _xlpm.temp,D76, _xlpm.temps,_xlfn._xlws.FILTER('Equip. Data'!$D$4:$D$63,('Equip. Data'!$B$4:$B$63=_xlpm.type)*('Equip. Data'!$E$4:$E$63=_xlpm.size)),_xlpm.caps,_xlfn._xlws.FILTER('Equip. Data'!$F$4:$F$63,('Equip. Data'!$B$4:$B$63=_xlpm.type)*('Equip. Data'!$E$4:$E$63=_xlpm.size)), INDEX(_xlpm.caps, _xlfn.XMATCH(MIN(ABS(_xlpm.temps-_xlpm.temp)), ABS(_xlpm.temps-_xlpm.temp)))),0) -> 40.2 | J76: 21.52972 | K76: 6.31 | L76: =IFERROR(_xlfn.LET( _xlpm.type,G76, _xlpm.size,H76, _xlpm.temp,D76, _xlpm.temps,_xlfn._xlws.FILTER('Equip. Data'!$D$4:$D$63,('Equip. Data'!$B$4:$B$63=_xlpm.type)*('Equip. Data'!$E$4:$E$63=_xlpm.size)),_xlpm.cops,_xlfn._xlws.FILTER('Equip. Data'!$H$4:$H$63,('Equip. Data'!$B$4:$B$63=_xlpm.type)*('Equip. Data'!$E$4:$E$63=_xlpm.size)), INDEX(_xlpm.cops, _xlfn.XMATCH(MIN(ABS(_xlpm.temps-_xlpm.temp)), ABS(_xlpm.temps-_xlpm.temp)))),0) -> 3.005598488 | M76: 2.099415483 | N76: =IF(D76<Dashboard!$C$18,Dashboard!$D$15,"") ->  | O76: 0 | P76: =IFERROR(VLOOKUP(N76,'Equip. Data'!$J$3:$K$7,2,FALSE),"") ->  | Q76: 0 | R76: 3.005598488
B77: Heating (Electricity) | C77: 2002-04-01T02:00:00 | D77: 0.1 | E77: 6.73 | F77: 22.96276 | G77: =IF(D77>=Dashboard!$C$18,Dashboard!$C$15,"") -> Mini Split HP | H77: =IF(G77=Dashboard!$C$15,Dashboard!$C$16,"") -> AM036 | I77: =IFERROR(_xlfn.LET( _xlpm.type,G77, _xlpm.size,H77, _xlpm.temp,D77, _xlpm.temps,_xlfn._xlws.FILTER('Equip. Data'!$D$4:$D$63,('Equip. Data'!$B$4:$B$63=_xlpm.type)*('Equip. Data'!$E$4:$E$63=_xlpm.size)),_xlpm.caps,_xlfn._xlws.FILTER('Equip. Data'!$F$4:$F$63,('Equip. Data'!$B$4:$B$63=_xlpm.type)*('Equip. Data'!$E$4:$E$63=_xlpm.size)), INDEX(_xlpm.caps, _xlfn.XMATCH(MIN(ABS(_xlpm.temps-_xlpm.temp)), ABS(_xlpm.temps-_xlpm.temp)))),0) -> 40.2 | J77: 22.96276 | K77: 6.73 | L77: =IFERROR(_xlfn.LET( _xlpm.type,G77, _xlpm.size,H77, _xlpm.temp,D77, _xlpm.temps,_xlfn._xlws.FILTER('Equip. Data'!$D$4:$D$63,('Equip. Data'!$B$4:$B$63=_xlpm.type)*('Equip. Data'!$E$4:$E$63=_xlpm.size)),_xlpm.cops,_xlfn._xlws.FILTER('Equip. Data'!$H$4:$H$63,('Equip. Data'!$B$4:$B$63=_xlpm.type)*('Equip. Data'!$E$4:$E$63=_xlpm.size)), INDEX(_xlpm.cops, _xlfn.XMATCH(MIN(ABS(_xlpm.temps-_xlpm.temp)), ABS(_xlpm.temps-_xlpm.temp)))),0) -> 3.005598488 | M77: 2.239154706 | N77: =IF(D77<Dashboard!$C$18,Dashboard!$D$15,"") ->  | O77: 0 | P77: =IFERROR(VLOOKUP(N77,'Equip. Data'!$J$3:$K$7,2,FALSE),"") ->  | Q77: 0 | R77: 3.005598488
B78: Heating (Electricity) | C78: 2002-04-01T03:00:00 | D78: -0.9 | E78: 7.07 | F78: 24.12284 | G78: =IF(D78>=Dashboard!$C$18,Dashboard!$C$15,"") ->  | H78: =IF(G78=Dashboard!$C$15,Dashboard!$C$16,"") ->  | I78: =IFERROR(_xlfn.LET( _xlpm.type,G78, _xlpm.size,H78, _xlpm.temp,D78, _xlpm.temps,_xlfn._xlws.FILTER('Equip. Data'!$D$4:$D$63,('Equip. Data'!$B$4:$B$63=_xlpm.type)*('Equip. Data'!$E$4:$E$63=_xlpm.size)),_xlpm.caps,_xlfn._xlws.FILTER('Equip. Data'!$F$4:$F$63,('Equip. Data'!$B$4:$B$63=_xlpm.type)*('Equip. Data'!$E$4:$E$63=_xlpm.size)), INDEX(_xlpm.caps, _xlfn.XMATCH(MIN(ABS(_xlpm.temps-_xlpm.temp)), ABS(_xlpm.temps-_xlpm.temp)))),0) -> 0 | J78: 0 | K78: 0 | L78: =IFERROR(_xlfn.LET( _xlpm.type,G78, _xlpm.size,H78, _xlpm.temp,D78, _xlpm.temps,_xlfn._xlws.FILTER('Equip. Data'!$D$4:$D$63,('Equip. Data'!$B$4:$B$63=_xlpm.type)*('Equip. Data'!$E$4:$E$63=_xlpm.size)),_xlpm.cops,_xlfn._xlws.FILTER('Equip. Data'!$H$4:$H$63,('Equip. Data'!$B$4:$B$63=_xlpm.type)*('Equip. Data'!$E$4:$E$63=_xlpm.size)), INDEX(_xlpm.cops, _xlfn.XMATCH(MIN(ABS(_xlpm.temps-_xlpm.temp)), ABS(_xlpm.temps-_xlpm.temp)))),0) -> 0 | M78: 0 | N78: =IF(D78<Dashboard!$C$18,Dashboard!$D$15,"") -> Condensing Furnace | O78: 7.07 | P78: =IFERROR(VLOOKUP(N78,'Equip. Data'!$J$3:$K$7,2,FALSE),"") -> 0.95 | Q78: 7.442105263 | R78: 0.95
B79: Heating (Electricity) | C79: 2002-04-01T04:00:00 | D79: -2.1 | E79: 7.49 | F79: 25.55588 | G79: =IF(D79>=Dashboard!$C$18,Dashboard!$C$15,"") ->  | H79: =IF(G79=Dashboard!$C$15,Dashboard!$C$16,"") ->  | I79: =IFERROR(_xlfn.LET( _xlpm.type,G79, _xlpm.size,H79, _xlpm.temp,D79, _xlpm.temps,_xlfn._xlws.FILTER('Equip. Data'!$D$4:$D$63,('Equip. Data'!$B$4:$B$63=_xlpm.type)*('Equip. Data'!$E$4:$E$63=_xlpm.size)),_xlpm.caps,_xlfn._xlws.FILTER('Equip. Data'!$F$4:$F$63,('Equip. Data'!$B$4:$B$63=_xlpm.type)*('Equip. Data'!$E$4:$E$63=_xlpm.size)), INDEX(_xlpm.caps, _xlfn.XMATCH(MIN(ABS(_xlpm.temps-_xlpm.temp)), ABS(_xlpm.temps-_xlpm.temp)))),0) -> 0 | J79: 0 | K79: 0 | L79: =IFERROR(_xlfn.LET( _xlpm.type,G79, _xlpm.size,H79, _xlpm.temp,D79, _xlpm.temps,_xlfn._xlws.FILTER('Equip. Data'!$D$4:$D$63,('Equip. Data'!$B$4:$B$63=_xlpm.type)*('Equip. Data'!$E$4:$E$63=_xlpm.size)),_xlpm.cops,_xlfn._xlws.FILTER('Equip. Data'!$H$4:$H$63,('Equip. Data'!$B$4:$B$63=_xlpm.type)*('Equip. Data'!$E$4:$E$63=_xlpm.size)), INDEX(_xlpm.cops, _xlfn.XMATCH(MIN(ABS(_xlpm.temps-_xlpm.temp)), ABS(_xlpm.temps-_xlpm.temp)))),0) -> 0 | M79: 0 | N79: =IF(D79<Dashboard!$C$18,Dashboard!$D$15,"") -> Condensing Furnace | O79: 7.49 | P79: =IFERROR(VLOOKUP(N79,'Equip. Data'!$J$3:$K$7,2,FALSE),"") -> 0.95 | Q79: 7.884210526 | R79: 0.95
B80: Heating (Electricity) | C80: 2002-04-01T05:00:00 | D80: -0.7 | E80: 7.49 | F80: 25.55588 | G80: =IF(D80>=Dashboard!$C$18,Dashboard!$C$15,"") ->  | H80: =IF(G80=Dashboard!$C$15,Dashboard!$C$16,"") ->  | I80: =IFERROR(_xlfn.LET( _xlpm.type,G80, _xlpm.size,H80, _xlpm.temp,D80, _xlpm.temps,_xlfn._xlws.FILTER('Equip. Data'!$D$4:$D$63,('Equip. Data'!$B$4:$B$63=_xlpm.type)*('Equip. Data'!$E$4:$E$63=_xlpm.size)),_xlpm.caps,_xlfn._xlws.FILTER('Equip. Data'!$F$4:$F$63,('Equip. Data'!$B$4:$B$63=_xlpm.type)*('Equip. Data'!$E$4:$E$63=_xlpm.size)), INDEX(_xlpm.caps, _xlfn.XMATCH(MIN(ABS(_xlpm.temps-_xlpm.temp)), ABS(_xlpm.temps-_xlpm.temp)))),0) -> 0 | J80: 0 | K80: 0 | L80: =IFERROR(_xlfn.LET( _xlpm.type,G80, _xlpm.size,H80, _xlpm.temp,D80, _xlpm.temps,_xlfn._xlws.FILTER('Equip. Data'!$D$4:$D$63,('Equip. Data'!$B$4:$B$63=_xlpm.type)*('Equip. Data'!$E$4:$E$63=_xlpm.size)),_xlpm.cops,_xlfn._xlws.FILTER('Equip. Data'!$H$4:$H$63,('Equip. Data'!$B$4:$B$63=_xlpm.type)*('Equip. Data'!$E$4:$E$63=_xlpm.size)), INDEX(_xlpm.cops, _xlfn.XMATCH(MIN(ABS(_xlpm.temps-_xlpm.temp)), ABS(_xlpm.temps-_xlpm.temp)))),0) -> 0 | M80: 0 | N80: =IF(D80<Dashboard!$C$18,Dashboard!$D$15,"") -> Condensing Furnace | O80: 7.49 | P80: =IFERROR(VLOOKUP(N80,'Equip. Data'!$J$3:$K$7,2,FALSE),"") -> 0.95 | Q80: 7.884210526 | R80: 0.95
B81: Heating (Electricity) | C81: 2002-04-01T06:00:00 | D81: 0 | E81: 7.44 | F81: 25.38528 | G81: =IF(D81>=Dashboard!$C$18,Dashboard!$C$15,"") -> Mini Split HP | H81: =IF(G81=Dashboard!$C$15,Dashboard!$C$16,"") -> AM036 | I81: =IFERROR(_xlfn.LET( _xlpm.type,G81, _xlpm.size,H81, _xlpm.temp,D81, _xlpm.temps,_xlfn._xlws.FILTER('Equip. Data'!$D$4:$D$63,('Equip. Data'!$B$4:$B$63=_xlpm.type)*('Equip. Data'!$E$4:$E$63=_xlpm.size)),_xlpm.caps,_xlfn._xlws.FILTER('Equip. Data'!$F$4:$F$63,('Equip. Data'!$B$4:$B$63=_xlpm.type)*('Equip. Data'!$E$4:$E$63=_xlpm.size)), INDEX(_xlpm.caps, _xlfn.XMATCH(MIN(ABS(_xlpm.temps-_xlpm.temp)), ABS(_xlpm.temps-_xlpm.temp)))),0) -> 40.2 | J81: 25.38528 | K81: 7.44 | L81: =IFERROR(_xlfn.LET( _xlpm.type,G81, _xlpm.size,H81, _xlpm.temp,D81, _xlpm.temps,_xlfn._xlws.FILTER('Equip. Data'!$D$4:$D$63,('Equip. Data'!$B$4:$B$63=_xlpm.type)*('Equip. Data'!$E$4:$E$63=_xlpm.size)),_xlpm.cops,_xlfn._xlws.FILTER('Equip. Data'!$H$4:$H$63,('Equip. Data'!$B$4:$B$63=_xlpm.type)*('Equip. Data'!$E$4:$E$63=_xlpm.size)), INDEX(_xlpm.cops, _xlfn.XMATCH(MIN(ABS(_xlpm.temps-_xlpm.temp)), ABS(_xlpm.temps-_xlpm.temp)))),0) -> 3.005598488 | M81: 2.475380537 | N81: =IF(D81<Dashboard!$C$18,Dashboard!$D$15,"") ->  | O81: 0 | P81: =IFERROR(VLOOKUP(N81,'Equip. Data'!$J$3:$K$7,2,FALSE),"") ->  | Q81: 0 | R81: 3.005598488
B82: Heating (Electricity) | C82: 2002-04-01T07:00:00 | D82: 0.3 | E82: 7.34 | F82: 25.04408 | G82: =IF(D82>=Dashboard!$C$18,Dashboard!$C$15,"") -> Mini Split HP | H82: =IF(G82=Dashboard!$C$15,Dashboard!$C$16,"") -> AM036 | I82: =IFERROR(_xlfn.LET( _xlpm.type,G82, _xlpm.size,H82, _xlpm.temp,D82, _xlpm.temps,_xlfn._xlws.FILTER('Equip. Data'!$D$4:$D$63,('Equip. Data'!$B$4:$B$63=_xlpm.type)*('Equip. Data'!$E$4:$E$63=_xlpm.size)),_xlpm.caps,_xlfn._xlws.FILTER('Equip. Data'!$F$4:$F$63,('Equip. Data'!$B$4:$B$63=_xlpm.type)*('Equip. Data'!$E$4:$E$63=_xlpm.size)), INDEX(_xlpm.caps, _xlfn.XMATCH(MIN(ABS(_xlpm.temps-_xlpm.temp)), ABS(_xlpm.temps-_xlpm.temp)))),0) -> 40.2 | J82: 25.04408 | K82: 7.34 | L82: =IFERROR(_xlfn.LET( _xlpm.type,G82, _xlpm.size,H82, _xlpm.temp,D82, _xlpm.temps,_xlfn._xlws.FILTER('Equip. Data'!$D$4:$D$63,('Equip. Data'!$B$4:$B$63=_xlpm.type)*('Equip. Data'!$E$4:$E$63=_xlpm.size)),_xlpm.cops,_xlfn._xlws.FILTER('Equip. Data'!$H$4:$H$63,('Equip. Data'!$B$4:$B$63=_xlpm.type)*('Equip. Data'!$E$4:$E$63=_xlpm.size)), INDEX(_xlpm.cops, _xlfn.XMATCH(MIN(ABS(_xlpm.temps-_xlpm.temp)), ABS(_xlpm.temps-_xlpm.temp)))),0) -> 3.005598488 | M82: 2.442109294 | N82: =IF(D82<Dashboard!$C$18,Dashboard!$D$15,"") ->  | O82: 0 | P82: =IFERROR(VLOOKUP(N82,'Equip. Data'!$J$3:$K$7,2,FALSE),"") ->  | Q82: 0 | R82: 3.005598488
B83: Heating (Electricity) | C83: 2002-04-01T08:00:00 | D83: 0.4 | E83: 7.22 | F83: 24.63464 | G83: =IF(D83>=Dashboard!$C$18,Dashboard!$C$15,"") -> Mini Split HP | H83: =IF(G83=Dashboard!$C$15,Dashboard!$C$16,"") -> AM036 | I83: =IFERROR(_xlfn.LET( _xlpm.type,G83, _xlpm.size,H83, _xlpm.temp,D83, _xlpm.temps,_xlfn._xlws.FILTER('Equip. Data'!$D$4:$D$63,('Equip. Data'!$B$4:$B$63=_xlpm.type)*('Equip. Data'!$E$4:$E$63=_xlpm.size)),_xlpm.caps,_xlfn._xlws.FILTER('Equip. Data'!$F$4:$F$63,('Equip. Data'!$B$4:$B$63=_xlpm.type)*('Equip. Data'!$E$4:$E$63=_xlpm.size)), INDEX(_xlpm.caps, _xlfn.XMATCH(MIN(ABS(_xlpm.temps-_xlpm.temp)), ABS(_xlpm.temps-_xlpm.temp)))),0) -> 40.2 | J83: 24.63464 | K83: 7.22 | L83: =IFERROR(_xlfn.LET( _xlpm.type,G83, _xlpm.size,H83, _xlpm.temp,D83, _xlpm.temps,_xlfn._xlws.FILTER('Equip. Data'!$D$4:$D$63,('Equip. Data'!$B$4:$B$63=_xlpm.type)*('Equip. Data'!$E$4:$E$63=_xlpm.size)),_xlpm.cops,_xlfn._xlws.FILTER('Equip. Data'!$H$4:$H$63,('Equip. Data'!$B$4:$B$63=_xlpm.type)*('Equip. Data'!$E$4:$E$63=_xlpm.size)), INDEX(_xlpm.cops, _xlfn.XMATCH(MIN(ABS(_xlpm.temps-_xlpm.temp)), ABS(_xlpm.temps-_xlpm.temp)))),0) -> 3.005598488 | M83: 2.402183801 | N83: =IF(D83<Dashboard!$C$18,Dashboard!$D$15,"") ->  | O83: 0 | P83: =IFERROR(VLOOKUP(N83,'Equip. Data'!$J$3:$K$7,2,FALSE),"") ->  | Q83: 0 | R83: 3.005598488
B84: Heating (Electricity) | C84: 2002-04-01T09:00:00 | D84: 0.8 | E84: 7.06 | F84: 24.08872 | G84: =IF(D84>=Dashboard!$C$18,Dashboard!$C$15,"") -> Mini Split HP | H84: =IF(G84=Dashboard!$C$15,Dashboard!$C$16,"") -> AM036 | I84: =IFERROR(_xlfn.LET( _xlpm.type,G84, _xlpm.size,H84, _xlpm.temp,D84, _xlpm.temps,_xlfn._xlws.FILTER('Equip. Data'!$D$4:$D$63,('Equip. Data'!$B$4:$B$63=_xlpm.type)*('Equip. Data'!$E$4:$E$63=_xlpm.size)),_xlpm.caps,_xlfn._xlws.FILTER('Equip. Data'!$F$4:$F$63,('Equip. Data'!$B$4:$B$63=_xlpm.type)*('Equip. Data'!$E$4:$E$63=_xlpm.size)), INDEX(_xlpm.caps, _xlfn.XMATCH(MIN(ABS(_xlpm.temps-_xlpm.temp)), ABS(_xlpm.temps-_xlpm.temp)))),0) -> 40.2 | J84: 24.08872 | K84: 7.06 | L84: =IFERROR(_xlfn.LET( _xlpm.type,G84, _xlpm.size,H84, _xlpm.temp,D84, _xlpm.temps,_xlfn._xlws.FILTER('Equip. Data'!$D$4:$D$63,('Equip. Data'!$B$4:$B$63=_xlpm.type)*('Equip. Data'!$E$4:$E$63=_xlpm.size)),_xlpm.cops,_xlfn._xlws.FILTER('Equip. Data'!$H$4:$H$63,('Equip. Data'!$B$4:$B$63=_xlpm.type)*('Equip. Data'!$E$4:$E$63=_xlpm.size)), INDEX(_xlpm.cops, _xlfn.XMATCH(MIN(ABS(_xlpm.temps-_xlpm.temp)), ABS(_xlpm.temps-_xlpm.temp)))),0) -> 3.005598488 | M84: 2.348949811 | N84: =IF(D84<Dashboard!$C$18,Dashboard!$D$15,"") ->  | O84: 0 | P84: =IFERROR(VLOOKUP(N84,'Equip. Data'!$J$3:$K$7,2,FALSE),"") ->  | Q84: 0 | R84: 3.005598488
B85: Heating (Electricity) | C85: 2002-04-01T10:00:00 | D85: 1.5 | E85: 6.91 | F85: 23.57692 | G85: =IF(D85>=Dashboard!$C$18,Dashboard!$C$15,"") -> Mini Split HP | H85: =IF(G85=Dashboard!$C$15,Dashboard!$C$16,"") -> AM036 | I85: =IFERROR(_xlfn.LET( _xlpm.type,G85, _xlpm.size,H85, _xlpm.temp,D85, _xlpm.temps,_xlfn._xlws.FILTER('Equip. Data'!$D$4:$D$63,('Equip. Data'!$B$4:$B$63=_xlpm.type)*('Equip. Data'!$E$4:$E$63=_xlpm.size)),_xlpm.caps,_xlfn._xlws.FILTER('Equip. Data'!$F$4:$F$63,('Equip. Data'!$B$4:$B$63=_xlpm.type)*('Equip. Data'!$E$4:$E$63=_xlpm.size)), INDEX(_xlpm.caps, _xlfn.XMATCH(MIN(ABS(_xlpm.temps-_xlpm.temp)), ABS(_xlpm.temps-_xlpm.temp)))),0) -> 40.2 | J85: 23.57692 | K85: 6.91 | L85: =IFERROR(_xlfn.LET( _xlpm.type,G85, _xlpm.size,H85, _xlpm.temp,D85, _xlpm.temps,_xlfn._xlws.FILTER('Equip. Data'!$D$4:$D$63,('Equip. Data'!$B$4:$B$63=_xlpm.type)*('Equip. Data'!$E$4:$E$63=_xlpm.size)),_xlpm.cops,_xlfn._xlws.FILTER('Equip. Data'!$H$4:$H$63,('Equip. Data'!$B$4:$B$63=_xlpm.type)*('Equip. Data'!$E$4:$E$63=_xlpm.size)), INDEX(_xlpm.cops, _xlfn.XMATCH(MIN(ABS(_xlpm.temps-_xlpm.temp)), ABS(_xlpm.temps-_xlpm.temp)))),0) -> 3.337661777 | M85: 2.070311632 | N85: =IF(D85<Dashboard!$C$18,Dashboard!$D$15,"") ->  | O85: 0 | P85: =IFERROR(VLOOKUP(N85,'Equip. Data'!$J$3:$K$7,2,FALSE),"") ->  | Q85: 0 | R85: 3.337661777
B86: Heating (Electricity) | C86: 2002-04-01T11:00:00 | D86: 2.1 | E86: 6.69 | F86: 22.82628 | G86: =IF(D86>=Dashboard!$C$18,Dashboard!$C$15,"") -> Mini Split HP | H86: =IF(G86=Dashboard!$C$15,Dashboard!$C$16,"") -> AM036 | I86: =IFERROR(_xlfn.LET( _xlpm.type,G86, _xlpm.size,H86, _xlpm.temp,D86, _xlpm.temps,_xlfn._xlws.FILTER('Equip. Data'!$D$4:$D$63,('Equip. Data'!$B$4:$B$63=_xlpm.type)*('Equip. Data'!$E$4:$E$63=_xlpm.size)),_xlpm.caps,_xlfn._xlws.FILTER('Equip. Data'!$F$4:$F$63,('Equip. Data'!$B$4:$B$63=_xlpm.type)*('Equip. Data'!$E$4:$E$63=_xlpm.size)), INDEX(_xlpm.caps, _xlfn.XMATCH(MIN(ABS(_xlpm.temps-_xlpm.temp)), ABS(_xlpm.temps-_xlpm.temp)))),0) -> 40.2 | J86: 22.82628 | K86: 6.69 | L86: =IFERROR(_xlfn.LET( _xlpm.type,G86, _xlpm.size,H86, _xlpm.temp,D86, _xlpm.temps,_xlfn._xlws.FILTER('Equip. Data'!$D$4:$D$63,('Equip. Data'!$B$4:$B$63=_xlpm.type)*('Equip. Data'!$E$4:$E$63=_xlpm.size)),_xlpm.cops,_xlfn._xlws.FILTER('Equip. Data'!$H$4:$H$63,('Equip. Data'!$B$4:$B$63=_xlpm.type)*('Equip. Data'!$E$4:$E$63=_xlpm.size)), INDEX(_xlpm.cops, _xlfn.XMATCH(MIN(ABS(_xlpm.temps-_xlpm.temp)), ABS(_xlpm.temps-_xlpm.temp)))),0) -> 3.337661777 | M86: 2.004397224 | N86: =IF(D86<Dashboard!$C$18,Dashboard!$D$15,"") ->  | O86: 0 | P86: =IFERROR(VLOOKUP(N86,'Equip. Data'!$J$3:$K$7,2,FALSE),"") ->  | Q86: 0 | R86: 3.337661777
B87: Heating (Electricity) | C87: 2002-04-01T12:00:00 | D87: 2.4 | E87: 6.44 | F87: 21.97328 | G87: =IF(D87>=Dashboard!$C$18,Dashboard!$C$15,"") -> Mini Split HP | H87: =IF(G87=Dashboard!$C$15,Dashboard!$C$16,"") -> AM036 | I87: =IFERROR(_xlfn.LET( _xlpm.type,G87, _xlpm.size,H87, _xlpm.temp,D87, _xlpm.temps,_xlfn._xlws.FILTER('Equip. Data'!$D$4:$D$63,('Equip. Data'!$B$4:$B$63=_xlpm.type)*('Equip. Data'!$E$4:$E$63=_xlpm.size)),_xlpm.caps,_xlfn._xlws.FILTER('Equip. Data'!$F$4:$F$63,('Equip. Data'!$B$4:$B$63=_xlpm.type)*('Equip. Data'!$E$4:$E$63=_xlpm.size)), INDEX(_xlpm.caps, _xlfn.XMATCH(MIN(ABS(_xlpm.temps-_xlpm.temp)), ABS(_xlpm.temps-_xlpm.temp)))),0) -> 40.2 | J87: 21.97328 | K87: 6.44 | L87: =IFERROR(_xlfn.LET( _xlpm.type,G87, _xlpm.size,H87, _xlpm.temp,D87, _xlpm.temps,_xlfn._xlws.FILTER('Equip. Data'!$D$4:$D$63,('Equip. Data'!$B$4:$B$63=_xlpm.type)*('Equip. Data'!$E$4:$E$63=_xlpm.size)),_xlpm.cops,_xlfn._xlws.FILTER('Equip. Data'!$H$4:$H$63,('Equip. Data'!$B$4:$B$63=_xlpm.type)*('Equip. Data'!$E$4:$E$63=_xlpm.size)), INDEX(_xlpm.cops, _xlfn.XMATCH(MIN(ABS(_xlpm.temps-_xlpm.temp)), ABS(_xlpm.temps-_xlpm.temp)))),0) -> 3.337661777 | M87: 1.929494488 | N87: =IF(D87<Dashboard!$C$18,Dashboard!$D$15,"") ->  | O87: 0 | P87: =IFERROR(VLOOKUP(N87,'Equip. Data'!$J$3:$K$7,2,FALSE),"") ->  | Q87: 0 | R87: 3.337661777
B88: Heating (Electricity) | C88: 2002-04-01T13:00:00 | D88: 2.7 | E88: 6.3 | F88: 21.4956 | G88: =IF(D88>=Dashboard!$C$18,Dashboard!$C$15,"") -> Mini Split HP | H88: =IF(G88=Dashboard!$C$15,Dashboard!$C$16,"") -> AM036 | I88: =IFERROR(_xlfn.LET( _xlpm.type,G88, _xlpm.size,H88, _xlpm.temp,D88, _xlpm.temps,_xlfn._xlws.FILTER('Equip. Data'!$D$4:$D$63,('Equip. Data'!$B$4:$B$63=_xlpm.type)*('Equip. Data'!$E$4:$E$63=_xlpm.size)),_xlpm.caps,_xlfn._xlws.FILTER('Equip. Data'!$F$4:$F$63,('Equip. Data'!$B$4:$B$63=_xlpm.type)*('Equip. Data'!$E$4:$E$63=_xlpm.size)), INDEX(_xlpm.caps, _xlfn.XMATCH(MIN(ABS(_xlpm.temps-_xlpm.temp)), ABS(_xlpm.temps-_xlpm.temp)))),0) -> 40.2 | J88: 21.4956 | K88: 6.3 | L88: =IFERROR(_xlfn.LET( _xlpm.type,G88, _xlpm.size,H88, _xlpm.temp,D88, _xlpm.temps,_xlfn._xlws.FILTER('Equip. Data'!$D$4:$D$63,('Equip. Data'!$B$4:$B$63=_xlpm.type)*('Equip. Data'!$E$4:$E$63=_xlpm.size)),_xlpm.cops,_xlfn._xlws.FILTER('Equip. Data'!$H$4:$H$63,('Equip. Data'!$B$4:$B$63=_xlpm.type)*('Equip. Data'!$E$4:$E$63=_xlpm.size)), INDEX(_xlpm.cops, _xlfn.XMATCH(MIN(ABS(_xlpm.temps-_xlpm.temp)), ABS(_xlpm.temps-_xlpm.temp)))),0) -> 3.337661777 | M88: 1.887548955 | N88: =IF(D88<Dashboard!$C$18,Dashboard!$D$15,"") ->  | O88: 0 | P88: =IFERROR(VLOOKUP(N88,'Equip. Data'!$J$3:$K$7,2,FALSE),"") ->  | Q88: 0 | R88: 3.337661777
B89: Heating (Electricity) | C89: 2002-04-01T14:00:00 | D89: 3 | E89: 6.23 | F89: 21.25676 | G89: =IF(D89>=Dashboard!$C$18,Dashboard!$C$15,"") -> Mini Split HP | H89: =IF(G89=Dashboard!$C$15,Dashboard!$C$16,"") -> AM036 | I89: =IFERROR(_xlfn.LET( _xlpm.type,G89, _xlpm.size,H89, _xlpm.temp,D89, _xlpm.temps,_xlfn._xlws.FILTER('Equip. Data'!$D$4:$D$63,('Equip. Data'!$B$4:$B$63=_xlpm.type)*('Equip. Data'!$E$4:$E$63=_xlpm.size)),_xlpm.caps,_xlfn._xlws.FILTER('Equip. Data'!$F$4:$F$63,('Equip. Data'!$B$4:$B$63=_xlpm.type)*('Equip. Data'!$E$4:$E$63=_xlpm.size)), INDEX(_xlpm.caps, _xlfn.XMATCH(MIN(ABS(_xlpm.temps-_xlpm.temp)), ABS(_xlpm.temps-_xlpm.temp)))),0) -> 40.2 | J89: 21.25676 | K89: 6.23 | L89: =IFERROR(_xlfn.LET( _xlpm.type,G89, _xlpm.size,H89, _xlpm.temp,D89, _xlpm.temps,_xlfn._xlws.FILTER('Equip. Data'!$D$4:$D$63,('Equip. Data'!$B$4:$B$63=_xlpm.type)*('Equip. Data'!$E$4:$E$63=_xlpm.size)),_xlpm.cops,_xlfn._xlws.FILTER('Equip. Data'!$H$4:$H$63,('Equip. Data'!$B$4:$B$63=_xlpm.type)*('Equip. Data'!$E$4:$E$63=_xlpm.size)), INDEX(_xlpm.cops, _xlfn.XMATCH(MIN(ABS(_xlpm.temps-_xlpm.temp)), ABS(_xlpm.temps-_xlpm.temp)))),0) -> 3.337661777 | M89: 1.866576189 | N89: =IF(D89<Dashboard!$C$18,Dashboard!$D$15,"") ->  | O89: 0 | P89: =IFERROR(VLOOKUP(N89,'Equip. Data'!$J$3:$K$7,2,FALSE),"") ->  | Q89: 0 | R89: 3.337661777
B90: Heating (Electricity) | C90: 2002-04-01T15:00:00 | D90: 2.5 | E90: 6.3 | F90: 21.4956 | G90: =IF(D90>=Dashboard!$C$18,Dashboard!$C$15,"") -> Mini Split HP | H90: =IF(G90=Dashboard!$C$15,Dashboard!$C$16,"") -> AM036 | I90: =IFERROR(_xlfn.LET( _xlpm.type,G90, _xlpm.size,H90, _xlpm.temp,D90, _xlpm.temps,_xlfn._xlws.FILTER('Equip. Data'!$D$4:$D$63,('Equip. Data'!$B$4:$B$63=_xlpm.type)*('Equip. Data'!$E$4:$E$63=_xlpm.size)),_xlpm.caps,_xlfn._xlws.FILTER('Equip. Data'!$F$4:$F$63,('Equip. Data'!$B$4:$B$63=_xlpm.type)*('Equip. Data'!$E$4:$E$63=_xlpm.size)), INDEX(_xlpm.caps, _xlfn.XMATCH(MIN(ABS(_xlpm.temps-_xlpm.temp)), ABS(_xlpm.temps-_xlpm.temp)))),0) -> 40.2 | J90: 21.4956 | K90: 6.3 | L90: =IFERROR(_xlfn.LET( _xlpm.type,G90, _xlpm.size,H90, _xlpm.temp,D90, _xlpm.temps,_xlfn._xlws.FILTER('Equip. Data'!$D$4:$D$63,('Equip. Data'!$B$4:$B$63=_xlpm.type)*('Equip. Data'!$E$4:$E$63=_xlpm.size)),_xlpm.cops,_xlfn._xlws.FILTER('Equip. Data'!$H$4:$H$63,('Equip. Data'!$B$4:$B$63=_xlpm.type)*('Equip. Data'!$E$4:$E$63=_xlpm.size)), INDEX(_xlpm.cops, _xlfn.XMATCH(MIN(ABS(_xlpm.temps-_xlpm.temp)), ABS(_xlpm.temps-_xlpm.temp)))),0) -> 3.337661777 | M90: 1.887548955 | N90: =IF(D90<Dashboard!$C$18,Dashboard!$D$15,"") ->  | O90: 0 | P90: =IFERROR(VLOOKUP(N90,'Equip. Data'!$J$3:$K$7,2,FALSE),"") ->  | Q90: 0 | R90: 3.337661777
B91: Heating (Electricity) | C91: 2002-04-01T16:00:00 | D91: 1.7 | E91: 6.47 | F91: 22.07564 | G91: =IF(D91>=Dashboard!$C$18,Dashboard!$C$15,"") -> Mini Split HP | H91: =IF(G91=Dashboard!$C$15,Dashboard!$C$16,"") -> AM036 | I91: =IFERROR(_xlfn.LET( _xlpm.type,G91, _xlpm.size,H91, _xlpm.temp,D91, _xlpm.temps,_xlfn._xlws.FILTER('Equip. Data'!$D$4:$D$63,('Equip. Data'!$B$4:$B$63=_xlpm.type)*('Equip. Data'!$E$4:$E$63=_xlpm.size)),_xlpm.caps,_xlfn._xlws.FILTER('Equip. Data'!$F$4:$F$63,('Equip. Data'!$B$4:$B$63=_xlpm.type)*('Equip. Data'!$E$4:$E$63=_xlpm.size)), INDEX(_xlpm.caps, _xlfn.XMATCH(MIN(ABS(_xlpm.temps-_xlpm.temp)), ABS(_xlpm.temps-_xlpm.temp)))),0) -> 40.2 | J91: 22.07564 | K91: 6.47 | L91: =IFERROR(_xlfn.LET( _xlpm.type,G91, _xlpm.size,H91, _xlpm.temp,D91, _xlpm.temps,_xlfn._xlws.FILTER('Equip. Data'!$D$4:$D$63,('Equip. Data'!$B$4:$B$63=_xlpm.type)*('Equip. Data'!$E$4:$E$63=_xlpm.size)),_xlpm.cops,_xlfn._xlws.FILTER('Equip. Data'!$H$4:$H$63,('Equip. Data'!$B$4:$B$63=_xlpm.type)*('Equip. Data'!$E$4:$E$63=_xlpm.size)), INDEX(_xlpm.cops, _xlfn.XMATCH(MIN(ABS(_xlpm.temps-_xlpm.temp)), ABS(_xlpm.temps-_xlpm.temp)))),0) -> 3.337661777 | M91: 1.938482816 | N91: =IF(D91<Dashboard!$C$18,Dashboard!$D$15,"") ->  | O91: 0 | P91: =IFERROR(VLOOKUP(N91,'Equip. Data'!$J$3:$K$7,2,FALSE),"") ->  | Q91: 0 | R91: 3.337661777
B92: Heating (Electricity) | C92: 2002-04-01T17:00:00 | D92: 1.5 | E92: 6.53 | F92: 22.28036 | G92: =IF(D92>=Dashboard!$C$18,Dashboard!$C$15,"") -> Mini Split HP | H92: =IF(G92=Dashboard!$C$15,Dashboard!$C$16,"") -> AM036 | I92: =IFERROR(_xlfn.LET( _xlpm.type,G92, _xlpm.size,H92, _xlpm.temp,D92, _xlpm.temps,_xlfn._xlws.FILTER('Equip. Data'!$D$4:$D$63,('Equip. Data'!$B$4:$B$63=_xlpm.type)*('Equip. Data'!$E$4:$E$63=_xlpm.size)),_xlpm.caps,_xlfn._xlws.FILTER('Equip. Data'!$F$4:$F$63,('Equip. Data'!$B$4:$B$63=_xlpm.type)*('Equip. Data'!$E$4:$E$63=_xlpm.size)), INDEX(_xlpm.caps, _xlfn.XMATCH(MIN(ABS(_xlpm.temps-_xlpm.temp)), ABS(_xlpm.temps-_xlpm.temp)))),0) -> 40.2 | J92: 22.28036 | K92: 6.53 | L92: =IFERROR(_xlfn.LET( _xlpm.type,G92, _xlpm.size,H92, _xlpm.temp,D92, _xlpm.temps,_xlfn._xlws.FILTER('Equip. Data'!$D$4:$D$63,('Equip. Data'!$B$4:$B$63=_xlpm.type)*('Equip. Data'!$E$4:$E$63=_xlpm.size)),_xlpm.cops,_xlfn._xlws.FILTER('Equip. Data'!$H$4:$H$63,('Equip. Data'!$B$4:$B$63=_xlpm.type)*('Equip. Data'!$E$4:$E$63=_xlpm.size)), INDEX(_xlpm.cops, _xlfn.XMATCH(MIN(ABS(_xlpm.temps-_xlpm.temp)), ABS(_xlpm.temps-_xlpm.temp)))),0) -> 3.337661777 | M92: 1.956459473 | N92: =IF(D92<Dashboard!$C$18,Dashboard!$D$15,"") ->  | O92: 0 | P92: =IFERROR(VLOOKUP(N92,'Equip. Data'!$J$3:$K$7,2,FALSE),"") ->  | Q92: 0 | R92: 3.337661777
B93: Heating (Electricity) | C93: 2002-04-01T18:00:00 | D93: 1.8 | E93: 6.4 | F93: 21.8368 | G93: =IF(D93>=Dashboard!$C$18,Dashboard!$C$15,"") -> Mini Split HP | H93: =IF(G93=Dashboard!$C$15,Dashboard!$C$16,"") -> AM036 | I93: =IFERROR(_xlfn.LET( _xlpm.type,G93, _xlpm.size,H93, _xlpm.temp,D93, _xlpm.temps,_xlfn._xlws.FILTER('Equip. Data'!$D$4:$D$63,('Equip. Data'!$B$4:$B$63=_xlpm.type)*('Equip. Data'!$E$4:$E$63=_xlpm.size)),_xlpm.caps,_xlfn._xlws.FILTER('Equip. Data'!$F$4:$F$63,('Equip. Data'!$B$4:$B$63=_xlpm.type)*('Equip. Data'!$E$4:$E$63=_xlpm.size)), INDEX(_xlpm.caps, _xlfn.XMATCH(MIN(ABS(_xlpm.temps-_xlpm.temp)), ABS(_xlpm.temps-_xlpm.temp)))),0) -> 40.2 | J93: 21.8368 | K93: 6.4 | L93: =IFERROR(_xlfn.LET( _xlpm.type,G93, _xlpm.size,H93, _xlpm.temp,D93, _xlpm.temps,_xlfn._xlws.FILTER('Equip. Data'!$D$4:$D$63,('Equip. Data'!$B$4:$B$63=_xlpm.type)*('Equip. Data'!$E$4:$E$63=_xlpm.size)),_xlpm.cops,_xlfn._xlws.FILTER('Equip. Data'!$H$4:$H$63,('Equip. Data'!$B$4:$B$63=_xlpm.type)*('Equip. Data'!$E$4:$E$63=_xlpm.size)), INDEX(_xlpm.cops, _xlfn.XMATCH(MIN(ABS(_xlpm.temps-_xlpm.temp)), ABS(_xlpm.temps-_xlpm.temp)))),0) -> 3.337661777 | M93: 1.91751005 | N93: =IF(D93<Dashboard!$C$18,Dashboard!$D$15,"") ->  | O93: 0 | P93: =IFERROR(VLOOKUP(N93,'Equip. Data'!$J$3:$K$7,2,FALSE),"") ->  | Q93: 0 | R93: 3.337661777
B94: Heating (Electricity) | C94: 2002-04-01T19:00:00 | D94: 2 | E94: 6.06 | F94: 20.67672 | G94: =IF(D94>=Dashboard!$C$18,Dashboard!$C$15,"") -> Mini Split HP | H94: =IF(G94=Dashboard!$C$15,Dashboard!$C$16,"") -> AM036 | I94: =IFERROR(_xlfn.LET( _xlpm.type,G94, _xlpm.size,H94, _xlpm.temp,D94, _xlpm.temps,_xlfn._xlws.FILTER('Equip. Data'!$D$4:$D$63,('Equip. Data'!$B$4:$B$63=_xlpm.type)*('Equip. Data'!$E$4:$E$63=_xlpm.size)),_xlpm.caps,_xlfn._xlws.FILTER('Equip. Data'!$F$4:$F$63,('Equip. Data'!$B$4:$B$63=_xlpm.type)*('Equip. Data'!$E$4:$E$63=_xlpm.size)), INDEX(_xlpm.caps, _xlfn.XMATCH(MIN(ABS(_xlpm.temps-_xlpm.temp)), ABS(_xlpm.temps-_xlpm.temp)))),0) -> 40.2 | J94: 20.67672 | K94: 6.06 | L94: =IFERROR(_xlfn.LET( _xlpm.type,G94, _xlpm.size,H94, _xlpm.temp,D94, _xlpm.temps,_xlfn._xlws.FILTER('Equip. Data'!$D$4:$D$63,('Equip. Data'!$B$4:$B$63=_xlpm.type)*('Equip. Data'!$E$4:$E$63=_xlpm.size)),_xlpm.cops,_xlfn._xlws.FILTER('Equip. Data'!$H$4:$H$63,('Equip. Data'!$B$4:$B$63=_xlpm.type)*('Equip. Data'!$E$4:$E$63=_xlpm.size)), INDEX(_xlpm.cops, _xlfn.XMATCH(MIN(ABS(_xlpm.temps-_xlpm.temp)), ABS(_xlpm.temps-_xlpm.temp)))),0) -> 3.337661777 | M94: 1.815642328 | N94: =IF(D94<Dashboard!$C$18,Dashboard!$D$15,"") ->  | O94: 0 | P94: =IFERROR(VLOOKUP(N94,'Equip. Data'!$J$3:$K$7,2,FALSE),"") ->  | Q94: 0 | R94: 3.337661777
B95: Heating (Electricity) | C95: 2002-04-01T20:00:00 | D95: 1.9 | E95: 5.94 | F95: 20.26728 | G95: =IF(D95>=Dashboard!$C$18,Dashboard!$C$15,"") -> Mini Split HP | H95: =IF(G95=Dashboard!$C$15,Dashboard!$C$16,"") -> AM036 | I95: =IFERROR(_xlfn.LET( _xlpm.type,G95, _xlpm.size,H95, _xlpm.temp,D95, _xlpm.temps,_xlfn._xlws.FILTER('Equip. Data'!$D$4:$D$63,('Equip. Data'!$B$4:$B$63=_xlpm.type)*('Equip. Data'!$E$4:$E$63=_xlpm.size)),_xlpm.caps,_xlfn._xlws.FILTER('Equip. Data'!$F$4:$F$63,('Equip. Data'!$B$4:$B$63=_xlpm.type)*('Equip. Data'!$E$4:$E$63=_xlpm.size)), INDEX(_xlpm.caps, _xlfn.XMATCH(MIN(ABS(_xlpm.temps-_xlpm.temp)), ABS(_xlpm.temps-_xlpm.temp)))),0) -> 40.2 | J95: 20.26728 | K95: 5.94 | L95: =IFERROR(_xlfn.LET( _xlpm.type,G95, _xlpm.size,H95, _xlpm.temp,D95, _xlpm.temps,_xlfn._xlws.FILTER('Equip. Data'!$D$4:$D$63,('Equip. Data'!$B$4:$B$63=_xlpm.type)*('Equip. Data'!$E$4:$E$63=_xlpm.size)),_xlpm.cops,_xlfn._xlws.FILTER('Equip. Data'!$H$4:$H$63,('Equip. Data'!$B$4:$B$63=_xlpm.type)*('Equip. Data'!$E$4:$E$63=_xlpm.size)), INDEX(_xlpm.cops, _xlfn.XMATCH(MIN(ABS(_xlpm.temps-_xlpm.temp)), ABS(_xlpm.temps-_xlpm.temp)))),0) -> 3.337661777 | M95: 1.779689015 | N95: =IF(D95<Dashboard!$C$18,Dashboard!$D$15,"") ->  | O95: 0 | P95: =IFERROR(VLOOKUP(N95,'Equip. Data'!$J$3:$K$7,2,FALSE),"") ->  | Q95: 0 | R95: 3.337661777
B96: Heating (Electricity) | C96: 2002-04-01T21:00:00 | D96: 2 | E96: 5.97 | F96: 20.36964 | G96: =IF(D96>=Dashboard!$C$18,Dashboard!$C$15,"") -> Mini Split HP | H96: =IF(G96=Dashboard!$C$15,Dashboard!$C$16,"") -> AM036 | I96: =IFERROR(_xlfn.LET( _xlpm.type,G96, _xlpm.size,H96, _xlpm.temp,D96, _xlpm.temps,_xlfn._xlws.FILTER('Equip. Data'!$D$4:$D$63,('Equip. Data'!$B$4:$B$63=_xlpm.type)*('Equip. Data'!$E$4:$E$63=_xlpm.size)),_xlpm.caps,_xlfn._xlws.FILTER('Equip. Data'!$F$4:$F$63,('Equip. Data'!$B$4:$B$63=_xlpm.type)*('Equip. Data'!$E$4:$E$63=_xlpm.size)), INDEX(_xlpm.caps, _xlfn.XMATCH(MIN(ABS(_xlpm.temps-_xlpm.temp)), ABS(_xlpm.temps-_xlpm.temp)))),0) -> 40.2 | J96: 20.36964 | K96: 5.97 | L96: =IFERROR(_xlfn.LET( _xlpm.type,G96, _xlpm.size,H96, _xlpm.temp,D96, _xlpm.temps,_xlfn._xlws.FILTER('Equip. Data'!$D$4:$D$63,('Equip. Data'!$B$4:$B$63=_xlpm.type)*('Equip. Data'!$E$4:$E$63=_xlpm.size)),_xlpm.cops,_xlfn._xlws.FILTER('Equip. Data'!$H$4:$H$63,('Equip. Data'!$B$4:$B$63=_xlpm.type)*('Equip. Data'!$E$4:$E$63=_xlpm.size)), INDEX(_xlpm.cops, _xlfn.XMATCH(MIN(ABS(_xlpm.temps-_xlpm.temp)), ABS(_xlpm.temps-_xlpm.temp)))),0) -> 3.337661777 | M96: 1.788677343 | N96: =IF(D96<Dashboard!$C$18,Dashboard!$D$15,"") ->  | O96: 0 | P96: =IFERROR(VLOOKUP(N96,'Equip. Data'!$J$3:$K$7,2,FALSE),"") ->  | Q96: 0 | R96: 3.337661777
B97: Heating (Electricity) | C97: 2002-04-01T22:00:00 | D97: 2 | E97: 6.07 | F97: 20.71084 | G97: =IF(D97>=Dashboard!$C$18,Dashboard!$C$15,"") -> Mini Split HP | H97: =IF(G97=Dashboard!$C$15,Dashboard!$C$16,"") -> AM036 | I97: =IFERROR(_xlfn.LET( _xlpm.type,G97, _xlpm.size,H97, _xlpm.temp,D97, _xlpm.temps,_xlfn._xlws.FILTER('Equip. Data'!$D$4:$D$63,('Equip. Data'!$B$4:$B$63=_xlpm.type)*('Equip. Data'!$E$4:$E$63=_xlpm.size)),_xlpm.caps,_xlfn._xlws.FILTER('Equip. Data'!$F$4:$F$63,('Equip. Data'!$B$4:$B$63=_xlpm.type)*('Equip. Data'!$E$4:$E$63=_xlpm.size)), INDEX(_xlpm.caps, _xlfn.XMATCH(MIN(ABS(_xlpm.temps-_xlpm.temp)), ABS(_xlpm.temps-_xlpm.temp)))),0) -> 40.2 | J97: 20.71084 | K97: 6.07 | L97: =IFERROR(_xlfn.LET( _xlpm.type,G97, _xlpm.size,H97, _xlpm.temp,D97, _xlpm.temps,_xlfn._xlws.FILTER('Equip. Data'!$D$4:$D$63,('Equip. Data'!$B$4:$B$63=_xlpm.type)*('Equip. Data'!$E$4:$E$63=_xlpm.size)),_xlpm.cops,_xlfn._xlws.FILTER('Equip. Data'!$H$4:$H$63,('Equip. Data'!$B$4:$B$63=_xlpm.type)*('Equip. Data'!$E$4:$E$63=_xlpm.size)), INDEX(_xlpm.cops, _xlfn.XMATCH(MIN(ABS(_xlpm.temps-_xlpm.temp)), ABS(_xlpm.temps-_xlpm.temp)))),0) -> 3.337661777 | M97: 1.818638438 | N97: =IF(D97<Dashboard!$C$18,Dashboard!$D$15,"") ->  | O97: 0 | P97: =IFERROR(VLOOKUP(N97,'Equip. Data'!$J$3:$K$7,2,FALSE),"") ->  | Q97: 0 | R97: 3.337661777
B98: Heating (Electricity) | C98: 2002-04-01T23:00:00 | D98: 1.9 | E98: 6.4 | F98: 21.8368 | G98: =IF(D98>=Dashboard!$C$18,Dashboard!$C$15,"") -> Mini Split HP | H98: =IF(G98=Dashboard!$C$15,Dashboard!$C$16,"") -> AM036 | I98: =IFERROR(_xlfn.LET( _xlpm.type,G98, _xlpm.size,H98, _xlpm.temp,D98, _xlpm.temps,_xlfn._xlws.FILTER('Equip. Data'!$D$4:$D$63,('Equip. Data'!$B$4:$B$63=_xlpm.type)*('Equip. Data'!$E$4:$E$63=_xlpm.size)),_xlpm.caps,_xlfn._xlws.FILTER('Equip. Data'!$F$4:$F$63,('Equip. Data'!$B$4:$B$63=_xlpm.type)*('Equip. Data'!$E$4:$E$63=_xlpm.size)), INDEX(_xlpm.caps, _xlfn.XMATCH(MIN(ABS(_xlpm.temps-_xlpm.temp)), ABS(_xlpm.temps-_xlpm.temp)))),0) -> 40.2 | J98: 21.8368 | K98: 6.4 | L98: =IFERROR(_xlfn.LET( _xlpm.type,G98, _xlpm.size,H98, _xlpm.temp,D98, _xlpm.temps,_xlfn._xlws.FILTER('Equip. Data'!$D$4:$D$63,('Equip. Data'!$B$4:$B$63=_xlpm.type)*('Equip. Data'!$E$4:$E$63=_xlpm.size)),_xlpm.cops,_xlfn._xlws.FILTER('Equip. Data'!$H$4:$H$63,('Equip. Data'!$B$4:$B$63=_xlpm.type)*('Equip. Data'!$E$4:$E$63=_xlpm.size)), INDEX(_xlpm.cops, _xlfn.XMATCH(MIN(ABS(_xlpm.temps-_xlpm.temp)), ABS(_xlpm.temps-_xlpm.temp)))),0) -> 3.337661777 | M98: 1.91751005 | N98: =IF(D98<Dashboard!$C$18,Dashboard!$D$15,"") ->  | O98: 0 | P98: =IFERROR(VLOOKUP(N98,'Equip. Data'!$J$3:$K$7,2,FALSE),"") ->  | Q98: 0 | R98: 3.337661777
B99: Heating (Electricity) | C99: 2002-05-01 | D99: 1.9 | E99: 6.67 | F99: 22.75804 | G99: =IF(D99>=Dashboard!$C$18,Dashboard!$C$15,"") -> Mini Split HP | H99: =IF(G99=Dashboard!$C$15,Dashboard!$C$16,"") -> AM036 | I99: =IFERROR(_xlfn.LET( _xlpm.type,G99, _xlpm.size,H99, _xlpm.temp,D99, _xlpm.temps,_xlfn._xlws.FILTER('Equip. Data'!$D$4:$D$63,('Equip. Data'!$B$4:$B$63=_xlpm.type)*('Equip. Data'!$E$4:$E$63=_xlpm.size)),_xlpm.caps,_xlfn._xlws.FILTER('Equip. Data'!$F$4:$F$63,('Equip. Data'!$B$4:$B$63=_xlpm.type)*('Equip. Data'!$E$4:$E$63=_xlpm.size)), INDEX(_xlpm.caps, _xlfn.XMATCH(MIN(ABS(_xlpm.temps-_xlpm.temp)), ABS(_xlpm.temps-_xlpm.temp)))),0) -> 40.2 | J99: 22.75804 | K99: 6.67 | L99: =IFERROR(_xlfn.LET( _xlpm.type,G99, _xlpm.size,H99, _xlpm.temp,D99, _xlpm.temps,_xlfn._xlws.FILTER('Equip. Data'!$D$4:$D$63,('Equip. Data'!$B$4:$B$63=_xlpm.type)*('Equip. Data'!$E$4:$E$63=_xlpm.size)),_xlpm.cops,_xlfn._xlws.FILTER('Equip. Data'!$H$4:$H$63,('Equip. Data'!$B$4:$B$63=_xlpm.type)*('Equip. Data'!$E$4:$E$63=_xlpm.size)), INDEX(_xlpm.cops, _xlfn.XMATCH(MIN(ABS(_xlpm.temps-_xlpm.temp)), ABS(_xlpm.temps-_xlpm.temp)))),0) -> 3.337661777 | M99: 1.998405005 | N99: =IF(D99<Dashboard!$C$18,Dashboard!$D$15,"") ->  | O99: 0 | P99: =IFERROR(VLOOKUP(N99,'Equip. Data'!$J$3:$K$7,2,FALSE),"") ->  | Q99: 0 | R99: 3.337661777
B100: Heating (Electricity) | C100: 2002-05-01T01:00:00 | D100: 2.3 | E100: 6.83 | F100: 23.30396 | G100: =IF(D100>=Dashboard!$C$18,Dashboard!$C$15,"") -> Mini Split HP | H100: =IF(G100=Dashboard!$C$15,Dashboard!$C$16,"") -> AM036 | I100: =IFERROR(_xlfn.LET( _xlpm.type,G100, _xlpm.size,H100, _xlpm.temp,D100, _xlpm.temps,_xlfn._xlws.FILTER('Equip. Data'!$D$4:$D$63,('Equip. Data'!$B$4:$B$63=_xlpm.type)*('Equip. Data'!$E$4:$E$63=_xlpm.size)),_xlpm.caps,_xlfn._xlws.FILTER('Equip. Data'!$F$4:$F$63,('Equip. Data'!$B$4:$B$63=_xlpm.type)*('Equip. Data'!$E$4:$E$63=_xlpm.size)), INDEX(_xlpm.caps, _xlfn.XMATCH(MIN(ABS(_xlpm.temps-_xlpm.temp)), ABS(_xlpm.temps-_xlpm.temp)))),0) -> 40.2 | J100: 23.30396 | K100: 6.83 | L100: =IFERROR(_xlfn.LET( _xlpm.type,G100, _xlpm.size,H100, _xlpm.temp,D100, _xlpm.temps,_xlfn._xlws.FILTER('Equip. Data'!$D$4:$D$63,('Equip. Data'!$B$4:$B$63=_xlpm.type)*('Equip. Data'!$E$4:$E$63=_xlpm.size)),_xlpm.cops,_xlfn._xlws.FILTER('Equip. Data'!$H$4:$H$63,('Equip. Data'!$B$4:$B$63=_xlpm.type)*('Equip. Data'!$E$4:$E$63=_xlpm.size)), INDEX(_xlpm.cops, _xlfn.XMATCH(MIN(ABS(_xlpm.temps-_xlpm.temp)), ABS(_xlpm.temps-_xlpm.temp)))),0) -> 3.337661777 | M100: 2.046342756 | N100: =IF(D100<Dashboard!$C$18,Dashboard!$D$15,"") ->  | O100: 0 | P100: =IFERROR(VLOOKUP(N100,'Equip. Data'!$J$3:$K$7,2,FALSE),"") ->  | Q100: 0 | R100: 3.337661777
B101: Heating (Electricity) | C101: 2002-05-01T02:00:00 | D101: 2.4 | E101: 7.03 | F101: 23.98636 | G101: =IF(D101>=Dashboard!$C$18,Dashboard!$C$15,"") -> Mini Split HP | H101: =IF(G101=Dashboard!$C$15,Dashboard!$C$16,"") -> AM036 | I101: =IFERROR(_xlfn.LET( _xlpm.type,G101, _xlpm.size,H101, _xlpm.temp,D101, _xlpm.temps,_xlfn._xlws.FILTER('Equip. Data'!$D$4:$D$63,('Equip. Data'!$B$4:$B$63=_xlpm.type)*('Equip. Data'!$E$4:$E$63=_xlpm.size)),_xlpm.caps,_xlfn._xlws.FILTER('Equip. Data'!$F$4:$F$63,('Equip. Data'!$B$4:$B$63=_xlpm.type)*('Equip. Data'!$E$4:$E$63=_xlpm.size)), INDEX(_xlpm.caps, _xlfn.XMATCH(MIN(ABS(_xlpm.temps-_xlpm.temp)), ABS(_xlpm.temps-_xlpm.temp)))),0) -> 40.2 | J101: 23.98636 | K101: 7.03 | L101: =IFERROR(_xlfn.LET( _xlpm.type,G101, _xlpm.size,H101, _xlpm.temp,D101, _xlpm.temps,_xlfn._xlws.FILTER('Equip. Data'!$D$4:$D$63,('Equip. Data'!$B$4:$B$63=_xlpm.type)*('Equip. Data'!$E$4:$E$63=_xlpm.size)),_xlpm.cops,_xlfn._xlws.FILTER('Equip. Data'!$H$4:$H$63,('Equip. Data'!$B$4:$B$63=_xlpm.type)*('Equip. Data'!$E$4:$E$63=_xlpm.size)), INDEX(_xlpm.cops, _xlfn.XMATCH(MIN(ABS(_xlpm.temps-_xlpm.temp)), ABS(_xlpm.temps-_xlpm.temp)))),0) -> 3.337661777 | M101: 2.106264945 | N101: =IF(D101<Dashboard!$C$18,Dashboard!$D$15,"") ->  | O101: 0 | P101: =IFERROR(VLOOKUP(N101,'Equip. Data'!$J$3:$K$7,2,FALSE),"") ->  | Q101: 0 | R101: 3.337661777
B102: Heating (Electricity) | C102: 2002-05-01T03:00:00 | D102: 2.2 | E102: 7.06 | F102: 24.08872 | G102: =IF(D102>=Dashboard!$C$18,Dashboard!$C$15,"") -> Mini Split HP | H102: =IF(G102=Dashboard!$C$15,Dashboard!$C$16,"") -> AM036 | I102: =IFERROR(_xlfn.LET( _xlpm.type,G102, _xlpm.size,H102, _xlpm.temp,D102, _xlpm.temps,_xlfn._xlws.FILTER('Equip. Data'!$D$4:$D$63,('Equip. Data'!$B$4:$B$63=_xlpm.type)*('Equip. Data'!$E$4:$E$63=_xlpm.size)),_xlpm.caps,_xlfn._xlws.FILTER('Equip. Data'!$F$4:$F$63,('Equip. Data'!$B$4:$B$63=_xlpm.type)*('Equip. Data'!$E$4:$E$63=_xlpm.size)), INDEX(_xlpm.caps, _xlfn.XMATCH(MIN(ABS(_xlpm.temps-_xlpm.temp)), ABS(_xlpm.temps-_xlpm.temp)))),0) -> 40.2 | J102: 24.08872 | K102: 7.06 | L102: =IFERROR(_xlfn.LET( _xlpm.type,G102, _xlpm.size,H102, _xlpm.temp,D102, _xlpm.temps,_xlfn._xlws.FILTER('Equip. Data'!$D$4:$D$63,('Equip. Data'!$B$4:$B$63=_xlpm.type)*('Equip. Data'!$E$4:$E$63=_xlpm.size)),_xlpm.cops,_xlfn._xlws.FILTER('Equip. Data'!$H$4:$H$63,('Equip. Data'!$B$4:$B$63=_xlpm.type)*('Equip. Data'!$E$4:$E$63=_xlpm.size)), INDEX(_xlpm.cops, _xlfn.XMATCH(MIN(ABS(_xlpm.temps-_xlpm.temp)), ABS(_xlpm.temps-_xlpm.temp)))),0) -> 3.337661777 | M102: 2.115253274 | N102: =IF(D102<Dashboard!$C$18,Dashboard!$D$15,"") ->  | O102: 0 | P102: =IFERROR(VLOOKUP(N102,'Equip. Data'!$J$3:$K$7,2,FALSE),"") ->  | Q102: 0 | R102: 3.337661777
B103: Heating (Electricity) | C103: 2002-05-01T04:00:00 | D103: 2.2 | E103: 7.11 | F103: 24.25932 | G103: =IF(D103>=Dashboard!$C$18,Dashboard!$C$15,"") -> Mini Split HP | H103: =IF(G103=Dashboard!$C$15,Dashboard!$C$16,"") -> AM036 | I103: =IFERROR(_xlfn.LET( _xlpm.type,G103, _xlpm.size,H103, _xlpm.temp,D103, _xlpm.temps,_xlfn._xlws.FILTER('Equip. Data'!$D$4:$D$63,('Equip. Data'!$B$4:$B$63=_xlpm.type)*('Equip. Data'!$E$4:$E$63=_xlpm.size)),_xlpm.caps,_xlfn._xlws.FILTER('Equip. Data'!$F$4:$F$63,('Equip. Data'!$B$4:$B$63=_xlpm.type)*('Equip. Data'!$E$4:$E$63=_xlpm.size)), INDEX(_xlpm.caps, _xlfn.XMATCH(MIN(ABS(_xlpm.temps-_xlpm.temp)), ABS(_xlpm.temps-_xlpm.temp)))),0) -> 40.2 | J103: 24.25932 | K103: 7.11 | L103: =IFERROR(_xlfn.LET( _xlpm.type,G103, _xlpm.size,H103, _xlpm.temp,D103, _xlpm.temps,_xlfn._xlws.FILTER('Equip. Data'!$D$4:$D$63,('Equip. Data'!$B$4:$B$63=_xlpm.type)*('Equip. Data'!$E$4:$E$63=_xlpm.size)),_xlpm.cops,_xlfn._xlws.FILTER('Equip. Data'!$H$4:$H$63,('Equip. Data'!$B$4:$B$63=_xlpm.type)*('Equip. Data'!$E$4:$E$63=_xlpm.size)), INDEX(_xlpm.cops, _xlfn.XMATCH(MIN(ABS(_xlpm.temps-_xlpm.temp)), ABS(_xlpm.temps-_xlpm.temp)))),0) -> 3.337661777 | M103: 2.130233821 | N103: =IF(D103<Dashboard!$C$18,Dashboard!$D$15,"") ->  | O103: 0 | P103: =IFERROR(VLOOKUP(N103,'Equip. Data'!$J$3:$K$7,2,FALSE),"") ->  | Q103: 0 | R103: 3.337661777
B104: Heating (Electricity) | C104: 2002-05-01T05:00:00 | D104: 2 | E104: 7.16 | F104: 24.42992 | G104: =IF(D104>=Dashboard!$C$18,Dashboard!$C$15,"") -> Mini Split HP | H104: =IF(G104=Dashboard!$C$15,Dashboard!$C$16,"") -> AM036 | I104: =IFERROR(_xlfn.LET( _xlpm.type,G104, _xlpm.size,H104, _xlpm.temp,D104, _xlpm.temps,_xlfn._xlws.FILTER('Equip. Data'!$D$4:$D$63,('Equip. Data'!$B$4:$B$63=_xlpm.type)*('Equip. Data'!$E$4:$E$63=_xlpm.size)),_xlpm.caps,_xlfn._xlws.FILTER('Equip. Data'!$F$4:$F$63,('Equip. Data'!$B$4:$B$63=_xlpm.type)*('Equip. Data'!$E$4:$E$63=_xlpm.size)), INDEX(_xlpm.caps, _xlfn.XMATCH(MIN(ABS(_xlpm.temps-_xlpm.temp)), ABS(_xlpm.temps-_xlpm.temp)))),0) -> 40.2 | J104: 24.42992 | K104: 7.16 | L104: =IFERROR(_xlfn.LET( _xlpm.type,G104, _xlpm.size,H104, _xlpm.temp,D104, _xlpm.temps,_xlfn._xlws.FILTER('Equip. Data'!$D$4:$D$63,('Equip. Data'!$B$4:$B$63=_xlpm.type)*('Equip. Data'!$E$4:$E$63=_xlpm.size)),_xlpm.cops,_xlfn._xlws.FILTER('Equip. Data'!$H$4:$H$63,('Equip. Data'!$B$4:$B$63=_xlpm.type)*('Equip. Data'!$E$4:$E$63=_xlpm.size)), INDEX(_xlpm.cops, _xlfn.XMATCH(MIN(ABS(_xlpm.temps-_xlpm.temp)), ABS(_xlpm.temps-_xlpm.temp)))),0) -> 3.337661777 | M104: 2.145214368 | N104: =IF(D104<Dashboard!$C$18,Dashboard!$D$15,"") ->  | O104: 0 | P104: =IFERROR(VLOOKUP(N104,'Equip. Data'!$J$3:$K$7,2,FALSE),"") ->  | Q104: 0 | R104: 3.337661777
B105: Heating (Electricity) | C105: 2002-05-01T06:00:00 | D105: 1.7 | E105: 7.24 | F105: 24.70288 | G105: =IF(D105>=Dashboard!$C$18,Dashboard!$C$15,"") -> Mini Split HP | H105: =IF(G105=Dashboard!$C$15,Dashboard!$C$16,"") -> AM036 | I105: =IFERROR(_xlfn.LET( _xlpm.type,G105, _xlpm.size,H105, _xlpm.temp,D105, _xlpm.temps,_xlfn._xlws.FILTER('Equip. Data'!$D$4:$D$63,('Equip. Data'!$B$4:$B$63=_xlpm.type)*('Equip. Data'!$E$4:$E$63=_xlpm.size)),_xlpm.caps,_xlfn._xlws.FILTER('Equip. Data'!$F$4:$F$63,('Equip. Data'!$B$4:$B$63=_xlpm.type)*('Equip. Data'!$E$4:$E$63=_xlpm.size)), INDEX(_xlpm.caps, _xlfn.XMATCH(MIN(ABS(_xlpm.temps-_xlpm.temp)), ABS(_xlpm.temps-_xlpm.temp)))),0) -> 40.2 | J105: 24.70288 | K105: 7.24 | L105: =IFERROR(_xlfn.LET( _xlpm.type,G105, _xlpm.size,H105, _xlpm.temp,D105, _xlpm.temps,_xlfn._xlws.FILTER('Equip. Data'!$D$4:$D$63,('Equip. Data'!$B$4:$B$63=_xlpm.type)*('Equip. Data'!$E$4:$E$63=_xlpm.size)),_xlpm.cops,_xlfn._xlws.FILTER('Equip. Data'!$H$4:$H$63,('Equip. Data'!$B$4:$B$63=_xlpm.type)*('Equip. Data'!$E$4:$E$63=_xlpm.size)), INDEX(_xlpm.cops, _xlfn.XMATCH(MIN(ABS(_xlpm.temps-_xlpm.temp)), ABS(_xlpm.temps-_xlpm.temp)))),0) -> 3.337661777 | M105: 2.169183244 | N105: =IF(D105<Dashboard!$C$18,Dashboard!$D$15,"") ->  | O105: 0 | P105: =IFERROR(VLOOKUP(N105,'Equip. Data'!$J$3:$K$7,2,FALSE),"") ->  | Q105: 0 | R105: 3.337661777
B106: Heating (Electricity) | C106: 2002-05-01T07:00:00 | D106: 1.5 | E106: 7.2 | F106: 24.5664 | G106: =IF(D106>=Dashboard!$C$18,Dashboard!$C$15,"") -> Mini Split HP | H106: =IF(G106=Dashboard!$C$15,Dashboard!$C$16,"") -> AM036 | I106: =IFERROR(_xlfn.LET( _xlpm.type,G106, _xlpm.size,H106, _xlpm.temp,D106, _xlpm.temps,_xlfn._xlws.FILTER('Equip. Data'!$D$4:$D$63,('Equip. Data'!$B$4:$B$63=_xlpm.type)*('Equip. Data'!$E$4:$E$63=_xlpm.size)),_xlpm.caps,_xlfn._xlws.FILTER('Equip. Data'!$F$4:$F$63,('Equip. Data'!$B$4:$B$63=_xlpm.type)*('Equip. Data'!$E$4:$E$63=_xlpm.size)), INDEX(_xlpm.caps, _xlfn.XMATCH(MIN(ABS(_xlpm.temps-_xlpm.temp)), ABS(_xlpm.temps-_xlpm.temp)))),0) -> 40.2 | J106: 24.5664 | K106: 7.2 | L106: =IFERROR(_xlfn.LET( _xlpm.type,G106, _xlpm.size,H106, _xlpm.temp,D106, _xlpm.temps,_xlfn._xlws.FILTER('Equip. Data'!$D$4:$D$63,('Equip. Data'!$B$4:$B$63=_xlpm.type)*('Equip. Data'!$E$4:$E$63=_xlpm.size)),_xlpm.cops,_xlfn._xlws.FILTER('Equip. Data'!$H$4:$H$63,('Equip. Data'!$B$4:$B$63=_xlpm.type)*('Equip. Data'!$E$4:$E$63=_xlpm.size)), INDEX(_xlpm.cops, _xlfn.XMATCH(MIN(ABS(_xlpm.temps-_xlpm.temp)), ABS(_xlpm.temps-_xlpm.temp)))),0) -> 3.337661777 | M106: 2.157198806 | N106: =IF(D106<Dashboard!$C$18,Dashboard!$D$15,"") ->  | O106: 0 | P106: =IFERROR(VLOOKUP(N106,'Equip. Data'!$J$3:$K$7,2,FALSE),"") ->  | Q106: 0 | R106: 3.337661777
B107: Heating (Electricity) | C107: 2002-05-01T08:00:00 | D107: 1.5 | E107: 7.14 | F107: 24.36168 | G107: =IF(D107>=Dashboard!$C$18,Dashboard!$C$15,"") -> Mini Split HP | H107: =IF(G107=Dashboard!$C$15,Dashboard!$C$16,"") -> AM036 | I107: =IFERROR(_xlfn.LET( _xlpm.type,G107, _xlpm.size,H107, _xlpm.temp,D107, _xlpm.temps,_xlfn._xlws.FILTER('Equip. Data'!$D$4:$D$63,('Equip. Data'!$B$4:$B$63=_xlpm.type)*('Equip. Data'!$E$4:$E$63=_xlpm.size)),_xlpm.caps,_xlfn._xlws.FILTER('Equip. Data'!$F$4:$F$63,('Equip. Data'!$B$4:$B$63=_xlpm.type)*('Equip. Data'!$E$4:$E$63=_xlpm.size)), INDEX(_xlpm.caps, _xlfn.XMATCH(MIN(ABS(_xlpm.temps-_xlpm.temp)), ABS(_xlpm.temps-_xlpm.temp)))),0) -> 40.2 | J107: 24.36168 | K107: 7.14 | L107: =IFERROR(_xlfn.LET( _xlpm.type,G107, _xlpm.size,H107, _xlpm.temp,D107, _xlpm.temps,_xlfn._xlws.FILTER('Equip. Data'!$D$4:$D$63,('Equip. Data'!$B$4:$B$63=_xlpm.type)*('Equip. Data'!$E$4:$E$63=_xlpm.size)),_xlpm.cops,_xlfn._xlws.FILTER('Equip. Data'!$H$4:$H$63,('Equip. Data'!$B$4:$B$63=_xlpm.type)*('Equip. Data'!$E$4:$E$63=_xlpm.size)), INDEX(_xlpm.cops, _xlfn.XMATCH(MIN(ABS(_xlpm.temps-_xlpm.temp)), ABS(_xlpm.temps-_xlpm.temp)))),0) -> 3.337661777 | M107: 2.139222149 | N107: =IF(D107<Dashboard!$C$18,Dashboard!$D$15,"") ->  | O107: 0 | P107: =IFERROR(VLOOKUP(N107,'Equip. Data'!$J$3:$K$7,2,FALSE),"") ->  | Q107: 0 | R107: 3.337661777
B108: Heating (Electricity) | C108: 2002-05-01T09:00:00 | D108: 1.6 | E108: 7.02 | F108: 23.95224 | G108: =IF(D108>=Dashboard!$C$18,Dashboard!$C$15,"") -> Mini Split HP | H108: =IF(G108=Dashboard!$C$15,Dashboard!$C$16,"") -> AM036 | I108: =IFERROR(_xlfn.LET( _xlpm.type,G108, _xlpm.size,H108, _xlpm.temp,D108, _xlpm.temps,_xlfn._xlws.FILTER('Equip. Data'!$D$4:$D$63,('Equip. Data'!$B$4:$B$63=_xlpm.type)*('Equip. Data'!$E$4:$E$63=_xlpm.size)),_xlpm.caps,_xlfn._xlws.FILTER('Equip. Data'!$F$4:$F$63,('Equip. Data'!$B$4:$B$63=_xlpm.type)*('Equip. Data'!$E$4:$E$63=_xlpm.size)), INDEX(_xlpm.caps, _xlfn.XMATCH(MIN(ABS(_xlpm.temps-_xlpm.temp)), ABS(_xlpm.temps-_xlpm.temp)))),0) -> 40.2 | J108: 23.95224 | K108: 7.02 | L108: =IFERROR(_xlfn.LET( _xlpm.type,G108, _xlpm.size,H108, _xlpm.temp,D108, _xlpm.temps,_xlfn._xlws.FILTER('Equip. Data'!$D$4:$D$63,('Equip. Data'!$B$4:$B$63=_xlpm.type)*('Equip. Data'!$E$4:$E$63=_xlpm.size)),_xlpm.cops,_xlfn._xlws.FILTER('Equip. Data'!$H$4:$H$63,('Equip. Data'!$B$4:$B$63=_xlpm.type)*('Equip. Data'!$E$4:$E$63=_xlpm.size)), INDEX(_xlpm.cops, _xlfn.XMATCH(MIN(ABS(_xlpm.temps-_xlpm.temp)), ABS(_xlpm.temps-_xlpm.temp)))),0) -> 3.337661777 | M108: 2.103268836 | N108: =IF(D108<Dashboard!$C$18,Dashboard!$D$15,"") ->  | O108: 0 | P108: =IFERROR(VLOOKUP(N108,'Equip. Data'!$J$3:$K$7,2,FALSE),"") ->  | Q108: 0 | R108: 3.337661777
B109: Heating (Electricity) | C109: 2002-05-01T10:00:00 | D109: 2 | E109: 6.84 | F109: 23.33808 | G109: =IF(D109>=Dashboard!$C$18,Dashboard!$C$15,"") -> Mini Split HP | H109: =IF(G109=Dashboard!$C$15,Dashboard!$C$16,"") -> AM036 | I109: =IFERROR(_xlfn.LET( _xlpm.type,G109, _xlpm.size,H109, _xlpm.temp,D109, _xlpm.temps,_xlfn._xlws.FILTER('Equip. Data'!$D$4:$D$63,('Equip. Data'!$B$4:$B$63=_xlpm.type)*('Equip. Data'!$E$4:$E$63=_xlpm.size)),_xlpm.caps,_xlfn._xlws.FILTER('Equip. Data'!$F$4:$F$63,('Equip. Data'!$B$4:$B$63=_xlpm.type)*('Equip. Data'!$E$4:$E$63=_xlpm.size)), INDEX(_xlpm.caps, _xlfn.XMATCH(MIN(ABS(_xlpm.temps-_xlpm.temp)), ABS(_xlpm.temps-_xlpm.temp)))),0) -> 40.2 | J109: 23.33808 | K109: 6.84 | L109: =IFERROR(_xlfn.LET( _xlpm.type,G109, _xlpm.size,H109, _xlpm.temp,D109, _xlpm.temps,_xlfn._xlws.FILTER('Equip. Data'!$D$4:$D$63,('Equip. Data'!$B$4:$B$63=_xlpm.type)*('Equip. Data'!$E$4:$E$63=_xlpm.size)),_xlpm.cops,_xlfn._xlws.FILTER('Equip. Data'!$H$4:$H$63,('Equip. Data'!$B$4:$B$63=_xlpm.type)*('Equip. Data'!$E$4:$E$63=_xlpm.size)), INDEX(_xlpm.cops, _xlfn.XMATCH(MIN(ABS(_xlpm.temps-_xlpm.temp)), ABS(_xlpm.temps-_xlpm.temp)))),0) -> 3.337661777 | M109: 2.049338866 | N109: =IF(D109<Dashboard!$C$18,Dashboard!$D$15,"") ->  | O109: 0 | P109: =IFERROR(VLOOKUP(N109,'Equip. Data'!$J$3:$K$7,2,FALSE),"") ->  | Q109: 0 | R109: 3.337661777
B110: Heating (Electricity) | C110: 2002-05-01T11:00:00 | D110: 2.5 | E110: 6.68 | F110: 22.79216 | G110: =IF(D110>=Dashboard!$C$18,Dashboard!$C$15,"") -> Mini Split HP | H110: =IF(G110=Dashboard!$C$15,Dashboard!$C$16,"") -> AM036 | I110: =IFERROR(_xlfn.LET( _xlpm.type,G110, _xlpm.size,H110, _xlpm.temp,D110, _xlpm.temps,_xlfn._xlws.FILTER('Equip. Data'!$D$4:$D$63,('Equip. Data'!$B$4:$B$63=_xlpm.type)*('Equip. Data'!$E$4:$E$63=_xlpm.size)),_xlpm.caps,_xlfn._xlws.FILTER('Equip. Data'!$F$4:$F$63,('Equip. Data'!$B$4:$B$63=_xlpm.type)*('Equip. Data'!$E$4:$E$63=_xlpm.size)), INDEX(_xlpm.caps, _xlfn.XMATCH(MIN(ABS(_xlpm.temps-_xlpm.temp)), ABS(_xlpm.temps-_xlpm.temp)))),0) -> 40.2 | J110: 22.79216 | K110: 6.68 | L110: =IFERROR(_xlfn.LET( _xlpm.type,G110, _xlpm.size,H110, _xlpm.temp,D110, _xlpm.temps,_xlfn._xlws.FILTER('Equip. Data'!$D$4:$D$63,('Equip. Data'!$B$4:$B$63=_xlpm.type)*('Equip. Data'!$E$4:$E$63=_xlpm.size)),_xlpm.cops,_xlfn._xlws.FILTER('Equip. Data'!$H$4:$H$63,('Equip. Data'!$B$4:$B$63=_xlpm.type)*('Equip. Data'!$E$4:$E$63=_xlpm.size)), INDEX(_xlpm.cops, _xlfn.XMATCH(MIN(ABS(_xlpm.temps-_xlpm.temp)), ABS(_xlpm.temps-_xlpm.temp)))),0) -> 3.337661777 | M110: 2.001401114 | N110: =IF(D110<Dashboard!$C$18,Dashboard!$D$15,"") ->  | O110: 0 | P110: =IFERROR(VLOOKUP(N110,'Equip. Data'!$J$3:$K$7,2,FALSE),"") ->  | Q110: 0 | R110: 3.337661777
B111: Heating (Electricity) | C111: 2002-05-01T12:00:00 | D111: 3.1 | E111: 6.43 | F111: 21.93916 | G111: =IF(D111>=Dashboard!$C$18,Dashboard!$C$15,"") -> Mini Split HP | H111: =IF(G111=Dashboard!$C$15,Dashboard!$C$16,"") -> AM036 | I111: =IFERROR(_xlfn.LET( _xlpm.type,G111, _xlpm.size,H111, _xlpm.temp,D111, _xlpm.temps,_xlfn._xlws.FILTER('Equip. Data'!$D$4:$D$63,('Equip. Data'!$B$4:$B$63=_xlpm.type)*('Equip. Data'!$E$4:$E$63=_xlpm.size)),_xlpm.caps,_xlfn._xlws.FILTER('Equip. Data'!$F$4:$F$63,('Equip. Data'!$B$4:$B$63=_xlpm.type)*('Equip. Data'!$E$4:$E$63=_xlpm.size)), INDEX(_xlpm.caps, _xlfn.XMATCH(MIN(ABS(_xlpm.temps-_xlpm.temp)), ABS(_xlpm.temps-_xlpm.temp)))),0) -> 40.2 | J111: 21.93916 | K111: 6.43 | L111: =IFERROR(_xlfn.LET( _xlpm.type,G111, _xlpm.size,H111, _xlpm.temp,D111, _xlpm.temps,_xlfn._xlws.FILTER('Equip. Data'!$D$4:$D$63,('Equip. Data'!$B$4:$B$63=_xlpm.type)*('Equip. Data'!$E$4:$E$63=_xlpm.size)),_xlpm.cops,_xlfn._xlws.FILTER('Equip. Data'!$H$4:$H$63,('Equip. Data'!$B$4:$B$63=_xlpm.type)*('Equip. Data'!$E$4:$E$63=_xlpm.size)), INDEX(_xlpm.cops, _xlfn.XMATCH(MIN(ABS(_xlpm.temps-_xlpm.temp)), ABS(_xlpm.temps-_xlpm.temp)))),0) -> 3.337661777 | M111: 1.926498378 | N111: =IF(D111<Dashboard!$C$18,Dashboard!$D$15,"") ->  | O111: 0 | P111: =IFERROR(VLOOKUP(N111,'Equip. Data'!$J$3:$K$7,2,FALSE),"") ->  | Q111: 0 | R111: 3.337661777
B112: Heating (Electricity) | C112: 2002-05-01T13:00:00 | D112: 3.3 | E112: 6.29 | F112: 21.46148 | G112: =IF(D112>=Dashboard!$C$18,Dashboard!$C$15,"") -> Mini Split HP | H112: =IF(G112=Dashboard!$C$15,Dashboard!$C$16,"") -> AM036 | I112: =IFERROR(_xlfn.LET( _xlpm.type,G112, _xlpm.size,H112, _xlpm.temp,D112, _xlpm.temps,_xlfn._xlws.FILTER('Equip. Data'!$D$4:$D$63,('Equip. Data'!$B$4:$B$63=_xlpm.type)*('Equip. Data'!$E$4:$E$63=_xlpm.size)),_xlpm.caps,_xlfn._xlws.FILTER('Equip. Data'!$F$4:$F$63,('Equip. Data'!$B$4:$B$63=_xlpm.type)*('Equip. Data'!$E$4:$E$63=_xlpm.size)), INDEX(_xlpm.caps, _xlfn.XMATCH(MIN(ABS(_xlpm.temps-_xlpm.temp)), ABS(_xlpm.temps-_xlpm.temp)))),0) -> 40.2 | J112: 21.46148 | K112: 6.29 | L112: =IFERROR(_xlfn.LET( _xlpm.type,G112, _xlpm.size,H112, _xlpm.temp,D112, _xlpm.temps,_xlfn._xlws.FILTER('Equip. Data'!$D$4:$D$63,('Equip. Data'!$B$4:$B$63=_xlpm.type)*('Equip. Data'!$E$4:$E$63=_xlpm.size)),_xlpm.cops,_xlfn._xlws.FILTER('Equip. Data'!$H$4:$H$63,('Equip. Data'!$B$4:$B$63=_xlpm.type)*('Equip. Data'!$E$4:$E$63=_xlpm.size)), INDEX(_xlpm.cops, _xlfn.XMATCH(MIN(ABS(_xlpm.temps-_xlpm.temp)), ABS(_xlpm.temps-_xlpm.temp)))),0) -> 3.337661777 | M112: 1.884552846 | N112: =IF(D112<Dashboard!$C$18,Dashboard!$D$15,"") ->  | O112: 0 | P112: =IFERROR(VLOOKUP(N112,'Equip. Data'!$J$3:$K$7,2,FALSE),"") ->  | Q112: 0 | R112: 3.337661777
B113: Heating (Electricity) | C113: 2002-05-01T14:00:00 | D113: 3.5 | E113: 6.24 | F113: 21.29088 | G113: =IF(D113>=Dashboard!$C$18,Dashboard!$C$15,"") -> Mini Split HP | H113: =IF(G113=Dashboard!$C$15,Dashboard!$C$16,"") -> AM036 | I113: =IFERROR(_xlfn.LET( _xlpm.type,G113, _xlpm.size,H113, _xlpm.temp,D113, _xlpm.temps,_xlfn._xlws.FILTER('Equip. Data'!$D$4:$D$63,('Equip. Data'!$B$4:$B$63=_xlpm.type)*('Equip. Data'!$E$4:$E$63=_xlpm.size)),_xlpm.caps,_xlfn._xlws.FILTER('Equip. Data'!$F$4:$F$63,('Equip. Data'!$B$4:$B$63=_xlpm.type)*('Equip. Data'!$E$4:$E$63=_xlpm.size)), INDEX(_xlpm.caps, _xlfn.XMATCH(MIN(ABS(_xlpm.temps-_xlpm.temp)), ABS(_xlpm.temps-_xlpm.temp)))),0) -> 40.2 | J113: 21.29088 | K113: 6.24 | L113: =IFERROR(_xlfn.LET( _xlpm.type,G113, _xlpm.size,H113, _xlpm.temp,D113, _xlpm.temps,_xlfn._xlws.FILTER('Equip. Data'!$D$4:$D$63,('Equip. Data'!$B$4:$B$63=_xlpm.type)*('Equip. Data'!$E$4:$E$63=_xlpm.size)),_xlpm.cops,_xlfn._xlws.FILTER('Equip. Data'!$H$4:$H$63,('Equip. Data'!$B$4:$B$63=_xlpm.type)*('Equip. Data'!$E$4:$E$63=_xlpm.size)), INDEX(_xlpm.cops, _xlfn.XMATCH(MIN(ABS(_xlpm.temps-_xlpm.temp)), ABS(_xlpm.temps-_xlpm.temp)))),0) -> 3.337661777 | M113: 1.869572299 | N113: =IF(D113<Dashboard!$C$18,Dashboard!$D$15,"") ->  | O113: 0 | P113: =IFERROR(VLOOKUP(N113,'Equip. Data'!$J$3:$K$7,2,FALSE),"") ->  | Q113: 0 | R113: 3.337661777
B114: Heating (Electricity) | C114: 2002-05-01T15:00:00 | D114: 3.9 | E114: 6.16 | F114: 21.01792 | G114: =IF(D114>=Dashboard!$C$18,Dashboard!$C$15,"") -> Mini Split HP | H114: =IF(G114=Dashboard!$C$15,Dashboard!$C$16,"") -> AM036 | I114: =IFERROR(_xlfn.LET( _xlpm.type,G114, _xlpm.size,H114, _xlpm.temp,D114, _xlpm.temps,_xlfn._xlws.FILTER('Equip. Data'!$D$4:$D$63,('Equip. Data'!$B$4:$B$63=_xlpm.type)*('Equip. Data'!$E$4:$E$63=_xlpm.size)),_xlpm.caps,_xlfn._xlws.FILTER('Equip. Data'!$F$4:$F$63,('Equip. Data'!$B$4:$B$63=_xlpm.type)*('Equip. Data'!$E$4:$E$63=_xlpm.size)), INDEX(_xlpm.caps, _xlfn.XMATCH(MIN(ABS(_xlpm.temps-_xlpm.temp)), ABS(_xlpm.temps-_xlpm.temp)))),0) -> 40.2 | J114: 21.01792 | K114: 6.16 | L114: =IFERROR(_xlfn.LET( _xlpm.type,G114, _xlpm.size,H114, _xlpm.temp,D114, _xlpm.temps,_xlfn._xlws.FILTER('Equip. Data'!$D$4:$D$63,('Equip. Data'!$B$4:$B$63=_xlpm.type)*('Equip. Data'!$E$4:$E$63=_xlpm.size)),_xlpm.cops,_xlfn._xlws.FILTER('Equip. Data'!$H$4:$H$63,('Equip. Data'!$B$4:$B$63=_xlpm.type)*('Equip. Data'!$E$4:$E$63=_xlpm.size)), INDEX(_xlpm.cops, _xlfn.XMATCH(MIN(ABS(_xlpm.temps-_xlpm.temp)), ABS(_xlpm.temps-_xlpm.temp)))),0) -> 3.337661777 | M114: 1.845603423 | N114: =IF(D114<Dashboard!$C$18,Dashboard!$D$15,"") ->  | O114: 0 | P114: =IFERROR(VLOOKUP(N114,'Equip. Data'!$J$3:$K$7,2,FALSE),"") ->  | Q114: 0 | R114: 3.337661777
B115: Heating (Electricity) | C115: 2002-05-01T16:00:00 | D115: 4.3 | E115: 6.08 | F115: 20.74496 | G115: =IF(D115>=Dashboard!$C$18,Dashboard!$C$15,"") -> Mini Split HP | H115: =IF(G115=Dashboard!$C$15,Dashboard!$C$16,"") -> AM036 | I115: =IFERROR(_xlfn.LET( _xlpm.type,G115, _xlpm.size,H115, _xlpm.temp,D115, _xlpm.temps,_xlfn._xlws.FILTER('Equip. Data'!$D$4:$D$63,('Equip. Data'!$B$4:$B$63=_xlpm.type)*('Equip. Data'!$E$4:$E$63=_xlpm.size)),_xlpm.caps,_xlfn._xlws.FILTER('Equip. Data'!$F$4:$F$63,('Equip. Data'!$B$4:$B$63=_xlpm.type)*('Equip. Data'!$E$4:$E$63=_xlpm.size)), INDEX(_xlpm.caps, _xlfn.XMATCH(MIN(ABS(_xlpm.temps-_xlpm.temp)), ABS(_xlpm.temps-_xlpm.temp)))),0) -> 40.2 | J115: 20.74496 | K115: 6.08 | L115: =IFERROR(_xlfn.LET( _xlpm.type,G115, _xlpm.size,H115, _xlpm.temp,D115, _xlpm.temps,_xlfn._xlws.FILTER('Equip. Data'!$D$4:$D$63,('Equip. Data'!$B$4:$B$63=_xlpm.type)*('Equip. Data'!$E$4:$E$63=_xlpm.size)),_xlpm.cops,_xlfn._xlws.FILTER('Equip. Data'!$H$4:$H$63,('Equip. Data'!$B$4:$B$63=_xlpm.type)*('Equip. Data'!$E$4:$E$63=_xlpm.size)), INDEX(_xlpm.cops, _xlfn.XMATCH(MIN(ABS(_xlpm.temps-_xlpm.temp)), ABS(_xlpm.temps-_xlpm.temp)))),0) -> 3.337661777 | M115: 1.821634547 | N115: =IF(D115<Dashboard!$C$18,Dashboard!$D$15,"") ->  | O115: 0 | P115: =IFERROR(VLOOKUP(N115,'Equip. Data'!$J$3:$K$7,2,FALSE),"") ->  | Q115: 0 | R115: 3.337661777
B116: Heating (Electricity) | C116: 2002-05-01T17:00:00 | D116: 4.4 | E116: 6.03 | F116: 20.57436 | G116: =IF(D116>=Dashboard!$C$18,Dashboard!$C$15,"") -> Mini Split HP | H116: =IF(G116=Dashboard!$C$15,Dashboard!$C$16,"") -> AM036 | I116: =IFERROR(_xlfn.LET( _xlpm.type,G116, _xlpm.size,H116, _xlpm.temp,D116, _xlpm.temps,_xlfn._xlws.FILTER('Equip. Data'!$D$4:$D$63,('Equip. Data'!$B$4:$B$63=_xlpm.type)*('Equip. Data'!$E$4:$E$63=_xlpm.size)),_xlpm.caps,_xlfn._xlws.FILTER('Equip. Data'!$F$4:$F$63,('Equip. Data'!$B$4:$B$63=_xlpm.type)*('Equip. Data'!$E$4:$E$63=_xlpm.size)), INDEX(_xlpm.caps, _xlfn.XMATCH(MIN(ABS(_xlpm.temps-_xlpm.temp)), ABS(_xlpm.temps-_xlpm.temp)))),0) -> 40.2 | J116: 20.57436 | K116: 6.03 | L116: =IFERROR(_xlfn.LET( _xlpm.type,G116, _xlpm.size,H116, _xlpm.temp,D116, _xlpm.temps,_xlfn._xlws.FILTER('Equip. Data'!$D$4:$D$63,('Equip. Data'!$B$4:$B$63=_xlpm.type)*('Equip. Data'!$E$4:$E$63=_xlpm.size)),_xlpm.cops,_xlfn._xlws.FILTER('Equip. Data'!$H$4:$H$63,('Equip. Data'!$B$4:$B$63=_xlpm.type)*('Equip. Data'!$E$4:$E$63=_xlpm.size)), INDEX(_xlpm.cops, _xlfn.XMATCH(MIN(ABS(_xlpm.temps-_xlpm.temp)), ABS(_xlpm.temps-_xlpm.temp)))),0) -> 3.337661777 | M116: 1.806654 | N116: =IF(D116<Dashboard!$C$18,Dashboard!$D$15,"") ->  | O116: 0 | P116: =IFERROR(VLOOKUP(N116,'Equip. Data'!$J$3:$K$7,2,FALSE),"") ->  | Q116: 0 | R116: 3.337661777
B117: Heating (Electricity) | C117: 2002-05-01T18:00:00 | D117: 4.9 | E117: 5.78 | F117: 19.72136 | G117: =IF(D117>=Dashboard!$C$18,Dashboard!$C$15,"") -> Mini Split HP | H117: =IF(G117=Dashboard!$C$15,Dashboard!$C$16,"") -> AM036 | I117: =IFERROR(_xlfn.LET( _xlpm.type,G117, _xlpm.size,H117, _xlpm.temp,D117, _xlpm.temps,_xlfn._xlws.FILTER('Equip. Data'!$D$4:$D$63,('Equip. Data'!$B$4:$B$63=_xlpm.type)*('Equip. Data'!$E$4:$E$63=_xlpm.size)),_xlpm.caps,_xlfn._xlws.FILTER('Equip. Data'!$F$4:$F$63,('Equip. Data'!$B$4:$B$63=_xlpm.type)*('Equip. Data'!$E$4:$E$63=_xlpm.size)), INDEX(_xlpm.caps, _xlfn.XMATCH(MIN(ABS(_xlpm.temps-_xlpm.temp)), ABS(_xlpm.temps-_xlpm.temp)))),0) -> 40.2 | J117: 19.72136 | K117: 5.78 | L117: =IFERROR(_xlfn.LET( _xlpm.type,G117, _xlpm.size,H117, _xlpm.temp,D117, _xlpm.temps,_xlfn._xlws.FILTER('Equip. Data'!$D$4:$D$63,('Equip. Data'!$B$4:$B$63=_xlpm.type)*('Equip. Data'!$E$4:$E$63=_xlpm.size)),_xlpm.cops,_xlfn._xlws.FILTER('Equip. Data'!$H$4:$H$63,('Equip. Data'!$B$4:$B$63=_xlpm.type)*('Equip. Data'!$E$4:$E$63=_xlpm.size)), INDEX(_xlpm.cops, _xlfn.XMATCH(MIN(ABS(_xlpm.temps-_xlpm.temp)), ABS(_xlpm.temps-_xlpm.temp)))),0) -> 3.681858148 | M117: 1.569859502 | N117: =IF(D117<Dashboard!$C$18,Dashboard!$D$15,"") ->  | O117: 0 | P117: =IFERROR(VLOOKUP(N117,'Equip. Data'!$J$3:$K$7,2,FALSE),"") ->  | Q117: 0 | R117: 3.681858148
B118: Heating (Electricity) | C118: 2002-05-01T19:00:00 | D118: 4.9 | E118: 5.4 | F118: 18.4248 | G118: =IF(D118>=Dashboard!$C$18,Dashboard!$C$15,"") -> Mini Split HP | H118: =IF(G118=Dashboard!$C$15,Dashboard!$C$16,"") -> AM036 | I118: =IFERROR(_xlfn.LET( _xlpm.type,G118, _xlpm.size,H118, _xlpm.temp,D118, _xlpm.temps,_xlfn._xlws.FILTER('Equip. Data'!$D$4:$D$63,('Equip. Data'!$B$4:$B$63=_xlpm.type)*('Equip. Data'!$E$4:$E$63=_xlpm.size)),_xlpm.caps,_xlfn._xlws.FILTER('Equip. Data'!$F$4:$F$63,('Equip. Data'!$B$4:$B$63=_xlpm.type)*('Equip. Data'!$E$4:$E$63=_xlpm.size)), INDEX(_xlpm.caps, _xlfn.XMATCH(MIN(ABS(_xlpm.temps-_xlpm.temp)), ABS(_xlpm.temps-_xlpm.temp)))),0) -> 40.2 | J118: 18.4248 | K118: 5.4 | L118: =IFERROR(_xlfn.LET( _xlpm.type,G118, _xlpm.size,H118, _xlpm.temp,D118, _xlpm.temps,_xlfn._xlws.FILTER('Equip. Data'!$D$4:$D$63,('Equip. Data'!$B$4:$B$63=_xlpm.type)*('Equip. Data'!$E$4:$E$63=_xlpm.size)),_xlpm.cops,_xlfn._xlws.FILTER('Equip. Data'!$H$4:$H$63,('Equip. Data'!$B$4:$B$63=_xlpm.type)*('Equip. Data'!$E$4:$E$63=_xlpm.size)), INDEX(_xlpm.cops, _xlfn.XMATCH(MIN(ABS(_xlpm.temps-_xlpm.temp)), ABS(_xlpm.temps-_xlpm.temp)))),0) -> 3.681858148 | M118: 1.466650746 | N118: =IF(D118<Dashboard!$C$18,Dashboard!$D$15,"") ->  | O118: 0 | P118: =IFERROR(VLOOKUP(N118,'Equip. Data'!$J$3:$K$7,2,FALSE),"") ->  | Q118: 0 | R118: 3.681858148
B119: Heating (Electricity) | C119: 2002-05-01T20:00:00 | D119: 5.1 | E119: 5.16 | F119: 17.60592 | G119: =IF(D119>=Dashboard!$C$18,Dashboard!$C$15,"") -> Mini Split HP | H119: =IF(G119=Dashboard!$C$15,Dashboard!$C$16,"") -> AM036 | I119: =IFERROR(_xlfn.LET( _xlpm.type,G119, _xlpm.size,H119, _xlpm.temp,D119, _xlpm.temps,_xlfn._xlws.FILTER('Equip. Data'!$D$4:$D$63,('Equip. Data'!$B$4:$B$63=_xlpm.type)*('Equip. Data'!$E$4:$E$63=_xlpm.size)),_xlpm.caps,_xlfn._xlws.FILTER('Equip. Data'!$F$4:$F$63,('Equip. Data'!$B$4:$B$63=_xlpm.type)*('Equip. Data'!$E$4:$E$63=_xlpm.size)), INDEX(_xlpm.caps, _xlfn.XMATCH(MIN(ABS(_xlpm.temps-_xlpm.temp)), ABS(_xlpm.temps-_xlpm.temp)))),0) -> 40.2 | J119: 17.60592 | K119: 5.16 | L119: =IFERROR(_xlfn.LET( _xlpm.type,G119, _xlpm.size,H119, _xlpm.temp,D119, _xlpm.temps,_xlfn._xlws.FILTER('Equip. Data'!$D$4:$D$63,('Equip. Data'!$B$4:$B$63=_xlpm.type)*('Equip. Data'!$E$4:$E$63=_xlpm.size)),_xlpm.cops,_xlfn._xlws.FILTER('Equip. Data'!$H$4:$H$63,('Equip. Data'!$B$4:$B$63=_xlpm.type)*('Equip. Data'!$E$4:$E$63=_xlpm.size)), INDEX(_xlpm.cops, _xlfn.XMATCH(MIN(ABS(_xlpm.temps-_xlpm.temp)), ABS(_xlpm.temps-_xlpm.temp)))),0) -> 3.681858148 | M119: 1.401466269 | N119: =IF(D119<Dashboard!$C$18,Dashboard!$D$15,"") ->  | O119: 0 | P119: =IFERROR(VLOOKUP(N119,'Equip. Data'!$J$3:$K$7,2,FALSE),"") ->  | Q119: 0 | R119: 3.681858148
B120: Heating (Electricity) | C120: 2002-05-01T21:00:00 | D120: 5.3 | E120: 5.09 | F120: 17.36708 | G120: =IF(D120>=Dashboard!$C$18,Dashboard!$C$15,"") -> Mini Split HP | H120: =IF(G120=Dashboard!$C$15,Dashboard!$C$16,"") -> AM036 | I120: =IFERROR(_xlfn.LET( _xlpm.type,G120, _xlpm.size,H120, _xlpm.temp,D120, _xlpm.temps,_xlfn._xlws.FILTER('Equip. Data'!$D$4:$D$63,('Equip. Data'!$B$4:$B$63=_xlpm.type)*('Equip. Data'!$E$4:$E$63=_xlpm.size)),_xlpm.caps,_xlfn._xlws.FILTER('Equip. Data'!$F$4:$F$63,('Equip. Data'!$B$4:$B$63=_xlpm.type)*('Equip. Data'!$E$4:$E$63=_xlpm.size)), INDEX(_xlpm.caps, _xlfn.XMATCH(MIN(ABS(_xlpm.temps-_xlpm.temp)), ABS(_xlpm.temps-_xlpm.temp)))),0) -> 40.2 | J120: 17.36708 | K120: 5.09 | L120: =IFERROR(_xlfn.LET( _xlpm.type,G120, _xlpm.size,H120, _xlpm.temp,D120, _xlpm.temps,_xlfn._xlws.FILTER('Equip. Data'!$D$4:$D$63,('Equip. Data'!$B$4:$B$63=_xlpm.type)*('Equip. Data'!$E$4:$E$63=_xlpm.size)),_xlpm.cops,_xlfn._xlws.FILTER('Equip. Data'!$H$4:$H$63,('Equip. Data'!$B$4:$B$63=_xlpm.type)*('Equip. Data'!$E$4:$E$63=_xlpm.size)), INDEX(_xlpm.cops, _xlfn.XMATCH(MIN(ABS(_xlpm.temps-_xlpm.temp)), ABS(_xlpm.temps-_xlpm.temp)))),0) -> 3.681858148 | M120: 1.382454129 | N120: =IF(D120<Dashboard!$C$18,Dashboard!$D$15,"") ->  | O120: 0 | P120: =IFERROR(VLOOKUP(N120,'Equip. Data'!$J$3:$K$7,2,FALSE),"") ->  | Q120: 0 | R120: 3.681858148
B121: Heating (Electricity) | C121: 2002-05-01T22:00:00 | D121: 5.3 | E121: 5.15 | F121: 17.5718 | G121: =IF(D121>=Dashboard!$C$18,Dashboard!$C$15,"") -> Mini Split HP | H121: =IF(G121=Dashboard!$C$15,Dashboard!$C$16,"") -> AM036 | I121: =IFERROR(_xlfn.LET( _xlpm.type,G121, _xlpm.size,H121, _xlpm.temp,D121, _xlpm.temps,_xlfn._xlws.FILTER('Equip. Data'!$D$4:$D$63,('Equip. Data'!$B$4:$B$63=_xlpm.type)*('Equip. Data'!$E$4:$E$63=_xlpm.size)),_xlpm.caps,_xlfn._xlws.FILTER('Equip. Data'!$F$4:$F$63,('Equip. Data'!$B$4:$B$63=_xlpm.type)*('Equip. Data'!$E$4:$E$63=_xlpm.size)), INDEX(_xlpm.caps, _xlfn.XMATCH(MIN(ABS(_xlpm.temps-_xlpm.temp)), ABS(_xlpm.temps-_xlpm.temp)))),0) -> 40.2 | J121: 17.5718 | K121: 5.15 | L121: =IFERROR(_xlfn.LET( _xlpm.type,G121, _xlpm.size,H121, _xlpm.temp,D121, _xlpm.temps,_xlfn._xlws.FILTER('Equip. Data'!$D$4:$D$63,('Equip. Data'!$B$4:$B$63=_xlpm.type)*('Equip. Data'!$E$4:$E$63=_xlpm.size)),_xlpm.cops,_xlfn._xlws.FILTER('Equip. Data'!$H$4:$H$63,('Equip. Data'!$B$4:$B$63=_xlpm.type)*('Equip. Data'!$E$4:$E$63=_xlpm.size)), INDEX(_xlpm.cops, _xlfn.XMATCH(MIN(ABS(_xlpm.temps-_xlpm.temp)), ABS(_xlpm.temps-_xlpm.temp)))),0) -> 3.681858148 | M121: 1.398750249 | N121: =IF(D121<Dashboard!$C$18,Dashboard!$D$15,"") ->  | O121: 0 | P121: =IFERROR(VLOOKUP(N121,'Equip. Data'!$J$3:$K$7,2,FALSE),"") ->  | Q121: 0 | R121: 3.681858148
B122: Heating (Electricity) | C122: 2002-05-01T23:00:00 | D122: 5.6 | E122: 5.38 | F122: 18.35656 | G122: =IF(D122>=Dashboard!$C$18,Dashboard!$C$15,"") -> Mini Split HP | H122: =IF(G122=Dashboard!$C$15,Dashboard!$C$16,"") -> AM036 | I122: =IFERROR(_xlfn.LET( _xlpm.type,G122, _xlpm.size,H122, _xlpm.temp,D122, _xlpm.temps,_xlfn._xlws.FILTER('Equip. Data'!$D$4:$D$63,('Equip. Data'!$B$4:$B$63=_xlpm.type)*('Equip. Data'!$E$4:$E$63=_xlpm.size)),_xlpm.caps,_xlfn._xlws.FILTER('Equip. Data'!$F$4:$F$63,('Equip. Data'!$B$4:$B$63=_xlpm.type)*('Equip. Data'!$E$4:$E$63=_xlpm.size)), INDEX(_xlpm.caps, _xlfn.XMATCH(MIN(ABS(_xlpm.temps-_xlpm.temp)), ABS(_xlpm.temps-_xlpm.temp)))),0) -> 40.2 | J122: 18.35656 | K122: 5.38 | L122: =IFERROR(_xlfn.LET( _xlpm.type,G122, _xlpm.size,H122, _xlpm.temp,D122, _xlpm.temps,_xlfn._xlws.FILTER('Equip. Data'!$D$4:$D$63,('Equip. Data'!$B$4:$B$63=_xlpm.type)*('Equip. Data'!$E$4:$E$63=_xlpm.size)),_xlpm.cops,_xlfn._xlws.FILTER('Equip. Data'!$H$4:$H$63,('Equip. Data'!$B$4:$B$63=_xlpm.type)*('Equip. Data'!$E$4:$E$63=_xlpm.size)), INDEX(_xlpm.cops, _xlfn.XMATCH(MIN(ABS(_xlpm.temps-_xlpm.temp)), ABS(_xlpm.temps-_xlpm.temp)))),0) -> 3.681858148 | M122: 1.461218706 | N122: =IF(D122<Dashboard!$C$18,Dashboard!$D$15,"") ->  | O122: 0 | P122: =IFERROR(VLOOKUP(N122,'Equip. Data'!$J$3:$K$7,2,FALSE),"") ->  | Q122: 0 | R122: 3.681858148
B123: Heating (Electricity) | C123: 2002-06-01 | D123: 5.8 | E123: 5.56 | F123: 18.97072 | G123: =IF(D123>=Dashboard!$C$18,Dashboard!$C$15,"") -> Mini Split HP | H123: =IF(G123=Dashboard!$C$15,Dashboard!$C$16,"") -> AM036 | I123: =IFERROR(_xlfn.LET( _xlpm.type,G123, _xlpm.size,H123, _xlpm.temp,D123, _xlpm.temps,_xlfn._xlws.FILTER('Equip. Data'!$D$4:$D$63,('Equip. Data'!$B$4:$B$63=_xlpm.type)*('Equip. Data'!$E$4:$E$63=_xlpm.size)),_xlpm.caps,_xlfn._xlws.FILTER('Equip. Data'!$F$4:$F$63,('Equip. Data'!$B$4:$B$63=_xlpm.type)*('Equip. Data'!$E$4:$E$63=_xlpm.size)), INDEX(_xlpm.caps, _xlfn.XMATCH(MIN(ABS(_xlpm.temps-_xlpm.temp)), ABS(_xlpm.temps-_xlpm.temp)))),0) -> 40.2 | J123: 18.97072 | K123: 5.56 | L123: =IFERROR(_xlfn.LET( _xlpm.type,G123, _xlpm.size,H123, _xlpm.temp,D123, _xlpm.temps,_xlfn._xlws.FILTER('Equip. Data'!$D$4:$D$63,('Equip. Data'!$B$4:$B$63=_xlpm.type)*('Equip. Data'!$E$4:$E$63=_xlpm.size)),_xlpm.cops,_xlfn._xlws.FILTER('Equip. Data'!$H$4:$H$63,('Equip. Data'!$B$4:$B$63=_xlpm.type)*('Equip. Data'!$E$4:$E$63=_xlpm.size)), INDEX(_xlpm.cops, _xlfn.XMATCH(MIN(ABS(_xlpm.temps-_xlpm.temp)), ABS(_xlpm.temps-_xlpm.temp)))),0) -> 3.681858148 | M123: 1.510107065 | N123: =IF(D123<Dashboard!$C$18,Dashboard!$D$15,"") ->  | O123: 0 | P123: =IFERROR(VLOOKUP(N123,'Equip. Data'!$J$3:$K$7,2,FALSE),"") ->  | Q123: 0 | R123: 3.681858148
B124: Heating (Electricity) | C124: 2002-06-01T01:00:00 | D124: 5.6 | E124: 5.75 | F124: 19.619 | G124: =IF(D124>=Dashboard!$C$18,Dashboard!$C$15,"") -> Mini Split HP | H124: =IF(G124=Dashboard!$C$15,Dashboard!$C$16,"") -> AM036 | I124: =IFERROR(_xlfn.LET( _xlpm.type,G124, _xlpm.size,H124, _xlpm.temp,D124, _xlpm.temps,_xlfn._xlws.FILTER('Equip. Data'!$D$4:$D$63,('Equip. Data'!$B$4:$B$63=_xlpm.type)*('Equip. Data'!$E$4:$E$63=_xlpm.size)),_xlpm.caps,_xlfn._xlws.FILTER('Equip. Data'!$F$4:$F$63,('Equip. Data'!$B$4:$B$63=_xlpm.type)*('Equip. Data'!$E$4:$E$63=_xlpm.size)), INDEX(_xlpm.caps, _xlfn.XMATCH(MIN(ABS(_xlpm.temps-_xlpm.temp)), ABS(_xlpm.temps-_xlpm.temp)))),0) -> 40.2 | J124: 19.619 | K124: 5.75 | L124: =IFERROR(_xlfn.LET( _xlpm.type,G124, _xlpm.size,H124, _xlpm.temp,D124, _xlpm.temps,_xlfn._xlws.FILTER('Equip. Data'!$D$4:$D$63,('Equip. Data'!$B$4:$B$63=_xlpm.type)*('Equip. Data'!$E$4:$E$63=_xlpm.size)),_xlpm.cops,_xlfn._xlws.FILTER('Equip. Data'!$H$4:$H$63,('Equip. Data'!$B$4:$B$63=_xlpm.type)*('Equip. Data'!$E$4:$E$63=_xlpm.size)), INDEX(_xlpm.cops, _xlfn.XMATCH(MIN(ABS(_xlpm.temps-_xlpm.temp)), ABS(_xlpm.temps-_xlpm.temp)))),0) -> 3.681858148 | M124: 1.561711443 | N124: =IF(D124<Dashboard!$C$18,Dashboard!$D$15,"") ->  | O124: 0 | P124: =IFERROR(VLOOKUP(N124,'Equip. Data'!$J$3:$K$7,2,FALSE),"") ->  | Q124: 0 | R124: 3.681858148
B125: Heating (Electricity) | C125: 2002-06-01T02:00:00 | D125: 5.7 | E125: 5.98 | F125: 20.40376 | G125: =IF(D125>=Dashboard!$C$18,Dashboard!$C$15,"") -> Mini Split HP | H125: =IF(G125=Dashboard!$C$15,Dashboard!$C$16,"") -> AM036 | I125: =IFERROR(_xlfn.LET( _xlpm.type,G125, _xlpm.size,H125, _xlpm.temp,D125, _xlpm.temps,_xlfn._xlws.FILTER('Equip. Data'!$D$4:$D$63,('Equip. Data'!$B$4:$B$63=_xlpm.type)*('Equip. Data'!$E$4:$E$63=_xlpm.size)),_xlpm.caps,_xlfn._xlws.FILTER('Equip. Data'!$F$4:$F$63,('Equip. Data'!$B$4:$B$63=_xlpm.type)*('Equip. Data'!$E$4:$E$63=_xlpm.size)), INDEX(_xlpm.caps, _xlfn.XMATCH(MIN(ABS(_xlpm.temps-_xlpm.temp)), ABS(_xlpm.temps-_xlpm.temp)))),0) -> 40.2 | J125: 20.40376 | K125: 5.98 | L125: =IFERROR(_xlfn.LET( _xlpm.type,G125, _xlpm.size,H125, _xlpm.temp,D125, _xlpm.temps,_xlfn._xlws.FILTER('Equip. Data'!$D$4:$D$63,('Equip. Data'!$B$4:$B$63=_xlpm.type)*('Equip. Data'!$E$4:$E$63=_xlpm.size)),_xlpm.cops,_xlfn._xlws.FILTER('Equip. Data'!$H$4:$H$63,('Equip. Data'!$B$4:$B$63=_xlpm.type)*('Equip. Data'!$E$4:$E$63=_xlpm.size)), INDEX(_xlpm.cops, _xlfn.XMATCH(MIN(ABS(_xlpm.temps-_xlpm.temp)), ABS(_xlpm.temps-_xlpm.temp)))),0) -> 3.681858148 | M125: 1.6241799 | N125: =IF(D125<Dashboard!$C$18,Dashboard!$D$15,"") ->  | O125: 0 | P125: =IFERROR(VLOOKUP(N125,'Equip. Data'!$J$3:$K$7,2,FALSE),"") ->  | Q125: 0 | R125: 3.681858148
B126: Heating (Electricity) | C126: 2002-06-01T03:00:00 | D126: 5.4 | E126: 6.01 | F126: 20.50612 | G126: =IF(D126>=Dashboard!$C$18,Dashboard!$C$15,"") -> Mini Split HP | H126: =IF(G126=Dashboard!$C$15,Dashboard!$C$16,"") -> AM036 | I126: =IFERROR(_xlfn.LET( _xlpm.type,G126, _xlpm.size,H126, _xlpm.temp,D126, _xlpm.temps,_xlfn._xlws.FILTER('Equip. Data'!$D$4:$D$63,('Equip. Data'!$B$4:$B$63=_xlpm.type)*('Equip. Data'!$E$4:$E$63=_xlpm.size)),_xlpm.caps,_xlfn._xlws.FILTER('Equip. Data'!$F$4:$F$63,('Equip. Data'!$B$4:$B$63=_xlpm.type)*('Equip. Data'!$E$4:$E$63=_xlpm.size)), INDEX(_xlpm.caps, _xlfn.XMATCH(MIN(ABS(_xlpm.temps-_xlpm.temp)), ABS(_xlpm.temps-_xlpm.temp)))),0) -> 40.2 | J126: 20.50612 | K126: 6.01 | L126: =IFERROR(_xlfn.LET( _xlpm.type,G126, _xlpm.size,H126, _xlpm.temp,D126, _xlpm.temps,_xlfn._xlws.FILTER('Equip. Data'!$D$4:$D$63,('Equip. Data'!$B$4:$B$63=_xlpm.type)*('Equip. Data'!$E$4:$E$63=_xlpm.size)),_xlpm.cops,_xlfn._xlws.FILTER('Equip. Data'!$H$4:$H$63,('Equip. Data'!$B$4:$B$63=_xlpm.type)*('Equip. Data'!$E$4:$E$63=_xlpm.size)), INDEX(_xlpm.cops, _xlfn.XMATCH(MIN(ABS(_xlpm.temps-_xlpm.temp)), ABS(_xlpm.temps-_xlpm.temp)))),0) -> 3.681858148 | M126: 1.63232796 | N126: =IF(D126<Dashboard!$C$18,Dashboard!$D$15,"") ->  | O126: 0 | P126: =IFERROR(VLOOKUP(N126,'Equip. Data'!$J$3:$K$7,2,FALSE),"") ->  | Q126: 0 | R126: 3.681858148
B127: Heating (Electricity) | C127: 2002-06-01T04:00:00 | D127: 5.1 | E127: 6.1 | F127: 20.8132 | G127: =IF(D127>=Dashboard!$C$18,Dashboard!$C$15,"") -> Mini Split HP | H127: =IF(G127=Dashboard!$C$15,Dashboard!$C$16,"") -> AM036 | I127: =IFERROR(_xlfn.LET( _xlpm.type,G127, _xlpm.size,H127, _xlpm.temp,D127, _xlpm.temps,_xlfn._xlws.FILTER('Equip. Data'!$D$4:$D$63,('Equip. Data'!$B$4:$B$63=_xlpm.type)*('Equip. Data'!$E$4:$E$63=_xlpm.size)),_xlpm.caps,_xlfn._xlws.FILTER('Equip. Data'!$F$4:$F$63,('Equip. Data'!$B$4:$B$63=_xlpm.type)*('Equip. Data'!$E$4:$E$63=_xlpm.size)), INDEX(_xlpm.caps, _xlfn.XMATCH(MIN(ABS(_xlpm.temps-_xlpm.temp)), ABS(_xlpm.temps-_xlpm.temp)))),0) -> 40.2 | J127: 20.8132 | K127: 6.1 | L127: =IFERROR(_xlfn.LET( _xlpm.type,G127, _xlpm.size,H127, _xlpm.temp,D127, _xlpm.temps,_xlfn._xlws.FILTER('Equip. Data'!$D$4:$D$63,('Equip. Data'!$B$4:$B$63=_xlpm.type)*('Equip. Data'!$E$4:$E$63=_xlpm.size)),_xlpm.cops,_xlfn._xlws.FILTER('Equip. Data'!$H$4:$H$63,('Equip. Data'!$B$4:$B$63=_xlpm.type)*('Equip. Data'!$E$4:$E$63=_xlpm.size)), INDEX(_xlpm.cops, _xlfn.XMATCH(MIN(ABS(_xlpm.temps-_xlpm.temp)), ABS(_xlpm.temps-_xlpm.temp)))),0) -> 3.681858148 | M127: 1.656772139 | N127: =IF(D127<Dashboard!$C$18,Dashboard!$D$15,"") ->  | O127: 0 | P127: =IFERROR(VLOOKUP(N127,'Equip. Data'!$J$3:$K$7,2,FALSE),"") ->  | Q127: 0 | R127: 3.681858148
B128: Heating (Electricity) | C128: 2002-06-01T05:00:00 | D128: 4.9 | E128: 6.16 | F128: 21.01792 | G128: =IF(D128>=Dashboard!$C$18,Dashboard!$C$15,"") -> Mini Split HP | H128: =IF(G128=Dashboard!$C$15,Dashboard!$C$16,"") -> AM036 | I128: =IFERROR(_xlfn.LET( _xlpm.type,G128, _xlpm.size,H128, _xlpm.temp,D128, _xlpm.temps,_xlfn._xlws.FILTER('Equip. Data'!$D$4:$D$63,('Equip. Data'!$B$4:$B$63=_xlpm.type)*('Equip. Data'!$E$4:$E$63=_xlpm.size)),_xlpm.caps,_xlfn._xlws.FILTER('Equip. Data'!$F$4:$F$63,('Equip. Data'!$B$4:$B$63=_xlpm.type)*('Equip. Data'!$E$4:$E$63=_xlpm.size)), INDEX(_xlpm.caps, _xlfn.XMATCH(MIN(ABS(_xlpm.temps-_xlpm.temp)), ABS(_xlpm.temps-_xlpm.temp)))),0) -> 40.2 | J128: 21.01792 | K128: 6.16 | L128: =IFERROR(_xlfn.LET( _xlpm.type,G128, _xlpm.size,H128, _xlpm.temp,D128, _xlpm.temps,_xlfn._xlws.FILTER('Equip. Data'!$D$4:$D$63,('Equip. Data'!$B$4:$B$63=_xlpm.type)*('Equip. Data'!$E$4:$E$63=_xlpm.size)),_xlpm.cops,_xlfn._xlws.FILTER('Equip. Data'!$H$4:$H$63,('Equip. Data'!$B$4:$B$63=_xlpm.type)*('Equip. Data'!$E$4:$E$63=_xlpm.size)), INDEX(_xlpm.cops, _xlfn.XMATCH(MIN(ABS(_xlpm.temps-_xlpm.temp)), ABS(_xlpm.temps-_xlpm.temp)))),0) -> 3.681858148 | M128: 1.673068259 | N128: =IF(D128<Dashboard!$C$18,Dashboard!$D$15,"") ->  | O128: 0 | P128: =IFERROR(VLOOKUP(N128,'Equip. Data'!$J$3:$K$7,2,FALSE),"") ->  | Q128: 0 | R128: 3.681858148
B129: Heating (Electricity) | C129: 2002-06-01T06:00:00 | D129: 4.8 | E129: 6.18 | F129: 21.08616 | G129: =IF(D129>=Dashboard!$C$18,Dashboard!$C$15,"") -> Mini Split HP | H129: =IF(G129=Dashboard!$C$15,Dashboard!$C$16,"") -> AM036 | I129: =IFERROR(_xlfn.LET( _xlpm.type,G129, _xlpm.size,H129, _xlpm.temp,D129, _xlpm.temps,_xlfn._xlws.FILTER('Equip. Data'!$D$4:$D$63,('Equip. Data'!$B$4:$B$63=_xlpm.type)*('Equip. Data'!$E$4:$E$63=_xlpm.size)),_xlpm.caps,_xlfn._xlws.FILTER('Equip. Data'!$F$4:$F$63,('Equip. Data'!$B$4:$B$63=_xlpm.type)*('Equip. Data'!$E$4:$E$63=_xlpm.size)), INDEX(_xlpm.caps, _xlfn.XMATCH(MIN(ABS(_xlpm.temps-_xlpm.temp)), ABS(_xlpm.temps-_xlpm.temp)))),0) -> 40.2 | J129: 21.08616 | K129: 6.18 | L129: =IFERROR(_xlfn.LET( _xlpm.type,G129, _xlpm.size,H129, _xlpm.temp,D129, _xlpm.temps,_xlfn._xlws.FILTER('Equip. Data'!$D$4:$D$63,('Equip. Data'!$B$4:$B$63=_xlpm.type)*('Equip. Data'!$E$4:$E$63=_xlpm.size)),_xlpm.cops,_xlfn._xlws.FILTER('Equip. Data'!$H$4:$H$63,('Equip. Data'!$B$4:$B$63=_xlpm.type)*('Equip. Data'!$E$4:$E$63=_xlpm.size)), INDEX(_xlpm.cops, _xlfn.XMATCH(MIN(ABS(_xlpm.temps-_xlpm.temp)), ABS(_xlpm.temps-_xlpm.temp)))),0) -> 3.681858148 | M129: 1.678500299 | N129: =IF(D129<Dashboard!$C$18,Dashboard!$D$15,"") ->  | O129: 0 | P129: =IFERROR(VLOOKUP(N129,'Equip. Data'!$J$3:$K$7,2,FALSE),"") ->  | Q129: 0 | R129: 3.681858148
B130: Heating (Electricity) | C130: 2002-06-01T07:00:00 | D130: 4.8 | E130: 6.1 | F130: 20.8132 | G130: =IF(D130>=Dashboard!$C$18,Dashboard!$C$15,"") -> Mini Split HP | H130: =IF(G130=Dashboard!$C$15,Dashboard!$C$16,"") -> AM036 | I130: =IFERROR(_xlfn.LET( _xlpm.type,G130, _xlpm.size,H130, _xlpm.temp,D130, _xlpm.temps,_xlfn._xlws.FILTER('Equip. Data'!$D$4:$D$63,('Equip. Data'!$B$4:$B$63=_xlpm.type)*('Equip. Data'!$E$4:$E$63=_xlpm.size)),_xlpm.caps,_xlfn._xlws.FILTER('Equip. Data'!$F$4:$F$63,('Equip. Data'!$B$4:$B$63=_xlpm.type)*('Equip. Data'!$E$4:$E$63=_xlpm.size)), INDEX(_xlpm.caps, _xlfn.XMATCH(MIN(ABS(_xlpm.temps-_xlpm.temp)), ABS(_xlpm.temps-_xlpm.temp)))),0) -> 40.2 | J130: 20.8132 | K130: 6.1 | L130: =IFERROR(_xlfn.LET( _xlpm.type,G130, _xlpm.size,H130, _xlpm.temp,D130, _xlpm.temps,_xlfn._xlws.FILTER('Equip. Data'!$D$4:$D$63,('Equip. Data'!$B$4:$B$63=_xlpm.type)*('Equip. Data'!$E$4:$E$63=_xlpm.size)),_xlpm.cops,_xlfn._xlws.FILTER('Equip. Data'!$H$4:$H$63,('Equip. Data'!$B$4:$B$63=_xlpm.type)*('Equip. Data'!$E$4:$E$63=_xlpm.size)), INDEX(_xlpm.cops, _xlfn.XMATCH(MIN(ABS(_xlpm.temps-_xlpm.temp)), ABS(_xlpm.temps-_xlpm.temp)))),0) -> 3.681858148 | M130: 1.656772139 | N130: =IF(D130<Dashboard!$C$18,Dashboard!$D$15,"") ->  | O130: 0 | P130: =IFERROR(VLOOKUP(N130,'Equip. Data'!$J$3:$K$7,2,FALSE),"") ->  | Q130: 0 | R130: 3.681858148
B131: Heating (Electricity) | C131: 2002-06-01T08:00:00 | D131: 4.8 | E131: 5.99 | F131: 20.43788 | G131: =IF(D131>=Dashboard!$C$18,Dashboard!$C$15,"") -> Mini Split HP | H131: =IF(G131=Dashboard!$C$15,Dashboard!$C$16,"") -> AM036 | I131: =IFERROR(_xlfn.LET( _xlpm.type,G131, _xlpm.size,H131, _xlpm.temp,D131, _xlpm.temps,_xlfn._xlws.FILTER('Equip. Data'!$D$4:$D$63,('Equip. Data'!$B$4:$B$63=_xlpm.type)*('Equip. Data'!$E$4:$E$63=_xlpm.size)),_xlpm.caps,_xlfn._xlws.FILTER('Equip. Data'!$F$4:$F$63,('Equip. Data'!$B$4:$B$63=_xlpm.type)*('Equip. Data'!$E$4:$E$63=_xlpm.size)), INDEX(_xlpm.caps, _xlfn.XMATCH(MIN(ABS(_xlpm.temps-_xlpm.temp)), ABS(_xlpm.temps-_xlpm.temp)))),0) -> 40.2 | J131: 20.43788 | K131: 5.99 | L131: =IFERROR(_xlfn.LET( _xlpm.type,G131, _xlpm.size,H131, _xlpm.temp,D131, _xlpm.temps,_xlfn._xlws.FILTER('Equip. Data'!$D$4:$D$63,('Equip. Data'!$B$4:$B$63=_xlpm.type)*('Equip. Data'!$E$4:$E$63=_xlpm.size)),_xlpm.cops,_xlfn._xlws.FILTER('Equip. Data'!$H$4:$H$63,('Equip. Data'!$B$4:$B$63=_xlpm.type)*('Equip. Data'!$E$4:$E$63=_xlpm.size)), INDEX(_xlpm.cops, _xlfn.XMATCH(MIN(ABS(_xlpm.temps-_xlpm.temp)), ABS(_xlpm.temps-_xlpm.temp)))),0) -> 3.681858148 | M131: 1.62689592 | N131: =IF(D131<Dashboard!$C$18,Dashboard!$D$15,"") ->  | O131: 0 | P131: =IFERROR(VLOOKUP(N131,'Equip. Data'!$J$3:$K$7,2,FALSE),"") ->  | Q131: 0 | R131: 3.681858148
B132: Heating (Electricity) | C132: 2002-06-01T09:00:00 | D132: 5 | E132: 5.8 | F132: 19.7896 | G132: =IF(D132>=Dashboard!$C$18,Dashboard!$C$15,"") -> Mini Split HP | H132: =IF(G132=Dashboard!$C$15,Dashboard!$C$16,"") -> AM036 | I132: =IFERROR(_xlfn.LET( _xlpm.type,G132, _xlpm.size,H132, _xlpm.temp,D132, _xlpm.temps,_xlfn._xlws.FILTER('Equip. Data'!$D$4:$D$63,('Equip. Data'!$B$4:$B$63=_xlpm.type)*('Equip. Data'!$E$4:$E$63=_xlpm.size)),_xlpm.caps,_xlfn._xlws.FILTER('Equip. Data'!$F$4:$F$63,('Equip. Data'!$B$4:$B$63=_xlpm.type)*('Equip. Data'!$E$4:$E$63=_xlpm.size)), INDEX(_xlpm.caps, _xlfn.XMATCH(MIN(ABS(_xlpm.temps-_xlpm.temp)), ABS(_xlpm.temps-_xlpm.temp)))),0) -> 40.2 | J132: 19.7896 | K132: 5.8 | L132: =IFERROR(_xlfn.LET( _xlpm.type,G132, _xlpm.size,H132, _xlpm.temp,D132, _xlpm.temps,_xlfn._xlws.FILTER('Equip. Data'!$D$4:$D$63,('Equip. Data'!$B$4:$B$63=_xlpm.type)*('Equip. Data'!$E$4:$E$63=_xlpm.size)),_xlpm.cops,_xlfn._xlws.FILTER('Equip. Data'!$H$4:$H$63,('Equip. Data'!$B$4:$B$63=_xlpm.type)*('Equip. Data'!$E$4:$E$63=_xlpm.size)), INDEX(_xlpm.cops, _xlfn.XMATCH(MIN(ABS(_xlpm.temps-_xlpm.temp)), ABS(_xlpm.temps-_xlpm.temp)))),0) -> 3.681858148 | M132: 1.575291542 | N132: =IF(D132<Dashboard!$C$18,Dashboard!$D$15,"") ->  | O132: 0 | P132: =IFERROR(VLOOKUP(N132,'Equip. Data'!$J$3:$K$7,2,FALSE),"") ->  | Q132: 0 | R132: 3.681858148
B133: Heating (Electricity) | C133: 2002-06-01T10:00:00 | D133: 5.3 | E133: 5.65 | F133: =E133*3.412 -> 19.2778 | G133: =IF(D133>=Dashboard!$C$18,Dashboard!$C$15,"") -> Mini Split HP | H133: =IF(G133=Dashboard!$C$15,Dashboard!$C$16,"") -> AM036 | I133: =IFERROR(_xlfn.LET( _xlpm.type,G133, _xlpm.size,H133, _xlpm.temp,D133, _xlpm.temps,_xlfn._xlws.FILTER('Equip. Data'!$D$4:$D$63,('Equip. Data'!$B$4:$B$63=_xlpm.type)*('Equip. Data'!$E$4:$E$63=_xlpm.size)),_xlpm.caps,_xlfn._xlws.FILTER('Equip. Data'!$F$4:$F$63,('Equip. Data'!$B$4:$B$63=_xlpm.type)*('Equip. Data'!$E$4:$E$63=_xlpm.size)), INDEX(_xlpm.caps, _xlfn.XMATCH(MIN(ABS(_xlpm.temps-_xlpm.temp)), ABS(_xlpm.temps-_xlpm.temp)))),0) -> 40.2 | J133: =IF(MIN(F133,I133)=I133,0,MIN(F133,I133)) -> 19.2778 | K133: =J133/3.412 -> 5.65 | L133: =IFERROR(_xlfn.LET( _xlpm.type,G133, _xlpm.size,H133, _xlpm.temp,D133, _xlpm.temps,_xlfn._xlws.FILTER('Equip. Data'!$D$4:$D$63,('Equip. Data'!$B$4:$B$63=_xlpm.type)*('Equip. Data'!$E$4:$E$63=_xlpm.size)),_xlpm.cops,_xlfn._xlws.FILTER('Equip. Data'!$H$4:$H$63,('Equip. Data'!$B$4:$B$63=_xlpm.type)*('Equip. Data'!$E$4:$E$63=_xlpm.size)), INDEX(_xlpm.cops, _xlfn.XMATCH(MIN(ABS(_xlpm.temps-_xlpm.temp)), ABS(_xlpm.temps-_xlpm.temp)))),0) -> 3.681858148 | M133: =IFERROR(K133/L133,0) -> 1.534551244 | N133: =IF(D133<Dashboard!$C$18,Dashboard!$D$15,"") ->  | O133: =IF(K133=0,E133,0) -> 0 | P133: =IFERROR(VLOOKUP(N133,'Equip. Data'!$J$3:$K$7,2,FALSE),"") ->  | Q133: =IFERROR(O133/P133,0) -> 0 | R133: =IFERROR((K133+O133)/(M133+Q133),0) -> 3.681858148
B134: Heating (Electricity) | C134: 2002-06-01T11:00:00 | D134: 5.4 | E134: 5.49 | F134: 18.73188 | G134: =IF(D134>=Dashboard!$C$18,Dashboard!$C$15,"") -> Mini Split HP | H134: =IF(G134=Dashboard!$C$15,Dashboard!$C$16,"") -> AM036 | I134: =IFERROR(_xlfn.LET( _xlpm.type,G134, _xlpm.size,H134, _xlpm.temp,D134, _xlpm.temps,_xlfn._xlws.FILTER('Equip. Data'!$D$4:$D$63,('Equip. Data'!$B$4:$B$63=_xlpm.type)*('Equip. Data'!$E$4:$E$63=_xlpm.size)),_xlpm.caps,_xlfn._xlws.FILTER('Equip. Data'!$F$4:$F$63,('Equip. Data'!$B$4:$B$63=_xlpm.type)*('Equip. Data'!$E$4:$E$63=_xlpm.size)), INDEX(_xlpm.caps, _xlfn.XMATCH(MIN(ABS(_xlpm.temps-_xlpm.temp)), ABS(_xlpm.temps-_xlpm.temp)))),0) -> 40.2 | J134: 18.73188 | K134: 5.49 | L134: =IFERROR(_xlfn.LET( _xlpm.type,G134, _xlpm.size,H134, _xlpm.temp,D134, _xlpm.temps,_xlfn._xlws.FILTER('Equip. Data'!$D$4:$D$63,('Equip. Data'!$B$4:$B$63=_xlpm.type)*('Equip. Data'!$E$4:$E$63=_xlpm.size)),_xlpm.cops,_xlfn._xlws.FILTER('Equip. Data'!$H$4:$H$63,('Equip. Data'!$B$4:$B$63=_xlpm.type)*('Equip. Data'!$E$4:$E$63=_xlpm.size)), INDEX(_xlpm.cops, _xlfn.XMATCH(MIN(ABS(_xlpm.temps-_xlpm.temp)), ABS(_xlpm.temps-_xlpm.temp)))),0) -> 3.681858148 | M134: 1.491094925 | N134: =IF(D134<Dashboard!$C$18,Dashboard!$D$15,"") ->  | O134: 0 | P134: =IFERROR(VLOOKUP(N134,'Equip. Data'!$J$3:$K$7,2,FALSE),"") ->  | Q134: 0 | R134: 3.681858148
B135: Heating (Electricity) | C135: 2002-06-01T12:00:00 | D135: 5.7 | E135: 5.3 | F135: 18.0836 | G135: =IF(D135>=Dashboard!$C$18,Dashboard!$C$15,"") -> Mini Split HP | H135: =IF(G135=Dashboard!$C$15,Dashboard!$C$16,"") -> AM036 | I135: =IFERROR(_xlfn.LET( _xlpm.type,G135, _xlpm.size,H135, _xlpm.temp,D135, _xlpm.temps,_xlfn._xlws.FILTER('Equip. Data'!$D$4:$D$63,('Equip. Data'!$B$4:$B$63=_xlpm.type)*('Equip. Data'!$E$4:$E$63=_xlpm.size)),_xlpm.caps,_xlfn._xlws.FILTER('Equip. Data'!$F$4:$F$63,('Equip. Data'!$B$4:$B$63=_xlpm.type)*('Equip. Data'!$E$4:$E$63=_xlpm.size)), INDEX(_xlpm.caps, _xlfn.XMATCH(MIN(ABS(_xlpm.temps-_xlpm.temp)), ABS(_xlpm.temps-_xlpm.temp)))),0) -> 40.2 | J135: 18.0836 | K135: 5.3 | L135: =IFERROR(_xlfn.LET( _xlpm.type,G135, _xlpm.size,H135, _xlpm.temp,D135, _xlpm.temps,_xlfn._xlws.FILTER('Equip. Data'!$D$4:$D$63,('Equip. Data'!$B$4:$B$63=_xlpm.type)*('Equip. Data'!$E$4:$E$63=_xlpm.size)),_xlpm.cops,_xlfn._xlws.FILTER('Equip. Data'!$H$4:$H$63,('Equip. Data'!$B$4:$B$63=_xlpm.type)*('Equip. Data'!$E$4:$E$63=_xlpm.size)), INDEX(_xlpm.cops, _xlfn.XMATCH(MIN(ABS(_xlpm.temps-_xlpm.temp)), ABS(_xlpm.temps-_xlpm.temp)))),0) -> 3.681858148 | M135: 1.439490547 | N135: =IF(D135<Dashboard!$C$18,Dashboard!$D$15,"") ->  | O135: 0 | P135: =IFERROR(VLOOKUP(N135,'Equip. Data'!$J$3:$K$7,2,FALSE),"") ->  | Q135: 0 | R135: 3.681858148
B136: Heating (Electricity) | C136: 2002-06-01T13:00:00 | D136: 5.6 | E136: 5.25 | F136: 17.913 | G136: =IF(D136>=Dashboard!$C$18,Dashboard!$C$15,"") -> Mini Split HP | H136: =IF(G136=Dashboard!$C$15,Dashboard!$C$16,"") -> AM036 | I136: =IFERROR(_xlfn.LET( _xlpm.type,G136, _xlpm.size,H136, _xlpm.temp,D136, _xlpm.temps,_xlfn._xlws.FILTER('Equip. Data'!$D$4:$D$63,('Equip. Data'!$B$4:$B$63=_xlpm.type)*('Equip. Data'!$E$4:$E$63=_xlpm.size)),_xlpm.caps,_xlfn._xlws.FILTER('Equip. Data'!$F$4:$F$63,('Equip. Data'!$B$4:$B$63=_xlpm.type)*('Equip. Data'!$E$4:$E$63=_xlpm.size)), INDEX(_xlpm.caps, _xlfn.XMATCH(MIN(ABS(_xlpm.temps-_xlpm.temp)), ABS(_xlpm.temps-_xlpm.temp)))),0) -> 40.2 | J136: 17.913 | K136: 5.25 | L136: =IFERROR(_xlfn.LET( _xlpm.type,G136, _xlpm.size,H136, _xlpm.temp,D136, _xlpm.temps,_xlfn._xlws.FILTER('Equip. Data'!$D$4:$D$63,('Equip. Data'!$B$4:$B$63=_xlpm.type)*('Equip. Data'!$E$4:$E$63=_xlpm.size)),_xlpm.cops,_xlfn._xlws.FILTER('Equip. Data'!$H$4:$H$63,('Equip. Data'!$B$4:$B$63=_xlpm.type)*('Equip. Data'!$E$4:$E$63=_xlpm.size)), INDEX(_xlpm.cops, _xlfn.XMATCH(MIN(ABS(_xlpm.temps-_xlpm.temp)), ABS(_xlpm.temps-_xlpm.temp)))),0) -> 3.681858148 | M136: 1.425910448 | N136: =IF(D136<Dashboard!$C$18,Dashboard!$D$15,"") ->  | O136: 0 | P136: =IFERROR(VLOOKUP(N136,'Equip. Data'!$J$3:$K$7,2,FALSE),"") ->  | Q136: 0 | R136: 3.681858148
B137: Heating (Electricity) | C137: 2002-06-01T14:00:00 | D137: 5.5 | E137: 5.26 | F137: 17.94712 | G137: =IF(D137>=Dashboard!$C$18,Dashboard!$C$15,"") -> Mini Split HP | H137: =IF(G137=Dashboard!$C$15,Dashboard!$C$16,"") -> AM036 | I137: =IFERROR(_xlfn.LET( _xlpm.type,G137, _xlpm.size,H137, _xlpm.temp,D137, _xlpm.temps,_xlfn._xlws.FILTER('Equip. Data'!$D$4:$D$63,('Equip. Data'!$B$4:$B$63=_xlpm.type)*('Equip. Data'!$E$4:$E$63=_xlpm.size)),_xlpm.caps,_xlfn._xlws.FILTER('Equip. Data'!$F$4:$F$63,('Equip. Data'!$B$4:$B$63=_xlpm.type)*('Equip. Data'!$E$4:$E$63=_xlpm.size)), INDEX(_xlpm.caps, _xlfn.XMATCH(MIN(ABS(_xlpm.temps-_xlpm.temp)), ABS(_xlpm.temps-_xlpm.temp)))),0) -> 40.2 | J137: 17.94712 | K137: 5.26 | L137: =IFERROR(_xlfn.LET( _xlpm.type,G137, _xlpm.size,H137, _xlpm.temp,D137, _xlpm.temps,_xlfn._xlws.FILTER('Equip. Data'!$D$4:$D$63,('Equip. Data'!$B$4:$B$63=_xlpm.type)*('Equip. Data'!$E$4:$E$63=_xlpm.size)),_xlpm.cops,_xlfn._xlws.FILTER('Equip. Data'!$H$4:$H$63,('Equip. Data'!$B$4:$B$63=_xlpm.type)*('Equip. Data'!$E$4:$E$63=_xlpm.size)), INDEX(_xlpm.cops, _xlfn.XMATCH(MIN(ABS(_xlpm.temps-_xlpm.temp)), ABS(_xlpm.temps-_xlpm.temp)))),0) -> 3.681858148 | M137: 1.428626468 | N137: =IF(D137<Dashboard!$C$18,Dashboard!$D$15,"") ->  | O137: 0 | P137: =IFERROR(VLOOKUP(N137,'Equip. Data'!$J$3:$K$7,2,FALSE),"") ->  | Q137: 0 | R137: 3.681858148
B138: Heating (Electricity) | C138: 2002-06-01T15:00:00 | D138: 5.4 | E138: 5.3 | F138: 18.0836 | G138: =IF(D138>=Dashboard!$C$18,Dashboard!$C$15,"") -> Mini Split HP | H138: =IF(G138=Dashboard!$C$15,Dashboard!$C$16,"") -> AM036 | I138: =IFERROR(_xlfn.LET( _xlpm.type,G138, _xlpm.size,H138, _xlpm.temp,D138, _xlpm.temps,_xlfn._xlws.FILTER('Equip. Data'!$D$4:$D$63,('Equip. Data'!$B$4:$B$63=_xlpm.type)*('Equip. Data'!$E$4:$E$63=_xlpm.size)),_xlpm.caps,_xlfn._xlws.FILTER('Equip. Data'!$F$4:$F$63,('Equip. Data'!$B$4:$B$63=_xlpm.type)*('Equip. Data'!$E$4:$E$63=_xlpm.size)), INDEX(_xlpm.caps, _xlfn.XMATCH(MIN(ABS(_xlpm.temps-_xlpm.temp)), ABS(_xlpm.temps-_xlpm.temp)))),0) -> 40.2 | J138: 18.0836 | K138: 5.3 | L138: =IFERROR(_xlfn.LET( _xlpm.type,G138, _xlpm.size,H138, _xlpm.temp,D138, _xlpm.temps,_xlfn._xlws.FILTER('Equip. Data'!$D$4:$D$63,('Equip. Data'!$B$4:$B$63=_xlpm.type)*('Equip. Data'!$E$4:$E$63=_xlpm.size)),_xlpm.cops,_xlfn._xlws.FILTER('Equip. Data'!$H$4:$H$63,('Equip. Data'!$B$4:$B$63=_xlpm.type)*('Equip. Data'!$E$4:$E$63=_xlpm.size)), INDEX(_xlpm.cops, _xlfn.XMATCH(MIN(ABS(_xlpm.temps-_xlpm.temp)), ABS(_xlpm.temps-_xlpm.temp)))),0) -> 3.681858148 | M138: 1.439490547 | N138: =IF(D138<Dashboard!$C$18,Dashboard!$D$15,"") ->  | O138: 0 | P138: =IFERROR(VLOOKUP(N138,'Equip. Data'!$J$3:$K$7,2,FALSE),"") ->  | Q138: 0 | R138: 3.681858148
B139: Heating (Electricity) | C139: 2002-06-01T16:00:00 | D139: 5.3 | E139: 5.38 | F139: 18.35656 | G139: =IF(D139>=Dashboard!$C$18,Dashboard!$C$15,"") -> Mini Split HP | H139: =IF(G139=Dashboard!$C$15,Dashboard!$C$16,"") -> AM036 | I139: =IFERROR(_xlfn.LET( _xlpm.type,G139, _xlpm.size,H139, _xlpm.temp,D139, _xlpm.temps,_xlfn._xlws.FILTER('Equip. Data'!$D$4:$D$63,('Equip. Data'!$B$4:$B$63=_xlpm.type)*('Equip. Data'!$E$4:$E$63=_xlpm.size)),_xlpm.caps,_xlfn._xlws.FILTER('Equip. Data'!$F$4:$F$63,('Equip. Data'!$B$4:$B$63=_xlpm.type)*('Equip. Data'!$E$4:$E$63=_xlpm.size)), INDEX(_xlpm.caps, _xlfn.XMATCH(MIN(ABS(_xlpm.temps-_xlpm.temp)), ABS(_xlpm.temps-_xlpm.temp)))),0) -> 40.2 | J139: 18.35656 | K139: 5.38 | L139: =IFERROR(_xlfn.LET( _xlpm.type,G139, _xlpm.size,H139, _xlpm.temp,D139, _xlpm.temps,_xlfn._xlws.FILTER('Equip. Data'!$D$4:$D$63,('Equip. Data'!$B$4:$B$63=_xlpm.type)*('Equip. Data'!$E$4:$E$63=_xlpm.size)),_xlpm.cops,_xlfn._xlws.FILTER('Equip. Data'!$H$4:$H$63,('Equip. Data'!$B$4:$B$63=_xlpm.type)*('Equip. Data'!$E$4:$E$63=_xlpm.size)), INDEX(_xlpm.cops, _xlfn.XMATCH(MIN(ABS(_xlpm.temps-_xlpm.temp)), ABS(_xlpm.temps-_xlpm.temp)))),0) -> 3.681858148 | M139: 1.461218706 | N139: =IF(D139<Dashboard!$C$18,Dashboard!$D$15,"") ->  | O139: 0 | P139: =IFERROR(VLOOKUP(N139,'Equip. Data'!$J$3:$K$7,2,FALSE),"") ->  | Q139: 0 | R139: 3.681858148
B140: Heating (Electricity) | C140: 2002-06-01T17:00:00 | D140: 5.6 | E140: 5.38 | F140: 18.35656 | G140: =IF(D140>=Dashboard!$C$18,Dashboard!$C$15,"") -> Mini Split HP | H140: =IF(G140=Dashboard!$C$15,Dashboard!$C$16,"") -> AM036 | I140: =IFERROR(_xlfn.LET( _xlpm.type,G140, _xlpm.size,H140, _xlpm.temp,D140, _xlpm.temps,_xlfn._xlws.FILTER('Equip. Data'!$D$4:$D$63,('Equip. Data'!$B$4:$B$63=_xlpm.type)*('Equip. Data'!$E$4:$E$63=_xlpm.size)),_xlpm.caps,_xlfn._xlws.FILTER('Equip. Data'!$F$4:$F$63,('Equip. Data'!$B$4:$B$63=_xlpm.type)*('Equip. Data'!$E$4:$E$63=_xlpm.size)), INDEX(_xlpm.caps, _xlfn.XMATCH(MIN(ABS(_xlpm.temps-_xlpm.temp)), ABS(_xlpm.temps-_xlpm.temp)))),0) -> 40.2 | J140: 18.35656 | K140: 5.38 | L140: =IFERROR(_xlfn.LET( _xlpm.type,G140, _xlpm.size,H140, _xlpm.temp,D140, _xlpm.temps,_xlfn._xlws.FILTER('Equip. Data'!$D$4:$D$63,('Equip. Data'!$B$4:$B$63=_xlpm.type)*('Equip. Data'!$E$4:$E$63=_xlpm.size)),_xlpm.cops,_xlfn._xlws.FILTER('Equip. Data'!$H$4:$H$63,('Equip. Data'!$B$4:$B$63=_xlpm.type)*('Equip. Data'!$E$4:$E$63=_xlpm.size)), INDEX(_xlpm.cops, _xlfn.XMATCH(MIN(ABS(_xlpm.temps-_xlpm.temp)), ABS(_xlpm.temps-_xlpm.temp)))),0) -> 3.681858148 | M140: 1.461218706 | N140: =IF(D140<Dashboard!$C$18,Dashboard!$D$15,"") ->  | O140: 0 | P140: =IFERROR(VLOOKUP(N140,'Equip. Data'!$J$3:$K$7,2,FALSE),"") ->  | Q140: 0 | R140: 3.681858148
B141: Heating (Electricity) | C141: 2002-06-01T18:00:00 | D141: 5.9 | E141: 5.19 | F141: 17.70828 | G141: =IF(D141>=Dashboard!$C$18,Dashboard!$C$15,"") -> Mini Split HP | H141: =IF(G141=Dashboard!$C$15,Dashboard!$C$16,"") -> AM036 | I141: =IFERROR(_xlfn.LET( _xlpm.type,G141, _xlpm.size,H141, _xlpm.temp,D141, _xlpm.temps,_xlfn._xlws.FILTER('Equip. Data'!$D$4:$D$63,('Equip. Data'!$B$4:$B$63=_xlpm.type)*('Equip. Data'!$E$4:$E$63=_xlpm.size)),_xlpm.caps,_xlfn._xlws.FILTER('Equip. Data'!$F$4:$F$63,('Equip. Data'!$B$4:$B$63=_xlpm.type)*('Equip. Data'!$E$4:$E$63=_xlpm.size)), INDEX(_xlpm.caps, _xlfn.XMATCH(MIN(ABS(_xlpm.temps-_xlpm.temp)), ABS(_xlpm.temps-_xlpm.temp)))),0) -> 40.2 | J141: 17.70828 | K141: 5.19 | L141: =IFERROR(_xlfn.LET( _xlpm.type,G141, _xlpm.size,H141, _xlpm.temp,D141, _xlpm.temps,_xlfn._xlws.FILTER('Equip. Data'!$D$4:$D$63,('Equip. Data'!$B$4:$B$63=_xlpm.type)*('Equip. Data'!$E$4:$E$63=_xlpm.size)),_xlpm.cops,_xlfn._xlws.FILTER('Equip. Data'!$H$4:$H$63,('Equip. Data'!$B$4:$B$63=_xlpm.type)*('Equip. Data'!$E$4:$E$63=_xlpm.size)), INDEX(_xlpm.cops, _xlfn.XMATCH(MIN(ABS(_xlpm.temps-_xlpm.temp)), ABS(_xlpm.temps-_xlpm.temp)))),0) -> 3.681858148 | M141: 1.409614328 | N141: =IF(D141<Dashboard!$C$18,Dashboard!$D$15,"") ->  | O141: 0 | P141: =IFERROR(VLOOKUP(N141,'Equip. Data'!$J$3:$K$7,2,FALSE),"") ->  | Q141: 0 | R141: 3.681858148
B142: Heating (Electricity) | C142: 2002-06-01T19:00:00 | D142: 6 | E142: 4.86 | F142: 16.58232 | G142: =IF(D142>=Dashboard!$C$18,Dashboard!$C$15,"") -> Mini Split HP | H142: =IF(G142=Dashboard!$C$15,Dashboard!$C$16,"") -> AM036 | I142: =IFERROR(_xlfn.LET( _xlpm.type,G142, _xlpm.size,H142, _xlpm.temp,D142, _xlpm.temps,_xlfn._xlws.FILTER('Equip. Data'!$D$4:$D$63,('Equip. Data'!$B$4:$B$63=_xlpm.type)*('Equip. Data'!$E$4:$E$63=_xlpm.size)),_xlpm.caps,_xlfn._xlws.FILTER('Equip. Data'!$F$4:$F$63,('Equip. Data'!$B$4:$B$63=_xlpm.type)*('Equip. Data'!$E$4:$E$63=_xlpm.size)), INDEX(_xlpm.caps, _xlfn.XMATCH(MIN(ABS(_xlpm.temps-_xlpm.temp)), ABS(_xlpm.temps-_xlpm.temp)))),0) -> 40.2 | J142: 16.58232 | K142: 4.86 | L142: =IFERROR(_xlfn.LET( _xlpm.type,G142, _xlpm.size,H142, _xlpm.temp,D142, _xlpm.temps,_xlfn._xlws.FILTER('Equip. Data'!$D$4:$D$63,('Equip. Data'!$B$4:$B$63=_xlpm.type)*('Equip. Data'!$E$4:$E$63=_xlpm.size)),_xlpm.cops,_xlfn._xlws.FILTER('Equip. Data'!$H$4:$H$63,('Equip. Data'!$B$4:$B$63=_xlpm.type)*('Equip. Data'!$E$4:$E$63=_xlpm.size)), INDEX(_xlpm.cops, _xlfn.XMATCH(MIN(ABS(_xlpm.temps-_xlpm.temp)), ABS(_xlpm.temps-_xlpm.temp)))),0) -> 3.681858148 | M142: 1.319985672 | N142: =IF(D142<Dashboard!$C$18,Dashboard!$D$15,"") ->  | O142: 0 | P142: =IFERROR(VLOOKUP(N142,'Equip. Data'!$J$3:$K$7,2,FALSE),"") ->  | Q142: 0 | R142: 3.681858148
B143: Heating (Electricity) | C143: 2002-06-01T20:00:00 | D143: 6.3 | E143: 4.62 | F143: 15.76344 | G143: =IF(D143>=Dashboard!$C$18,Dashboard!$C$15,"") -> Mini Split HP | H143: =IF(G143=Dashboard!$C$15,Dashboard!$C$16,"") -> AM036 | I143: =IFERROR(_xlfn.LET( _xlpm.type,G143, _xlpm.size,H143, _xlpm.temp,D143, _xlpm.temps,_xlfn._xlws.FILTER('Equip. Data'!$D$4:$D$63,('Equip. Data'!$B$4:$B$63=_xlpm.type)*('Equip. Data'!$E$4:$E$63=_xlpm.size)),_xlpm.caps,_xlfn._xlws.FILTER('Equip. Data'!$F$4:$F$63,('Equip. Data'!$B$4:$B$63=_xlpm.type)*('Equip. Data'!$E$4:$E$63=_xlpm.size)), INDEX(_xlpm.caps, _xlfn.XMATCH(MIN(ABS(_xlpm.temps-_xlpm.temp)), ABS(_xlpm.temps-_xlpm.temp)))),0) -> 40.2 | J143: 15.76344 | K143: 4.62 | L143: =IFERROR(_xlfn.LET( _xlpm.type,G143, _xlpm.size,H143, _xlpm.temp,D143, _xlpm.temps,_xlfn._xlws.FILTER('Equip. Data'!$D$4:$D$63,('Equip. Data'!$B$4:$B$63=_xlpm.type)*('Equip. Data'!$E$4:$E$63=_xlpm.size)),_xlpm.cops,_xlfn._xlws.FILTER('Equip. Data'!$H$4:$H$63,('Equip. Data'!$B$4:$B$63=_xlpm.type)*('Equip. Data'!$E$4:$E$63=_xlpm.size)), INDEX(_xlpm.cops, _xlfn.XMATCH(MIN(ABS(_xlpm.temps-_xlpm.temp)), ABS(_xlpm.temps-_xlpm.temp)))),0) -> 3.681858148 | M143: 1.254801194 | N143: =IF(D143<Dashboard!$C$18,Dashboard!$D$15,"") ->  | O143: 0 | P143: =IFERROR(VLOOKUP(N143,'Equip. Data'!$J$3:$K$7,2,FALSE),"") ->  | Q143: 0 | R143: 3.681858148
B144: Heating (Electricity) | C144: 2002-06-01T21:00:00 | D144: 6.5 | E144: 4.58 | F144: 15.62696 | G144: =IF(D144>=Dashboard!$C$18,Dashboard!$C$15,"") -> Mini Split HP | H144: =IF(G144=Dashboard!$C$15,Dashboard!$C$16,"") -> AM036 | I144: =IFERROR(_xlfn.LET( _xlpm.type,G144, _xlpm.size,H144, _xlpm.temp,D144, _xlpm.temps,_xlfn._xlws.FILTER('Equip. Data'!$D$4:$D$63,('Equip. Data'!$B$4:$B$63=_xlpm.type)*('Equip. Data'!$E$4:$E$63=_xlpm.size)),_xlpm.caps,_xlfn._xlws.FILTER('Equip. Data'!$F$4:$F$63,('Equip. Data'!$B$4:$B$63=_xlpm.type)*('Equip. Data'!$E$4:$E$63=_xlpm.size)), INDEX(_xlpm.caps, _xlfn.XMATCH(MIN(ABS(_xlpm.temps-_xlpm.temp)), ABS(_xlpm.temps-_xlpm.temp)))),0) -> 40.2 | J144: 15.62696 | K144: 4.58 | L144: =IFERROR(_xlfn.LET( _xlpm.type,G144, _xlpm.size,H144, _xlpm.temp,D144, _xlpm.temps,_xlfn._xlws.FILTER('Equip. Data'!$D$4:$D$63,('Equip. Data'!$B$4:$B$63=_xlpm.type)*('Equip. Data'!$E$4:$E$63=_xlpm.size)),_xlpm.cops,_xlfn._xlws.FILTER('Equip. Data'!$H$4:$H$63,('Equip. Data'!$B$4:$B$63=_xlpm.type)*('Equip. Data'!$E$4:$E$63=_xlpm.size)), INDEX(_xlpm.cops, _xlfn.XMATCH(MIN(ABS(_xlpm.temps-_xlpm.temp)), ABS(_xlpm.temps-_xlpm.temp)))),0) -> 3.681858148 | M144: 1.243937114 | N144: =IF(D144<Dashboard!$C$18,Dashboard!$D$15,"") ->  | O144: 0 | P144: =IFERROR(VLOOKUP(N144,'Equip. Data'!$J$3:$K$7,2,FALSE),"") ->  | Q144: 0 | R144: 3.681858148
B145: Heating (Electricity) | C145: 2002-06-01T22:00:00 | D145: 6.7 | E145: 4.62 | F145: 15.76344 | G145: =IF(D145>=Dashboard!$C$18,Dashboard!$C$15,"") -> Mini Split HP | H145: =IF(G145=Dashboard!$C$15,Dashboard!$C$16,"") -> AM036 | I145: =IFERROR(_xlfn.LET( _xlpm.type,G145, _xlpm.size,H145, _xlpm.temp,D145, _xlpm.temps,_xlfn._xlws.FILTER('Equip. Data'!$D$4:$D$63,('Equip. Data'!$B$4:$B$63=_xlpm.type)*('Equip. Data'!$E$4:$E$63=_xlpm.size)),_xlpm.caps,_xlfn._xlws.FILTER('Equip. Data'!$F$4:$F$63,('Equip. Data'!$B$4:$B$63=_xlpm.type)*('Equip. Data'!$E$4:$E$63=_xlpm.size)), INDEX(_xlpm.caps, _xlfn.XMATCH(MIN(ABS(_xlpm.temps-_xlpm.temp)), ABS(_xlpm.temps-_xlpm.temp)))),0) -> 40.2 | J145: 15.76344 | K145: 4.62 | L145: =IFERROR(_xlfn.LET( _xlpm.type,G145, _xlpm.size,H145, _xlpm.temp,D145, _xlpm.temps,_xlfn._xlws.FILTER('Equip. Data'!$D$4:$D$63,('Equip. Data'!$B$4:$B$63=_xlpm.type)*('Equip. Data'!$E$4:$E$63=_xlpm.size)),_xlpm.cops,_xlfn._xlws.FILTER('Equip. Data'!$H$4:$H$63,('Equip. Data'!$B$4:$B$63=_xlpm.type)*('Equip. Data'!$E$4:$E$63=_xlpm.size)), INDEX(_xlpm.cops, _xlfn.XMATCH(MIN(ABS(_xlpm.temps-_xlpm.temp)), ABS(_xlpm.temps-_xlpm.temp)))),0) -> 3.681858148 | M145: 1.254801194 | N145: =IF(D145<Dashboard!$C$18,Dashboard!$D$15,"") ->  | O145: 0 | P145: =IFERROR(VLOOKUP(N145,'Equip. Data'!$J$3:$K$7,2,FALSE),"") ->  | Q145: 0 | R145: 3.681858148
B146: Heating (Electricity) | C146: 2002-06-01T23:00:00 | D146: 6.6 | E146: 4.91 | F146: 16.75292 | G146: =IF(D146>=Dashboard!$C$18,Dashboard!$C$15,"") -> Mini Split HP | H146: =IF(G146=Dashboard!$C$15,Dashboard!$C$16,"") -> AM036 | I146: =IFERROR(_xlfn.LET( _xlpm.type,G146, _xlpm.size,H146, _xlpm.temp,D146, _xlpm.temps,_xlfn._xlws.FILTER('Equip. Data'!$D$4:$D$63,('Equip. Data'!$B$4:$B$63=_xlpm.type)*('Equip. Data'!$E$4:$E$63=_xlpm.size)),_xlpm.caps,_xlfn._xlws.FILTER('Equip. Data'!$F$4:$F$63,('Equip. Data'!$B$4:$B$63=_xlpm.type)*('Equip. Data'!$E$4:$E$63=_xlpm.size)), INDEX(_xlpm.caps, _xlfn.XMATCH(MIN(ABS(_xlpm.temps-_xlpm.temp)), ABS(_xlpm.temps-_xlpm.temp)))),0) -> 40.2 | J146: 16.75292 | K146: 4.91 | L146: =IFERROR(_xlfn.LET( _xlpm.type,G146, _xlpm.size,H146, _xlpm.temp,D146, _xlpm.temps,_xlfn._xlws.FILTER('Equip. Data'!$D$4:$D$63,('Equip. Data'!$B$4:$B$63=_xlpm.type)*('Equip. Data'!$E$4:$E$63=_xlpm.size)),_xlpm.cops,_xlfn._xlws.FILTER('Equip. Data'!$H$4:$H$63,('Equip. Data'!$B$4:$B$63=_xlpm.type)*('Equip. Data'!$E$4:$E$63=_xlpm.size)), INDEX(_xlpm.cops, _xlfn.XMATCH(MIN(ABS(_xlpm.temps-_xlpm.temp)), ABS(_xlpm.temps-_xlpm.temp)))),0) -> 3.681858148 | M146: 1.333565771 | N146: =IF(D146<Dashboard!$C$18,Dashboard!$D$15,"") ->  | O146: 0 | P146: =IFERROR(VLOOKUP(N146,'Equip. Data'!$J$3:$K$7,2,FALSE),"") ->  | Q146: 0 | R146: 3.681858148
B147: Heating (Electricity) | C147: 2002-07-01 | D147: 7.3 | E147: 5.06 | F147: 17.26472 | G147: =IF(D147>=Dashboard!$C$18,Dashboard!$C$15,"") -> Mini Split HP | H147: =IF(G147=Dashboard!$C$15,Dashboard!$C$16,"") -> AM036 | I147: =IFERROR(_xlfn.LET( _xlpm.type,G147, _xlpm.size,H147, _xlpm.temp,D147, _xlpm.temps,_xlfn._xlws.FILTER('Equip. Data'!$D$4:$D$63,('Equip. Data'!$B$4:$B$63=_xlpm.type)*('Equip. Data'!$E$4:$E$63=_xlpm.size)),_xlpm.caps,_xlfn._xlws.FILTER('Equip. Data'!$F$4:$F$63,('Equip. Data'!$B$4:$B$63=_xlpm.type)*('Equip. Data'!$E$4:$E$63=_xlpm.size)), INDEX(_xlpm.caps, _xlfn.XMATCH(MIN(ABS(_xlpm.temps-_xlpm.temp)), ABS(_xlpm.temps-_xlpm.temp)))),0) -> 40.2 | J147: 17.26472 | K147: 5.06 | L147: =IFERROR(_xlfn.LET( _xlpm.type,G147, _xlpm.size,H147, _xlpm.temp,D147, _xlpm.temps,_xlfn._xlws.FILTER('Equip. Data'!$D$4:$D$63,('Equip. Data'!$B$4:$B$63=_xlpm.type)*('Equip. Data'!$E$4:$E$63=_xlpm.size)),_xlpm.cops,_xlfn._xlws.FILTER('Equip. Data'!$H$4:$H$63,('Equip. Data'!$B$4:$B$63=_xlpm.type)*('Equip. Data'!$E$4:$E$63=_xlpm.size)), INDEX(_xlpm.cops, _xlfn.XMATCH(MIN(ABS(_xlpm.temps-_xlpm.temp)), ABS(_xlpm.temps-_xlpm.temp)))),0) -> 3.681858148 | M147: 1.37430607 | N147: =IF(D147<Dashboard!$C$18,Dashboard!$D$15,"") ->  | O147: 0 | P147: =IFERROR(VLOOKUP(N147,'Equip. Data'!$J$3:$K$7,2,FALSE),"") ->  | Q147: 0 | R147: 3.681858148
B148: Heating (Electricity) | C148: 2002-07-01T01:00:00 | D148: 7 | E148: 5.24 | F148: 17.87888 | G148: =IF(D148>=Dashboard!$C$18,Dashboard!$C$15,"") -> Mini Split HP | H148: =IF(G148=Dashboard!$C$15,Dashboard!$C$16,"") -> AM036 | I148: =IFERROR(_xlfn.LET( _xlpm.type,G148, _xlpm.size,H148, _xlpm.temp,D148, _xlpm.temps,_xlfn._xlws.FILTER('Equip. Data'!$D$4:$D$63,('Equip. Data'!$B$4:$B$63=_xlpm.type)*('Equip. Data'!$E$4:$E$63=_xlpm.size)),_xlpm.caps,_xlfn._xlws.FILTER('Equip. Data'!$F$4:$F$63,('Equip. Data'!$B$4:$B$63=_xlpm.type)*('Equip. Data'!$E$4:$E$63=_xlpm.size)), INDEX(_xlpm.caps, _xlfn.XMATCH(MIN(ABS(_xlpm.temps-_xlpm.temp)), ABS(_xlpm.temps-_xlpm.temp)))),0) -> 40.2 | J148: 17.87888 | K148: 5.24 | L148: =IFERROR(_xlfn.LET( _xlpm.type,G148, _xlpm.size,H148, _xlpm.temp,D148, _xlpm.temps,_xlfn._xlws.FILTER('Equip. Data'!$D$4:$D$63,('Equip. Data'!$B$4:$B$63=_xlpm.type)*('Equip. Data'!$E$4:$E$63=_xlpm.size)),_xlpm.cops,_xlfn._xlws.FILTER('Equip. Data'!$H$4:$H$63,('Equip. Data'!$B$4:$B$63=_xlpm.type)*('Equip. Data'!$E$4:$E$63=_xlpm.size)), INDEX(_xlpm.cops, _xlfn.XMATCH(MIN(ABS(_xlpm.temps-_xlpm.temp)), ABS(_xlpm.temps-_xlpm.temp)))),0) -> 3.681858148 | M148: 1.423194428 | N148: =IF(D148<Dashboard!$C$18,Dashboard!$D$15,"") ->  | O148: 0 | P148: =IFERROR(VLOOKUP(N148,'Equip. Data'!$J$3:$K$7,2,FALSE),"") ->  | Q148: 0 | R148: 3.681858148
B149: Heating (Electricity) | C149: 2002-07-01T02:00:00 | D149: 7.7 | E149: 5.38 | F149: 18.35656 | G149: =IF(D149>=Dashboard!$C$18,Dashboard!$C$15,"") -> Mini Split HP | H149: =IF(G149=Dashboard!$C$15,Dashboard!$C$16,"") -> AM036 | I149: =IFERROR(_xlfn.LET( _xlpm.type,G149, _xlpm.size,H149, _xlpm.temp,D149, _xlpm.temps,_xlfn._xlws.FILTER('Equip. Data'!$D$4:$D$63,('Equip. Data'!$B$4:$B$63=_xlpm.type)*('Equip. Data'!$E$4:$E$63=_xlpm.size)),_xlpm.caps,_xlfn._xlws.FILTER('Equip. Data'!$F$4:$F$63,('Equip. Data'!$B$4:$B$63=_xlpm.type)*('Equip. Data'!$E$4:$E$63=_xlpm.size)), INDEX(_xlpm.caps, _xlfn.XMATCH(MIN(ABS(_xlpm.temps-_xlpm.temp)), ABS(_xlpm.temps-_xlpm.temp)))),0) -> 40.2 | J149: 18.35656 | K149: 5.38 | L149: =IFERROR(_xlfn.LET( _xlpm.type,G149, _xlpm.size,H149, _xlpm.temp,D149, _xlpm.temps,_xlfn._xlws.FILTER('Equip. Data'!$D$4:$D$63,('Equip. Data'!$B$4:$B$63=_xlpm.type)*('Equip. Data'!$E$4:$E$63=_xlpm.size)),_xlpm.cops,_xlfn._xlws.FILTER('Equip. Data'!$H$4:$H$63,('Equip. Data'!$B$4:$B$63=_xlpm.type)*('Equip. Data'!$E$4:$E$63=_xlpm.size)), INDEX(_xlpm.cops, _xlfn.XMATCH(MIN(ABS(_xlpm.temps-_xlpm.temp)), ABS(_xlpm.temps-_xlpm.temp)))),0) -> 3.800627765 | M149: 1.415555622 | N149: =IF(D149<Dashboard!$C$18,Dashboard!$D$15,"") ->  | O149: 0 | P149: =IFERROR(VLOOKUP(N149,'Equip. Data'!$J$3:$K$7,2,FALSE),"") ->  | Q149: 0 | R149: 3.800627765
B150: Heating (Electricity) | C150: 2002-07-01T03:00:00 | D150: 7.9 | E150: 5.31 | F150: 18.11772 | G150: =IF(D150>=Dashboard!$C$18,Dashboard!$C$15,"") -> Mini Split HP | H150: =IF(G150=Dashboard!$C$15,Dashboard!$C$16,"") -> AM036 | I150: =IFERROR(_xlfn.LET( _xlpm.type,G150, _xlpm.size,H150, _xlpm.temp,D150, _xlpm.temps,_xlfn._xlws.FILTER('Equip. Data'!$D$4:$D$63,('Equip. Data'!$B$4:$B$63=_xlpm.type)*('Equip. Data'!$E$4:$E$63=_xlpm.size)),_xlpm.caps,_xlfn._xlws.FILTER('Equip. Data'!$F$4:$F$63,('Equip. Data'!$B$4:$B$63=_xlpm.type)*('Equip. Data'!$E$4:$E$63=_xlpm.size)), INDEX(_xlpm.caps, _xlfn.XMATCH(MIN(ABS(_xlpm.temps-_xlpm.temp)), ABS(_xlpm.temps-_xlpm.temp)))),0) -> 40.2 | J150: 18.11772 | K150: 5.31 | L150: =IFERROR(_xlfn.LET( _xlpm.type,G150, _xlpm.size,H150, _xlpm.temp,D150, _xlpm.temps,_xlfn._xlws.FILTER('Equip. Data'!$D$4:$D$63,('Equip. Data'!$B$4:$B$63=_xlpm.type)*('Equip. Data'!$E$4:$E$63=_xlpm.size)),_xlpm.cops,_xlfn._xlws.FILTER('Equip. Data'!$H$4:$H$63,('Equip. Data'!$B$4:$B$63=_xlpm.type)*('Equip. Data'!$E$4:$E$63=_xlpm.size)), INDEX(_xlpm.cops, _xlfn.XMATCH(MIN(ABS(_xlpm.temps-_xlpm.temp)), ABS(_xlpm.temps-_xlpm.temp)))),0) -> 3.800627765 | M150: 1.397137612 | N150: =IF(D150<Dashboard!$C$18,Dashboard!$D$15,"") ->  | O150: 0 | P150: =IFERROR(VLOOKUP(N150,'Equip. Data'!$J$3:$K$7,2,FALSE),"") ->  | Q150: 0 | R150: 3.800627765
B151: Heating (Electricity) | C151: 2002-07-01T04:00:00 | D151: 8 | E151: 5.31 | F151: 18.11772 | G151: =IF(D151>=Dashboard!$C$18,Dashboard!$C$15,"") -> Mini Split HP | H151: =IF(G151=Dashboard!$C$15,Dashboard!$C$16,"") -> AM036 | I151: =IFERROR(_xlfn.LET( _xlpm.type,G151, _xlpm.size,H151, _xlpm.temp,D151, _xlpm.temps,_xlfn._xlws.FILTER('Equip. Data'!$D$4:$D$63,('Equip. Data'!$B$4:$B$63=_xlpm.type)*('Equip. Data'!$E$4:$E$63=_xlpm.size)),_xlpm.caps,_xlfn._xlws.FILTER('Equip. Data'!$F$4:$F$63,('Equip. Data'!$B$4:$B$63=_xlpm.type)*('Equip. Data'!$E$4:$E$63=_xlpm.size)), INDEX(_xlpm.caps, _xlfn.XMATCH(MIN(ABS(_xlpm.temps-_xlpm.temp)), ABS(_xlpm.temps-_xlpm.temp)))),0) -> 40.2 | J151: 18.11772 | K151: 5.31 | L151: =IFERROR(_xlfn.LET( _xlpm.type,G151, _xlpm.size,H151, _xlpm.temp,D151, _xlpm.temps,_xlfn._xlws.FILTER('Equip. Data'!$D$4:$D$63,('Equip. Data'!$B$4:$B$63=_xlpm.type)*('Equip. Data'!$E$4:$E$63=_xlpm.size)),_xlpm.cops,_xlfn._xlws.FILTER('Equip. Data'!$H$4:$H$63,('Equip. Data'!$B$4:$B$63=_xlpm.type)*('Equip. Data'!$E$4:$E$63=_xlpm.size)), INDEX(_xlpm.cops, _xlfn.XMATCH(MIN(ABS(_xlpm.temps-_xlpm.temp)), ABS(_xlpm.temps-_xlpm.temp)))),0) -> 3.800627765 | M151: 1.397137612 | N151: =IF(D151<Dashboard!$C$18,Dashboard!$D$15,"") ->  | O151: 0 | P151: =IFERROR(VLOOKUP(N151,'Equip. Data'!$J$3:$K$7,2,FALSE),"") ->  | Q151: 0 | R151: 3.800627765
B152: Heating (Electricity) | C152: 2002-07-01T05:00:00 | D152: 8.1 | E152: 5.28 | F152: 18.01536 | G152: =IF(D152>=Dashboard!$C$18,Dashboard!$C$15,"") -> Mini Split HP | H152: =IF(G152=Dashboard!$C$15,Dashboard!$C$16,"") -> AM036 | I152: =IFERROR(_xlfn.LET( _xlpm.type,G152, _xlpm.size,H152, _xlpm.temp,D152, _xlpm.temps,_xlfn._xlws.FILTER('Equip. Data'!$D$4:$D$63,('Equip. Data'!$B$4:$B$63=_xlpm.type)*('Equip. Data'!$E$4:$E$63=_xlpm.size)),_xlpm.caps,_xlfn._xlws.FILTER('Equip. Data'!$F$4:$F$63,('Equip. Data'!$B$4:$B$63=_xlpm.type)*('Equip. Data'!$E$4:$E$63=_xlpm.size)), INDEX(_xlpm.caps, _xlfn.XMATCH(MIN(ABS(_xlpm.temps-_xlpm.temp)), ABS(_xlpm.temps-_xlpm.temp)))),0) -> 40.2 | J152: 18.01536 | K152: 5.28 | L152: =IFERROR(_xlfn.LET( _xlpm.type,G152, _xlpm.size,H152, _xlpm.temp,D152, _xlpm.temps,_xlfn._xlws.FILTER('Equip. Data'!$D$4:$D$63,('Equip. Data'!$B$4:$B$63=_xlpm.type)*('Equip. Data'!$E$4:$E$63=_xlpm.size)),_xlpm.cops,_xlfn._xlws.FILTER('Equip. Data'!$H$4:$H$63,('Equip. Data'!$B$4:$B$63=_xlpm.type)*('Equip. Data'!$E$4:$E$63=_xlpm.size)), INDEX(_xlpm.cops, _xlfn.XMATCH(MIN(ABS(_xlpm.temps-_xlpm.temp)), ABS(_xlpm.temps-_xlpm.temp)))),0) -> 3.800627765 | M152: 1.389244179 | N152: =IF(D152<Dashboard!$C$18,Dashboard!$D$15,"") ->  | O152: 0 | P152: =IFERROR(VLOOKUP(N152,'Equip. Data'!$J$3:$K$7,2,FALSE),"") ->  | Q152: 0 | R152: 3.800627765
B153: Heating (Electricity) | C153: 2002-07-01T06:00:00 | D153: 8.4 | E153: 5.2 | F153: 17.7424 | G153: =IF(D153>=Dashboard!$C$18,Dashboard!$C$15,"") -> Mini Split HP | H153: =IF(G153=Dashboard!$C$15,Dashboard!$C$16,"") -> AM036 | I153: =IFERROR(_xlfn.LET( _xlpm.type,G153, _xlpm.size,H153, _xlpm.temp,D153, _xlpm.temps,_xlfn._xlws.FILTER('Equip. Data'!$D$4:$D$63,('Equip. Data'!$B$4:$B$63=_xlpm.type)*('Equip. Data'!$E$4:$E$63=_xlpm.size)),_xlpm.caps,_xlfn._xlws.FILTER('Equip. Data'!$F$4:$F$63,('Equip. Data'!$B$4:$B$63=_xlpm.type)*('Equip. Data'!$E$4:$E$63=_xlpm.size)), INDEX(_xlpm.caps, _xlfn.XMATCH(MIN(ABS(_xlpm.temps-_xlpm.temp)), ABS(_xlpm.temps-_xlpm.temp)))),0) -> 40.2 | J153: 17.7424 | K153: 5.2 | L153: =IFERROR(_xlfn.LET( _xlpm.type,G153, _xlpm.size,H153, _xlpm.temp,D153, _xlpm.temps,_xlfn._xlws.FILTER('Equip. Data'!$D$4:$D$63,('Equip. Data'!$B$4:$B$63=_xlpm.type)*('Equip. Data'!$E$4:$E$63=_xlpm.size)),_xlpm.cops,_xlfn._xlws.FILTER('Equip. Data'!$H$4:$H$63,('Equip. Data'!$B$4:$B$63=_xlpm.type)*('Equip. Data'!$E$4:$E$63=_xlpm.size)), INDEX(_xlpm.cops, _xlfn.XMATCH(MIN(ABS(_xlpm.temps-_xlpm.temp)), ABS(_xlpm.temps-_xlpm.temp)))),0) -> 3.800627765 | M153: 1.368195025 | N153: =IF(D153<Dashboard!$C$18,Dashboard!$D$15,"") ->  | O153: 0 | P153: =IFERROR(VLOOKUP(N153,'Equip. Data'!$J$3:$K$7,2,FALSE),"") ->  | Q153: 0 | R153: 3.800627765
B154: Heating (Electricity) | C154: 2002-07-01T07:00:00 | D154: 8.3 | E154: 5.08 | F154: 17.33296 | G154: =IF(D154>=Dashboard!$C$18,Dashboard!$C$15,"") -> Mini Split HP | H154: =IF(G154=Dashboard!$C$15,Dashboard!$C$16,"") -> AM036 | I154: =IFERROR(_xlfn.LET( _xlpm.type,G154, _xlpm.size,H154, _xlpm.temp,D154, _xlpm.temps,_xlfn._xlws.FILTER('Equip. Data'!$D$4:$D$63,('Equip. Data'!$B$4:$B$63=_xlpm.type)*('Equip. Data'!$E$4:$E$63=_xlpm.size)),_xlpm.caps,_xlfn._xlws.FILTER('Equip. Data'!$F$4:$F$63,('Equip. Data'!$B$4:$B$63=_xlpm.type)*('Equip. Data'!$E$4:$E$63=_xlpm.size)), INDEX(_xlpm.caps, _xlfn.XMATCH(MIN(ABS(_xlpm.temps-_xlpm.temp)), ABS(_xlpm.temps-_xlpm.temp)))),0) -> 40.2 | J154: 17.33296 | K154: 5.08 | L154: =IFERROR(_xlfn.LET( _xlpm.type,G154, _xlpm.size,H154, _xlpm.temp,D154, _xlpm.temps,_xlfn._xlws.FILTER('Equip. Data'!$D$4:$D$63,('Equip. Data'!$B$4:$B$63=_xlpm.type)*('Equip. Data'!$E$4:$E$63=_xlpm.size)),_xlpm.cops,_xlfn._xlws.FILTER('Equip. Data'!$H$4:$H$63,('Equip. Data'!$B$4:$B$63=_xlpm.type)*('Equip. Data'!$E$4:$E$63=_xlpm.size)), INDEX(_xlpm.cops, _xlfn.XMATCH(MIN(ABS(_xlpm.temps-_xlpm.temp)), ABS(_xlpm.temps-_xlpm.temp)))),0) -> 3.800627765 | M154: 1.336621294 | N154: =IF(D154<Dashboard!$C$18,Dashboard!$D$15,"") ->  | O154: 0 | P154: =IFERROR(VLOOKUP(N154,'Equip. Data'!$J$3:$K$7,2,FALSE),"") ->  | Q154: 0 | R154: 3.800627765
B155: Heating (Electricity) | C155: 2002-07-01T08:00:00 | D155: 8.3 | E155: 4.96 | F155: 16.92352 | G155: =IF(D155>=Dashboard!$C$18,Dashboard!$C$15,"") -> Mini Split HP | H155: =IF(G155=Dashboard!$C$15,Dashboard!$C$16,"") -> AM036 | I155: =IFERROR(_xlfn.LET( _xlpm.type,G155, _xlpm.size,H155, _xlpm.temp,D155, _xlpm.temps,_xlfn._xlws.FILTER('Equip. Data'!$D$4:$D$63,('Equip. Data'!$B$4:$B$63=_xlpm.type)*('Equip. Data'!$E$4:$E$63=_xlpm.size)),_xlpm.caps,_xlfn._xlws.FILTER('Equip. Data'!$F$4:$F$63,('Equip. Data'!$B$4:$B$63=_xlpm.type)*('Equip. Data'!$E$4:$E$63=_xlpm.size)), INDEX(_xlpm.caps, _xlfn.XMATCH(MIN(ABS(_xlpm.temps-_xlpm.temp)), ABS(_xlpm.temps-_xlpm.temp)))),0) -> 40.2 | J155: 16.92352 | K155: 4.96 | L155: =IFERROR(_xlfn.LET( _xlpm.type,G155, _xlpm.size,H155, _xlpm.temp,D155, _xlpm.temps,_xlfn._xlws.FILTER('Equip. Data'!$D$4:$D$63,('Equip. Data'!$B$4:$B$63=_xlpm.type)*('Equip. Data'!$E$4:$E$63=_xlpm.size)),_xlpm.cops,_xlfn._xlws.FILTER('Equip. Data'!$H$4:$H$63,('Equip. Data'!$B$4:$B$63=_xlpm.type)*('Equip. Data'!$E$4:$E$63=_xlpm.size)), INDEX(_xlpm.cops, _xlfn.XMATCH(MIN(ABS(_xlpm.temps-_xlpm.temp)), ABS(_xlpm.temps-_xlpm.temp)))),0) -> 3.800627765 | M155: 1.305047562 | N155: =IF(D155<Dashboard!$C$18,Dashboard!$D$15,"") ->  | O155: 0 | P155: =IFERROR(VLOOKUP(N155,'Equip. Data'!$J$3:$K$7,2,FALSE),"") ->  | Q155: 0 | R155: 3.800627765
B156: Heating (Electricity) | C156: 2002-07-01T09:00:00 | D156: 8.3 | E156: 4.82 | F156: 16.44584 | G156: =IF(D156>=Dashboard!$C$18,Dashboard!$C$15,"") -> Mini Split HP | H156: =IF(G156=Dashboard!$C$15,Dashboard!$C$16,"") -> AM036 | I156: =IFERROR(_xlfn.LET( _xlpm.type,G156, _xlpm.size,H156, _xlpm.temp,D156, _xlpm.temps,_xlfn._xlws.FILTER('Equip. Data'!$D$4:$D$63,('Equip. Data'!$B$4:$B$63=_xlpm.type)*('Equip. Data'!$E$4:$E$63=_xlpm.size)),_xlpm.caps,_xlfn._xlws.FILTER('Equip. Data'!$F$4:$F$63,('Equip. Data'!$B$4:$B$63=_xlpm.type)*('Equip. Data'!$E$4:$E$63=_xlpm.size)), INDEX(_xlpm.caps, _xlfn.XMATCH(MIN(ABS(_xlpm.temps-_xlpm.temp)), ABS(_xlpm.temps-_xlpm.temp)))),0) -> 40.2 | J156: 16.44584 | K156: 4.82 | L156: =IFERROR(_xlfn.LET( _xlpm.type,G156, _xlpm.size,H156, _xlpm.temp,D156, _xlpm.temps,_xlfn._xlws.FILTER('Equip. Data'!$D$4:$D$63,('Equip. Data'!$B$4:$B$63=_xlpm.type)*('Equip. Data'!$E$4:$E$63=_xlpm.size)),_xlpm.cops,_xlfn._xlws.FILTER('Equip. Data'!$H$4:$H$63,('Equip. Data'!$B$4:$B$63=_xlpm.type)*('Equip. Data'!$E$4:$E$63=_xlpm.size)), INDEX(_xlpm.cops, _xlfn.XMATCH(MIN(ABS(_xlpm.temps-_xlpm.temp)), ABS(_xlpm.temps-_xlpm.temp)))),0) -> 3.800627765 | M156: 1.268211542 | N156: =IF(D156<Dashboard!$C$18,Dashboard!$D$15,"") ->  | O156: 0 | P156: =IFERROR(VLOOKUP(N156,'Equip. Data'!$J$3:$K$7,2,FALSE),"") ->  | Q156: 0 | R156: 3.800627765
B157: Heating (Electricity) | C157: 2002-07-01T10:00:00 | D157: 8.4 | E157: 4.72 | F157: 16.10464 | G157: =IF(D157>=Dashboard!$C$18,Dashboard!$C$15,"") -> Mini Split HP | H157: =IF(G157=Dashboard!$C$15,Dashboard!$C$16,"") -> AM036 | I157: =IFERROR(_xlfn.LET( _xlpm.type,G157, _xlpm.size,H157, _xlpm.temp,D157, _xlpm.temps,_xlfn._xlws.FILTER('Equip. Data'!$D$4:$D$63,('Equip. Data'!$B$4:$B$63=_xlpm.type)*('Equip. Data'!$E$4:$E$63=_xlpm.size)),_xlpm.caps,_xlfn._xlws.FILTER('Equip. Data'!$F$4:$F$63,('Equip. Data'!$B$4:$B$63=_xlpm.type)*('Equip. Data'!$E$4:$E$63=_xlpm.size)), INDEX(_xlpm.caps, _xlfn.XMATCH(MIN(ABS(_xlpm.temps-_xlpm.temp)), ABS(_xlpm.temps-_xlpm.temp)))),0) -> 40.2 | J157: 16.10464 | K157: 4.72 | L157: =IFERROR(_xlfn.LET( _xlpm.type,G157, _xlpm.size,H157, _xlpm.temp,D157, _xlpm.temps,_xlfn._xlws.FILTER('Equip. Data'!$D$4:$D$63,('Equip. Data'!$B$4:$B$63=_xlpm.type)*('Equip. Data'!$E$4:$E$63=_xlpm.size)),_xlpm.cops,_xlfn._xlws.FILTER('Equip. Data'!$H$4:$H$63,('Equip. Data'!$B$4:$B$63=_xlpm.type)*('Equip. Data'!$E$4:$E$63=_xlpm.size)), INDEX(_xlpm.cops, _xlfn.XMATCH(MIN(ABS(_xlpm.temps-_xlpm.temp)), ABS(_xlpm.temps-_xlpm.temp)))),0) -> 3.800627765 | M157: 1.2419001 | N157: =IF(D157<Dashboard!$C$18,Dashboard!$D$15,"") ->  | O157: 0 | P157: =IFERROR(VLOOKUP(N157,'Equip. Data'!$J$3:$K$7,2,FALSE),"") ->  | Q157: 0 | R157: 3.800627765
B158: Heating (Electricity) | C158: 2002-07-01T11:00:00 | D158: 8.4 | E158: 4.38 | F158: 14.94456 | G158: =IF(D158>=Dashboard!$C$18,Dashboard!$C$15,"") -> Mini Split HP | H158: =IF(G158=Dashboard!$C$15,Dashboard!$C$16,"") -> AM036 | I158: =IFERROR(_xlfn.LET( _xlpm.type,G158, _xlpm.size,H158, _xlpm.temp,D158, _xlpm.temps,_xlfn._xlws.FILTER('Equip. Data'!$D$4:$D$63,('Equip. Data'!$B$4:$B$63=_xlpm.type)*('Equip. Data'!$E$4:$E$63=_xlpm.size)),_xlpm.caps,_xlfn._xlws.FILTER('Equip. Data'!$F$4:$F$63,('Equip. Data'!$B$4:$B$63=_xlpm.type)*('Equip. Data'!$E$4:$E$63=_xlpm.size)), INDEX(_xlpm.caps, _xlfn.XMATCH(MIN(ABS(_xlpm.temps-_xlpm.temp)), ABS(_xlpm.temps-_xlpm.temp)))),0) -> 40.2 | J158: 14.94456 | K158: 4.38 | L158: =IFERROR(_xlfn.LET( _xlpm.type,G158, _xlpm.size,H158, _xlpm.temp,D158, _xlpm.temps,_xlfn._xlws.FILTER('Equip. Data'!$D$4:$D$63,('Equip. Data'!$B$4:$B$63=_xlpm.type)*('Equip. Data'!$E$4:$E$63=_xlpm.size)),_xlpm.cops,_xlfn._xlws.FILTER('Equip. Data'!$H$4:$H$63,('Equip. Data'!$B$4:$B$63=_xlpm.type)*('Equip. Data'!$E$4:$E$63=_xlpm.size)), INDEX(_xlpm.cops, _xlfn.XMATCH(MIN(ABS(_xlpm.temps-_xlpm.temp)), ABS(_xlpm.temps-_xlpm.temp)))),0) -> 3.800627765 | M158: 1.152441194 | N158: =IF(D158<Dashboard!$C$18,Dashboard!$D$15,"") ->  | O158: 0 | P158: =IFERROR(VLOOKUP(N158,'Equip. Data'!$J$3:$K$7,2,FALSE),"") ->  | Q158: 0 | R158: 3.800627765
B159: Heating (Electricity) | C159: 2002-07-01T12:00:00 | D159: 8 | E159: 3.15 | F159: 10.7478 | G159: =IF(D159>=Dashboard!$C$18,Dashboard!$C$15,"") -> Mini Split HP | H159: =IF(G159=Dashboard!$C$15,Dashboard!$C$16,"") -> AM036 | I159: =IFERROR(_xlfn.LET( _xlpm.type,G159, _xlpm.size,H159, _xlpm.temp,D159, _xlpm.temps,_xlfn._xlws.FILTER('Equip. Data'!$D$4:$D$63,('Equip. Data'!$B$4:$B$63=_xlpm.type)*('Equip. Data'!$E$4:$E$63=_xlpm.size)),_xlpm.caps,_xlfn._xlws.FILTER('Equip. Data'!$F$4:$F$63,('Equip. Data'!$B$4:$B$63=_xlpm.type)*('Equip. Data'!$E$4:$E$63=_xlpm.size)), INDEX(_xlpm.caps, _xlfn.XMATCH(MIN(ABS(_xlpm.temps-_xlpm.temp)), ABS(_xlpm.temps-_xlpm.temp)))),0) -> 40.2 | J159: 10.7478 | K159: 3.15 | L159: =IFERROR(_xlfn.LET( _xlpm.type,G159, _xlpm.size,H159, _xlpm.temp,D159, _xlpm.temps,_xlfn._xlws.FILTER('Equip. Data'!$D$4:$D$63,('Equip. Data'!$B$4:$B$63=_xlpm.type)*('Equip. Data'!$E$4:$E$63=_xlpm.size)),_xlpm.cops,_xlfn._xlws.FILTER('Equip. Data'!$H$4:$H$63,('Equip. Data'!$B$4:$B$63=_xlpm.type)*('Equip. Data'!$E$4:$E$63=_xlpm.size)), INDEX(_xlpm.cops, _xlfn.XMATCH(MIN(ABS(_xlpm.temps-_xlpm.temp)), ABS(_xlpm.temps-_xlpm.temp)))),0) -> 3.800627765 | M159: 0.8288104478 | N159: =IF(D159<Dashboard!$C$18,Dashboard!$D$15,"") ->  | O159: 0 | P159: =IFERROR(VLOOKUP(N159,'Equip. Data'!$J$3:$K$7,2,FALSE),"") ->  | Q159: 0 | R159: 3.800627765
B160: Heating (Electricity) | C160: 2002-07-01T13:00:00 | D160: 6.9 | E160: 2.8 | F160: 9.5536 | G160: =IF(D160>=Dashboard!$C$18,Dashboard!$C$15,"") -> Mini Split HP | H160: =IF(G160=Dashboard!$C$15,Dashboard!$C$16,"") -> AM036 | I160: =IFERROR(_xlfn.LET( _xlpm.type,G160, _xlpm.size,H160, _xlpm.temp,D160, _xlpm.temps,_xlfn._xlws.FILTER('Equip. Data'!$D$4:$D$63,('Equip. Data'!$B$4:$B$63=_xlpm.type)*('Equip. Data'!$E$4:$E$63=_xlpm.size)),_xlpm.caps,_xlfn._xlws.FILTER('Equip. Data'!$F$4:$F$63,('Equip. Data'!$B$4:$B$63=_xlpm.type)*('Equip. Data'!$E$4:$E$63=_xlpm.size)), INDEX(_xlpm.caps, _xlfn.XMATCH(MIN(ABS(_xlpm.temps-_xlpm.temp)), ABS(_xlpm.temps-_xlpm.temp)))),0) -> 40.2 | J160: 9.5536 | K160: 2.8 | L160: =IFERROR(_xlfn.LET( _xlpm.type,G160, _xlpm.size,H160, _xlpm.temp,D160, _xlpm.temps,_xlfn._xlws.FILTER('Equip. Data'!$D$4:$D$63,('Equip. Data'!$B$4:$B$63=_xlpm.type)*('Equip. Data'!$E$4:$E$63=_xlpm.size)),_xlpm.cops,_xlfn._xlws.FILTER('Equip. Data'!$H$4:$H$63,('Equip. Data'!$B$4:$B$63=_xlpm.type)*('Equip. Data'!$E$4:$E$63=_xlpm.size)), INDEX(_xlpm.cops, _xlfn.XMATCH(MIN(ABS(_xlpm.temps-_xlpm.temp)), ABS(_xlpm.temps-_xlpm.temp)))),0) -> 3.681858148 | M160: 0.7604855721 | N160: =IF(D160<Dashboard!$C$18,Dashboard!$D$15,"") ->  | O160: 0 | P160: =IFERROR(VLOOKUP(N160,'Equip. Data'!$J$3:$K$7,2,FALSE),"") ->  | Q160: 0 | R160: 3.681858148
B161: Heating (Electricity) | C161: 2002-07-01T14:00:00 | D161: 7.1 | E161: 3.14 | F161: 10.71368 | G161: =IF(D161>=Dashboard!$C$18,Dashboard!$C$15,"") -> Mini Split HP | H161: =IF(G161=Dashboard!$C$15,Dashboard!$C$16,"") -> AM036 | I161: =IFERROR(_xlfn.LET( _xlpm.type,G161, _xlpm.size,H161, _xlpm.temp,D161, _xlpm.temps,_xlfn._xlws.FILTER('Equip. Data'!$D$4:$D$63,('Equip. Data'!$B$4:$B$63=_xlpm.type)*('Equip. Data'!$E$4:$E$63=_xlpm.size)),_xlpm.caps,_xlfn._xlws.FILTER('Equip. Data'!$F$4:$F$63,('Equip. Data'!$B$4:$B$63=_xlpm.type)*('Equip. Data'!$E$4:$E$63=_xlpm.size)), INDEX(_xlpm.caps, _xlfn.XMATCH(MIN(ABS(_xlpm.temps-_xlpm.temp)), ABS(_xlpm.temps-_xlpm.temp)))),0) -> 40.2 | J161: 10.71368 | K161: 3.14 | L161: =IFERROR(_xlfn.LET( _xlpm.type,G161, _xlpm.size,H161, _xlpm.temp,D161, _xlpm.temps,_xlfn._xlws.FILTER('Equip. Data'!$D$4:$D$63,('Equip. Data'!$B$4:$B$63=_xlpm.type)*('Equip. Data'!$E$4:$E$63=_xlpm.size)),_xlpm.cops,_xlfn._xlws.FILTER('Equip. Data'!$H$4:$H$63,('Equip. Data'!$B$4:$B$63=_xlpm.type)*('Equip. Data'!$E$4:$E$63=_xlpm.size)), INDEX(_xlpm.cops, _xlfn.XMATCH(MIN(ABS(_xlpm.temps-_xlpm.temp)), ABS(_xlpm.temps-_xlpm.temp)))),0) -> 3.681858148 | M161: 0.8528302488 | N161: =IF(D161<Dashboard!$C$18,Dashboard!$D$15,"") ->  | O161: 0 | P161: =IFERROR(VLOOKUP(N161,'Equip. Data'!$J$3:$K$7,2,FALSE),"") ->  | Q161: 0 | R161: 3.681858148
B162: Heating (Electricity) | C162: 2002-07-01T15:00:00 | D162: 6.3 | E162: 2.88 | F162: 9.82656 | G162: =IF(D162>=Dashboard!$C$18,Dashboard!$C$15,"") -> Mini Split HP | H162: =IF(G162=Dashboard!$C$15,Dashboard!$C$16,"") -> AM036 | I162: =IFERROR(_xlfn.LET( _xlpm.type,G162, _xlpm.size,H162, _xlpm.temp,D162, _xlpm.temps,_xlfn._xlws.FILTER('Equip. Data'!$D$4:$D$63,('Equip. Data'!$B$4:$B$63=_xlpm.type)*('Equip. Data'!$E$4:$E$63=_xlpm.size)),_xlpm.caps,_xlfn._xlws.FILTER('Equip. Data'!$F$4:$F$63,('Equip. Data'!$B$4:$B$63=_xlpm.type)*('Equip. Data'!$E$4:$E$63=_xlpm.size)), INDEX(_xlpm.caps, _xlfn.XMATCH(MIN(ABS(_xlpm.temps-_xlpm.temp)), ABS(_xlpm.temps-_xlpm.temp)))),0) -> 40.2 | J162: 9.82656 | K162: 2.88 | L162: =IFERROR(_xlfn.LET( _xlpm.type,G162, _xlpm.size,H162, _xlpm.temp,D162, _xlpm.temps,_xlfn._xlws.FILTER('Equip. Data'!$D$4:$D$63,('Equip. Data'!$B$4:$B$63=_xlpm.type)*('Equip. Data'!$E$4:$E$63=_xlpm.size)),_xlpm.cops,_xlfn._xlws.FILTER('Equip. Data'!$H$4:$H$63,('Equip. Data'!$B$4:$B$63=_xlpm.type)*('Equip. Data'!$E$4:$E$63=_xlpm.size)), INDEX(_xlpm.cops, _xlfn.XMATCH(MIN(ABS(_xlpm.temps-_xlpm.temp)), ABS(_xlpm.temps-_xlpm.temp)))),0) -> 3.681858148 | M162: 0.7822137313 | N162: =IF(D162<Dashboard!$C$18,Dashboard!$D$15,"") ->  | O162: 0 | P162: =IFERROR(VLOOKUP(N162,'Equip. Data'!$J$3:$K$7,2,FALSE),"") ->  | Q162: 0 | R162: 3.681858148
B163: Heating (Electricity) | C163: 2002-07-01T16:00:00 | D163: 5.6 | E163: 3.28 | F163: 11.19136 | G163: =IF(D163>=Dashboard!$C$18,Dashboard!$C$15,"") -> Mini Split HP | H163: =IF(G163=Dashboard!$C$15,Dashboard!$C$16,"") -> AM036 | I163: =IFERROR(_xlfn.LET( _xlpm.type,G163, _xlpm.size,H163, _xlpm.temp,D163, _xlpm.temps,_xlfn._xlws.FILTER('Equip. Data'!$D$4:$D$63,('Equip. Data'!$B$4:$B$63=_xlpm.type)*('Equip. Data'!$E$4:$E$63=_xlpm.size)),_xlpm.caps,_xlfn._xlws.FILTER('Equip. Data'!$F$4:$F$63,('Equip. Data'!$B$4:$B$63=_xlpm.type)*('Equip. Data'!$E$4:$E$63=_xlpm.size)), INDEX(_xlpm.caps, _xlfn.XMATCH(MIN(ABS(_xlpm.temps-_xlpm.temp)), ABS(_xlpm.temps-_xlpm.temp)))),0) -> 40.2 | J163: 11.19136 | K163: 3.28 | L163: =IFERROR(_xlfn.LET( _xlpm.type,G163, _xlpm.size,H163, _xlpm.temp,D163, _xlpm.temps,_xlfn._xlws.FILTER('Equip. Data'!$D$4:$D$63,('Equip. Data'!$B$4:$B$63=_xlpm.type)*('Equip. Data'!$E$4:$E$63=_xlpm.size)),_xlpm.cops,_xlfn._xlws.FILTER('Equip. Data'!$H$4:$H$63,('Equip. Data'!$B$4:$B$63=_xlpm.type)*('Equip. Data'!$E$4:$E$63=_xlpm.size)), INDEX(_xlpm.cops, _xlfn.XMATCH(MIN(ABS(_xlpm.temps-_xlpm.temp)), ABS(_xlpm.temps-_xlpm.temp)))),0) -> 3.681858148 | M163: 0.8908545274 | N163: =IF(D163<Dashboard!$C$18,Dashboard!$D$15,"") ->  | O163: 0 | P163: =IFERROR(VLOOKUP(N163,'Equip. Data'!$J$3:$K$7,2,FALSE),"") ->  | Q163: 0 | R163: 3.681858148
B164: Heating (Electricity) | C164: 2002-07-01T17:00:00 | D164: 5.5 | E164: 3.72 | F164: 12.69264 | G164: =IF(D164>=Dashboard!$C$18,Dashboard!$C$15,"") -> Mini Split HP | H164: =IF(G164=Dashboard!$C$15,Dashboard!$C$16,"") -> AM036 | I164: =IFERROR(_xlfn.LET( _xlpm.type,G164, _xlpm.size,H164, _xlpm.temp,D164, _xlpm.temps,_xlfn._xlws.FILTER('Equip. Data'!$D$4:$D$63,('Equip. Data'!$B$4:$B$63=_xlpm.type)*('Equip. Data'!$E$4:$E$63=_xlpm.size)),_xlpm.caps,_xlfn._xlws.FILTER('Equip. Data'!$F$4:$F$63,('Equip. Data'!$B$4:$B$63=_xlpm.type)*('Equip. Data'!$E$4:$E$63=_xlpm.size)), INDEX(_xlpm.caps, _xlfn.XMATCH(MIN(ABS(_xlpm.temps-_xlpm.temp)), ABS(_xlpm.temps-_xlpm.temp)))),0) -> 40.2 | J164: 12.69264 | K164: 3.72 | L164: =IFERROR(_xlfn.LET( _xlpm.type,G164, _xlpm.size,H164, _xlpm.temp,D164, _xlpm.temps,_xlfn._xlws.FILTER('Equip. Data'!$D$4:$D$63,('Equip. Data'!$B$4:$B$63=_xlpm.type)*('Equip. Data'!$E$4:$E$63=_xlpm.size)),_xlpm.cops,_xlfn._xlws.FILTER('Equip. Data'!$H$4:$H$63,('Equip. Data'!$B$4:$B$63=_xlpm.type)*('Equip. Data'!$E$4:$E$63=_xlpm.size)), INDEX(_xlpm.cops, _xlfn.XMATCH(MIN(ABS(_xlpm.temps-_xlpm.temp)), ABS(_xlpm.temps-_xlpm.temp)))),0) -> 3.681858148 | M164: 1.010359403 | N164: =IF(D164<Dashboard!$C$18,Dashboard!$D$15,"") ->  | O164: 0 | P164: =IFERROR(VLOOKUP(N164,'Equip. Data'!$J$3:$K$7,2,FALSE),"") ->  | Q164: 0 | R164: 3.681858148
B165: Heating (Electricity) | C165: 2002-07-01T18:00:00 | D165: 4.8 | E165: 3.96 | F165: 13.51152 | G165: =IF(D165>=Dashboard!$C$18,Dashboard!$C$15,"") -> Mini Split HP | H165: =IF(G165=Dashboard!$C$15,Dashboard!$C$16,"") -> AM036 | I165: =IFERROR(_xlfn.LET( _xlpm.type,G165, _xlpm.size,H165, _xlpm.temp,D165, _xlpm.temps,_xlfn._xlws.FILTER('Equip. Data'!$D$4:$D$63,('Equip. Data'!$B$4:$B$63=_xlpm.type)*('Equip. Data'!$E$4:$E$63=_xlpm.size)),_xlpm.caps,_xlfn._xlws.FILTER('Equip. Data'!$F$4:$F$63,('Equip. Data'!$B$4:$B$63=_xlpm.type)*('Equip. Data'!$E$4:$E$63=_xlpm.size)), INDEX(_xlpm.caps, _xlfn.XMATCH(MIN(ABS(_xlpm.temps-_xlpm.temp)), ABS(_xlpm.temps-_xlpm.temp)))),0) -> 40.2 | J165: 13.51152 | K165: 3.96 | L165: =IFERROR(_xlfn.LET( _xlpm.type,G165, _xlpm.size,H165, _xlpm.temp,D165, _xlpm.temps,_xlfn._xlws.FILTER('Equip. Data'!$D$4:$D$63,('Equip. Data'!$B$4:$B$63=_xlpm.type)*('Equip. Data'!$E$4:$E$63=_xlpm.size)),_xlpm.cops,_xlfn._xlws.FILTER('Equip. Data'!$H$4:$H$63,('Equip. Data'!$B$4:$B$63=_xlpm.type)*('Equip. Data'!$E$4:$E$63=_xlpm.size)), INDEX(_xlpm.cops, _xlfn.XMATCH(MIN(ABS(_xlpm.temps-_xlpm.temp)), ABS(_xlpm.temps-_xlpm.temp)))),0) -> 3.681858148 | M165: 1.075543881 | N165: =IF(D165<Dashboard!$C$18,Dashboard!$D$15,"") ->  | O165: 0 | P165: =IFERROR(VLOOKUP(N165,'Equip. Data'!$J$3:$K$7,2,FALSE),"") ->  | Q165: 0 | R165: 3.681858148
B166: Heating (Electricity) | C166: 2002-07-01T19:00:00 | D166: 4.7 | E166: 3.93 | F166: 13.40916 | G166: =IF(D166>=Dashboard!$C$18,Dashboard!$C$15,"") -> Mini Split HP | H166: =IF(G166=Dashboard!$C$15,Dashboard!$C$16,"") -> AM036 | I166: =IFERROR(_xlfn.LET( _xlpm.type,G166, _xlpm.size,H166, _xlpm.temp,D166, _xlpm.temps,_xlfn._xlws.FILTER('Equip. Data'!$D$4:$D$63,('Equip. Data'!$B$4:$B$63=_xlpm.type)*('Equip. Data'!$E$4:$E$63=_xlpm.size)),_xlpm.caps,_xlfn._xlws.FILTER('Equip. Data'!$F$4:$F$63,('Equip. Data'!$B$4:$B$63=_xlpm.type)*('Equip. Data'!$E$4:$E$63=_xlpm.size)), INDEX(_xlpm.caps, _xlfn.XMATCH(MIN(ABS(_xlpm.temps-_xlpm.temp)), ABS(_xlpm.temps-_xlpm.temp)))),0) -> 40.2 | J166: 13.40916 | K166: 3.93 | L166: =IFERROR(_xlfn.LET( _xlpm.type,G166, _xlpm.size,H166, _xlpm.temp,D166, _xlpm.temps,_xlfn._xlws.FILTER('Equip. Data'!$D$4:$D$63,('Equip. Data'!$B$4:$B$63=_xlpm.type)*('Equip. Data'!$E$4:$E$63=_xlpm.size)),_xlpm.cops,_xlfn._xlws.FILTER('Equip. Data'!$H$4:$H$63,('Equip. Data'!$B$4:$B$63=_xlpm.type)*('Equip. Data'!$E$4:$E$63=_xlpm.size)), INDEX(_xlpm.cops, _xlfn.XMATCH(MIN(ABS(_xlpm.temps-_xlpm.temp)), ABS(_xlpm.temps-_xlpm.temp)))),0) -> 3.337661777 | M166: 1.177471015 | N166: =IF(D166<Dashboard!$C$18,Dashboard!$D$15,"") ->  | O166: 0 | P166: =IFERROR(VLOOKUP(N166,'Equip. Data'!$J$3:$K$7,2,FALSE),"") ->  | Q166: 0 | R166: 3.337661777
B167: Heating (Electricity) | C167: 2002-07-01T20:00:00 | D167: 5.4 | E167: 3.85 | F167: 13.1362 | G167: =IF(D167>=Dashboard!$C$18,Dashboard!$C$15,"") -> Mini Split HP | H167: =IF(G167=Dashboard!$C$15,Dashboard!$C$16,"") -> AM036 | I167: =IFERROR(_xlfn.LET( _xlpm.type,G167, _xlpm.size,H167, _xlpm.temp,D167, _xlpm.temps,_xlfn._xlws.FILTER('Equip. Data'!$D$4:$D$63,('Equip. Data'!$B$4:$B$63=_xlpm.type)*('Equip. Data'!$E$4:$E$63=_xlpm.size)),_xlpm.caps,_xlfn._xlws.FILTER('Equip. Data'!$F$4:$F$63,('Equip. Data'!$B$4:$B$63=_xlpm.type)*('Equip. Data'!$E$4:$E$63=_xlpm.size)), INDEX(_xlpm.caps, _xlfn.XMATCH(MIN(ABS(_xlpm.temps-_xlpm.temp)), ABS(_xlpm.temps-_xlpm.temp)))),0) -> 40.2 | J167: 13.1362 | K167: 3.85 | L167: =IFERROR(_xlfn.LET( _xlpm.type,G167, _xlpm.size,H167, _xlpm.temp,D167, _xlpm.temps,_xlfn._xlws.FILTER('Equip. Data'!$D$4:$D$63,('Equip. Data'!$B$4:$B$63=_xlpm.type)*('Equip. Data'!$E$4:$E$63=_xlpm.size)),_xlpm.cops,_xlfn._xlws.FILTER('Equip. Data'!$H$4:$H$63,('Equip. Data'!$B$4:$B$63=_xlpm.type)*('Equip. Data'!$E$4:$E$63=_xlpm.size)), INDEX(_xlpm.cops, _xlfn.XMATCH(MIN(ABS(_xlpm.temps-_xlpm.temp)), ABS(_xlpm.temps-_xlpm.temp)))),0) -> 3.681858148 | M167: 1.045667662 | N167: =IF(D167<Dashboard!$C$18,Dashboard!$D$15,"") ->  | O167: 0 | P167: =IFERROR(VLOOKUP(N167,'Equip. Data'!$J$3:$K$7,2,FALSE),"") ->  | Q167: 0 | R167: 3.681858148
B168: Heating (Electricity) | C168: 2002-07-01T21:00:00 | D168: 4.7 | E168: 4.1 | F168: 13.9892 | G168: =IF(D168>=Dashboard!$C$18,Dashboard!$C$15,"") -> Mini Split HP | H168: =IF(G168=Dashboard!$C$15,Dashboard!$C$16,"") -> AM036 | I168: =IFERROR(_xlfn.LET( _xlpm.type,G168, _xlpm.size,H168, _xlpm.temp,D168, _xlpm.temps,_xlfn._xlws.FILTER('Equip. Data'!$D$4:$D$63,('Equip. Data'!$B$4:$B$63=_xlpm.type)*('Equip. Data'!$E$4:$E$63=_xlpm.size)),_xlpm.caps,_xlfn._xlws.FILTER('Equip. Data'!$F$4:$F$63,('Equip. Data'!$B$4:$B$63=_xlpm.type)*('Equip. Data'!$E$4:$E$63=_xlpm.size)), INDEX(_xlpm.caps, _xlfn.XMATCH(MIN(ABS(_xlpm.temps-_xlpm.temp)), ABS(_xlpm.temps-_xlpm.temp)))),0) -> 40.2 | J168: 13.9892 | K168: 4.1 | L168: =IFERROR(_xlfn.LET( _xlpm.type,G168, _xlpm.size,H168, _xlpm.temp,D168, _xlpm.temps,_xlfn._xlws.FILTER('Equip. Data'!$D$4:$D$63,('Equip. Data'!$B$4:$B$63=_xlpm.type)*('Equip. Data'!$E$4:$E$63=_xlpm.size)),_xlpm.cops,_xlfn._xlws.FILTER('Equip. Data'!$H$4:$H$63,('Equip. Data'!$B$4:$B$63=_xlpm.type)*('Equip. Data'!$E$4:$E$63=_xlpm.size)), INDEX(_xlpm.cops, _xlfn.XMATCH(MIN(ABS(_xlpm.temps-_xlpm.temp)), ABS(_xlpm.temps-_xlpm.temp)))),0) -> 3.337661777 | M168: 1.228404876 | N168: =IF(D168<Dashboard!$C$18,Dashboard!$D$15,"") ->  | O168: 0 | P168: =IFERROR(VLOOKUP(N168,'Equip. Data'!$J$3:$K$7,2,FALSE),"") ->  | Q168: 0 | R168: 3.337661777
B169: Heating (Electricity) | C169: 2002-07-01T22:00:00 | D169: 5.1 | E169: 4.33 | F169: 14.77396 | G169: =IF(D169>=Dashboard!$C$18,Dashboard!$C$15,"") -> Mini Split HP | H169: =IF(G169=Dashboard!$C$15,Dashboard!$C$16,"") -> AM036 | I169: =IFERROR(_xlfn.LET( _xlpm.type,G169, _xlpm.size,H169, _xlpm.temp,D169, _xlpm.temps,_xlfn._xlws.FILTER('Equip. Data'!$D$4:$D$63,('Equip. Data'!$B$4:$B$63=_xlpm.type)*('Equip. Data'!$E$4:$E$63=_xlpm.size)),_xlpm.caps,_xlfn._xlws.FILTER('Equip. Data'!$F$4:$F$63,('Equip. Data'!$B$4:$B$63=_xlpm.type)*('Equip. Data'!$E$4:$E$63=_xlpm.size)), INDEX(_xlpm.caps, _xlfn.XMATCH(MIN(ABS(_xlpm.temps-_xlpm.temp)), ABS(_xlpm.temps-_xlpm.temp)))),0) -> 40.2 | J169: 14.77396 | K169: 4.33 | L169: =IFERROR(_xlfn.LET( _xlpm.type,G169, _xlpm.size,H169, _xlpm.temp,D169, _xlpm.temps,_xlfn._xlws.FILTER('Equip. Data'!$D$4:$D$63,('Equip. Data'!$B$4:$B$63=_xlpm.type)*('Equip. Data'!$E$4:$E$63=_xlpm.size)),_xlpm.cops,_xlfn._xlws.FILTER('Equip. Data'!$H$4:$H$63,('Equip. Data'!$B$4:$B$63=_xlpm.type)*('Equip. Data'!$E$4:$E$63=_xlpm.size)), INDEX(_xlpm.cops, _xlfn.XMATCH(MIN(ABS(_xlpm.temps-_xlpm.temp)), ABS(_xlpm.temps-_xlpm.temp)))),0) -> 3.681858148 | M169: 1.176036617 | N169: =IF(D169<Dashboard!$C$18,Dashboard!$D$15,"") ->  | O169: 0 | P169: =IFERROR(VLOOKUP(N169,'Equip. Data'!$J$3:$K$7,2,FALSE),"") ->  | Q169: 0 | R169: 3.681858148
B170: Heating (Electricity) | C170: 2002-07-01T23:00:00 | D170: 4.8 | E170: 4.77 | F170: 16.27524 | G170: =IF(D170>=Dashboard!$C$18,Dashboard!$C$15,"") -> Mini Split HP | H170: =IF(G170=Dashboard!$C$15,Dashboard!$C$16,"") -> AM036 | I170: =IFERROR(_xlfn.LET( _xlpm.type,G170, _xlpm.size,H170, _xlpm.temp,D170, _xlpm.temps,_xlfn._xlws.FILTER('Equip. Data'!$D$4:$D$63,('Equip. Data'!$B$4:$B$63=_xlpm.type)*('Equip. Data'!$E$4:$E$63=_xlpm.size)),_xlpm.caps,_xlfn._xlws.FILTER('Equip. Data'!$F$4:$F$63,('Equip. Data'!$B$4:$B$63=_xlpm.type)*('Equip. Data'!$E$4:$E$63=_xlpm.size)), INDEX(_xlpm.caps, _xlfn.XMATCH(MIN(ABS(_xlpm.temps-_xlpm.temp)), ABS(_xlpm.temps-_xlpm.temp)))),0) -> 40.2 | J170: 16.27524 | K170: 4.77 | L170: =IFERROR(_xlfn.LET( _xlpm.type,G170, _xlpm.size,H170, _xlpm.temp,D170, _xlpm.temps,_xlfn._xlws.FILTER('Equip. Data'!$D$4:$D$63,('Equip. Data'!$B$4:$B$63=_xlpm.type)*('Equip. Data'!$E$4:$E$63=_xlpm.size)),_xlpm.cops,_xlfn._xlws.FILTER('Equip. Data'!$H$4:$H$63,('Equip. Data'!$B$4:$B$63=_xlpm.type)*('Equip. Data'!$E$4:$E$63=_xlpm.size)), INDEX(_xlpm.cops, _xlfn.XMATCH(MIN(ABS(_xlpm.temps-_xlpm.temp)), ABS(_xlpm.temps-_xlpm.temp)))),0) -> 3.681858148 | M170: 1.295541493 | N170: =IF(D170<Dashboard!$C$18,Dashboard!$D$15,"") ->  | O170: 0 | P170: =IFERROR(VLOOKUP(N170,'Equip. Data'!$J$3:$K$7,2,FALSE),"") ->  | Q170: 0 | R170: 3.681858148
B171: Heating (Electricity) | C171: 2002-08-01 | D171: 4.5 | E171: 5.19 | F171: 17.70828 | G171: =IF(D171>=Dashboard!$C$18,Dashboard!$C$15,"") -> Mini Split HP | H171: =IF(G171=Dashboard!$C$15,Dashboard!$C$16,"") -> AM036 | I171: =IFERROR(_xlfn.LET( _xlpm.type,G171, _xlpm.size,H171, _xlpm.temp,D171, _xlpm.temps,_xlfn._xlws.FILTER('Equip. Data'!$D$4:$D$63,('Equip. Data'!$B$4:$B$63=_xlpm.type)*('Equip. Data'!$E$4:$E$63=_xlpm.size)),_xlpm.caps,_xlfn._xlws.FILTER('Equip. Data'!$F$4:$F$63,('Equip. Data'!$B$4:$B$63=_xlpm.type)*('Equip. Data'!$E$4:$E$63=_xlpm.size)), INDEX(_xlpm.caps, _xlfn.XMATCH(MIN(ABS(_xlpm.temps-_xlpm.temp)), ABS(_xlpm.temps-_xlpm.temp)))),0) -> 40.2 | J171: 17.70828 | K171: 5.19 | L171: =IFERROR(_xlfn.LET( _xlpm.type,G171, _xlpm.size,H171, _xlpm.temp,D171, _xlpm.temps,_xlfn._xlws.FILTER('Equip. Data'!$D$4:$D$63,('Equip. Data'!$B$4:$B$63=_xlpm.type)*('Equip. Data'!$E$4:$E$63=_xlpm.size)),_xlpm.cops,_xlfn._xlws.FILTER('Equip. Data'!$H$4:$H$63,('Equip. Data'!$B$4:$B$63=_xlpm.type)*('Equip. Data'!$E$4:$E$63=_xlpm.size)), INDEX(_xlpm.cops, _xlfn.XMATCH(MIN(ABS(_xlpm.temps-_xlpm.temp)), ABS(_xlpm.temps-_xlpm.temp)))),0) -> 3.337661777 | M171: 1.554980806 | N171: =IF(D171<Dashboard!$C$18,Dashboard!$D$15,"") ->  | O171: 0 | P171: =IFERROR(VLOOKUP(N171,'Equip. Data'!$J$3:$K$7,2,FALSE),"") ->  | Q171: 0 | R171: 3.337661777
B172: Heating (Electricity) | C172: 2002-08-01T01:00:00 | D172: 4.4 | E172: 5.53 | F172: 18.86836 | G172: =IF(D172>=Dashboard!$C$18,Dashboard!$C$15,"") -> Mini Split HP | H172: =IF(G172=Dashboard!$C$15,Dashboard!$C$16,"") -> AM036 | I172: =IFERROR(_xlfn.LET( _xlpm.type,G172, _xlpm.size,H172, _xlpm.temp,D172, _xlpm.temps,_xlfn._xlws.FILTER('Equip. Data'!$D$4:$D$63,('Equip. Data'!$B$4:$B$63=_xlpm.type)*('Equip. Data'!$E$4:$E$63=_xlpm.size)),_xlpm.caps,_xlfn._xlws.FILTER('Equip. Data'!$F$4:$F$63,('Equip. Data'!$B$4:$B$63=_xlpm.type)*('Equip. Data'!$E$4:$E$63=_xlpm.size)), INDEX(_xlpm.caps, _xlfn.XMATCH(MIN(ABS(_xlpm.temps-_xlpm.temp)), ABS(_xlpm.temps-_xlpm.temp)))),0) -> 40.2 | J172: 18.86836 | K172: 5.53 | L172: =IFERROR(_xlfn.LET( _xlpm.type,G172, _xlpm.size,H172, _xlpm.temp,D172, _xlpm.temps,_xlfn._xlws.FILTER('Equip. Data'!$D$4:$D$63,('Equip. Data'!$B$4:$B$63=_xlpm.type)*('Equip. Data'!$E$4:$E$63=_xlpm.size)),_xlpm.cops,_xlfn._xlws.FILTER('Equip. Data'!$H$4:$H$63,('Equip. Data'!$B$4:$B$63=_xlpm.type)*('Equip. Data'!$E$4:$E$63=_xlpm.size)), INDEX(_xlpm.cops, _xlfn.XMATCH(MIN(ABS(_xlpm.temps-_xlpm.temp)), ABS(_xlpm.temps-_xlpm.temp)))),0) -> 3.337661777 | M172: 1.656848527 | N172: =IF(D172<Dashboard!$C$18,Dashboard!$D$15,"") ->  | O172: 0 | P172: =IFERROR(VLOOKUP(N172,'Equip. Data'!$J$3:$K$7,2,FALSE),"") ->  | Q172: 0 | R172: 3.337661777
B173: Heating (Electricity) | C173: 2002-08-01T02:00:00 | D173: 3.7 | E173: 5.97 | F173: 20.36964 | G173: =IF(D173>=Dashboard!$C$18,Dashboard!$C$15,"") -> Mini Split HP | H173: =IF(G173=Dashboard!$C$15,Dashboard!$C$16,"") -> AM036 | I173: =IFERROR(_xlfn.LET( _xlpm.type,G173, _xlpm.size,H173, _xlpm.temp,D173, _xlpm.temps,_xlfn._xlws.FILTER('Equip. Data'!$D$4:$D$63,('Equip. Data'!$B$4:$B$63=_xlpm.type)*('Equip. Data'!$E$4:$E$63=_xlpm.size)),_xlpm.caps,_xlfn._xlws.FILTER('Equip. Data'!$F$4:$F$63,('Equip. Data'!$B$4:$B$63=_xlpm.type)*('Equip. Data'!$E$4:$E$63=_xlpm.size)), INDEX(_xlpm.caps, _xlfn.XMATCH(MIN(ABS(_xlpm.temps-_xlpm.temp)), ABS(_xlpm.temps-_xlpm.temp)))),0) -> 40.2 | J173: 20.36964 | K173: 5.97 | L173: =IFERROR(_xlfn.LET( _xlpm.type,G173, _xlpm.size,H173, _xlpm.temp,D173, _xlpm.temps,_xlfn._xlws.FILTER('Equip. Data'!$D$4:$D$63,('Equip. Data'!$B$4:$B$63=_xlpm.type)*('Equip. Data'!$E$4:$E$63=_xlpm.size)),_xlpm.cops,_xlfn._xlws.FILTER('Equip. Data'!$H$4:$H$63,('Equip. Data'!$B$4:$B$63=_xlpm.type)*('Equip. Data'!$E$4:$E$63=_xlpm.size)), INDEX(_xlpm.cops, _xlfn.XMATCH(MIN(ABS(_xlpm.temps-_xlpm.temp)), ABS(_xlpm.temps-_xlpm.temp)))),0) -> 3.337661777 | M173: 1.788677343 | N173: =IF(D173<Dashboard!$C$18,Dashboard!$D$15,"") ->  | O173: 0 | P173: =IFERROR(VLOOKUP(N173,'Equip. Data'!$J$3:$K$7,2,FALSE),"") ->  | Q173: 0 | R173: 3.337661777
B174: Heating (Electricity) | C174: 2002-08-01T03:00:00 | D174: 4.6 | E174: 5.99 | F174: 20.43788 | G174: =IF(D174>=Dashboard!$C$18,Dashboard!$C$15,"") -> Mini Split HP | H174: =IF(G174=Dashboard!$C$15,Dashboard!$C$16,"") -> AM036 | I174: =IFERROR(_xlfn.LET( _xlpm.type,G174, _xlpm.size,H174, _xlpm.temp,D174, _xlpm.temps,_xlfn._xlws.FILTER('Equip. Data'!$D$4:$D$63,('Equip. Data'!$B$4:$B$63=_xlpm.type)*('Equip. Data'!$E$4:$E$63=_xlpm.size)),_xlpm.caps,_xlfn._xlws.FILTER('Equip. Data'!$F$4:$F$63,('Equip. Data'!$B$4:$B$63=_xlpm.type)*('Equip. Data'!$E$4:$E$63=_xlpm.size)), INDEX(_xlpm.caps, _xlfn.XMATCH(MIN(ABS(_xlpm.temps-_xlpm.temp)), ABS(_xlpm.temps-_xlpm.temp)))),0) -> 40.2 | J174: 20.43788 | K174: 5.99 | L174: =IFERROR(_xlfn.LET( _xlpm.type,G174, _xlpm.size,H174, _xlpm.temp,D174, _xlpm.temps,_xlfn._xlws.FILTER('Equip. Data'!$D$4:$D$63,('Equip. Data'!$B$4:$B$63=_xlpm.type)*('Equip. Data'!$E$4:$E$63=_xlpm.size)),_xlpm.cops,_xlfn._xlws.FILTER('Equip. Data'!$H$4:$H$63,('Equip. Data'!$B$4:$B$63=_xlpm.type)*('Equip. Data'!$E$4:$E$63=_xlpm.size)), INDEX(_xlpm.cops, _xlfn.XMATCH(MIN(ABS(_xlpm.temps-_xlpm.temp)), ABS(_xlpm.temps-_xlpm.temp)))),0) -> 3.337661777 | M174: 1.794669562 | N174: =IF(D174<Dashboard!$C$18,Dashboard!$D$15,"") ->  | O174: 0 | P174: =IFERROR(VLOOKUP(N174,'Equip. Data'!$J$3:$K$7,2,FALSE),"") ->  | Q174: 0 | R174: 3.337661777
B175: Heating (Electricity) | C175: 2002-08-01T04:00:00 | D175: 4.1 | E175: 6.14 | F175: 20.94968 | G175: =IF(D175>=Dashboard!$C$18,Dashboard!$C$15,"") -> Mini Split HP | H175: =IF(G175=Dashboard!$C$15,Dashboard!$C$16,"") -> AM036 | I175: =IFERROR(_xlfn.LET( _xlpm.type,G175, _xlpm.size,H175, _xlpm.temp,D175, _xlpm.temps,_xlfn._xlws.FILTER('Equip. Data'!$D$4:$D$63,('Equip. Data'!$B$4:$B$63=_xlpm.type)*('Equip. Data'!$E$4:$E$63=_xlpm.size)),_xlpm.caps,_xlfn._xlws.FILTER('Equip. Data'!$F$4:$F$63,('Equip. Data'!$B$4:$B$63=_xlpm.type)*('Equip. Data'!$E$4:$E$63=_xlpm.size)), INDEX(_xlpm.caps, _xlfn.XMATCH(MIN(ABS(_xlpm.temps-_xlpm.temp)), ABS(_xlpm.temps-_xlpm.temp)))),0) -> 40.2 | J175: 20.94968 | K175: 6.14 | L175: =IFERROR(_xlfn.LET( _xlpm.type,G175, _xlpm.size,H175, _xlpm.temp,D175, _xlpm.temps,_xlfn._xlws.FILTER('Equip. Data'!$D$4:$D$63,('Equip. Data'!$B$4:$B$63=_xlpm.type)*('Equip. Data'!$E$4:$E$63=_xlpm.size)),_xlpm.cops,_xlfn._xlws.FILTER('Equip. Data'!$H$4:$H$63,('Equip. Data'!$B$4:$B$63=_xlpm.type)*('Equip. Data'!$E$4:$E$63=_xlpm.size)), INDEX(_xlpm.cops, _xlfn.XMATCH(MIN(ABS(_xlpm.temps-_xlpm.temp)), ABS(_xlpm.temps-_xlpm.temp)))),0) -> 3.337661777 | M175: 1.839611204 | N175: =IF(D175<Dashboard!$C$18,Dashboard!$D$15,"") ->  | O175: 0 | P175: =IFERROR(VLOOKUP(N175,'Equip. Data'!$J$3:$K$7,2,FALSE),"") ->  | Q175: 0 | R175: 3.337661777
B176: Heating (Electricity) | C176: 2002-08-01T05:00:00 | D176: 4.1 | E176: 6.23 | F176: 21.25676 | G176: =IF(D176>=Dashboard!$C$18,Dashboard!$C$15,"") -> Mini Split HP | H176: =IF(G176=Dashboard!$C$15,Dashboard!$C$16,"") -> AM036 | I176: =IFERROR(_xlfn.LET( _xlpm.type,G176, _xlpm.size,H176, _xlpm.temp,D176, _xlpm.temps,_xlfn._xlws.FILTER('Equip. Data'!$D$4:$D$63,('Equip. Data'!$B$4:$B$63=_xlpm.type)*('Equip. Data'!$E$4:$E$63=_xlpm.size)),_xlpm.caps,_xlfn._xlws.FILTER('Equip. Data'!$F$4:$F$63,('Equip. Data'!$B$4:$B$63=_xlpm.type)*('Equip. Data'!$E$4:$E$63=_xlpm.size)), INDEX(_xlpm.caps, _xlfn.XMATCH(MIN(ABS(_xlpm.temps-_xlpm.temp)), ABS(_xlpm.temps-_xlpm.temp)))),0) -> 40.2 | J176: 21.25676 | K176: 6.23 | L176: =IFERROR(_xlfn.LET( _xlpm.type,G176, _xlpm.size,H176, _xlpm.temp,D176, _xlpm.temps,_xlfn._xlws.FILTER('Equip. Data'!$D$4:$D$63,('Equip. Data'!$B$4:$B$63=_xlpm.type)*('Equip. Data'!$E$4:$E$63=_xlpm.size)),_xlpm.cops,_xlfn._xlws.FILTER('Equip. Data'!$H$4:$H$63,('Equip. Data'!$B$4:$B$63=_xlpm.type)*('Equip. Data'!$E$4:$E$63=_xlpm.size)), INDEX(_xlpm.cops, _xlfn.XMATCH(MIN(ABS(_xlpm.temps-_xlpm.temp)), ABS(_xlpm.temps-_xlpm.temp)))),0) -> 3.337661777 | M176: 1.866576189 | N176: =IF(D176<Dashboard!$C$18,Dashboard!$D$15,"") ->  | O176: 0 | P176: =IFERROR(VLOOKUP(N176,'Equip. Data'!$J$3:$K$7,2,FALSE),"") ->  | Q176: 0 | R176: 3.337661777
B177: Heating (Electricity) | C177: 2002-08-01T06:00:00 | D177: 3.9 | E177: 6.3 | F177: 21.4956 | G177: =IF(D177>=Dashboard!$C$18,Dashboard!$C$15,"") -> Mini Split HP | H177: =IF(G177=Dashboard!$C$15,Dashboard!$C$16,"") -> AM036 | I177: =IFERROR(_xlfn.LET( _xlpm.type,G177, _xlpm.size,H177, _xlpm.temp,D177, _xlpm.temps,_xlfn._xlws.FILTER('Equip. Data'!$D$4:$D$63,('Equip. Data'!$B$4:$B$63=_xlpm.type)*('Equip. Data'!$E$4:$E$63=_xlpm.size)),_xlpm.caps,_xlfn._xlws.FILTER('Equip. Data'!$F$4:$F$63,('Equip. Data'!$B$4:$B$63=_xlpm.type)*('Equip. Data'!$E$4:$E$63=_xlpm.size)), INDEX(_xlpm.caps, _xlfn.XMATCH(MIN(ABS(_xlpm.temps-_xlpm.temp)), ABS(_xlpm.temps-_xlpm.temp)))),0) -> 40.2 | J177: 21.4956 | K177: 6.3 | L177: =IFERROR(_xlfn.LET( _xlpm.type,G177, _xlpm.size,H177, _xlpm.temp,D177, _xlpm.temps,_xlfn._xlws.FILTER('Equip. Data'!$D$4:$D$63,('Equip. Data'!$B$4:$B$63=_xlpm.type)*('Equip. Data'!$E$4:$E$63=_xlpm.size)),_xlpm.cops,_xlfn._xlws.FILTER('Equip. Data'!$H$4:$H$63,('Equip. Data'!$B$4:$B$63=_xlpm.type)*('Equip. Data'!$E$4:$E$63=_xlpm.size)), INDEX(_xlpm.cops, _xlfn.XMATCH(MIN(ABS(_xlpm.temps-_xlpm.temp)), ABS(_xlpm.temps-_xlpm.temp)))),0) -> 3.337661777 | M177: 1.887548955 | N177: =IF(D177<Dashboard!$C$18,Dashboard!$D$15,"") ->  | O177: 0 | P177: =IFERROR(VLOOKUP(N177,'Equip. Data'!$J$3:$K$7,2,FALSE),"") ->  | Q177: 0 | R177: 3.337661777
B178: Heating (Electricity) | C178: 2002-08-01T07:00:00 | D178: 3.8 | E178: 6.29 | F178: 21.46148 | G178: =IF(D178>=Dashboard!$C$18,Dashboard!$C$15,"") -> Mini Split HP | H178: =IF(G178=Dashboard!$C$15,Dashboard!$C$16,"") -> AM036 | I178: =IFERROR(_xlfn.LET( _xlpm.type,G178, _xlpm.size,H178, _xlpm.temp,D178, _xlpm.temps,_xlfn._xlws.FILTER('Equip. Data'!$D$4:$D$63,('Equip. Data'!$B$4:$B$63=_xlpm.type)*('Equip. Data'!$E$4:$E$63=_xlpm.size)),_xlpm.caps,_xlfn._xlws.FILTER('Equip. Data'!$F$4:$F$63,('Equip. Data'!$B$4:$B$63=_xlpm.type)*('Equip. Data'!$E$4:$E$63=_xlpm.size)), INDEX(_xlpm.caps, _xlfn.XMATCH(MIN(ABS(_xlpm.temps-_xlpm.temp)), ABS(_xlpm.temps-_xlpm.temp)))),0) -> 40.2 | J178: 21.46148 | K178: 6.29 | L178: =IFERROR(_xlfn.LET( _xlpm.type,G178, _xlpm.size,H178, _xlpm.temp,D178, _xlpm.temps,_xlfn._xlws.FILTER('Equip. Data'!$D$4:$D$63,('Equip. Data'!$B$4:$B$63=_xlpm.type)*('Equip. Data'!$E$4:$E$63=_xlpm.size)),_xlpm.cops,_xlfn._xlws.FILTER('Equip. Data'!$H$4:$H$63,('Equip. Data'!$B$4:$B$63=_xlpm.type)*('Equip. Data'!$E$4:$E$63=_xlpm.size)), INDEX(_xlpm.cops, _xlfn.XMATCH(MIN(ABS(_xlpm.temps-_xlpm.temp)), ABS(_xlpm.temps-_xlpm.temp)))),0) -> 3.337661777 | M178: 1.884552846 | N178: =IF(D178<Dashboard!$C$18,Dashboard!$D$15,"") ->  | O178: 0 | P178: =IFERROR(VLOOKUP(N178,'Equip. Data'!$J$3:$K$7,2,FALSE),"") ->  | Q178: 0 | R178: 3.337661777
B179: Heating (Electricity) | C179: 2002-08-01T08:00:00 | D179: 3.6 | E179: 6.26 | F179: 21.35912 | G179: =IF(D179>=Dashboard!$C$18,Dashboard!$C$15,"") -> Mini Split HP | H179: =IF(G179=Dashboard!$C$15,Dashboard!$C$16,"") -> AM036 | I179: =IFERROR(_xlfn.LET( _xlpm.type,G179, _xlpm.size,H179, _xlpm.temp,D179, _xlpm.temps,_xlfn._xlws.FILTER('Equip. Data'!$D$4:$D$63,('Equip. Data'!$B$4:$B$63=_xlpm.type)*('Equip. Data'!$E$4:$E$63=_xlpm.size)),_xlpm.caps,_xlfn._xlws.FILTER('Equip. Data'!$F$4:$F$63,('Equip. Data'!$B$4:$B$63=_xlpm.type)*('Equip. Data'!$E$4:$E$63=_xlpm.size)), INDEX(_xlpm.caps, _xlfn.XMATCH(MIN(ABS(_xlpm.temps-_xlpm.temp)), ABS(_xlpm.temps-_xlpm.temp)))),0) -> 40.2 | J179: 21.35912 | K179: 6.26 | L179: =IFERROR(_xlfn.LET( _xlpm.type,G179, _xlpm.size,H179, _xlpm.temp,D179, _xlpm.temps,_xlfn._xlws.FILTER('Equip. Data'!$D$4:$D$63,('Equip. Data'!$B$4:$B$63=_xlpm.type)*('Equip. Data'!$E$4:$E$63=_xlpm.size)),_xlpm.cops,_xlfn._xlws.FILTER('Equip. Data'!$H$4:$H$63,('Equip. Data'!$B$4:$B$63=_xlpm.type)*('Equip. Data'!$E$4:$E$63=_xlpm.size)), INDEX(_xlpm.cops, _xlfn.XMATCH(MIN(ABS(_xlpm.temps-_xlpm.temp)), ABS(_xlpm.temps-_xlpm.temp)))),0) -> 3.337661777 | M179: 1.875564517 | N179: =IF(D179<Dashboard!$C$18,Dashboard!$D$15,"") ->  | O179: 0 | P179: =IFERROR(VLOOKUP(N179,'Equip. Data'!$J$3:$K$7,2,FALSE),"") ->  | Q179: 0 | R179: 3.337661777
B180: Heating (Electricity) | C180: 2002-08-01T09:00:00 | D180: 4.2 | E180: 5.96 | F180: 20.33552 | G180: =IF(D180>=Dashboard!$C$18,Dashboard!$C$15,"") -> Mini Split HP | H180: =IF(G180=Dashboard!$C$15,Dashboard!$C$16,"") -> AM036 | I180: =IFERROR(_xlfn.LET( _xlpm.type,G180, _xlpm.size,H180, _xlpm.temp,D180, _xlpm.temps,_xlfn._xlws.FILTER('Equip. Data'!$D$4:$D$63,('Equip. Data'!$B$4:$B$63=_xlpm.type)*('Equip. Data'!$E$4:$E$63=_xlpm.size)),_xlpm.caps,_xlfn._xlws.FILTER('Equip. Data'!$F$4:$F$63,('Equip. Data'!$B$4:$B$63=_xlpm.type)*('Equip. Data'!$E$4:$E$63=_xlpm.size)), INDEX(_xlpm.caps, _xlfn.XMATCH(MIN(ABS(_xlpm.temps-_xlpm.temp)), ABS(_xlpm.temps-_xlpm.temp)))),0) -> 40.2 | J180: 20.33552 | K180: 5.96 | L180: =IFERROR(_xlfn.LET( _xlpm.type,G180, _xlpm.size,H180, _xlpm.temp,D180, _xlpm.temps,_xlfn._xlws.FILTER('Equip. Data'!$D$4:$D$63,('Equip. Data'!$B$4:$B$63=_xlpm.type)*('Equip. Data'!$E$4:$E$63=_xlpm.size)),_xlpm.cops,_xlfn._xlws.FILTER('Equip. Data'!$H$4:$H$63,('Equip. Data'!$B$4:$B$63=_xlpm.type)*('Equip. Data'!$E$4:$E$63=_xlpm.size)), INDEX(_xlpm.cops, _xlfn.XMATCH(MIN(ABS(_xlpm.temps-_xlpm.temp)), ABS(_xlpm.temps-_xlpm.temp)))),0) -> 3.337661777 | M180: 1.785681234 | N180: =IF(D180<Dashboard!$C$18,Dashboard!$D$15,"") ->  | O180: 0 | P180: =IFERROR(VLOOKUP(N180,'Equip. Data'!$J$3:$K$7,2,FALSE),"") ->  | Q180: 0 | R180: 3.337661777
B181: Heating (Electricity) | C181: 2002-08-01T10:00:00 | D181: 4.8 | E181: 5.03 | F181: 17.16236 | G181: =IF(D181>=Dashboard!$C$18,Dashboard!$C$15,"") -> Mini Split HP | H181: =IF(G181=Dashboard!$C$15,Dashboard!$C$16,"") -> AM036 | I181: =IFERROR(_xlfn.LET( _xlpm.type,G181, _xlpm.size,H181, _xlpm.temp,D181, _xlpm.temps,_xlfn._xlws.FILTER('Equip. Data'!$D$4:$D$63,('Equip. Data'!$B$4:$B$63=_xlpm.type)*('Equip. Data'!$E$4:$E$63=_xlpm.size)),_xlpm.caps,_xlfn._xlws.FILTER('Equip. Data'!$F$4:$F$63,('Equip. Data'!$B$4:$B$63=_xlpm.type)*('Equip. Data'!$E$4:$E$63=_xlpm.size)), INDEX(_xlpm.caps, _xlfn.XMATCH(MIN(ABS(_xlpm.temps-_xlpm.temp)), ABS(_xlpm.temps-_xlpm.temp)))),0) -> 40.2 | J181: 17.16236 | K181: 5.03 | L181: =IFERROR(_xlfn.LET( _xlpm.type,G181, _xlpm.size,H181, _xlpm.temp,D181, _xlpm.temps,_xlfn._xlws.FILTER('Equip. Data'!$D$4:$D$63,('Equip. Data'!$B$4:$B$63=_xlpm.type)*('Equip. Data'!$E$4:$E$63=_xlpm.size)),_xlpm.cops,_xlfn._xlws.FILTER('Equip. Data'!$H$4:$H$63,('Equip. Data'!$B$4:$B$63=_xlpm.type)*('Equip. Data'!$E$4:$E$63=_xlpm.size)), INDEX(_xlpm.cops, _xlfn.XMATCH(MIN(ABS(_xlpm.temps-_xlpm.temp)), ABS(_xlpm.temps-_xlpm.temp)))),0) -> 3.681858148 | M181: 1.36615801 | N181: =IF(D181<Dashboard!$C$18,Dashboard!$D$15,"") ->  | O181: 0 | P181: =IFERROR(VLOOKUP(N181,'Equip. Data'!$J$3:$K$7,2,FALSE),"") ->  | Q181: 0 | R181: 3.681858148
B182: Heating (Electricity) | C182: 2002-08-01T11:00:00 | D182: 4.8 | E182: 4.3 | F182: 14.6716 | G182: =IF(D182>=Dashboard!$C$18,Dashboard!$C$15,"") -> Mini Split HP | H182: =IF(G182=Dashboard!$C$15,Dashboard!$C$16,"") -> AM036 | I182: =IFERROR(_xlfn.LET( _xlpm.type,G182, _xlpm.size,H182, _xlpm.temp,D182, _xlpm.temps,_xlfn._xlws.FILTER('Equip. Data'!$D$4:$D$63,('Equip. Data'!$B$4:$B$63=_xlpm.type)*('Equip. Data'!$E$4:$E$63=_xlpm.size)),_xlpm.caps,_xlfn._xlws.FILTER('Equip. Data'!$F$4:$F$63,('Equip. Data'!$B$4:$B$63=_xlpm.type)*('Equip. Data'!$E$4:$E$63=_xlpm.size)), INDEX(_xlpm.caps, _xlfn.XMATCH(MIN(ABS(_xlpm.temps-_xlpm.temp)), ABS(_xlpm.temps-_xlpm.temp)))),0) -> 40.2 | J182: 14.6716 | K182: 4.3 | L182: =IFERROR(_xlfn.LET( _xlpm.type,G182, _xlpm.size,H182, _xlpm.temp,D182, _xlpm.temps,_xlfn._xlws.FILTER('Equip. Data'!$D$4:$D$63,('Equip. Data'!$B$4:$B$63=_xlpm.type)*('Equip. Data'!$E$4:$E$63=_xlpm.size)),_xlpm.cops,_xlfn._xlws.FILTER('Equip. Data'!$H$4:$H$63,('Equip. Data'!$B$4:$B$63=_xlpm.type)*('Equip. Data'!$E$4:$E$63=_xlpm.size)), INDEX(_xlpm.cops, _xlfn.XMATCH(MIN(ABS(_xlpm.temps-_xlpm.temp)), ABS(_xlpm.temps-_xlpm.temp)))),0) -> 3.681858148 | M182: 1.167888557 | N182: =IF(D182<Dashboard!$C$18,Dashboard!$D$15,"") ->  | O182: 0 | P182: =IFERROR(VLOOKUP(N182,'Equip. Data'!$J$3:$K$7,2,FALSE),"") ->  | Q182: 0 | R182: 3.681858148
B183: Heating (Electricity) | C183: 2002-08-01T12:00:00 | D183: 4.9 | E183: 3.95 | F183: 13.4774 | G183: =IF(D183>=Dashboard!$C$18,Dashboard!$C$15,"") -> Mini Split HP | H183: =IF(G183=Dashboard!$C$15,Dashboard!$C$16,"") -> AM036 | I183: =IFERROR(_xlfn.LET( _xlpm.type,G183, _xlpm.size,H183, _xlpm.temp,D183, _xlpm.temps,_xlfn._xlws.FILTER('Equip. Data'!$D$4:$D$63,('Equip. Data'!$B$4:$B$63=_xlpm.type)*('Equip. Data'!$E$4:$E$63=_xlpm.size)),_xlpm.caps,_xlfn._xlws.FILTER('Equip. Data'!$F$4:$F$63,('Equip. Data'!$B$4:$B$63=_xlpm.type)*('Equip. Data'!$E$4:$E$63=_xlpm.size)), INDEX(_xlpm.caps, _xlfn.XMATCH(MIN(ABS(_xlpm.temps-_xlpm.temp)), ABS(_xlpm.temps-_xlpm.temp)))),0) -> 40.2 | J183: 13.4774 | K183: 3.95 | L183: =IFERROR(_xlfn.LET( _xlpm.type,G183, _xlpm.size,H183, _xlpm.temp,D183, _xlpm.temps,_xlfn._xlws.FILTER('Equip. Data'!$D$4:$D$63,('Equip. Data'!$B$4:$B$63=_xlpm.type)*('Equip. Data'!$E$4:$E$63=_xlpm.size)),_xlpm.cops,_xlfn._xlws.FILTER('Equip. Data'!$H$4:$H$63,('Equip. Data'!$B$4:$B$63=_xlpm.type)*('Equip. Data'!$E$4:$E$63=_xlpm.size)), INDEX(_xlpm.cops, _xlfn.XMATCH(MIN(ABS(_xlpm.temps-_xlpm.temp)), ABS(_xlpm.temps-_xlpm.temp)))),0) -> 3.681858148 | M183: 1.072827861 | N183: =IF(D183<Dashboard!$C$18,Dashboard!$D$15,"") ->  | O183: 0 | P183: =IFERROR(VLOOKUP(N183,'Equip. Data'!$J$3:$K$7,2,FALSE),"") ->  | Q183: 0 | R183: 3.681858148
B184: Heating (Electricity) | C184: 2002-08-01T13:00:00 | D184: 4.8 | E184: 4.14 | F184: 14.12568 | G184: =IF(D184>=Dashboard!$C$18,Dashboard!$C$15,"") -> Mini Split HP | H184: =IF(G184=Dashboard!$C$15,Dashboard!$C$16,"") -> AM036 | I184: =IFERROR(_xlfn.LET( _xlpm.type,G184, _xlpm.size,H184, _xlpm.temp,D184, _xlpm.temps,_xlfn._xlws.FILTER('Equip. Data'!$D$4:$D$63,('Equip. Data'!$B$4:$B$63=_xlpm.type)*('Equip. Data'!$E$4:$E$63=_xlpm.size)),_xlpm.caps,_xlfn._xlws.FILTER('Equip. Data'!$F$4:$F$63,('Equip. Data'!$B$4:$B$63=_xlpm.type)*('Equip. Data'!$E$4:$E$63=_xlpm.size)), INDEX(_xlpm.caps, _xlfn.XMATCH(MIN(ABS(_xlpm.temps-_xlpm.temp)), ABS(_xlpm.temps-_xlpm.temp)))),0) -> 40.2 | J184: 14.12568 | K184: 4.14 | L184: =IFERROR(_xlfn.LET( _xlpm.type,G184, _xlpm.size,H184, _xlpm.temp,D184, _xlpm.temps,_xlfn._xlws.FILTER('Equip. Data'!$D$4:$D$63,('Equip. Data'!$B$4:$B$63=_xlpm.type)*('Equip. Data'!$E$4:$E$63=_xlpm.size)),_xlpm.cops,_xlfn._xlws.FILTER('Equip. Data'!$H$4:$H$63,('Equip. Data'!$B$4:$B$63=_xlpm.type)*('Equip. Data'!$E$4:$E$63=_xlpm.size)), INDEX(_xlpm.cops, _xlfn.XMATCH(MIN(ABS(_xlpm.temps-_xlpm.temp)), ABS(_xlpm.temps-_xlpm.temp)))),0) -> 3.681858148 | M184: 1.124432239 | N184: =IF(D184<Dashboard!$C$18,Dashboard!$D$15,"") ->  | O184: 0 | P184: =IFERROR(VLOOKUP(N184,'Equip. Data'!$J$3:$K$7,2,FALSE),"") ->  | Q184: 0 | R184: 3.681858148
B185: Heating (Electricity) | C185: 2002-08-01T14:00:00 | D185: 4.7 | E185: 4.06 | F185: 13.85272 | G185: =IF(D185>=Dashboard!$C$18,Dashboard!$C$15,"") -> Mini Split HP | H185: =IF(G185=Dashboard!$C$15,Dashboard!$C$16,"") -> AM036 | I185: =IFERROR(_xlfn.LET( _xlpm.type,G185, _xlpm.size,H185, _xlpm.temp,D185, _xlpm.temps,_xlfn._xlws.FILTER('Equip. Data'!$D$4:$D$63,('Equip. Data'!$B$4:$B$63=_xlpm.type)*('Equip. Data'!$E$4:$E$63=_xlpm.size)),_xlpm.caps,_xlfn._xlws.FILTER('Equip. Data'!$F$4:$F$63,('Equip. Data'!$B$4:$B$63=_xlpm.type)*('Equip. Data'!$E$4:$E$63=_xlpm.size)), INDEX(_xlpm.caps, _xlfn.XMATCH(MIN(ABS(_xlpm.temps-_xlpm.temp)), ABS(_xlpm.temps-_xlpm.temp)))),0) -> 40.2 | J185: 13.85272 | K185: 4.06 | L185: =IFERROR(_xlfn.LET( _xlpm.type,G185, _xlpm.size,H185, _xlpm.temp,D185, _xlpm.temps,_xlfn._xlws.FILTER('Equip. Data'!$D$4:$D$63,('Equip. Data'!$B$4:$B$63=_xlpm.type)*('Equip. Data'!$E$4:$E$63=_xlpm.size)),_xlpm.cops,_xlfn._xlws.FILTER('Equip. Data'!$H$4:$H$63,('Equip. Data'!$B$4:$B$63=_xlpm.type)*('Equip. Data'!$E$4:$E$63=_xlpm.size)), INDEX(_xlpm.cops, _xlfn.XMATCH(MIN(ABS(_xlpm.temps-_xlpm.temp)), ABS(_xlpm.temps-_xlpm.temp)))),0) -> 3.337661777 | M185: 1.216420438 | N185: =IF(D185<Dashboard!$C$18,Dashboard!$D$15,"") ->  | O185: 0 | P185: =IFERROR(VLOOKUP(N185,'Equip. Data'!$J$3:$K$7,2,FALSE),"") ->  | Q185: 0 | R185: 3.337661777
B186: Heating (Electricity) | C186: 2002-08-01T15:00:00 | D186: 4.9 | E186: 3.39 | F186: 11.56668 | G186: =IF(D186>=Dashboard!$C$18,Dashboard!$C$15,"") -> Mini Split HP | H186: =IF(G186=Dashboard!$C$15,Dashboard!$C$16,"") -> AM036 | I186: =IFERROR(_xlfn.LET( _xlpm.type,G186, _xlpm.size,H186, _xlpm.temp,D186, _xlpm.temps,_xlfn._xlws.FILTER('Equip. Data'!$D$4:$D$63,('Equip. Data'!$B$4:$B$63=_xlpm.type)*('Equip. Data'!$E$4:$E$63=_xlpm.size)),_xlpm.caps,_xlfn._xlws.FILTER('Equip. Data'!$F$4:$F$63,('Equip. Data'!$B$4:$B$63=_xlpm.type)*('Equip. Data'!$E$4:$E$63=_xlpm.size)), INDEX(_xlpm.caps, _xlfn.XMATCH(MIN(ABS(_xlpm.temps-_xlpm.temp)), ABS(_xlpm.temps-_xlpm.temp)))),0) -> 40.2 | J186: 11.56668 | K186: 3.39 | L186: =IFERROR(_xlfn.LET( _xlpm.type,G186, _xlpm.size,H186, _xlpm.temp,D186, _xlpm.temps,_xlfn._xlws.FILTER('Equip. Data'!$D$4:$D$63,('Equip. Data'!$B$4:$B$63=_xlpm.type)*('Equip. Data'!$E$4:$E$63=_xlpm.size)),_xlpm.cops,_xlfn._xlws.FILTER('Equip. Data'!$H$4:$H$63,('Equip. Data'!$B$4:$B$63=_xlpm.type)*('Equip. Data'!$E$4:$E$63=_xlpm.size)), INDEX(_xlpm.cops, _xlfn.XMATCH(MIN(ABS(_xlpm.temps-_xlpm.temp)), ABS(_xlpm.temps-_xlpm.temp)))),0) -> 3.681858148 | M186: 0.9207307463 | N186: =IF(D186<Dashboard!$C$18,Dashboard!$D$15,"") ->  | O186: 0 | P186: =IFERROR(VLOOKUP(N186,'Equip. Data'!$J$3:$K$7,2,FALSE),"") ->  | Q186: 0 | R186: 3.681858148
B187: Heating (Electricity) | C187: 2002-08-01T16:00:00 | D187: 3.4 | E187: 3.44 | F187: 11.73728 | G187: =IF(D187>=Dashboard!$C$18,Dashboard!$C$15,"") -> Mini Split HP | H187: =IF(G187=Dashboard!$C$15,Dashboard!$C$16,"") -> AM036 | I187: =IFERROR(_xlfn.LET( _xlpm.type,G187, _xlpm.size,H187, _xlpm.temp,D187, _xlpm.temps,_xlfn._xlws.FILTER('Equip. Data'!$D$4:$D$63,('Equip. Data'!$B$4:$B$63=_xlpm.type)*('Equip. Data'!$E$4:$E$63=_xlpm.size)),_xlpm.caps,_xlfn._xlws.FILTER('Equip. Data'!$F$4:$F$63,('Equip. Data'!$B$4:$B$63=_xlpm.type)*('Equip. Data'!$E$4:$E$63=_xlpm.size)), INDEX(_xlpm.caps, _xlfn.XMATCH(MIN(ABS(_xlpm.temps-_xlpm.temp)), ABS(_xlpm.temps-_xlpm.temp)))),0) -> 40.2 | J187: 11.73728 | K187: 3.44 | L187: =IFERROR(_xlfn.LET( _xlpm.type,G187, _xlpm.size,H187, _xlpm.temp,D187, _xlpm.temps,_xlfn._xlws.FILTER('Equip. Data'!$D$4:$D$63,('Equip. Data'!$B$4:$B$63=_xlpm.type)*('Equip. Data'!$E$4:$E$63=_xlpm.size)),_xlpm.cops,_xlfn._xlws.FILTER('Equip. Data'!$H$4:$H$63,('Equip. Data'!$B$4:$B$63=_xlpm.type)*('Equip. Data'!$E$4:$E$63=_xlpm.size)), INDEX(_xlpm.cops, _xlfn.XMATCH(MIN(ABS(_xlpm.temps-_xlpm.temp)), ABS(_xlpm.temps-_xlpm.temp)))),0) -> 3.337661777 | M187: 1.030661652 | N187: =IF(D187<Dashboard!$C$18,Dashboard!$D$15,"") ->  | O187: 0 | P187: =IFERROR(VLOOKUP(N187,'Equip. Data'!$J$3:$K$7,2,FALSE),"") ->  | Q187: 0 | R187: 3.337661777
B188: Heating (Electricity) | C188: 2002-08-01T17:00:00 | D188: 2.5 | E188: 4.16 | F188: 14.19392 | G188: =IF(D188>=Dashboard!$C$18,Dashboard!$C$15,"") -> Mini Split HP | H188: =IF(G188=Dashboard!$C$15,Dashboard!$C$16,"") -> AM036 | I188: =IFERROR(_xlfn.LET( _xlpm.type,G188, _xlpm.size,H188, _xlpm.temp,D188, _xlpm.temps,_xlfn._xlws.FILTER('Equip. Data'!$D$4:$D$63,('Equip. Data'!$B$4:$B$63=_xlpm.type)*('Equip. Data'!$E$4:$E$63=_xlpm.size)),_xlpm.caps,_xlfn._xlws.FILTER('Equip. Data'!$F$4:$F$63,('Equip. Data'!$B$4:$B$63=_xlpm.type)*('Equip. Data'!$E$4:$E$63=_xlpm.size)), INDEX(_xlpm.caps, _xlfn.XMATCH(MIN(ABS(_xlpm.temps-_xlpm.temp)), ABS(_xlpm.temps-_xlpm.temp)))),0) -> 40.2 | J188: 14.19392 | K188: 4.16 | L188: =IFERROR(_xlfn.LET( _xlpm.type,G188, _xlpm.size,H188, _xlpm.temp,D188, _xlpm.temps,_xlfn._xlws.FILTER('Equip. Data'!$D$4:$D$63,('Equip. Data'!$B$4:$B$63=_xlpm.type)*('Equip. Data'!$E$4:$E$63=_xlpm.size)),_xlpm.cops,_xlfn._xlws.FILTER('Equip. Data'!$H$4:$H$63,('Equip. Data'!$B$4:$B$63=_xlpm.type)*('Equip. Data'!$E$4:$E$63=_xlpm.size)), INDEX(_xlpm.cops, _xlfn.XMATCH(MIN(ABS(_xlpm.temps-_xlpm.temp)), ABS(_xlpm.temps-_xlpm.temp)))),0) -> 3.337661777 | M188: 1.246381532 | N188: =IF(D188<Dashboard!$C$18,Dashboard!$D$15,"") ->  | O188: 0 | P188: =IFERROR(VLOOKUP(N188,'Equip. Data'!$J$3:$K$7,2,FALSE),"") ->  | Q188: 0 | R188: 3.337661777
B189: Heating (Electricity) | C189: 2002-08-01T18:00:00 | D189: 3.6 | E189: 4.27 | F189: 14.56924 | G189: =IF(D189>=Dashboard!$C$18,Dashboard!$C$15,"") -> Mini Split HP | H189: =IF(G189=Dashboard!$C$15,Dashboard!$C$16,"") -> AM036 | I189: =IFERROR(_xlfn.LET( _xlpm.type,G189, _xlpm.size,H189, _xlpm.temp,D189, _xlpm.temps,_xlfn._xlws.FILTER('Equip. Data'!$D$4:$D$63,('Equip. Data'!$B$4:$B$63=_xlpm.type)*('Equip. Data'!$E$4:$E$63=_xlpm.size)),_xlpm.caps,_xlfn._xlws.FILTER('Equip. Data'!$F$4:$F$63,('Equip. Data'!$B$4:$B$63=_xlpm.type)*('Equip. Data'!$E$4:$E$63=_xlpm.size)), INDEX(_xlpm.caps, _xlfn.XMATCH(MIN(ABS(_xlpm.temps-_xlpm.temp)), ABS(_xlpm.temps-_xlpm.temp)))),0) -> 40.2 | J189: 14.56924 | K189: 4.27 | L189: =IFERROR(_xlfn.LET( _xlpm.type,G189, _xlpm.size,H189, _xlpm.temp,D189, _xlpm.temps,_xlfn._xlws.FILTER('Equip. Data'!$D$4:$D$63,('Equip. Data'!$B$4:$B$63=_xlpm.type)*('Equip. Data'!$E$4:$E$63=_xlpm.size)),_xlpm.cops,_xlfn._xlws.FILTER('Equip. Data'!$H$4:$H$63,('Equip. Data'!$B$4:$B$63=_xlpm.type)*('Equip. Data'!$E$4:$E$63=_xlpm.size)), INDEX(_xlpm.cops, _xlfn.XMATCH(MIN(ABS(_xlpm.temps-_xlpm.temp)), ABS(_xlpm.temps-_xlpm.temp)))),0) -> 3.337661777 | M189: 1.279338736 | N189: =IF(D189<Dashboard!$C$18,Dashboard!$D$15,"") ->  | O189: 0 | P189: =IFERROR(VLOOKUP(N189,'Equip. Data'!$J$3:$K$7,2,FALSE),"") ->  | Q189: 0 | R189: 3.337661777
B190: Heating (Electricity) | C190: 2002-08-01T19:00:00 | D190: 1.7 | E190: 4.47 | F190: 15.25164 | G190: =IF(D190>=Dashboard!$C$18,Dashboard!$C$15,"") -> Mini Split HP | H190: =IF(G190=Dashboard!$C$15,Dashboard!$C$16,"") -> AM036 | I190: =IFERROR(_xlfn.LET( _xlpm.type,G190, _xlpm.size,H190, _xlpm.temp,D190, _xlpm.temps,_xlfn._xlws.FILTER('Equip. Data'!$D$4:$D$63,('Equip. Data'!$B$4:$B$63=_xlpm.type)*('Equip. Data'!$E$4:$E$63=_xlpm.size)),_xlpm.caps,_xlfn._xlws.FILTER('Equip. Data'!$F$4:$F$63,('Equip. Data'!$B$4:$B$63=_xlpm.type)*('Equip. Data'!$E$4:$E$63=_xlpm.size)), INDEX(_xlpm.caps, _xlfn.XMATCH(MIN(ABS(_xlpm.temps-_xlpm.temp)), ABS(_xlpm.temps-_xlpm.temp)))),0) -> 40.2 | J190: 15.25164 | K190: 4.47 | L190: =IFERROR(_xlfn.LET( _xlpm.type,G190, _xlpm.size,H190, _xlpm.temp,D190, _xlpm.temps,_xlfn._xlws.FILTER('Equip. Data'!$D$4:$D$63,('Equip. Data'!$B$4:$B$63=_xlpm.type)*('Equip. Data'!$E$4:$E$63=_xlpm.size)),_xlpm.cops,_xlfn._xlws.FILTER('Equip. Data'!$H$4:$H$63,('Equip. Data'!$B$4:$B$63=_xlpm.type)*('Equip. Data'!$E$4:$E$63=_xlpm.size)), INDEX(_xlpm.cops, _xlfn.XMATCH(MIN(ABS(_xlpm.temps-_xlpm.temp)), ABS(_xlpm.temps-_xlpm.temp)))),0) -> 3.337661777 | M190: 1.339260925 | N190: =IF(D190<Dashboard!$C$18,Dashboard!$D$15,"") ->  | O190: 0 | P190: =IFERROR(VLOOKUP(N190,'Equip. Data'!$J$3:$K$7,2,FALSE),"") ->  | Q190: 0 | R190: 3.337661777
B191: Heating (Electricity) | C191: 2002-08-01T20:00:00 | D191: 0.8 | E191: 4.75 | F191: 16.207 | G191: =IF(D191>=Dashboard!$C$18,Dashboard!$C$15,"") -> Mini Split HP | H191: =IF(G191=Dashboard!$C$15,Dashboard!$C$16,"") -> AM036 | I191: =IFERROR(_xlfn.LET( _xlpm.type,G191, _xlpm.size,H191, _xlpm.temp,D191, _xlpm.temps,_xlfn._xlws.FILTER('Equip. Data'!$D$4:$D$63,('Equip. Data'!$B$4:$B$63=_xlpm.type)*('Equip. Data'!$E$4:$E$63=_xlpm.size)),_xlpm.caps,_xlfn._xlws.FILTER('Equip. Data'!$F$4:$F$63,('Equip. Data'!$B$4:$B$63=_xlpm.type)*('Equip. Data'!$E$4:$E$63=_xlpm.size)), INDEX(_xlpm.caps, _xlfn.XMATCH(MIN(ABS(_xlpm.temps-_xlpm.temp)), ABS(_xlpm.temps-_xlpm.temp)))),0) -> 40.2 | J191: 16.207 | K191: 4.75 | L191: =IFERROR(_xlfn.LET( _xlpm.type,G191, _xlpm.size,H191, _xlpm.temp,D191, _xlpm.temps,_xlfn._xlws.FILTER('Equip. Data'!$D$4:$D$63,('Equip. Data'!$B$4:$B$63=_xlpm.type)*('Equip. Data'!$E$4:$E$63=_xlpm.size)),_xlpm.cops,_xlfn._xlws.FILTER('Equip. Data'!$H$4:$H$63,('Equip. Data'!$B$4:$B$63=_xlpm.type)*('Equip. Data'!$E$4:$E$63=_xlpm.size)), INDEX(_xlpm.cops, _xlfn.XMATCH(MIN(ABS(_xlpm.temps-_xlpm.temp)), ABS(_xlpm.temps-_xlpm.temp)))),0) -> 3.005598488 | M191: 1.58038408 | N191: =IF(D191<Dashboard!$C$18,Dashboard!$D$15,"") ->  | O191: 0 | P191: =IFERROR(VLOOKUP(N191,'Equip. Data'!$J$3:$K$7,2,FALSE),"") ->  | Q191: 0 | R191: 3.005598488
B192: Heating (Electricity) | C192: 2002-08-01T21:00:00 | D192: 1.2 | E192: 5.01 | F192: 17.09412 | G192: =IF(D192>=Dashboard!$C$18,Dashboard!$C$15,"") -> Mini Split HP | H192: =IF(G192=Dashboard!$C$15,Dashboard!$C$16,"") -> AM036 | I192: =IFERROR(_xlfn.LET( _xlpm.type,G192, _xlpm.size,H192, _xlpm.temp,D192, _xlpm.temps,_xlfn._xlws.FILTER('Equip. Data'!$D$4:$D$63,('Equip. Data'!$B$4:$B$63=_xlpm.type)*('Equip. Data'!$E$4:$E$63=_xlpm.size)),_xlpm.caps,_xlfn._xlws.FILTER('Equip. Data'!$F$4:$F$63,('Equip. Data'!$B$4:$B$63=_xlpm.type)*('Equip. Data'!$E$4:$E$63=_xlpm.size)), INDEX(_xlpm.caps, _xlfn.XMATCH(MIN(ABS(_xlpm.temps-_xlpm.temp)), ABS(_xlpm.temps-_xlpm.temp)))),0) -> 40.2 | J192: 17.09412 | K192: 5.01 | L192: =IFERROR(_xlfn.LET( _xlpm.type,G192, _xlpm.size,H192, _xlpm.temp,D192, _xlpm.temps,_xlfn._xlws.FILTER('Equip. Data'!$D$4:$D$63,('Equip. Data'!$B$4:$B$63=_xlpm.type)*('Equip. Data'!$E$4:$E$63=_xlpm.size)),_xlpm.cops,_xlfn._xlws.FILTER('Equip. Data'!$H$4:$H$63,('Equip. Data'!$B$4:$B$63=_xlpm.type)*('Equip. Data'!$E$4:$E$63=_xlpm.size)), INDEX(_xlpm.cops, _xlfn.XMATCH(MIN(ABS(_xlpm.temps-_xlpm.temp)), ABS(_xlpm.temps-_xlpm.temp)))),0) -> 3.005598488 | M192: 1.666889313 | N192: =IF(D192<Dashboard!$C$18,Dashboard!$D$15,"") ->  | O192: 0 | P192: =IFERROR(VLOOKUP(N192,'Equip. Data'!$J$3:$K$7,2,FALSE),"") ->  | Q192: 0 | R192: 3.005598488
B193: Heating (Electricity) | C193: 2002-08-01T22:00:00 | D193: 1.4 | E193: 5.24 | F193: 17.87888 | G193: =IF(D193>=Dashboard!$C$18,Dashboard!$C$15,"") -> Mini Split HP | H193: =IF(G193=Dashboard!$C$15,Dashboard!$C$16,"") -> AM036 | I193: =IFERROR(_xlfn.LET( _xlpm.type,G193, _xlpm.size,H193, _xlpm.temp,D193, _xlpm.temps,_xlfn._xlws.FILTER('Equip. Data'!$D$4:$D$63,('Equip. Data'!$B$4:$B$63=_xlpm.type)*('Equip. Data'!$E$4:$E$63=_xlpm.size)),_xlpm.caps,_xlfn._xlws.FILTER('Equip. Data'!$F$4:$F$63,('Equip. Data'!$B$4:$B$63=_xlpm.type)*('Equip. Data'!$E$4:$E$63=_xlpm.size)), INDEX(_xlpm.caps, _xlfn.XMATCH(MIN(ABS(_xlpm.temps-_xlpm.temp)), ABS(_xlpm.temps-_xlpm.temp)))),0) -> 40.2 | J193: 17.87888 | K193: 5.24 | L193: =IFERROR(_xlfn.LET( _xlpm.type,G193, _xlpm.size,H193, _xlpm.temp,D193, _xlpm.temps,_xlfn._xlws.FILTER('Equip. Data'!$D$4:$D$63,('Equip. Data'!$B$4:$B$63=_xlpm.type)*('Equip. Data'!$E$4:$E$63=_xlpm.size)),_xlpm.cops,_xlfn._xlws.FILTER('Equip. Data'!$H$4:$H$63,('Equip. Data'!$B$4:$B$63=_xlpm.type)*('Equip. Data'!$E$4:$E$63=_xlpm.size)), INDEX(_xlpm.cops, _xlfn.XMATCH(MIN(ABS(_xlpm.temps-_xlpm.temp)), ABS(_xlpm.temps-_xlpm.temp)))),0) -> 3.337661777 | M193: 1.569961353 | N193: =IF(D193<Dashboard!$C$18,Dashboard!$D$15,"") ->  | O193: 0 | P193: =IFERROR(VLOOKUP(N193,'Equip. Data'!$J$3:$K$7,2,FALSE),"") ->  | Q193: 0 | R193: 3.337661777
B194: Heating (Electricity) | C194: 2002-08-01T23:00:00 | D194: 1.7 | E194: 5.67 | F194: 19.34604 | G194: =IF(D194>=Dashboard!$C$18,Dashboard!$C$15,"") -> Mini Split HP | H194: =IF(G194=Dashboard!$C$15,Dashboard!$C$16,"") -> AM036 | I194: =IFERROR(_xlfn.LET( _xlpm.type,G194, _xlpm.size,H194, _xlpm.temp,D194, _xlpm.temps,_xlfn._xlws.FILTER('Equip. Data'!$D$4:$D$63,('Equip. Data'!$B$4:$B$63=_xlpm.type)*('Equip. Data'!$E$4:$E$63=_xlpm.size)),_xlpm.caps,_xlfn._xlws.FILTER('Equip. Data'!$F$4:$F$63,('Equip. Data'!$B$4:$B$63=_xlpm.type)*('Equip. Data'!$E$4:$E$63=_xlpm.size)), INDEX(_xlpm.caps, _xlfn.XMATCH(MIN(ABS(_xlpm.temps-_xlpm.temp)), ABS(_xlpm.temps-_xlpm.temp)))),0) -> 40.2 | J194: 19.34604 | K194: 5.67 | L194: =IFERROR(_xlfn.LET( _xlpm.type,G194, _xlpm.size,H194, _xlpm.temp,D194, _xlpm.temps,_xlfn._xlws.FILTER('Equip. Data'!$D$4:$D$63,('Equip. Data'!$B$4:$B$63=_xlpm.type)*('Equip. Data'!$E$4:$E$63=_xlpm.size)),_xlpm.cops,_xlfn._xlws.FILTER('Equip. Data'!$H$4:$H$63,('Equip. Data'!$B$4:$B$63=_xlpm.type)*('Equip. Data'!$E$4:$E$63=_xlpm.size)), INDEX(_xlpm.cops, _xlfn.XMATCH(MIN(ABS(_xlpm.temps-_xlpm.temp)), ABS(_xlpm.temps-_xlpm.temp)))),0) -> 3.337661777 | M194: 1.69879406 | N194: =IF(D194<Dashboard!$C$18,Dashboard!$D$15,"") ->  | O194: 0 | P194: =IFERROR(VLOOKUP(N194,'Equip. Data'!$J$3:$K$7,2,FALSE),"") ->  | Q194: 0 | R194: 3.337661777
B195: Heating (Electricity) | C195: 2002-09-01 | D195: 1.2 | E195: 6.09 | F195: 20.77908 | G195: =IF(D195>=Dashboard!$C$18,Dashboard!$C$15,"") -> Mini Split HP | H195: =IF(G195=Dashboard!$C$15,Dashboard!$C$16,"") -> AM036 | I195: =IFERROR(_xlfn.LET( _xlpm.type,G195, _xlpm.size,H195, _xlpm.temp,D195, _xlpm.temps,_xlfn._xlws.FILTER('Equip. Data'!$D$4:$D$63,('Equip. Data'!$B$4:$B$63=_xlpm.type)*('Equip. Data'!$E$4:$E$63=_xlpm.size)),_xlpm.caps,_xlfn._xlws.FILTER('Equip. Data'!$F$4:$F$63,('Equip. Data'!$B$4:$B$63=_xlpm.type)*('Equip. Data'!$E$4:$E$63=_xlpm.size)), INDEX(_xlpm.caps, _xlfn.XMATCH(MIN(ABS(_xlpm.temps-_xlpm.temp)), ABS(_xlpm.temps-_xlpm.temp)))),0) -> 40.2 | J195: 20.77908 | K195: 6.09 | L195: =IFERROR(_xlfn.LET( _xlpm.type,G195, _xlpm.size,H195, _xlpm.temp,D195, _xlpm.temps,_xlfn._xlws.FILTER('Equip. Data'!$D$4:$D$63,('Equip. Data'!$B$4:$B$63=_xlpm.type)*('Equip. Data'!$E$4:$E$63=_xlpm.size)),_xlpm.cops,_xlfn._xlws.FILTER('Equip. Data'!$H$4:$H$63,('Equip. Data'!$B$4:$B$63=_xlpm.type)*('Equip. Data'!$E$4:$E$63=_xlpm.size)), INDEX(_xlpm.cops, _xlfn.XMATCH(MIN(ABS(_xlpm.temps-_xlpm.temp)), ABS(_xlpm.temps-_xlpm.temp)))),0) -> 3.005598488 | M195: 2.026218746 | N195: =IF(D195<Dashboard!$C$18,Dashboard!$D$15,"") ->  | O195: 0 | P195: =IFERROR(VLOOKUP(N195,'Equip. Data'!$J$3:$K$7,2,FALSE),"") ->  | Q195: 0 | R195: 3.005598488
B196: Heating (Electricity) | C196: 2002-09-01T01:00:00 | D196: 1.1 | E196: 6.38 | F196: 21.76856 | G196: =IF(D196>=Dashboard!$C$18,Dashboard!$C$15,"") -> Mini Split HP | H196: =IF(G196=Dashboard!$C$15,Dashboard!$C$16,"") -> AM036 | I196: =IFERROR(_xlfn.LET( _xlpm.type,G196, _xlpm.size,H196, _xlpm.temp,D196, _xlpm.temps,_xlfn._xlws.FILTER('Equip. Data'!$D$4:$D$63,('Equip. Data'!$B$4:$B$63=_xlpm.type)*('Equip. Data'!$E$4:$E$63=_xlpm.size)),_xlpm.caps,_xlfn._xlws.FILTER('Equip. Data'!$F$4:$F$63,('Equip. Data'!$B$4:$B$63=_xlpm.type)*('Equip. Data'!$E$4:$E$63=_xlpm.size)), INDEX(_xlpm.caps, _xlfn.XMATCH(MIN(ABS(_xlpm.temps-_xlpm.temp)), ABS(_xlpm.temps-_xlpm.temp)))),0) -> 40.2 | J196: 21.76856 | K196: 6.38 | L196: =IFERROR(_xlfn.LET( _xlpm.type,G196, _xlpm.size,H196, _xlpm.temp,D196, _xlpm.temps,_xlfn._xlws.FILTER('Equip. Data'!$D$4:$D$63,('Equip. Data'!$B$4:$B$63=_xlpm.type)*('Equip. Data'!$E$4:$E$63=_xlpm.size)),_xlpm.cops,_xlfn._xlws.FILTER('Equip. Data'!$H$4:$H$63,('Equip. Data'!$B$4:$B$63=_xlpm.type)*('Equip. Data'!$E$4:$E$63=_xlpm.size)), INDEX(_xlpm.cops, _xlfn.XMATCH(MIN(ABS(_xlpm.temps-_xlpm.temp)), ABS(_xlpm.temps-_xlpm.temp)))),0) -> 3.005598488 | M196: 2.122705353 | N196: =IF(D196<Dashboard!$C$18,Dashboard!$D$15,"") ->  | O196: 0 | P196: =IFERROR(VLOOKUP(N196,'Equip. Data'!$J$3:$K$7,2,FALSE),"") ->  | Q196: 0 | R196: 3.005598488
B197: Heating (Electricity) | C197: 2002-09-01T02:00:00 | D197: -0.5 | E197: 6.95 | F197: =E197*3.412 -> 23.7134 | G197: =IF(D197>=Dashboard!$C$18,Dashboard!$C$15,"") ->  | H197: =IF(G197=Dashboard!$C$15,Dashboard!$C$16,"") ->  | I197: =IFERROR(_xlfn.LET( _xlpm.type,G197, _xlpm.size,H197, _xlpm.temp,D197, _xlpm.temps,_xlfn._xlws.FILTER('Equip. Data'!$D$4:$D$63,('Equip. Data'!$B$4:$B$63=_xlpm.type)*('Equip. Data'!$E$4:$E$63=_xlpm.size)),_xlpm.caps,_xlfn._xlws.FILTER('Equip. Data'!$F$4:$F$63,('Equip. Data'!$B$4:$B$63=_xlpm.type)*('Equip. Data'!$E$4:$E$63=_xlpm.size)), INDEX(_xlpm.caps, _xlfn.XMATCH(MIN(ABS(_xlpm.temps-_xlpm.temp)), ABS(_xlpm.temps-_xlpm.temp)))),0) -> 0 | J197: =IF(MIN(F197,I197)=I197,0,MIN(F197,I197)) -> 0 | K197: =J197/3.412 -> 0 | L197: =IFERROR(_xlfn.LET( _xlpm.type,G197, _xlpm.size,H197, _xlpm.temp,D197, _xlpm.temps,_xlfn._xlws.FILTER('Equip. Data'!$D$4:$D$63,('Equip. Data'!$B$4:$B$63=_xlpm.type)*('Equip. Data'!$E$4:$E$63=_xlpm.size)),_xlpm.cops,_xlfn._xlws.FILTER('Equip. Data'!$H$4:$H$63,('Equip. Data'!$B$4:$B$63=_xlpm.type)*('Equip. Data'!$E$4:$E$63=_xlpm.size)), INDEX(_xlpm.cops, _xlfn.XMATCH(MIN(ABS(_xlpm.temps-_xlpm.temp)), ABS(_xlpm.temps-_xlpm.temp)))),0) -> 0 | M197: =IFERROR(K197/L197,0) -> 0 | N197: =IF(D197<Dashboard!$C$18,Dashboard!$D$15,"") -> Condensing Furnace | O197: =IF(K197=0,E197,0) -> 6.95 | P197: =IFERROR(VLOOKUP(N197,'Equip. Data'!$J$3:$K$7,2,FALSE),"") -> 0.95 | Q197: =IFERROR(O197/P197,0) -> 7.315789474 | R197: =IFERROR((K197+O197)/(M197+Q197),0) -> 0.95
B198: Heating (Electricity) | C198: 2002-09-01T03:00:00 | D198: -1 | E198: 7.24 | F198: 24.70288 | G198: =IF(D198>=Dashboard!$C$18,Dashboard!$C$15,"") ->  | H198: =IF(G198=Dashboard!$C$15,Dashboard!$C$16,"") ->  | I198: =IFERROR(_xlfn.LET( _xlpm.type,G198, _xlpm.size,H198, _xlpm.temp,D198, _xlpm.temps,_xlfn._xlws.FILTER('Equip. Data'!$D$4:$D$63,('Equip. Data'!$B$4:$B$63=_xlpm.type)*('Equip. Data'!$E$4:$E$63=_xlpm.size)),_xlpm.caps,_xlfn._xlws.FILTER('Equip. Data'!$F$4:$F$63,('Equip. Data'!$B$4:$B$63=_xlpm.type)*('Equip. Data'!$E$4:$E$63=_xlpm.size)), INDEX(_xlpm.caps, _xlfn.XMATCH(MIN(ABS(_xlpm.temps-_xlpm.temp)), ABS(_xlpm.temps-_xlpm.temp)))),0) -> 0 | J198: 0 | K198: 0 | L198: =IFERROR(_xlfn.LET( _xlpm.type,G198, _xlpm.size,H198, _xlpm.temp,D198, _xlpm.temps,_xlfn._xlws.FILTER('Equip. Data'!$D$4:$D$63,('Equip. Data'!$B$4:$B$63=_xlpm.type)*('Equip. Data'!$E$4:$E$63=_xlpm.size)),_xlpm.cops,_xlfn._xlws.FILTER('Equip. Data'!$H$4:$H$63,('Equip. Data'!$B$4:$B$63=_xlpm.type)*('Equip. Data'!$E$4:$E$63=_xlpm.size)), INDEX(_xlpm.cops, _xlfn.XMATCH(MIN(ABS(_xlpm.temps-_xlpm.temp)), ABS(_xlpm.temps-_xlpm.temp)))),0) -> 0 | M198: 0 | N198: =IF(D198<Dashboard!$C$18,Dashboard!$D$15,"") -> Condensing Furnace | O198: 7.24 | P198: =IFERROR(VLOOKUP(N198,'Equip. Data'!$J$3:$K$7,2,FALSE),"") -> 0.95 | Q198: 7.621052632 | R198: 0.95
B199: Heating (Electricity) | C199: 2002-09-01T04:00:00 | D199: -0.2 | E199: 7.3 | F199: 24.9076 | G199: =IF(D199>=Dashboard!$C$18,Dashboard!$C$15,"") ->  | H199: =IF(G199=Dashboard!$C$15,Dashboard!$C$16,"") ->  | I199: =IFERROR(_xlfn.LET( _xlpm.type,G199, _xlpm.size,H199, _xlpm.temp,D199, _xlpm.temps,_xlfn._xlws.FILTER('Equip. Data'!$D$4:$D$63,('Equip. Data'!$B$4:$B$63=_xlpm.type)*('Equip. Data'!$E$4:$E$63=_xlpm.size)),_xlpm.caps,_xlfn._xlws.FILTER('Equip. Data'!$F$4:$F$63,('Equip. Data'!$B$4:$B$63=_xlpm.type)*('Equip. Data'!$E$4:$E$63=_xlpm.size)), INDEX(_xlpm.caps, _xlfn.XMATCH(MIN(ABS(_xlpm.temps-_xlpm.temp)), ABS(_xlpm.temps-_xlpm.temp)))),0) -> 0 | J199: 0 | K199: 0 | L199: =IFERROR(_xlfn.LET( _xlpm.type,G199, _xlpm.size,H199, _xlpm.temp,D199, _xlpm.temps,_xlfn._xlws.FILTER('Equip. Data'!$D$4:$D$63,('Equip. Data'!$B$4:$B$63=_xlpm.type)*('Equip. Data'!$E$4:$E$63=_xlpm.size)),_xlpm.cops,_xlfn._xlws.FILTER('Equip. Data'!$H$4:$H$63,('Equip. Data'!$B$4:$B$63=_xlpm.type)*('Equip. Data'!$E$4:$E$63=_xlpm.size)), INDEX(_xlpm.cops, _xlfn.XMATCH(MIN(ABS(_xlpm.temps-_xlpm.temp)), ABS(_xlpm.temps-_xlpm.temp)))),0) -> 0 | M199: 0 | N199: =IF(D199<Dashboard!$C$18,Dashboard!$D$15,"") -> Condensing Furnace | O199: 7.3 | P199: =IFERROR(VLOOKUP(N199,'Equip. Data'!$J$3:$K$7,2,FALSE),"") -> 0.95 | Q199: 7.684210526 | R199: 0.95
B200: Heating (Electricity) | C200: 2002-09-01T05:00:00 | D200: -0.3 | E200: 7.37 | F200: 25.14644 | G200: =IF(D200>=Dashboard!$C$18,Dashboard!$C$15,"") ->  | H200: =IF(G200=Dashboard!$C$15,Dashboard!$C$16,"") ->  | I200: =IFERROR(_xlfn.LET( _xlpm.type,G200, _xlpm.size,H200, _xlpm.temp,D200, _xlpm.temps,_xlfn._xlws.FILTER('Equip. Data'!$D$4:$D$63,('Equip. Data'!$B$4:$B$63=_xlpm.type)*('Equip. Data'!$E$4:$E$63=_xlpm.size)),_xlpm.caps,_xlfn._xlws.FILTER('Equip. Data'!$F$4:$F$63,('Equip. Data'!$B$4:$B$63=_xlpm.type)*('Equip. Data'!$E$4:$E$63=_xlpm.size)), INDEX(_xlpm.caps, _xlfn.XMATCH(MIN(ABS(_xlpm.temps-_xlpm.temp)), ABS(_xlpm.temps-_xlpm.temp)))),0) -> 0 | J200: 0 | K200: 0 | L200: =IFERROR(_xlfn.LET( _xlpm.type,G200, _xlpm.size,H200, _xlpm.temp,D200, _xlpm.temps,_xlfn._xlws.FILTER('Equip. Data'!$D$4:$D$63,('Equip. Data'!$B$4:$B$63=_xlpm.type)*('Equip. Data'!$E$4:$E$63=_xlpm.size)),_xlpm.cops,_xlfn._xlws.FILTER('Equip. Data'!$H$4:$H$63,('Equip. Data'!$B$4:$B$63=_xlpm.type)*('Equip. Data'!$E$4:$E$63=_xlpm.size)), INDEX(_xlpm.cops, _xlfn.XMATCH(MIN(ABS(_xlpm.temps-_xlpm.temp)), ABS(_xlpm.temps-_xlpm.temp)))),0) -> 0 | M200: 0 | N200: =IF(D200<Dashboard!$C$18,Dashboard!$D$15,"") -> Condensing Furnace | O200: 7.37 | P200: =IFERROR(VLOOKUP(N200,'Equip. Data'!$J$3:$K$7,2,FALSE),"") -> 0.95 | Q200: 7.757894737 | R200: 0.95
B201: Heating (Electricity) | C201: 2002-09-01T06:00:00 | D201: -0.1 | E201: 7.4 | F201: 25.2488 | G201: =IF(D201>=Dashboard!$C$18,Dashboard!$C$15,"") ->  | H201: =IF(G201=Dashboard!$C$15,Dashboard!$C$16,"") ->  | I201: =IFERROR(_xlfn.LET( _xlpm.type,G201, _xlpm.size,H201, _xlpm.temp,D201, _xlpm.temps,_xlfn._xlws.FILTER('Equip. Data'!$D$4:$D$63,('Equip. Data'!$B$4:$B$63=_xlpm.type)*('Equip. Data'!$E$4:$E$63=_xlpm.size)),_xlpm.caps,_xlfn._xlws.FILTER('Equip. Data'!$F$4:$F$63,('Equip. Data'!$B$4:$B$63=_xlpm.type)*('Equip. Data'!$E$4:$E$63=_xlpm.size)), INDEX(_xlpm.caps, _xlfn.XMATCH(MIN(ABS(_xlpm.temps-_xlpm.temp)), ABS(_xlpm.temps-_xlpm.temp)))),0) -> 0 | J201: 0 | K201: 0 | L201: =IFERROR(_xlfn.LET( _xlpm.type,G201, _xlpm.size,H201, _xlpm.temp,D201, _xlpm.temps,_xlfn._xlws.FILTER('Equip. Data'!$D$4:$D$63,('Equip. Data'!$B$4:$B$63=_xlpm.type)*('Equip. Data'!$E$4:$E$63=_xlpm.size)),_xlpm.cops,_xlfn._xlws.FILTER('Equip. Data'!$H$4:$H$63,('Equip. Data'!$B$4:$B$63=_xlpm.type)*('Equip. Data'!$E$4:$E$63=_xlpm.size)), INDEX(_xlpm.cops, _xlfn.XMATCH(MIN(ABS(_xlpm.temps-_xlpm.temp)), ABS(_xlpm.temps-_xlpm.temp)))),0) -> 0 | M201: 0 | N201: =IF(D201<Dashboard!$C$18,Dashboard!$D$15,"") -> Condensing Furnace | O201: 7.4 | P201: =IFERROR(VLOOKUP(N201,'Equip. Data'!$J$3:$K$7,2,FALSE),"") -> 0.95 | Q201: 7.789473684 | R201: 0.95
... 2049 more rows

Sheet CZ 5 Kelowna
G2: Primary Heating | N2: Supplementary Heating
C3: Timestamp | D3: OAT (c) | E3: Heating kW/h | F3: Heating MBH | G3: Equipment Type | H3: Rated capacity | I3: Equip. Capacity | J3: Min Demand (MBH) | K3: Min Demand (KW) | L3: Efficiency | M3: kWH/h | N3: Equipment type | O3: Furnace Demand (KW) | P3: Eqp. Efficiency | Q3: KWH/hr | R3: Average Efficiency
B4: Heating (Electricity) | C4: 2002-01-01T01:00:00 | D4: -2.4 | E4: 7.66 | F4: =E4*3.412 -> 26.13592 | G4: =IF(D4>=Dashboard!$C$39,Dashboard!$C$36,"") ->  | H4: =IF(G4=Dashboard!$C$36,Dashboard!$C$37,"") ->  | I4: =IFERROR(_xlfn.LET( _xlpm.type,G4, _xlpm.size,H4, _xlpm.temp,D4, _xlpm.temps,_xlfn._xlws.FILTER('Equip. Data'!$D$4:$D$63,('Equip. Data'!$B$4:$B$63=_xlpm.type)*('Equip. Data'!$E$4:$E$63=_xlpm.size)),_xlpm.caps,_xlfn._xlws.FILTER('Equip. Data'!$F$4:$F$63,('Equip. Data'!$B$4:$B$63=_xlpm.type)*('Equip. Data'!$E$4:$E$63=_xlpm.size)), INDEX(_xlpm.caps, _xlfn.XMATCH(MIN(ABS(_xlpm.temps-_xlpm.temp)), ABS(_xlpm.temps-_xlpm.temp)))),0) -> 0 | J4: =IF(MIN(F4,I4)=I4,0,MIN(F4,I4)) -> 0 | K4: =J4/3.412 -> 0 | L4: =IFERROR(_xlfn.LET( _xlpm.type,G4, _xlpm.size,H4, _xlpm.temp,D4, _xlpm.temps,_xlfn._xlws.FILTER('Equip. Data'!$D$4:$D$63,('Equip. Data'!$B$4:$B$63=_xlpm.type)*('Equip. Data'!$E$4:$E$63=_xlpm.size)),_xlpm.cops,_xlfn._xlws.FILTER('Equip. Data'!$H$4:$H$63,('Equip. Data'!$B$4:$B$63=_xlpm.type)*('Equip. Data'!$E$4:$E$63=_xlpm.size)), INDEX(_xlpm.cops, _xlfn.XMATCH(MIN(ABS(_xlpm.temps-_xlpm.temp)), ABS(_xlpm.temps-_xlpm.temp)))),0) -> 0 | M4: =IFERROR(K4/L4,0) -> 0 | N4: =IF(D4<Dashboard!$C$39,Dashboard!$D$36,"") -> Condensing Furnace | O4: =IF(K4=0,E4,0) -> 7.66 | P4: =IFERROR(VLOOKUP(N4,'Equip. Data'!$J$3:$K$7,2,FALSE),"") -> 0.95 | Q4: =IFERROR(O4/P4,0) -> 8.063157895 | R4: =IFERROR((K4+O4)/(M4+Q4),0) -> 0.95
B5: Heating (Electricity) | C5: 2002-01-01T02:00:00 | D5: -2.6 | E5: 8.06 | F5: =E5*3.412 -> 27.50072 | G5: =IF(D5>=Dashboard!$C$39,Dashboard!$C$36,"") ->  | H5: =IF(G5=Dashboard!$C$36,Dashboard!$C$37,"") ->  | I5: =IFERROR(_xlfn.LET( _xlpm.type,G5, _xlpm.size,H5, _xlpm.temp,D5, _xlpm.temps,_xlfn._xlws.FILTER('Equip. Data'!$D$4:$D$63,('Equip. Data'!$B$4:$B$63=_xlpm.type)*('Equip. Data'!$E$4:$E$63=_xlpm.size)),_xlpm.caps,_xlfn._xlws.FILTER('Equip. Data'!$F$4:$F$63,('Equip. Data'!$B$4:$B$63=_xlpm.type)*('Equip. Data'!$E$4:$E$63=_xlpm.size)), INDEX(_xlpm.caps, _xlfn.XMATCH(MIN(ABS(_xlpm.temps-_xlpm.temp)), ABS(_xlpm.temps-_xlpm.temp)))),0) -> 0 | J5: =IF(MIN(F5,I5)=I5,0,MIN(F5,I5)) -> 0 | K5: =J5/3.412 -> 0 | L5: =IFERROR(_xlfn.LET( _xlpm.type,G5, _xlpm.size,H5, _xlpm.temp,D5, _xlpm.temps,_xlfn._xlws.FILTER('Equip. Data'!$D$4:$D$63,('Equip. Data'!$B$4:$B$63=_xlpm.type)*('Equip. Data'!$E$4:$E$63=_xlpm.size)),_xlpm.cops,_xlfn._xlws.FILTER('Equip. Data'!$H$4:$H$63,('Equip. Data'!$B$4:$B$63=_xlpm.type)*('Equip. Data'!$E$4:$E$63=_xlpm.size)), INDEX(_xlpm.cops, _xlfn.XMATCH(MIN(ABS(_xlpm.temps-_xlpm.temp)), ABS(_xlpm.temps-_xlpm.temp)))),0) -> 0 | M5: =IFERROR(K5/L5,0) -> 0 | N5: =IF(D5<Dashboard!$C$39,Dashboard!$D$36,"") -> Condensing Furnace | O5: =IF(K5=0,E5,0) -> 8.06 | P5: =IFERROR(VLOOKUP(N5,'Equip. Data'!$J$3:$K$7,2,FALSE),"") -> 0.95 | Q5: =IFERROR(O5/P5,0) -> 8.484210526 | R5: =IFERROR((K5+O5)/(M5+Q5),0) -> 0.95
B6: Heating (Electricity) | C6: 2002-01-01T03:00:00 | D6: -2.8 | E6: 8.2 | F6: 27.9784 | G6: =IF(D6>=Dashboard!$C$39,Dashboard!$C$36,"") ->  | H6: =IF(G6=Dashboard!$C$36,Dashboard!$C$37,"") ->  | I6: =IFERROR(_xlfn.LET( _xlpm.type,G6, _xlpm.size,H6, _xlpm.temp,D6, _xlpm.temps,_xlfn._xlws.FILTER('Equip. Data'!$D$4:$D$63,('Equip. Data'!$B$4:$B$63=_xlpm.type)*('Equip. Data'!$E$4:$E$63=_xlpm.size)),_xlpm.caps,_xlfn._xlws.FILTER('Equip. Data'!$F$4:$F$63,('Equip. Data'!$B$4:$B$63=_xlpm.type)*('Equip. Data'!$E$4:$E$63=_xlpm.size)), INDEX(_xlpm.caps, _xlfn.XMATCH(MIN(ABS(_xlpm.temps-_xlpm.temp)), ABS(_xlpm.temps-_xlpm.temp)))),0) -> 0 | J6: 0 | K6: 0 | L6: =IFERROR(_xlfn.LET( _xlpm.type,G6, _xlpm.size,H6, _xlpm.temp,D6, _xlpm.temps,_xlfn._xlws.FILTER('Equip. Data'!$D$4:$D$63,('Equip. Data'!$B$4:$B$63=_xlpm.type)*('Equip. Data'!$E$4:$E$63=_xlpm.size)),_xlpm.cops,_xlfn._xlws.FILTER('Equip. Data'!$H$4:$H$63,('Equip. Data'!$B$4:$B$63=_xlpm.type)*('Equip. Data'!$E$4:$E$63=_xlpm.size)), INDEX(_xlpm.cops, _xlfn.XMATCH(MIN(ABS(_xlpm.temps-_xlpm.temp)), ABS(_xlpm.temps-_xlpm.temp)))),0) -> 0 | M6: 0 | N6: =IF(D6<Dashboard!$C$39,Dashboard!$D$36,"") -> Condensing Furnace | O6: 8.2 | P6: =IFERROR(VLOOKUP(N6,'Equip. Data'!$J$3:$K$7,2,FALSE),"") -> 0.95 | Q6: 8.631578947 | R6: 0.95
B7: Heating (Electricity) | C7: 2002-01-01T04:00:00 | D7: -3 | E7: 8.37 | F7: 28.55844 | G7: =IF(D7>=Dashboard!$C$39,Dashboard!$C$36,"") ->  | H7: =IF(G7=Dashboard!$C$36,Dashboard!$C$37,"") ->  | I7: =IFERROR(_xlfn.LET( _xlpm.type,G7, _xlpm.size,H7, _xlpm.temp,D7, _xlpm.temps,_xlfn._xlws.FILTER('Equip. Data'!$D$4:$D$63,('Equip. Data'!$B$4:$B$63=_xlpm.type)*('Equip. Data'!$E$4:$E$63=_xlpm.size)),_xlpm.caps,_xlfn._xlws.FILTER('Equip. Data'!$F$4:$F$63,('Equip. Data'!$B$4:$B$63=_xlpm.type)*('Equip. Data'!$E$4:$E$63=_xlpm.size)), INDEX(_xlpm.caps, _xlfn.XMATCH(MIN(ABS(_xlpm.temps-_xlpm.temp)), ABS(_xlpm.temps-_xlpm.temp)))),0) -> 0 | J7: 0 | K7: 0 | L7: =IFERROR(_xlfn.LET( _xlpm.type,G7, _xlpm.size,H7, _xlpm.temp,D7, _xlpm.temps,_xlfn._xlws.FILTER('Equip. Data'!$D$4:$D$63,('Equip. Data'!$B$4:$B$63=_xlpm.type)*('Equip. Data'!$E$4:$E$63=_xlpm.size)),_xlpm.cops,_xlfn._xlws.FILTER('Equip. Data'!$H$4:$H$63,('Equip. Data'!$B$4:$B$63=_xlpm.type)*('Equip. Data'!$E$4:$E$63=_xlpm.size)), INDEX(_xlpm.cops, _xlfn.XMATCH(MIN(ABS(_xlpm.temps-_xlpm.temp)), ABS(_xlpm.temps-_xlpm.temp)))),0) -> 0 | M7: 0 | N7: =IF(D7<Dashboard!$C$39,Dashboard!$D$36,"") -> Condensing Furnace | O7: 8.37 | P7: =IFERROR(VLOOKUP(N7,'Equip. Data'!$J$3:$K$7,2,FALSE),"") -> 0.95 | Q7: 8.810526316 | R7: 0.95
B8: Heating (Electricity) | C8: 2002-01-01T05:00:00 | D8: -3 | E8: 8.47 | F8: 28.89964 | G8: =IF(D8>=Dashboard!$C$39,Dashboard!$C$36,"") ->  | H8: =IF(G8=Dashboard!$C$36,Dashboard!$C$37,"") ->  | I8: =IFERROR(_xlfn.LET( _xlpm.type,G8, _xlpm.size,H8, _xlpm.temp,D8, _xlpm.temps,_xlfn._xlws.FILTER('Equip. Data'!$D$4:$D$63,('Equip. Data'!$B$4:$B$63=_xlpm.type)*('Equip. Data'!$E$4:$E$63=_xlpm.size)),_xlpm.caps,_xlfn._xlws.FILTER('Equip. Data'!$F$4:$F$63,('Equip. Data'!$B$4:$B$63=_xlpm.type)*('Equip. Data'!$E$4:$E$63=_xlpm.size)), INDEX(_xlpm.caps, _xlfn.XMATCH(MIN(ABS(_xlpm.temps-_xlpm.temp)), ABS(_xlpm.temps-_xlpm.temp)))),0) -> 0 | J8: 0 | K8: 0 | L8: =IFERROR(_xlfn.LET( _xlpm.type,G8, _xlpm.size,H8, _xlpm.temp,D8, _xlpm.temps,_xlfn._xlws.FILTER('Equip. Data'!$D$4:$D$63,('Equip. Data'!$B$4:$B$63=_xlpm.type)*('Equip. Data'!$E$4:$E$63=_xlpm.size)),_xlpm.cops,_xlfn._xlws.FILTER('Equip. Data'!$H$4:$H$63,('Equip. Data'!$B$4:$B$63=_xlpm.type)*('Equip. Data'!$E$4:$E$63=_xlpm.size)), INDEX(_xlpm.cops, _xlfn.XMATCH(MIN(ABS(_xlpm.temps-_xlpm.temp)), ABS(_xlpm.temps-_xlpm.temp)))),0) -> 0 | M8: 0 | N8: =IF(D8<Dashboard!$C$39,Dashboard!$D$36,"") -> Condensing Furnace | O8: 8.47 | P8: =IFERROR(VLOOKUP(N8,'Equip. Data'!$J$3:$K$7,2,FALSE),"") -> 0.95 | Q8: 8.915789474 | R8: 0.95
B9: Heating (Electricity) | C9: 2002-01-01T06:00:00 | D9: -3 | E9: 8.5 | F9: 29.002 | G9: =IF(D9>=Dashboard!$C$39,Dashboard!$C$36,"") ->  | H9: =IF(G9=Dashboard!$C$36,Dashboard!$C$37,"") ->  | I9: =IFERROR(_xlfn.LET( _xlpm.type,G9, _xlpm.size,H9, _xlpm.temp,D9, _xlpm.temps,_xlfn._xlws.FILTER('Equip. Data'!$D$4:$D$63,('Equip. Data'!$B$4:$B$63=_xlpm.type)*('Equip. Data'!$E$4:$E$63=_xlpm.size)),_xlpm.caps,_xlfn._xlws.FILTER('Equip. Data'!$F$4:$F$63,('Equip. Data'!$B$4:$B$63=_xlpm.type)*('Equip. Data'!$E$4:$E$63=_xlpm.size)), INDEX(_xlpm.caps, _xlfn.XMATCH(MIN(ABS(_xlpm.temps-_xlpm.temp)), ABS(_xlpm.temps-_xlpm.temp)))),0) -> 0 | J9: 0 | K9: 0 | L9: =IFERROR(_xlfn.LET( _xlpm.type,G9, _xlpm.size,H9, _xlpm.temp,D9, _xlpm.temps,_xlfn._xlws.FILTER('Equip. Data'!$D$4:$D$63,('Equip. Data'!$B$4:$B$63=_xlpm.type)*('Equip. Data'!$E$4:$E$63=_xlpm.size)),_xlpm.cops,_xlfn._xlws.FILTER('Equip. Data'!$H$4:$H$63,('Equip. Data'!$B$4:$B$63=_xlpm.type)*('Equip. Data'!$E$4:$E$63=_xlpm.size)), INDEX(_xlpm.cops, _xlfn.XMATCH(MIN(ABS(_xlpm.temps-_xlpm.temp)), ABS(_xlpm.temps-_xlpm.temp)))),0) -> 0 | M9: 0 | N9: =IF(D9<Dashboard!$C$39,Dashboard!$D$36,"") -> Condensing Furnace | O9: 8.5 | P9: =IFERROR(VLOOKUP(N9,'Equip. Data'!$J$3:$K$7,2,FALSE),"") -> 0.95 | Q9: 8.947368421 | R9: 0.95
B10: Heating (Electricity) | C10: 2002-01-01T07:00:00 | D10: -3.7 | E10: 8.57 | F10: 29.24084 | G10: =IF(D10>=Dashboard!$C$39,Dashboard!$C$36,"") ->  | H10: =IF(G10=Dashboard!$C$36,Dashboard!$C$37,"") ->  | I10: =IFERROR(_xlfn.LET( _xlpm.type,G10, _xlpm.size,H10, _xlpm.temp,D10, _xlpm.temps,_xlfn._xlws.FILTER('Equip. Data'!$D$4:$D$63,('Equip. Data'!$B$4:$B$63=_xlpm.type)*('Equip. Data'!$E$4:$E$63=_xlpm.size)),_xlpm.caps,_xlfn._xlws.FILTER('Equip. Data'!$F$4:$F$63,('Equip. Data'!$B$4:$B$63=_xlpm.type)*('Equip. Data'!$E$4:$E$63=_xlpm.size)), INDEX(_xlpm.caps, _xlfn.XMATCH(MIN(ABS(_xlpm.temps-_xlpm.temp)), ABS(_xlpm.temps-_xlpm.temp)))),0) -> 0 | J10: 0 | K10: 0 | L10: =IFERROR(_xlfn.LET( _xlpm.type,G10, _xlpm.size,H10, _xlpm.temp,D10, _xlpm.temps,_xlfn._xlws.FILTER('Equip. Data'!$D$4:$D$63,('Equip. Data'!$B$4:$B$63=_xlpm.type)*('Equip. Data'!$E$4:$E$63=_xlpm.size)),_xlpm.cops,_xlfn._xlws.FILTER('Equip. Data'!$H$4:$H$63,('Equip. Data'!$B$4:$B$63=_xlpm.type)*('Equip. Data'!$E$4:$E$63=_xlpm.size)), INDEX(_xlpm.cops, _xlfn.XMATCH(MIN(ABS(_xlpm.temps-_xlpm.temp)), ABS(_xlpm.temps-_xlpm.temp)))),0) -> 0 | M10: 0 | N10: =IF(D10<Dashboard!$C$39,Dashboard!$D$36,"") -> Condensing Furnace | O10: 8.57 | P10: =IFERROR(VLOOKUP(N10,'Equip. Data'!$J$3:$K$7,2,FALSE),"") -> 0.95 | Q10: 9.021052632 | R10: 0.95
B11: Heating (Electricity) | C11: 2002-01-01T08:00:00 | D11: -5.2 | E11: 8.82 | F11: 30.09384 | G11: =IF(D11>=Dashboard!$C$39,Dashboard!$C$36,"") ->  | H11: =IF(G11=Dashboard!$C$36,Dashboard!$C$37,"") ->  | I11: =IFERROR(_xlfn.LET( _xlpm.type,G11, _xlpm.size,H11, _xlpm.temp,D11, _xlpm.temps,_xlfn._xlws.FILTER('Equip. Data'!$D$4:$D$63,('Equip. Data'!$B$4:$B$63=_xlpm.type)*('Equip. Data'!$E$4:$E$63=_xlpm.size)),_xlpm.caps,_xlfn._xlws.FILTER('Equip. Data'!$F$4:$F$63,('Equip. Data'!$B$4:$B$63=_xlpm.type)*('Equip. Data'!$E$4:$E$63=_xlpm.size)), INDEX(_xlpm.caps, _xlfn.XMATCH(MIN(ABS(_xlpm.temps-_xlpm.temp)), ABS(_xlpm.temps-_xlpm.temp)))),0) -> 0 | J11: 0 | K11: 0 | L11: =IFERROR(_xlfn.LET( _xlpm.type,G11, _xlpm.size,H11, _xlpm.temp,D11, _xlpm.temps,_xlfn._xlws.FILTER('Equip. Data'!$D$4:$D$63,('Equip. Data'!$B$4:$B$63=_xlpm.type)*('Equip. Data'!$E$4:$E$63=_xlpm.size)),_xlpm.cops,_xlfn._xlws.FILTER('Equip. Data'!$H$4:$H$63,('Equip. Data'!$B$4:$B$63=_xlpm.type)*('Equip. Data'!$E$4:$E$63=_xlpm.size)), INDEX(_xlpm.cops, _xlfn.XMATCH(MIN(ABS(_xlpm.temps-_xlpm.temp)), ABS(_xlpm.temps-_xlpm.temp)))),0) -> 0 | M11: 0 | N11: =IF(D11<Dashboard!$C$39,Dashboard!$D$36,"") -> Condensing Furnace | O11: 8.82 | P11: =IFERROR(VLOOKUP(N11,'Equip. Data'!$J$3:$K$7,2,FALSE),"") -> 0.95 | Q11: 9.284210526 | R11: 0.95
B12: Heating (Electricity) | C12: 2002-01-01T09:00:00 | D12: -7.3 | E12: 8.99 | F12: 30.67388 | G12: =IF(D12>=Dashboard!$C$39,Dashboard!$C$36,"") ->  | H12: =IF(G12=Dashboard!$C$36,Dashboard!$C$37,"") ->  | I12: =IFERROR(_xlfn.LET( _xlpm.type,G12, _xlpm.size,H12, _xlpm.temp,D12, _xlpm.temps,_xlfn._xlws.FILTER('Equip. Data'!$D$4:$D$63,('Equip. Data'!$B$4:$B$63=_xlpm.type)*('Equip. Data'!$E$4:$E$63=_xlpm.size)),_xlpm.caps,_xlfn._xlws.FILTER('Equip. Data'!$F$4:$F$63,('Equip. Data'!$B$4:$B$63=_xlpm.type)*('Equip. Data'!$E$4:$E$63=_xlpm.size)), INDEX(_xlpm.caps, _xlfn.XMATCH(MIN(ABS(_xlpm.temps-_xlpm.temp)), ABS(_xlpm.temps-_xlpm.temp)))),0) -> 0 | J12: 0 | K12: 0 | L12: =IFERROR(_xlfn.LET( _xlpm.type,G12, _xlpm.size,H12, _xlpm.temp,D12, _xlpm.temps,_xlfn._xlws.FILTER('Equip. Data'!$D$4:$D$63,('Equip. Data'!$B$4:$B$63=_xlpm.type)*('Equip. Data'!$E$4:$E$63=_xlpm.size)),_xlpm.cops,_xlfn._xlws.FILTER('Equip. Data'!$H$4:$H$63,('Equip. Data'!$B$4:$B$63=_xlpm.type)*('Equip. Data'!$E$4:$E$63=_xlpm.size)), INDEX(_xlpm.cops, _xlfn.XMATCH(MIN(ABS(_xlpm.temps-_xlpm.temp)), ABS(_xlpm.temps-_xlpm.temp)))),0) -> 0 | M12: 0 | N12: =IF(D12<Dashboard!$C$39,Dashboard!$D$36,"") -> Condensing Furnace | O12: 8.99 | P12: =IFERROR(VLOOKUP(N12,'Equip. Data'!$J$3:$K$7,2,FALSE),"") -> 0.95 | Q12: 9.463157895 | R12: 0.95
B13: Heating (Electricity) | C13: 2002-01-01T10:00:00 | D13: -4.7 | E13: 7.89 | F13: 26.92068 | G13: =IF(D13>=Dashboard!$C$39,Dashboard!$C$36,"") ->  | H13: =IF(G13=Dashboard!$C$36,Dashboard!$C$37,"") ->  | I13: =IFERROR(_xlfn.LET( _xlpm.type,G13, _xlpm.size,H13, _xlpm.temp,D13, _xlpm.temps,_xlfn._xlws.FILTER('Equip. Data'!$D$4:$D$63,('Equip. Data'!$B$4:$B$63=_xlpm.type)*('Equip. Data'!$E$4:$E$63=_xlpm.size)),_xlpm.caps,_xlfn._xlws.FILTER('Equip. Data'!$F$4:$F$63,('Equip. Data'!$B$4:$B$63=_xlpm.type)*('Equip. Data'!$E$4:$E$63=_xlpm.size)), INDEX(_xlpm.caps, _xlfn.XMATCH(MIN(ABS(_xlpm.temps-_xlpm.temp)), ABS(_xlpm.temps-_xlpm.temp)))),0) -> 0 | J13: 0 | K13: 0 | L13: =IFERROR(_xlfn.LET( _xlpm.type,G13, _xlpm.size,H13, _xlpm.temp,D13, _xlpm.temps,_xlfn._xlws.FILTER('Equip. Data'!$D$4:$D$63,('Equip. Data'!$B$4:$B$63=_xlpm.type)*('Equip. Data'!$E$4:$E$63=_xlpm.size)),_xlpm.cops,_xlfn._xlws.FILTER('Equip. Data'!$H$4:$H$63,('Equip. Data'!$B$4:$B$63=_xlpm.type)*('Equip. Data'!$E$4:$E$63=_xlpm.size)), INDEX(_xlpm.cops, _xlfn.XMATCH(MIN(ABS(_xlpm.temps-_xlpm.temp)), ABS(_xlpm.temps-_xlpm.temp)))),0) -> 0 | M13: 0 | N13: =IF(D13<Dashboard!$C$39,Dashboard!$D$36,"") -> Condensing Furnace | O13: 7.89 | P13: =IFERROR(VLOOKUP(N13,'Equip. Data'!$J$3:$K$7,2,FALSE),"") -> 0.95 | Q13: 8.305263158 | R13: 0.95
B14: Heating (Electricity) | C14: 2002-01-01T11:00:00 | D14: -0.6 | E14: 6.07 | F14: 20.71084 | G14: =IF(D14>=Dashboard!$C$39,Dashboard!$C$36,"") ->  | H14: =IF(G14=Dashboard!$C$36,Dashboard!$C$37,"") ->  | I14: =IFERROR(_xlfn.LET( _xlpm.type,G14, _xlpm.size,H14, _xlpm.temp,D14, _xlpm.temps,_xlfn._xlws.FILTER('Equip. Data'!$D$4:$D$63,('Equip. Data'!$B$4:$B$63=_xlpm.type)*('Equip. Data'!$E$4:$E$63=_xlpm.size)),_xlpm.caps,_xlfn._xlws.FILTER('Equip. Data'!$F$4:$F$63,('Equip. Data'!$B$4:$B$63=_xlpm.type)*('Equip. Data'!$E$4:$E$63=_xlpm.size)), INDEX(_xlpm.caps, _xlfn.XMATCH(MIN(ABS(_xlpm.temps-_xlpm.temp)), ABS(_xlpm.temps-_xlpm.temp)))),0) -> 0 | J14: 0 | K14: 0 | L14: =IFERROR(_xlfn.LET( _xlpm.type,G14, _xlpm.size,H14, _xlpm.temp,D14, _xlpm.temps,_xlfn._xlws.FILTER('Equip. Data'!$D$4:$D$63,('Equip. Data'!$B$4:$B$63=_xlpm.type)*('Equip. Data'!$E$4:$E$63=_xlpm.size)),_xlpm.cops,_xlfn._xlws.FILTER('Equip. Data'!$H$4:$H$63,('Equip. Data'!$B$4:$B$63=_xlpm.type)*('Equip. Data'!$E$4:$E$63=_xlpm.size)), INDEX(_xlpm.cops, _xlfn.XMATCH(MIN(ABS(_xlpm.temps-_xlpm.temp)), ABS(_xlpm.temps-_xlpm.temp)))),0) -> 0 | M14: 0 | N14: =IF(D14<Dashboard!$C$39,Dashboard!$D$36,"") -> Condensing Furnace | O14: 6.07 | P14: =IFERROR(VLOOKUP(N14,'Equip. Data'!$J$3:$K$7,2,FALSE),"") -> 0.95 | Q14: 6.389473684 | R14: 0.95
B15: Heating (Electricity) | C15: 2002-01-01T12:00:00 | D15: -1.3 | E15: 4.86 | F15: 16.58232 | G15: =IF(D15>=Dashboard!$C$39,Dashboard!$C$36,"") ->  | H15: =IF(G15=Dashboard!$C$36,Dashboard!$C$37,"") ->  | I15: =IFERROR(_xlfn.LET( _xlpm.type,G15, _xlpm.size,H15, _xlpm.temp,D15, _xlpm.temps,_xlfn._xlws.FILTER('Equip. Data'!$D$4:$D$63,('Equip. Data'!$B$4:$B$63=_xlpm.type)*('Equip. Data'!$E$4:$E$63=_xlpm.size)),_xlpm.caps,_xlfn._xlws.FILTER('Equip. Data'!$F$4:$F$63,('Equip. Data'!$B$4:$B$63=_xlpm.type)*('Equip. Data'!$E$4:$E$63=_xlpm.size)), INDEX(_xlpm.caps, _xlfn.XMATCH(MIN(ABS(_xlpm.temps-_xlpm.temp)), ABS(_xlpm.temps-_xlpm.temp)))),0) -> 0 | J15: 0 | K15: 0 | L15: =IFERROR(_xlfn.LET( _xlpm.type,G15, _xlpm.size,H15, _xlpm.temp,D15, _xlpm.temps,_xlfn._xlws.FILTER('Equip. Data'!$D$4:$D$63,('Equip. Data'!$B$4:$B$63=_xlpm.type)*('Equip. Data'!$E$4:$E$63=_xlpm.size)),_xlpm.cops,_xlfn._xlws.FILTER('Equip. Data'!$H$4:$H$63,('Equip. Data'!$B$4:$B$63=_xlpm.type)*('Equip. Data'!$E$4:$E$63=_xlpm.size)), INDEX(_xlpm.cops, _xlfn.XMATCH(MIN(ABS(_xlpm.temps-_xlpm.temp)), ABS(_xlpm.temps-_xlpm.temp)))),0) -> 0 | M15: 0 | N15: =IF(D15<Dashboard!$C$39,Dashboard!$D$36,"") -> Condensing Furnace | O15: 4.86 | P15: =IFERROR(VLOOKUP(N15,'Equip. Data'!$J$3:$K$7,2,FALSE),"") -> 0.95 | Q15: 5.115789474 | R15: 0.95
B16: Heating (Electricity) | C16: 2002-01-01T13:00:00 | D16: -0.6 | E16: 4.28 | F16: 14.60336 | G16: =IF(D16>=Dashboard!$C$39,Dashboard!$C$36,"") ->  | H16: =IF(G16=Dashboard!$C$36,Dashboard!$C$37,"") ->  | I16: =IFERROR(_xlfn.LET( _xlpm.type,G16, _xlpm.size,H16, _xlpm.temp,D16, _xlpm.temps,_xlfn._xlws.FILTER('Equip. Data'!$D$4:$D$63,('Equip. Data'!$B$4:$B$63=_xlpm.type)*('Equip. Data'!$E$4:$E$63=_xlpm.size)),_xlpm.caps,_xlfn._xlws.FILTER('Equip. Data'!$F$4:$F$63,('Equip. Data'!$B$4:$B$63=_xlpm.type)*('Equip. Data'!$E$4:$E$63=_xlpm.size)), INDEX(_xlpm.caps, _xlfn.XMATCH(MIN(ABS(_xlpm.temps-_xlpm.temp)), ABS(_xlpm.temps-_xlpm.temp)))),0) -> 0 | J16: 0 | K16: 0 | L16: =IFERROR(_xlfn.LET( _xlpm.type,G16, _xlpm.size,H16, _xlpm.temp,D16, _xlpm.temps,_xlfn._xlws.FILTER('Equip. Data'!$D$4:$D$63,('Equip. Data'!$B$4:$B$63=_xlpm.type)*('Equip. Data'!$E$4:$E$63=_xlpm.size)),_xlpm.cops,_xlfn._xlws.FILTER('Equip. Data'!$H$4:$H$63,('Equip. Data'!$B$4:$B$63=_xlpm.type)*('Equip. Data'!$E$4:$E$63=_xlpm.size)), INDEX(_xlpm.cops, _xlfn.XMATCH(MIN(ABS(_xlpm.temps-_xlpm.temp)), ABS(_xlpm.temps-_xlpm.temp)))),0) -> 0 | M16: 0 | N16: =IF(D16<Dashboard!$C$39,Dashboard!$D$36,"") -> Condensing Furnace | O16: 4.28 | P16: =IFERROR(VLOOKUP(N16,'Equip. Data'!$J$3:$K$7,2,FALSE),"") -> 0.95 | Q16: 4.505263158 | R16: 0.95
B17: Heating (Electricity) | C17: 2002-01-01T14:00:00 | D17: -1.1 | E17: 4.24 | F17: 14.46688 | G17: =IF(D17>=Dashboard!$C$39,Dashboard!$C$36,"") ->  | H17: =IF(G17=Dashboard!$C$36,Dashboard!$C$37,"") ->  | I17: =IFERROR(_xlfn.LET( _xlpm.type,G17, _xlpm.size,H17, _xlpm.temp,D17, _xlpm.temps,_xlfn._xlws.FILTER('Equip. Data'!$D$4:$D$63,('Equip. Data'!$B$4:$B$63=_xlpm.type)*('Equip. Data'!$E$4:$E$63=_xlpm.size)),_xlpm.caps,_xlfn._xlws.FILTER('Equip. Data'!$F$4:$F$63,('Equip. Data'!$B$4:$B$63=_xlpm.type)*('Equip. Data'!$E$4:$E$63=_xlpm.size)), INDEX(_xlpm.caps, _xlfn.XMATCH(MIN(ABS(_xlpm.temps-_xlpm.temp)), ABS(_xlpm.temps-_xlpm.temp)))),0) -> 0 | J17: 0 | K17: 0 | L17: =IFERROR(_xlfn.LET( _xlpm.type,G17, _xlpm.size,H17, _xlpm.temp,D17, _xlpm.temps,_xlfn._xlws.FILTER('Equip. Data'!$D$4:$D$63,('Equip. Data'!$B$4:$B$63=_xlpm.type)*('Equip. Data'!$E$4:$E$63=_xlpm.size)),_xlpm.cops,_xlfn._xlws.FILTER('Equip. Data'!$H$4:$H$63,('Equip. Data'!$B$4:$B$63=_xlpm.type)*('Equip. Data'!$E$4:$E$63=_xlpm.size)), INDEX(_xlpm.cops, _xlfn.XMATCH(MIN(ABS(_xlpm.temps-_xlpm.temp)), ABS(_xlpm.temps-_xlpm.temp)))),0) -> 0 | M17: 0 | N17: =IF(D17<Dashboard!$C$39,Dashboard!$D$36,"") -> Condensing Furnace | O17: 4.24 | P17: =IFERROR(VLOOKUP(N17,'Equip. Data'!$J$3:$K$7,2,FALSE),"") -> 0.95 | Q17: 4.463157895 | R17: 0.95
B18: Heating (Electricity) | C18: 2002-01-01T15:00:00 | D18: -2.5 | E18: 4.86 | F18: 16.58232 | G18: =IF(D18>=Dashboard!$C$39,Dashboard!$C$36,"") ->  | H18: =IF(G18=Dashboard!$C$36,Dashboard!$C$37,"") ->  | I18: =IFERROR(_xlfn.LET( _xlpm.type,G18, _xlpm.size,H18, _xlpm.temp,D18, _xlpm.temps,_xlfn._xlws.FILTER('Equip. Data'!$D$4:$D$63,('Equip. Data'!$B$4:$B$63=_xlpm.type)*('Equip. Data'!$E$4:$E$63=_xlpm.size)),_xlpm.caps,_xlfn._xlws.FILTER('Equip. Data'!$F$4:$F$63,('Equip. Data'!$B$4:$B$63=_xlpm.type)*('Equip. Data'!$E$4:$E$63=_xlpm.size)), INDEX(_xlpm.caps, _xlfn.XMATCH(MIN(ABS(_xlpm.temps-_xlpm.temp)), ABS(_xlpm.temps-_xlpm.temp)))),0) -> 0 | J18: 0 | K18: 0 | L18: =IFERROR(_xlfn.LET( _xlpm.type,G18, _xlpm.size,H18, _xlpm.temp,D18, _xlpm.temps,_xlfn._xlws.FILTER('Equip. Data'!$D$4:$D$63,('Equip. Data'!$B$4:$B$63=_xlpm.type)*('Equip. Data'!$E$4:$E$63=_xlpm.size)),_xlpm.cops,_xlfn._xlws.FILTER('Equip. Data'!$H$4:$H$63,('Equip. Data'!$B$4:$B$63=_xlpm.type)*('Equip. Data'!$E$4:$E$63=_xlpm.size)), INDEX(_xlpm.cops, _xlfn.XMATCH(MIN(ABS(_xlpm.temps-_xlpm.temp)), ABS(_xlpm.temps-_xlpm.temp)))),0) -> 0 | M18: 0 | N18: =IF(D18<Dashboard!$C$39,Dashboard!$D$36,"") -> Condensing Furnace | O18: 4.86 | P18: =IFERROR(VLOOKUP(N18,'Equip. Data'!$J$3:$K$7,2,FALSE),"") -> 0.95 | Q18: 5.115789474 | R18: 0.95
B19: Heating (Electricity) | C19: 2002-01-01T16:00:00 | D19: -1.3 | E19: 5.31 | F19: 18.11772 | G19: =IF(D19>=Dashboard!$C$39,Dashboard!$C$36,"") ->  | H19: =IF(G19=Dashboard!$C$36,Dashboard!$C$37,"") ->  | I19: =IFERROR(_xlfn.LET( _xlpm.type,G19, _xlpm.size,H19, _xlpm.temp,D19, _xlpm.temps,_xlfn._xlws.FILTER('Equip. Data'!$D$4:$D$63,('Equip. Data'!$B$4:$B$63=_xlpm.type)*('Equip. Data'!$E$4:$E$63=_xlpm.size)),_xlpm.caps,_xlfn._xlws.FILTER('Equip. Data'!$F$4:$F$63,('Equip. Data'!$B$4:$B$63=_xlpm.type)*('Equip. Data'!$E$4:$E$63=_xlpm.size)), INDEX(_xlpm.caps, _xlfn.XMATCH(MIN(ABS(_xlpm.temps-_xlpm.temp)), ABS(_xlpm.temps-_xlpm.temp)))),0) -> 0 | J19: 0 | K19: 0 | L19: =IFERROR(_xlfn.LET( _xlpm.type,G19, _xlpm.size,H19, _xlpm.temp,D19, _xlpm.temps,_xlfn._xlws.FILTER('Equip. Data'!$D$4:$D$63,('Equip. Data'!$B$4:$B$63=_xlpm.type)*('Equip. Data'!$E$4:$E$63=_xlpm.size)),_xlpm.cops,_xlfn._xlws.FILTER('Equip. Data'!$H$4:$H$63,('Equip. Data'!$B$4:$B$63=_xlpm.type)*('Equip. Data'!$E$4:$E$63=_xlpm.size)), INDEX(_xlpm.cops, _xlfn.XMATCH(MIN(ABS(_xlpm.temps-_xlpm.temp)), ABS(_xlpm.temps-_xlpm.temp)))),0) -> 0 | M19: 0 | N19: =IF(D19<Dashboard!$C$39,Dashboard!$D$36,"") -> Condensing Furnace | O19: 5.31 | P19: =IFERROR(VLOOKUP(N19,'Equip. Data'!$J$3:$K$7,2,FALSE),"") -> 0.95 | Q19: 5.589473684 | R19: 0.95
B20: Heating (Electricity) | C20: 2002-01-01T17:00:00 | D20: -1.5 | E20: 5.69 | F20: 19.41428 | G20: =IF(D20>=Dashboard!$C$39,Dashboard!$C$36,"") ->  | H20: =IF(G20=Dashboard!$C$36,Dashboard!$C$37,"") ->  | I20: =IFERROR(_xlfn.LET( _xlpm.type,G20, _xlpm.size,H20, _xlpm.temp,D20, _xlpm.temps,_xlfn._xlws.FILTER('Equip. Data'!$D$4:$D$63,('Equip. Data'!$B$4:$B$63=_xlpm.type)*('Equip. Data'!$E$4:$E$63=_xlpm.size)),_xlpm.caps,_xlfn._xlws.FILTER('Equip. Data'!$F$4:$F$63,('Equip. Data'!$B$4:$B$63=_xlpm.type)*('Equip. Data'!$E$4:$E$63=_xlpm.size)), INDEX(_xlpm.caps, _xlfn.XMATCH(MIN(ABS(_xlpm.temps-_xlpm.temp)), ABS(_xlpm.temps-_xlpm.temp)))),0) -> 0 | J20: 0 | K20: 0 | L20: =IFERROR(_xlfn.LET( _xlpm.type,G20, _xlpm.size,H20, _xlpm.temp,D20, _xlpm.temps,_xlfn._xlws.FILTER('Equip. Data'!$D$4:$D$63,('Equip. Data'!$B$4:$B$63=_xlpm.type)*('Equip. Data'!$E$4:$E$63=_xlpm.size)),_xlpm.cops,_xlfn._xlws.FILTER('Equip. Data'!$H$4:$H$63,('Equip. Data'!$B$4:$B$63=_xlpm.type)*('Equip. Data'!$E$4:$E$63=_xlpm.size)), INDEX(_xlpm.cops, _xlfn.XMATCH(MIN(ABS(_xlpm.temps-_xlpm.temp)), ABS(_xlpm.temps-_xlpm.temp)))),0) -> 0 | M20: 0 | N20: =IF(D20<Dashboard!$C$39,Dashboard!$D$36,"") -> Condensing Furnace | O20: 5.69 | P20: =IFERROR(VLOOKUP(N20,'Equip. Data'!$J$3:$K$7,2,FALSE),"") -> 0.95 | Q20: 5.989473684 | R20: 0.95
B21: Heating (Electricity) | C21: 2002-01-01T18:00:00 | D21: -1.3 | E21: 5.86 | F21: 19.99432 | G21: =IF(D21>=Dashboard!$C$39,Dashboard!$C$36,"") ->  | H21: =IF(G21=Dashboard!$C$36,Dashboard!$C$37,"") ->  | I21: =IFERROR(_xlfn.LET( _xlpm.type,G21, _xlpm.size,H21, _xlpm.temp,D21, _xlpm.temps,_xlfn._xlws.FILTER('Equip. Data'!$D$4:$D$63,('Equip. Data'!$B$4:$B$63=_xlpm.type)*('Equip. Data'!$E$4:$E$63=_xlpm.size)),_xlpm.caps,_xlfn._xlws.FILTER('Equip. Data'!$F$4:$F$63,('Equip. Data'!$B$4:$B$63=_xlpm.type)*('Equip. Data'!$E$4:$E$63=_xlpm.size)), INDEX(_xlpm.caps, _xlfn.XMATCH(MIN(ABS(_xlpm.temps-_xlpm.temp)), ABS(_xlpm.temps-_xlpm.temp)))),0) -> 0 | J21: 0 | K21: 0 | L21: =IFERROR(_xlfn.LET( _xlpm.type,G21, _xlpm.size,H21, _xlpm.temp,D21, _xlpm.temps,_xlfn._xlws.FILTER('Equip. Data'!$D$4:$D$63,('Equip. Data'!$B$4:$B$63=_xlpm.type)*('Equip. Data'!$E$4:$E$63=_xlpm.size)),_xlpm.cops,_xlfn._xlws.FILTER('Equip. Data'!$H$4:$H$63,('Equip. Data'!$B$4:$B$63=_xlpm.type)*('Equip. Data'!$E$4:$E$63=_xlpm.size)), INDEX(_xlpm.cops, _xlfn.XMATCH(MIN(ABS(_xlpm.temps-_xlpm.temp)), ABS(_xlpm.temps-_xlpm.temp)))),0) -> 0 | M21: 0 | N21: =IF(D21<Dashboard!$C$39,Dashboard!$D$36,"") -> Condensing Furnace | O21: 5.86 | P21: =IFERROR(VLOOKUP(N21,'Equip. Data'!$J$3:$K$7,2,FALSE),"") -> 0.95 | Q21: 6.168421053 | R21: 0.95
B22: Heating (Electricity) | C22: 2002-01-01T19:00:00 | D22: -1.4 | E22: 5.79 | F22: 19.75548 | G22: =IF(D22>=Dashboard!$C$39,Dashboard!$C$36,"") ->  | H22: =IF(G22=Dashboard!$C$36,Dashboard!$C$37,"") ->  | I22: =IFERROR(_xlfn.LET( _xlpm.type,G22, _xlpm.size,H22, _xlpm.temp,D22, _xlpm.temps,_xlfn._xlws.FILTER('Equip. Data'!$D$4:$D$63,('Equip. Data'!$B$4:$B$63=_xlpm.type)*('Equip. Data'!$E$4:$E$63=_xlpm.size)),_xlpm.caps,_xlfn._xlws.FILTER('Equip. Data'!$F$4:$F$63,('Equip. Data'!$B$4:$B$63=_xlpm.type)*('Equip. Data'!$E$4:$E$63=_xlpm.size)), INDEX(_xlpm.caps, _xlfn.XMATCH(MIN(ABS(_xlpm.temps-_xlpm.temp)), ABS(_xlpm.temps-_xlpm.temp)))),0) -> 0 | J22: 0 | K22: 0 | L22: =IFERROR(_xlfn.LET( _xlpm.type,G22, _xlpm.size,H22, _xlpm.temp,D22, _xlpm.temps,_xlfn._xlws.FILTER('Equip. Data'!$D$4:$D$63,('Equip. Data'!$B$4:$B$63=_xlpm.type)*('Equip. Data'!$E$4:$E$63=_xlpm.size)),_xlpm.cops,_xlfn._xlws.FILTER('Equip. Data'!$H$4:$H$63,('Equip. Data'!$B$4:$B$63=_xlpm.type)*('Equip. Data'!$E$4:$E$63=_xlpm.size)), INDEX(_xlpm.cops, _xlfn.XMATCH(MIN(ABS(_xlpm.temps-_xlpm.temp)), ABS(_xlpm.temps-_xlpm.temp)))),0) -> 0 | M22: 0 | N22: =IF(D22<Dashboard!$C$39,Dashboard!$D$36,"") -> Condensing Furnace | O22: 5.79 | P22: =IFERROR(VLOOKUP(N22,'Equip. Data'!$J$3:$K$7,2,FALSE),"") -> 0.95 | Q22: 6.094736842 | R22: 0.95
B23: Heating (Electricity) | C23: 2002-01-01T20:00:00 | D23: -1.7 | E23: 5.86 | F23: 19.99432 | G23: =IF(D23>=Dashboard!$C$39,Dashboard!$C$36,"") ->  | H23: =IF(G23=Dashboard!$C$36,Dashboard!$C$37,"") ->  | I23: =IFERROR(_xlfn.LET( _xlpm.type,G23, _xlpm.size,H23, _xlpm.temp,D23, _xlpm.temps,_xlfn._xlws.FILTER('Equip. Data'!$D$4:$D$63,('Equip. Data'!$B$4:$B$63=_xlpm.type)*('Equip. Data'!$E$4:$E$63=_xlpm.size)),_xlpm.caps,_xlfn._xlws.FILTER('Equip. Data'!$F$4:$F$63,('Equip. Data'!$B$4:$B$63=_xlpm.type)*('Equip. Data'!$E$4:$E$63=_xlpm.size)), INDEX(_xlpm.caps, _xlfn.XMATCH(MIN(ABS(_xlpm.temps-_xlpm.temp)), ABS(_xlpm.temps-_xlpm.temp)))),0) -> 0 | J23: 0 | K23: 0 | L23: =IFERROR(_xlfn.LET( _xlpm.type,G23, _xlpm.size,H23, _xlpm.temp,D23, _xlpm.temps,_xlfn._xlws.FILTER('Equip. Data'!$D$4:$D$63,('Equip. Data'!$B$4:$B$63=_xlpm.type)*('Equip. Data'!$E$4:$E$63=_xlpm.size)),_xlpm.cops,_xlfn._xlws.FILTER('Equip. Data'!$H$4:$H$63,('Equip. Data'!$B$4:$B$63=_xlpm.type)*('Equip. Data'!$E$4:$E$63=_xlpm.size)), INDEX(_xlpm.cops, _xlfn.XMATCH(MIN(ABS(_xlpm.temps-_xlpm.temp)), ABS(_xlpm.temps-_xlpm.temp)))),0) -> 0 | M23: 0 | N23: =IF(D23<Dashboard!$C$39,Dashboard!$D$36,"") -> Condensing Furnace | O23: 5.86 | P23: =IFERROR(VLOOKUP(N23,'Equip. Data'!$J$3:$K$7,2,FALSE),"") -> 0.95 | Q23: 6.168421053 | R23: 0.95
